{"text_format":"2","workbook":"xlsx","n_sheets":19,"sheets":["Nutzungshinweise","INPUT | Allgemeines","INPUT | TSz > Technik","INPUT | TSz > iHaSt","INPUT | TSz > Kosten","INPUT | TSz > Erlöse & Finanz","INPUT | KSz > Technik","INPUT | KSz > Kosten","INPUT | KSz > Erlöse & Finanz","Nebenrechnungen","Intern","Ergebnis ","Begründungen","INTERN | Prüfung","Deckblatt","Tatsächliches Szenario","Kontrafaktisches Szenario","Zusammenfassung","Ablage"],"not_rendered":{"charts":5,"images":5,"macros":0,"external_links":2,"defined_names":33,"comments":2,"pivot_tables":0},"unopened":[],"bounds":{"document_bytes":16777216,"sheet_cells":100000,"run_cost":"one","rows_first":2000,"rows_last":500,"rows_between":2000,"halvings":0,"cell_chars":16384,"cell_head_chars":4096},"cells_cut":0,"cells_raw":0,"read":"whole","date_system":"1900"}

{"sheet":"Nutzungshinweise","index":0,"n_rows":53,"n_cols":2,"rows_kept":53,"cut":false,"hidden":false,"merged":[]}
[]
[null,"Tool zur Berechnung der Finanzierungslücke bei Investitionen \nin hocheffiziente KWK-Anlagen & Wärme-/Kältenetze"]
[null,"Bezug: Allgemeine Gleichstellungsverordnung (AGVO) in der Fassung vom 30.06.2023"]
[null,"Version 250509 FW"]
[]
[]
[]
[null,"Nutzungshinweis:\nErrechnete Werte sind ausschließlich indikativ und stellen keinen Förderanspruch dar. \nDie Eingaben erfolgen in den blau hinterlegten Eingabefeldern. Die Veränderung von Zellen und Formeln in dieser Exceldatei ist unzulässig. \n"]
[null,"Nutzen Sie bitte immer die aktuelle Version des Berechnungstools. Sie finden es auf der Internetseite der Sächsischen Aufbaubank - Förderbank bei der konkreten Förderung und auf der Homepage der Sächsischen Agentur für Strukturentwicklung GmbH."]
[]
[]
[]
[null,"Entwicklung im Auftrag:"]
[null,"Sächsische Agentur für Strukturentwicklung GmbH"]
[null,"Pirnaische Straße 9 | 01069 Dresden"]
[]
[null,"Inhaltliche Bearbeitung:"]
[null,"Sächsisches Staatsministerium für Wirtschaft, Arbeit, Energie und Klimaschutz"]
[null,"Referat 52 Förderung Energie und Klimaschutz"]
[null,"Wilhelm-Buck-Straße 4 | 01097 Dresden"]
[]
[null,"BTU Cottbus-Senftenberg"]
[null,"Fachgebiet Infrastruktur- und Mobilitätsplanung"]
[null,"Platz der Deutschen Einheit 1 | 03046 Cottbus"]
[]
[null,"Sächsische Aufbaubank - Förderbank - "]
[null,"Pirnaische Straße 9 | 01069 Dresden"]
[]
[null,"Sächsische Energieagentur – SAENA GmbH "]
[null,"Pirnaische Straße 9 | 01069 Dresden"]
[]
[null,"Sächsische Agentur für Strukturentwicklung GmbH"]
[null,"Pirnaische Straße 9 | 01069 Dresden"]
[]
[null,"Haben Sie Fragen bei der Anwendung?"]
[]
[null,"Sächsische Aufbaubank - Förderbank - "]
[null,"Email-Adresse: susann.roeher@sab.sachsen.de "]
[]
[null,"Systemvoraussetzungen"]
[]
[null,"Software"]
[null,"Microsoft Excel, Version 2016 oder neuer"]
[]
[null,"Betriebssystem"]
[null,"empfohlen wird Windows 10 oder Neuer"]
[]
[null,"Änderungsprotokoll"]
[]
[null,"250509  Überarbeitung Ihast-Funktionalität, Anpassung Jahreseingaben, Änderungen Logo"]
[null,"250130 Integration Ihast-Funktionalität, kleinere Textanpassungen im gesamten Tool"]
[null,"240826  Anpassung  von Eingabeoptionen an aktuelle Programmkulissen im Blatt INPUT | Allgemeines"]
[null,"240521 Startversion"]

{"sheet":"INPUT | Allgemeines","index":1,"n_rows":102,"n_cols":24,"rows_kept":102,"cut":false,"hidden":false,"merged":[[6,12,8,12],[16,6,16,9],[8,6,8,9],[6,6,6,9],[27,12,29,12],[33,12,34,12],[33,6,33,9],[12,6,12,9],[18,6,18,9],[12,12,14,12],[18,12,19,12],[20,12,21,12],[22,12,23,12]]}
[]
[null,"Allgemeine Daten",{"$nulls":10},"Hinweise/ Anmerkungen",null,"Ausblenden","Ausblenden","Ausblenden","Ausblenden","Ausblenden","Ausblenden","Ausblenden","Ausblenden","Ausblenden","Ausblenden"]
[{"$nulls":12},"blau hinterlegte Felder sind Eingabefelder"]
[]
[null,"Eingabe 1: Angaben zum Antragsteller und zum Projekt"]
[]
[null,"Bezeichnung des antragstellenden Unternehmens:",{"$nulls":10},"Diese Daten werden zur Bezeichnung der Berechnungsblätter und für Berechnungen in diesem Tool verwendet."]
[]
[null,"Projektkurztitel:"]
[]
[null,"Eingabe 2: geplante Systemlösung/ Investitionsgegenstand des Antrages"]
[]
[null,"Bitte wählen Sie den Investitionsgegenstand:",{"$nulls":4},"Investition energieeff. Fernwärme/kälte | AGVO Art. 46",{"$nulls":5},"Bitte wählen Sie im ersten Schritt den Investitionsgegenstand. Alle relevanten Eingabefelder werden in den Folgetabellen sichtbar."]
[]
[null,"WICHTIG: Diese Lösung wird nachfolgend als tatsächliches Szenario (TSz) bezeichnet."]
[]
[null,"Erstes Jahr der Betrachtung",{"$nulls":4},"Bitte auswählen",{"$nulls":5},"Bei fehlender Angabe wird das aktuelle Jahr verwendet."]
[]
[null,"Beginn des kommerziellen Betriebes",null,null,null,"Eingabe prüfen!!","Bitte auswählen",{"$nulls":5},"Bei fehlender Eingabe wird das erste Jahr der Betrachtung verwendet. Maximal 4 Jahre später sind möglich."]
[]
[null,{"$f":"\"Der reguläre Betrachtungszeitraum für den oben genannten Investitionsgegenstand beträgt \"&R91&\"+\"&R99&\" Jahre.\"","v":"Der reguläre Betrachtungszeitraum für den oben genannten Investitionsgegenstand beträgt 0+20 Jahre."},{"$nulls":7},{"$f":"\"Letztes Jahr der Betrachtung: \"&R101","v":"Letztes Jahr der Betrachtung: 2045"},null,null,"Massgebend für die Betrachtungsdauer ist die steuerliche Abschreibungsdauer langlebiger zentraler Komponenten."]
[]
[null,"Der Betriebszeitraum soll verkürzt werden um",{"$nulls":5},"Jahre",null,">> Zur Begründung",null,null,"Die Verkürzung ist nur in Ausnahmefällen zulässig und muss textlich begründet werden. Die Begründung ist beizufügen"]
[{"$nulls":6},"Mindestzeitraum unterschritten!"]
[]
[null,"Eingabe 3: Alternative technische Lösung"]
[]
[null,"Bitte beantworten Sie folgende Frage: Was würde getan werden, wenn keine Förderung zur Verfügung steht?",{"$nulls":10},"WICHTIG: Das Berechnungsverfahren sieht vor, dass der geplanten Lösung eine alternative Lösung gegenübergestellt wird. \n"]
[]
[null,"A.","die bestehenden Anlagen werden weiterbetrieben, die Investition wird ggf. zu einem späteren Zeitpunkt getätigt."]
[null,"B.","es wird in eine weniger umweltfreundliche Anlage/Lösung investiert."]
[null,"C.","es gibt keine alternative technische Anlage/Lösung, es wird deshalb keine Investition getätigt."]
[]
[null,"Bitte wählen Sie die Antwort aus:",{"$nulls":4},"Bitte auswählen",{"$nulls":5},"Die Wahl des kontrafaktischen Szenarios ist in der Vorhabensbeschreibung zu begründen."]
[]
[null,"WICHTIG: Diese Lösung wird nachfolgend als kontrafaktisches Szenario (KSz) bezeichnet.",{"$nulls":7},">> Zur Begründung"]
[]
[]
[]
[{"$nulls":14},"Dropdownfelder"]
[{"$nulls":14},"Tatsächliches Szenario",null,null,null,"Anzeige","Erzeugung","Netz","Dauer (Jahre)"]
[{"$nulls":14},"Bitte auswählen",null,null,null,"nicht definiert",0,0,20]
[{"$nulls":14},"Investition hocheffiziente KWK | Artikel 41 Abs.4",null,null,null,"Erzeugung",1,0,20]
[{"$nulls":14},"Investition energieeff. Fernwärme/kälte | AGVO Art. 46",null,null,null,"Alles",1,1,20]
[{"$nulls":14},"Investition Energieinfrastruktur | AGVO Artikel  48",null,null,null,"Netz",0,1,20]
[]
[]
[]
[{"$nulls":14},"Startjahr","Anzeige",null,null,"Betriebsjahr","Anzeige"]
[{"$nulls":14},"Bitte auswählen",2026,null,null,"Bitte auswählen",{"$f":"Startjahr","v":2026}]
[{"$nulls":14},2025,2025,null,null,{"$f":"Startjahr","v":2026},{"$f":"Startjahr","v":2026}]
[{"$nulls":14},2026,2026,null,null,{"$f":"S51+1","v":2027},2027]
[{"$nulls":14},2027,2027,null,null,2028,2028]
[{"$nulls":14},2028,2028,null,null,2029,2029]
[{"$nulls":14},2029,2029,null,null,2030,2030]
[{"$nulls":14},2030,2030]
[{"$nulls":15},2031]
[]
[]
[]
[{"$nulls":14},"Auswahl TSz",null,null,null,"Anzeige"]
[{"$nulls":14},"Bitte auswählen",null,null,null,"Es wurde noch keine alternative Lösung ausgewählt.",{"$nulls":4},0]
[{"$nulls":14},"A. Weiterbetrieb der Bestandslösung",null,null,null,"Weiterbetrieb der Bestandslösung",{"$nulls":4},1]
[{"$nulls":14},"B. Errichtung einer weniger umweltfreundlichen Lösung",null,null,null,"Errichtung einer weniger umweltfreundlichen Lösung",{"$nulls":4},1]
[{"$nulls":14},"c. Es wird keine Investition getätigt.",null,null,null,"Es gibt keine alternative Lösung >> Es wird keine Investition getätigt.",{"$nulls":4},0]
[]
[]
[{"$nulls":14},"Bitte auswählen"]
[{"$nulls":14},"nein"]
[{"$nulls":14},"ja"]
[]
[]
[{"$nulls":14},"Übergabefelder (mit Default, falls keine Eingabe da)"]
[{"$nulls":14},"Soll es Eingaben für ein Kontrafaktisches Szenario geben?  0=Nein, 1=Ja"]
[{"$nulls":14},"Übergabewert Zahl",null,"Übergabewert Text"]
[{"$nulls":14},{"$f":"INDEX($X$62:$X$65,MATCH(G34,$O$62:$O$65,0))","v":0},null,{"$f":"INDEX($S$62:$S$65,MATCH(G34,$O$62:$O$65,0))","v":"Es wurde noch keine alternative Lösung ausgewählt."}]
[]
[{"$nulls":14},"Präzisierung TSz:"]
[{"$nulls":14},"Muss die Erzeugung mit betrachtet werden?   0=Nein, 1=Ja"]
[{"$nulls":14},{"$f":"INDEX($T$42:$T$45,MATCH(G13,$O$42:$O$45,0))","v":1}]
[{"$nulls":14},"Muss das Netz mit betrachtet werden?   0=Nein, 1=Ja"]
[{"$nulls":14},{"$f":"INDEX($U$42:$U$45,MATCH(G13,$O$42:$O$45,0))","v":1}]
[{"$nulls":14},"… in Textform: Was soll angezeigt werden?"]
[{"$nulls":14},{"$f":"INDEX($S$42:$S$45,MATCH(G13,$O$42:$O$45,0))","v":"Alles"}]
[]
[]
[{"$nulls":14},"Welches Startjahr soll verwendet werden?",null,null,{"$f":"INDEX(P50:P57,MATCH(G17,O50:O57,0))","v":2026}]
[]
[]
[{"$nulls":14},"Was ist das erste Betriebsjahr lt. Eingabe?",null,null,{"$f":"IFERROR(INDEX(T50:T55,MATCH(G19,S50:S55,0)),0)","v":2026}]
[{"$nulls":14},"Betrachtungszeit vor Betriebsbeginn",null,null,{"$f":"R90-Startjahr","v":0}]
[{"$nulls":14},"Verwendeter Wert für das erste Betriebsjahr",null,null,{"$f":"IF(R90>=Startjahr,R90,Startjahr)","v":2026}]
[{"$nulls":14},"Regulärer Betrachtungszeitraum ab erstem Betriebsjahr",null,null,{"$f":"INDEX($V$42:$V$45,MATCH(G13,$O$42:$O$45,0))","v":20},"Jahre"]
[{"$nulls":14},"Welches Reguläre Endjahr?",null,null,{"$f":"Startjahr+R91+R93-1","v":2045}]
[{"$nulls":14},"Zum Durchnummerieren genutztes erstes Betriebsjahr",null,null,{"$f":"R91+1","v":1}]
[]
[{"$nulls":14},"Soll  die Betriebszeit korrigiert werden?",null,null,{"$f":"IF(OR(G23<0,G23>R93,(R93-G23)<R98),0,G23)","v":0},"Jahre"]
[{"$nulls":14},"Gibt es eine Mindestdauer?",null,null,10,"Jahre"]
[{"$nulls":14},"Verwendter Wert für die Betriebszeit (Laufzeit)",null,null,{"$f":"R93-R97","v":20},"Jahre"]
[]
[{"$nulls":14},"Welches korrigierte Endjahr ergibt sich draus?",null,null,{"$f":"Startjahr+R91+R99-1","v":2045}]
[{"$nulls":14},"Gesamtbetrachtungszeit",null,null,{"$f":"R99+R91","v":20}]

{"sheet":"INPUT | TSz > Technik","index":2,"n_rows":150,"n_cols":26,"rows_kept":150,"cut":false,"hidden":false,"merged":[[54,12,59,12],[46,12,48,12],[8,12,10,12],[39,12,40,12],[15,12,17,12],[12,12,14,12]]}
[{"$nulls":18},"Ausblenden"]
[null,"Technische Parameter der geplanten Anlagenkonstellation & Wärmeabsatz",{"$nulls":10},"Hinweise/ Anmerkungen",{"$nulls":5},"Ausblenden","Ausblenden","Ausblenden","Ausblenden","Ausblenden","Ausblenden","Ausblenden","Ausblenden"]
[null,{"$f":"CONCATENATE(\"Tatsächliches Szenario (TSz) | \",Kurztitel)","v":"Tatsächliches Szenario (TSz) | "},{"$nulls":10},"blau hinterlegte Felder sind Eingabefelder"]
[]
[]
[null,"Eingabe 1: Wärmeerzeugung"]
[]
[{"$nulls":6},"optional","optional"]
[{"$nulls":5},"Erzeugungsanlage 1","Erzeugungsanlage 2","Erzeugungsanlage 3",{"$nulls":4},"Wählen Sie die Erzeugungsanlage/-n aus den Optionsfeld und ergänzen Sie die Angaben zu den Nutzungsgraden."]
[]
[null,"Erzeugungsanlage",null,null,null,"Bitte auswählen","Bitte auswählen","Bitte auswählen"]
[]
[null,"Thermischer Nutzungsgrad* | JAZ",{"$nulls":10},"*) soweit relevant: bezogen auf Heizwert Hi. | bei Wärmepumpen Jahresarbeitszahl JAZ in %, z.B. 3,5 >> 350% | bei EXTERNem Wärmebezug >> 100%"]
[null,"Elektrischer Nutzungsgrad"]
[null,"Geplante Arbeitsanteile der Erzeugeranlagen (Wärme)"]
[null,{"$f":"\"Jahr \"&S131","v":"Jahr 1"},{"$f":"Inbetriebnahme","v":2026},null,null,{"$f":"IF(AND($G$11=$S$79,$H$11=$S$79),1,IF($H$11=$S$79,1-G16,IF($G$11=$S$79,1-H16,1-H16-G16)))","v":1},{"$nulls":6},"Wenn Sie mehr als eine Erzeugungsanlage angeben: Geben Sie die Arbeitsanteile der weiteren Erzeugunganlagen in % an. Bezugsgröße ist die Jahresarbeit."]
[null,{"$f":"\"Jahr \"&S132","v":"Jahr 2"},{"$f":"IF(Inbetriebnahme+COUNTA($B$17:B17)>Endjahr,\"\",Inbetriebnahme+COUNTA($B$17:B17))","v":2027},null,null,1]
[null,"Jahr 3",{"$f":"IF(Inbetriebnahme+COUNTA($B$17:B18)>Endjahr,\"\",Inbetriebnahme+COUNTA($B$17:B18))","v":2028},null,null,1]
[null,"Jahr 4",{"$f":"IF(Inbetriebnahme+COUNTA($B$17:B19)>Endjahr,\"\",Inbetriebnahme+COUNTA($B$17:B19))","v":2029},null,null,1]
[null,"Jahr 5",{"$f":"IF(Inbetriebnahme+COUNTA($B$17:B20)>Endjahr,\"\",Inbetriebnahme+COUNTA($B$17:B20))","v":2030},null,null,1]
[null,"Jahr 6",{"$f":"IF(Inbetriebnahme+COUNTA($B$17:B21)>Endjahr,\"\",Inbetriebnahme+COUNTA($B$17:B21))","v":2031},null,null,1]
[null,"Jahr 7",{"$f":"IF(Inbetriebnahme+COUNTA($B$17:B22)>Endjahr,\"\",Inbetriebnahme+COUNTA($B$17:B22))","v":2032},null,null,1]
[null,"Jahr 8",{"$f":"IF(Inbetriebnahme+COUNTA($B$17:B23)>Endjahr,\"\",Inbetriebnahme+COUNTA($B$17:B23))","v":2033},null,null,1]
[null,"Jahr 9",{"$f":"IF(Inbetriebnahme+COUNTA($B$17:B24)>Endjahr,\"\",Inbetriebnahme+COUNTA($B$17:B24))","v":2034},null,null,1]
[null,"Jahr 10",{"$f":"IF(Inbetriebnahme+COUNTA($B$17:B25)>Endjahr,\"\",Inbetriebnahme+COUNTA($B$17:B25))","v":2035},null,null,1]
[null,"Jahr 11",{"$f":"IF(Inbetriebnahme+COUNTA($B$17:B26)>Endjahr,\"\",Inbetriebnahme+COUNTA($B$17:B26))","v":2036},null,null,1]
[null,"Jahr 12",{"$f":"IF(Inbetriebnahme+COUNTA($B$17:B27)>Endjahr,\"\",Inbetriebnahme+COUNTA($B$17:B27))","v":2037},null,null,1]
[null,"Jahr 13",{"$f":"IF(Inbetriebnahme+COUNTA($B$17:B28)>Endjahr,\"\",Inbetriebnahme+COUNTA($B$17:B28))","v":2038},null,null,1]
[null,"Jahr 14",{"$f":"IF(Inbetriebnahme+COUNTA($B$17:B29)>Endjahr,\"\",Inbetriebnahme+COUNTA($B$17:B29))","v":2039},null,null,1]
[null,"Jahr 15",{"$f":"IF(Inbetriebnahme+COUNTA($B$17:B30)>Endjahr,\"\",Inbetriebnahme+COUNTA($B$17:B30))","v":2040},null,null,1]
[null,"Jahr 16",{"$f":"IF(Inbetriebnahme+COUNTA($B$17:B31)>Endjahr,\"\",Inbetriebnahme+COUNTA($B$17:B31))","v":2041},null,null,1]
[null,"Jahr 17",{"$f":"IF(Inbetriebnahme+COUNTA($B$17:B32)>Endjahr,\"\",Inbetriebnahme+COUNTA($B$17:B32))","v":2042},null,null,1]
[null,"Jahr 18",{"$f":"IF(Inbetriebnahme+COUNTA($B$17:B33)>Endjahr,\"\",Inbetriebnahme+COUNTA($B$17:B33))","v":2043},null,null,1]
[null,"Jahr 19",{"$f":"IF(Inbetriebnahme+COUNTA($B$17:B34)>Endjahr,\"\",Inbetriebnahme+COUNTA($B$17:B34))","v":2044},null,null,1]
[null,"Jahr 20",{"$f":"IF(Inbetriebnahme+COUNTA($B$17:B35)>Endjahr,\"\",Inbetriebnahme+COUNTA($B$17:B35))","v":2045},null,null,1]
[]
[]
[null,"Eingabe 2: Leitungsnetz"]
[]
[null,"Mittlerer Übertragungsverlust des neuen Wärmenetzes in [%]",{"$nulls":6},"oder absolut",null,"[MWh/Jahr]",null,"Der Absolutwert hat Vorrang, ein Verlust wird \nab Wärmeabgabe > 0 berücksichtigt."]
[]
[{"$nulls":12},">> Hier können Sie Erläuterungen hinterlegen"]
[]
[null,"Eingabe 3: Wärmeabsatz"]
[]
[{"$nulls":6},{"$f":"W114","v":"Wärmeabgabe an Kunden"}]
[{"$nulls":6},"Zu-/Abnahme","kumuliert",{"$nulls":4},"Relevant sind die zur Deckung der Netzkosten herangezogenen Mengen, kumuliert über den zu betrachtenden Netzbereich."]
[]
[{"$nulls":6},"[MWh]","[MWh]"]
[]
[null,{"$f":"B16","v":"Jahr 1"},2026,{"$nulls":4},{"$f":"G51","v":0},{"$nulls":4},"Angegeben wird die ZU-/ABNAHME im jeweiligen Jahr."]
[null,"Jahr 2",2027,{"$nulls":4},{"$f":"H51+G52","v":0}]
[null,"Jahr 3",2028,{"$nulls":4},{"$f":"H52+G53","v":0},{"$nulls":4},"Risiken bitte durch vorsichtige Prognosen berücksichtigen!"]
[null,"Jahr 4",2029,{"$nulls":4},0]
[null,"Jahr 5",2030,{"$nulls":4},0,{"$nulls":4},{"$f":"IF('INPUT | TSz > iHaSt'!$Z$82=1,\"Bei Verwendung von iHaSt im Bestand: Der Wärmeabsatz der betroffenen Anlagen ist separat in der Tabelle INPUT | TSz > iHast zu hinterlegen.\",\"\")","v":""}]
[null,"Jahr 6",2031,{"$nulls":4},0]
[null,"Jahr 7",2032,{"$nulls":4},0]
[null,"Jahr 8",2033,{"$nulls":4},0]
[null,"Jahr 9",2034,{"$nulls":4},0]
[null,"Jahr 10",2035,{"$nulls":4},0]
[null,"Jahr 11",2036,{"$nulls":4},0]
[null,"Jahr 12",2037,{"$nulls":4},0]
[null,"Jahr 13",2038,{"$nulls":4},0]
[null,"Jahr 14",2039,{"$nulls":4},0]
[null,"Jahr 15",2040,{"$nulls":4},0]
[null,"Jahr 16",2041,{"$nulls":4},0]
[null,"Jahr 17",2042,{"$nulls":4},0]
[null,"Jahr 18",2043,{"$nulls":4},0]
[null,"Jahr 19",2044,{"$nulls":4},0]
[null,"Jahr 20",2045,{"$nulls":4},0]
[]
[]
[]
[]
[]
[{"$nulls":18},"Dropdownfelder"]
[]
[{"$nulls":18},"Art der Erzeugungsanlage",null,null,"KWK?"]
[{"$nulls":18},"Bitte auswählen"]
[{"$nulls":18},"KESSEL_Erdgas"]
[{"$nulls":18},"KESSEL_Biogas"]
[{"$nulls":18},"KESSEL_Biomethan"]
[{"$nulls":18},"KESSEL_Holz/Pellet/Stroh"]
[{"$nulls":18},"BHKW_Erdgas",null,null,1]
[{"$nulls":18},"BHKW_Biogas",null,null,1]
[{"$nulls":18},"BHKW_Biomethan",null,null,1]
[{"$nulls":18},"WÄRMEPUMPE_Sole"]
[{"$nulls":18},"WÄRMEPUMPE_Luft"]
[{"$nulls":18},"WÄRMEPUMPE_Erdgas"]
[{"$nulls":18},"WÄRMEPUMPE_Biogas"]
[{"$nulls":18},"WÄRMEPUMPE_Biomethan"]
[{"$nulls":18},"SOLAR_Kollektor"]
[{"$nulls":18},"P2H_Strom"]
[{"$nulls":18},"EXTERNer Wärmebezug"]
[{"$nulls":18},"KÄLTE_aus_Kompression"]
[{"$nulls":18},"KÄLTE_aus_Ad-/Absorbtion"]
[{"$nulls":18},"Therm. Abfallverwertung"]
[]
[]
[{"$nulls":18},"Übergabefelder"]
[{"$nulls":18},"KWK >> bedingte Formatierung el. Nutzungsgrad"]
[{"$nulls":18},{"$f":"INDEX($V$79:$V$97,MATCH(F11,$S$79:$S$97,0))","v":0},{"$f":"INDEX($V$79:$V$97,MATCH(G11,$S$79:$S$97,0))","v":0},{"$f":"INDEX($V$79:$V$97,MATCH(H11,$S$79:$S$97,0))","v":0}]
[{"$nulls":18},"Aktivierung elektrischer Nutzungsgrad nur bei KWK, falls Fehleingabe"]
[{"$nulls":18},{"$f":"IF(S102=1,F14,0)","v":0},{"$f":"IF(T102=1,G14,0)","v":0},{"$f":"IF(U102=1,H14,0)","v":0}]
[]
[{"$nulls":18},"Aktivierung thermischer Nutzungsgrad nur bei Auswahl, falls Fehleingabe"]
[{"$nulls":18},{"$f":"IF(F11=$S$79,0,F13)","v":0},{"$f":"IF(G11=$S$79,0,G13)","v":0},0]
[]
[]
[]
[]
[{"$nulls":18},"Formatierungen und Begriffe in Abhängigkeit der notwendigen Eingaben"]
[{"$nulls":18},"Eingabe ","Beschreibung",null,null,"Verwendeter Text"]
[{"$nulls":18},"nicht definiert","Keine Anlagenkonstellation ausgewählt!",null,null,{"$f":"INDEX(T114:T117,MATCH(S126,S114:S117,0))","v":"Wärmeabgabe an Kunden"}]
[{"$nulls":18},"Erzeugung","Wärmeabgabe an das Netz"]
[{"$nulls":18},"Alles","Wärmeabgabe an Kunden"]
[{"$nulls":18},"Netz","Wärmeabgabe an Kunden"]
[]
[]
[{"$nulls":18},"Präzisierung TSz:"]
[{"$nulls":18},"Muss die Erzeugung mit betrachtet werden?   0=Nein, 1=Ja"]
[{"$nulls":18},{"$f":"'INPUT | Allgemeines'!$O$80","v":1}]
[{"$nulls":18},"Muss das Netz mit betrachtet werden?   0=Nein, 1=Ja"]
[{"$nulls":18},{"$f":"'INPUT | Allgemeines'!$O$82","v":1}]
[{"$nulls":18},"… in Textform: Was soll angezeigt werden?"]
[{"$nulls":18},{"$f":"'INPUT | Allgemeines'!O84","v":"Alles"}]
[]
[]
[{"$nulls":18},"Nebenrechnung"]
[{"$nulls":18},"Jahresangabe"]
[{"$nulls":18},{"$f":"'INPUT | Allgemeines'!R95","v":1}]
[{"$nulls":18},{"$f":"S131+1","v":2}]
[{"$nulls":18},{"$f":"S132+1","v":3}]
[{"$nulls":18},4]
[{"$nulls":18},5]
[{"$nulls":18},6]
[{"$nulls":18},7]
[{"$nulls":18},8]
[{"$nulls":18},9]
[{"$nulls":18},10]
[{"$nulls":18},11]
[{"$nulls":18},12]
[{"$nulls":18},13]
[{"$nulls":18},14]
[{"$nulls":18},15]
[{"$nulls":18},16]
[{"$nulls":18},17]
[{"$nulls":18},18]
[{"$nulls":18},19]
[{"$nulls":18},20]

{"sheet":"INPUT | TSz > iHaSt","index":3,"n_rows":113,"n_cols":26,"rows_kept":113,"cut":false,"hidden":false,"merged":[[56,13,58,13],[5,10,5,11],[54,13,55,13],[1,1,1,11],[9,13,11,13],[15,13,17,13],[28,13,29,13],[33,13,35,13],[21,13,24,13],[4,13,5,13]]}
[{"$nulls":18},"Ausblenden","Ausblenden","Ausblenden","Ausblenden","Ausblenden","Ausblenden"]
[null,"Anwendungsfall iHast im Bestand | Zusätzliche Angaben im Tatsächlichen Szenario",{"$nulls":11},"Hinweise/ Anmerkungen"]
[{"$nulls":13},"blau hinterlegte Felder bitte auswählen oder ausfüllen."]
[null,"Diese Tabelle ist nur bei Einbau von intelligenten Hausanschlussstationen (iHaSt) in bestehende Wärme-/Kältenetze anzuwenden!"]
[{"$nulls":13},"Die Berechnung des Tatsächlichen Szenarios wird um die hier vorgenommenen Eingaben ergänzt!"]
[null,"Ersetzen Sie im Bestandsnetz bestehende Hausanschlußstationen mit iHaSt?",{"$nulls":5},"Nein.",null,null,{"$f":"INDEX(X77:X78,MATCH(H6,S77:S78,0))","v":"Tabelle ist NICHT aktiv"}]
[]
[null,"Eingabe 1: Systemparameter des Bestandsnetzes "]
[]
[null,"Mittlerer Wärmeverlust des Wärmenetzes (Übertragungsverlust)",{"$nulls":11},"Der Wert dient als Bezugsgröße für die durch den iHast-Einsatz induzierte Reduzierung des Übertragungsverlustes."]
[]
[]
[]
[null,"Eingabe 2: Angaben zum Umfang und zur Wirkung des Austausches von Bestandssanlagen durch iHaSt"]
[]
[null,"Erwartete Reduzierung des Übertragungsverlustes durch iHAST ",{"$nulls":5},0.06,{"$nulls":5},"Die 6 % sind die Empfehlung des AGFW e.V. auf Grundlage der Modellrechnung der iHAST-Studie. Wert kann geändert werden, Nachweis ist in den Fall zu führen."]
[]
[]
[null,"Ersatz von Bestandsanlagen (HaSt) durch iHaSt"]
[null,"anzugeben ist jeweils die Summe der Leistung/Arbeit der in einem Jahr ersetzten Einzelanlagen."]
[{"$nulls":7},"alternativ",{"$nulls":5},"Entweder Leistung+Vollbenutzungsstunden oder Arbeit angeben."]
[{"$nulls":4},"Leistung","Vollbenutzungsstunden",null,"Wärmeabgabe an Kunden","kumuliert",{"$nulls":4},"Die Arbeit kann anhand der Abrechnungsdaten der zu ersetzenden Bestandsanlagen erstellt werden. Liegen diese nicht vor bzw. sind nicht anwendbar, sind Näherungswerte zu verwenden. Z.B. Energieverbrauch Vergleichbarer Gebäude"]
[]
[]
[{"$nulls":4},"[kW]","[-]",null,"[MWh/a]","[MWh]"]
[]
[null,{"$f":"'INPUT | TSz > Technik'!B16","v":"Jahr 1"},{"$f":"'INPUT | TSz > Technik'!C16","v":2026},{"$nulls":5},{"$f":"IF(H27<>0,H27,E27*F27/1000)","v":0},{"$nulls":4},"Angegeben wird nur die ZUNAHME im jeweiligen Jahr."]
[null,{"$f":"'INPUT | TSz > Technik'!B17","v":"Jahr 2"},{"$f":"'INPUT | TSz > Technik'!C17","v":2027},null,null,{"$f":"F27","v":0},null,null,{"$f":"IF(H28<>0,H28,E28*F28/1000)+I27","v":0}]
[null,{"$f":"'INPUT | TSz > Technik'!B18","v":"Jahr 3"},{"$f":"'INPUT | TSz > Technik'!C18","v":2028},null,null,{"$f":"F28","v":0},null,null,{"$f":"IF(H29<>0,H29,E29*F29/1000)+I28","v":0}]
[null,{"$f":"'INPUT | TSz > Technik'!B19","v":"Jahr 4"},{"$f":"'INPUT | TSz > Technik'!C19","v":2029},null,null,0,null,null,0]
[null,{"$f":"'INPUT | TSz > Technik'!B20","v":"Jahr 5"},{"$f":"'INPUT | TSz > Technik'!C20","v":2030},null,null,0,null,null,0]
[null,{"$f":"'INPUT | TSz > Technik'!B21","v":"Jahr 6"},{"$f":"'INPUT | TSz > Technik'!C21","v":2031},null,null,0,null,null,0]
[null,{"$f":"'INPUT | TSz > Technik'!B22","v":"Jahr 7"},{"$f":"'INPUT | TSz > Technik'!C22","v":2032},null,null,0,null,null,0]
[null,{"$f":"'INPUT | TSz > Technik'!B23","v":"Jahr 8"},{"$f":"'INPUT | TSz > Technik'!C23","v":2033},null,null,0,null,null,0]
[null,{"$f":"'INPUT | TSz > Technik'!B24","v":"Jahr 9"},{"$f":"'INPUT | TSz > Technik'!C24","v":2034},null,null,0,null,null,0]
[null,{"$f":"'INPUT | TSz > Technik'!B25","v":"Jahr 10"},{"$f":"'INPUT | TSz > Technik'!C25","v":2035},null,null,0,null,null,0]
[null,{"$f":"'INPUT | TSz > Technik'!B26","v":"Jahr 11"},{"$f":"'INPUT | TSz > Technik'!C26","v":2036},null,null,0,null,null,0]
[null,{"$f":"'INPUT | TSz > Technik'!B27","v":"Jahr 12"},{"$f":"'INPUT | TSz > Technik'!C27","v":2037},null,null,0,null,null,0]
[null,{"$f":"'INPUT | TSz > Technik'!B28","v":"Jahr 13"},{"$f":"'INPUT | TSz > Technik'!C28","v":2038},null,null,0,null,null,0]
[null,{"$f":"'INPUT | TSz > Technik'!B29","v":"Jahr 14"},{"$f":"'INPUT | TSz > Technik'!C29","v":2039},null,null,0,null,null,0]
[null,{"$f":"'INPUT | TSz > Technik'!B30","v":"Jahr 15"},{"$f":"'INPUT | TSz > Technik'!C30","v":2040},null,null,0,null,null,0]
[null,{"$f":"'INPUT | TSz > Technik'!B31","v":"Jahr 16"},{"$f":"'INPUT | TSz > Technik'!C31","v":2041},null,null,0,null,null,0]
[null,{"$f":"'INPUT | TSz > Technik'!B32","v":"Jahr 17"},{"$f":"'INPUT | TSz > Technik'!C32","v":2042},null,null,0,null,null,0]
[null,{"$f":"'INPUT | TSz > Technik'!B33","v":"Jahr 18"},{"$f":"'INPUT | TSz > Technik'!C33","v":2043},null,null,0,null,null,0]
[null,{"$f":"'INPUT | TSz > Technik'!B34","v":"Jahr 19"},{"$f":"'INPUT | TSz > Technik'!C34","v":2044},null,null,0,null,null,0]
[null,{"$f":"'INPUT | TSz > Technik'!B35","v":"Jahr 20"},{"$f":"'INPUT | TSz > Technik'!C35","v":2045},null,null,0,null,null,0]
[]
[]
[]
[null,"Eingabe 3: Angaben zur ökonomischen Bewertung und zu den Effekten auf die Kosten des Anlagenbetriebes"]
[]
[null,"Anpassung der Kosten im Bestandsnetz nach Ihast-Ausbau"]
[null,"Hinweis: Nachfolgend sind nur die erwarteten Veränderungen (Mehr-/Minderkosten) im Vergleich zu ersetzenden Bestandsanlagen zu bilanzieren.",{"$nulls":11},">> Bitte erläutern Sie hier Ihre Eingaben (Pflichtangabe)."]
[{"$nulls":8}," Veränderung","Preissteigerung"]
[{"$nulls":4},"Instandhaltungskosten","keine Veränderung",null,"pauschal  [Euro/a]",null,0,null,null,null,"Bei Einsparungen: Negativen Betrag eingeben.  \nBei Mehrkosten: Positiven Betrag angeben. \n"]
[]
[{"$nulls":8}," Veränderung","Preissteigerung",null,null,null,"Die allgemeinen Betriebskosten umfassen sowohl die Kosten für den Betrieb des geplanten iHast-Anlagenteils inkl. Stromkosten, Kosten für Versicherungen, Kalkulatorische Steuern und Kosten für Personal pro Betriebsjahr."]
[{"$nulls":4},"Allgemeine Betriebskosten","keine Veränderung",null,"pauschal [ Euro/a]",null,0]
[]
[null,"Weitere Angaben sind in anderen Tabellen erforderlich:"]
[]
[null,"1. Die Investitionskosten für die iHast hinterlegen Sie bitte (gemeinsam mit ggf. vorh. Neubaukosten) in der Tabelle \"INPUT | TSz > Kosten\".",{"$nulls":8},">> Zur Tabelle INPUT | TSz > Kosten"]
[]
[null,"2. Anhand der Eingaben zum Mischpreis (Eingabe 1)  in der Tabelle \"INPUT | Erlöse & Finanzen\" werden  die vermiedenen Kosten berechnet.",{"$nulls":8},">> Zur Tabelle INPUT | Erlöse & Kosten",null,null,"Hinweis: Nach Empfehlungen des AGFW werden für einen vereinfachten Nachweis nicht die tatsächlichen Wärmegestehungskosten, sondern der Fernwärme-Mischpreis herangezogen."]
[]
[]
[]
[]
[{"$nulls":18},"Dropdownfelder"]
[]
[{"$nulls":18},"Kostenanpassung",null,"Schalter"]
[{"$nulls":18},"keine Veränderung",null,0]
[{"$nulls":18},"Veränderung erwartet",null,1]
[]
[]
[{"$nulls":25},"Schalter"]
[{"$nulls":18},"Nein.",{"$nulls":4},"Tabelle ist NICHT aktiv",null,0]
[{"$nulls":18},"Ja.",{"$nulls":4},"Tabelle ist aktiv",null,1]
[]
[{"$nulls":18},"Schalter zur Auswahl von Berehcnungen "]
[]
[{"$nulls":18},"Aktuelle Einstellung",{"$nulls":4},{"$f":"K6","v":"Tabelle ist NICHT aktiv"},null,{"$f":"INDEX(Z77:Z78,MATCH(H6,S77:S78,0))","v":0}]
[{"$nulls":18},"Berechnung Instandhaltung",{"$nulls":6},{"$f":"INDEX(U72:U73,MATCH(F55,S72:S73,0))","v":0}]
[{"$nulls":18},"Berechnung Betriebskosten",{"$nulls":6},{"$f":"INDEX(U72:U73,MATCH(F58,S72:S73,0))","v":0}]
[]
[{"$nulls":18},"Berechnung Wärmeabgabe und Zuordnung zu den richtigen JAhren"]
[]
[{"$nulls":23},"Wärmeabgabe"]
[{"$nulls":18},"Jahr",{"$nulls":4},"pro Jahr","kumuliert","Mit Betrachtungszeitraum"]
[{"$nulls":18},{"$f":"'INPUT | TSz > Kosten'!B14","v":"Jahr 1"},{"$f":"Startjahr","v":2026},{"$f":"INDEX($E$27:$E$46,MATCH(S90,$B$27:$B$46,0))","v":0},{"$f":"INDEX($F$27:$F$46,MATCH(S90,$B$27:$B$46,0))","v":0},{"$f":"INDEX($H$27:$H$46,MATCH(S90,$B$27:$B$46,0))","v":0},{"$f":"IFERROR(IF(W90=0,U90*V90/1000,W90),0)","v":0},{"$f":"X90","v":0},{"$f":"IF(T90=\"\",0,X90)","v":0}]
[{"$nulls":18},{"$f":"'INPUT | TSz > Kosten'!B15","v":"Jahr 2"},{"$f":"IF(Startjahr+COUNTA($S$91:S91)>Endjahr,\"\",Startjahr+COUNTA($S$91:S91))","v":2027},{"$f":"INDEX($E$27:$E$46,MATCH(S91,$B$27:$B$46,0))","v":0},{"$f":"INDEX($F$27:$F$46,MATCH(S91,$B$27:$B$46,0))","v":0},0,{"$f":"IFERROR(IF(W91=0,U91*V91/1000,W91),0)","v":0},{"$f":"Y90+X91","v":0},{"$f":"IF(T91=\"\",0,Z90+X91)","v":0}]
[{"$nulls":18},{"$f":"'INPUT | TSz > Kosten'!B16","v":"Jahr 3"},{"$f":"IF(Startjahr+COUNTA($S$91:S92)>Endjahr,\"\",Startjahr+COUNTA($S$91:S92))","v":2028},0,0,0,0,{"$f":"Y91+X92","v":0},0]
[{"$nulls":18},{"$f":"'INPUT | TSz > Kosten'!B17","v":"Jahr 4"},{"$f":"IF(Startjahr+COUNTA($S$91:S93)>Endjahr,\"\",Startjahr+COUNTA($S$91:S93))","v":2029},0,0,0,0,0,0]
[{"$nulls":18},{"$f":"'INPUT | TSz > Kosten'!B18","v":"Jahr 5"},{"$f":"IF(Startjahr+COUNTA($S$91:S94)>Endjahr,\"\",Startjahr+COUNTA($S$91:S94))","v":2030},0,0,0,0,0,0]
[{"$nulls":18},{"$f":"'INPUT | TSz > Kosten'!B19","v":"Jahr 6"},{"$f":"IF(Startjahr+COUNTA($S$91:S95)>Endjahr,\"\",Startjahr+COUNTA($S$91:S95))","v":2031},0,0,0,0,0,0]
[{"$nulls":18},{"$f":"'INPUT | TSz > Kosten'!B20","v":"Jahr 7"},{"$f":"IF(Startjahr+COUNTA($S$91:S96)>Endjahr,\"\",Startjahr+COUNTA($S$91:S96))","v":2032},0,0,0,0,0,0]
[{"$nulls":18},{"$f":"'INPUT | TSz > Kosten'!B21","v":"Jahr 8"},{"$f":"IF(Startjahr+COUNTA($S$91:S97)>Endjahr,\"\",Startjahr+COUNTA($S$91:S97))","v":2033},0,0,0,0,0,0]
[{"$nulls":18},{"$f":"'INPUT | TSz > Kosten'!B22","v":"Jahr 9"},{"$f":"IF(Startjahr+COUNTA($S$91:S98)>Endjahr,\"\",Startjahr+COUNTA($S$91:S98))","v":2034},0,0,0,0,0,0]
[{"$nulls":18},{"$f":"'INPUT | TSz > Kosten'!B23","v":"Jahr 10"},{"$f":"IF(Startjahr+COUNTA($S$91:S99)>Endjahr,\"\",Startjahr+COUNTA($S$91:S99))","v":2035},0,0,0,0,0,0]
[{"$nulls":18},{"$f":"'INPUT | TSz > Kosten'!B24","v":"Jahr 11"},{"$f":"IF(Startjahr+COUNTA($S$91:S100)>Endjahr,\"\",Startjahr+COUNTA($S$91:S100))","v":2036},0,0,0,0,0,0]
[{"$nulls":18},{"$f":"'INPUT | TSz > Kosten'!B25","v":"Jahr 12"},{"$f":"IF(Startjahr+COUNTA($S$91:S101)>Endjahr,\"\",Startjahr+COUNTA($S$91:S101))","v":2037},0,0,0,0,0,0]
[{"$nulls":18},{"$f":"'INPUT | TSz > Kosten'!B26","v":"Jahr 13"},{"$f":"IF(Startjahr+COUNTA($S$91:S102)>Endjahr,\"\",Startjahr+COUNTA($S$91:S102))","v":2038},0,0,0,0,0,0]
[{"$nulls":18},{"$f":"'INPUT | TSz > Kosten'!B27","v":"Jahr 14"},{"$f":"IF(Startjahr+COUNTA($S$91:S103)>Endjahr,\"\",Startjahr+COUNTA($S$91:S103))","v":2039},0,0,0,0,0,0]
[{"$nulls":18},{"$f":"'INPUT | TSz > Kosten'!B28","v":"Jahr 15"},{"$f":"IF(Startjahr+COUNTA($S$91:S104)>Endjahr,\"\",Startjahr+COUNTA($S$91:S104))","v":2040},0,0,0,0,0,0]
[{"$nulls":18},{"$f":"'INPUT | TSz > Kosten'!B29","v":"Jahr 16"},{"$f":"IF(Startjahr+COUNTA($S$91:S105)>Endjahr,\"\",Startjahr+COUNTA($S$91:S105))","v":2041},0,0,0,0,0,0]
[{"$nulls":18},{"$f":"'INPUT | TSz > Kosten'!B30","v":"Jahr 17"},{"$f":"IF(Startjahr+COUNTA($S$91:S106)>Endjahr,\"\",Startjahr+COUNTA($S$91:S106))","v":2042},0,0,0,0,0,0]
[{"$nulls":18},{"$f":"'INPUT | TSz > Kosten'!B31","v":"Jahr 18"},{"$f":"IF(Startjahr+COUNTA($S$91:S107)>Endjahr,\"\",Startjahr+COUNTA($S$91:S107))","v":2043},0,0,0,0,0,0]
[{"$nulls":18},{"$f":"'INPUT | TSz > Kosten'!B32","v":"Jahr 19"},{"$f":"IF(Startjahr+COUNTA($S$91:S108)>Endjahr,\"\",Startjahr+COUNTA($S$91:S108))","v":2044},0,0,0,0,0,0]
[{"$nulls":18},{"$f":"'INPUT | TSz > Kosten'!B33","v":"Jahr 20"},{"$f":"IF(Startjahr+COUNTA($S$91:S109)>Endjahr,\"\",Startjahr+COUNTA($S$91:S109))","v":2045},0,0,0,0,0,0]
[{"$nulls":18},{"$f":"'INPUT | TSz > Kosten'!B34","v":"Jahr 21"},{"$f":"IF(Startjahr+COUNTA($S$91:S110)>Endjahr,\"\",Startjahr+COUNTA($S$91:S110))","v":""},{"$error":"#N/A"},{"$error":"#N/A"},{"$error":"#N/A"},0,0,0]
[{"$nulls":18},{"$f":"'INPUT | TSz > Kosten'!B35","v":"Jahr 22"},{"$f":"IF(Startjahr+COUNTA($S$91:S111)>Endjahr,\"\",Startjahr+COUNTA($S$91:S111))","v":""},{"$error":"#N/A"},{"$error":"#N/A"},{"$error":"#N/A"},0,0,0]
[{"$nulls":18},{"$f":"'INPUT | TSz > Kosten'!B36","v":"Jahr 23"},{"$f":"IF(Startjahr+COUNTA($S$91:S112)>Endjahr,\"\",Startjahr+COUNTA($S$91:S112))","v":""},{"$error":"#N/A"},{"$error":"#N/A"},{"$error":"#N/A"},0,0,0]
[{"$nulls":18},{"$f":"'INPUT | TSz > Kosten'!B37","v":"Jahr 24"},{"$f":"IF(Startjahr+COUNTA($S$91:S113)>Endjahr,\"\",Startjahr+COUNTA($S$91:S113))","v":""},{"$error":"#N/A"},{"$error":"#N/A"},{"$error":"#N/A"},0,0,0]

{"sheet":"INPUT | TSz > Kosten","index":4,"n_rows":108,"n_cols":23,"rows_kept":108,"cut":false,"hidden":false,"merged":[[11,1,11,2],[48,13,55,13],[9,13,13,13],[14,13,16,13],[17,13,19,13],[20,13,21,13]]}
[]
[null,"Kosten",{"$nulls":9},"Alle Kosten-/Preisangaben in Euro netto.",null,"Hinweise/ Anmerkungen",null,"Ausblenden","Ausblenden","Ausblenden","Ausblenden","Ausblenden","Ausblenden","Ausblenden","Ausblenden"]
[null,{"$f":"CONCATENATE(\"Tatsächliches Szenario (TSz) | \",Kurztitel)","v":"Tatsächliches Szenario (TSz) | "},{"$nulls":11},"blau hinterlegte Felder sind Eingabefelder"]
[]
[{"$nulls":7},"Brennstoff",null,"Brennstoffkosten","Kostenentw. Brennstoff"]
[null,"Eingabe 1: Kosten für die Anschaffung der Anlagen und Herstellung der Funktion | Investitionskosten"]
[]
[{"$nulls":4},"Technische","Gebäude &","Grunderwerb &","immaterielle","Personalkosten","Sachverständigen-, ","Sonstige Kosten"]
[{"$nulls":4},"Anlagen","bauliche Anlagen","-nebenkosten","Vermögenswerte",null,"Planungs-, Beratg.-"]
[{"$nulls":9},"leistungen",null,null,null,"Achtung: Zur Ermittlung der Finanzierungslücke sind alle Investitionen anzugeben. Investitionen außerhalb der Förderperiode sind nicht förderfähig  (unterhalb der roten Linie), werden aber zur Berechnung der Finanzierungslücke herangezogen."]
[null,"Summe",null,null,"[Euro] ","[Euro] ","[Euro] ","[Euro] ","[Euro] ","[Euro] ","[Euro] "]
[null,{"$f":"SUM(E12:K12)","v":0},null,null,{"$f":"SUM(OFFSET(E14,0,0,$P$71,1))","v":0},{"$f":"SUM(OFFSET(F14,0,0,$P$71,1))","v":0},0,0,0,0,0]
[]
[null,"Jahr 1",{"$f":"Startjahr","v":2026}]
[null,"Jahr 2",{"$f":"IF(Startjahr+COUNTA($B$15:B15)>Endjahr,\"\",Startjahr+COUNTA($B$15:B15))","v":2027},{"$nulls":10},"Zu den Technischen Anlagen zählen Kosten für  Maschinen, Anlagen und Ausstattung einschließlich der zur Installation und zum Betrieb erforderlichen Komponenten. "]
[null,"Jahr 3",{"$f":"IF(Startjahr+COUNTA($B$15:B16)>Endjahr,\"\",Startjahr+COUNTA($B$15:B16))","v":2028}]
[null,"Jahr 4",{"$f":"IF(Startjahr+COUNTA($B$15:B17)>Endjahr,\"\",Startjahr+COUNTA($B$15:B17))","v":2029}]
[null,"Jahr 5",{"$f":"IF(Startjahr+COUNTA($B$15:B18)>Endjahr,\"\",Startjahr+COUNTA($B$15:B18))","v":2030},{"$nulls":10},"Immaterielle Vermögenswerte sind Vermögenswerte ohne physische oder finanzielle Verkörperung wie Patentrechte, Lizenzen, Know-how oder sonstige Rechte des geistigen Eigentums."]
[null,"Jahr 6",{"$f":"IF(Startjahr+COUNTA($B$15:B19)>Endjahr,\"\",Startjahr+COUNTA($B$15:B19))","v":2031}]
[null,"Jahr 7",{"$f":"IF(Startjahr+COUNTA($B$15:B20)>Endjahr,\"\",Startjahr+COUNTA($B$15:B20))","v":2032}]
[null,"Jahr 8",{"$f":"IF(Startjahr+COUNTA($B$15:B21)>Endjahr,\"\",Startjahr+COUNTA($B$15:B21))","v":2033},{"$nulls":10},"Zu den sonstigen Kosten zählen Nebenkosten, Gemeinkosten oder indirekte Kosten."]
[null,"Jahr 9",{"$f":"IF(Startjahr+COUNTA($B$15:B22)>Endjahr,\"\",Startjahr+COUNTA($B$15:B22))","v":2034}]
[null,"Jahr 10",{"$f":"IF(Startjahr+COUNTA($B$15:B23)>Endjahr,\"\",Startjahr+COUNTA($B$15:B23))","v":2035},{"$nulls":10},">> Hier können Sie Erläuterungen hinterlegen"]
[null,"Jahr 11",{"$f":"IF(Startjahr+COUNTA($B$15:B24)>Endjahr,\"\",Startjahr+COUNTA($B$15:B24))","v":2036}]
[null,"Jahr 12",{"$f":"IF(Startjahr+COUNTA($B$15:B25)>Endjahr,\"\",Startjahr+COUNTA($B$15:B25))","v":2037}]
[null,"Jahr 13",{"$f":"IF(Startjahr+COUNTA($B$15:B26)>Endjahr,\"\",Startjahr+COUNTA($B$15:B26))","v":2038}]
[null,"Jahr 14",{"$f":"IF(Startjahr+COUNTA($B$15:B27)>Endjahr,\"\",Startjahr+COUNTA($B$15:B27))","v":2039}]
[null,"Jahr 15",{"$f":"IF(Startjahr+COUNTA($B$15:B28)>Endjahr,\"\",Startjahr+COUNTA($B$15:B28))","v":2040}]
[null,"Jahr 16",{"$f":"IF(Startjahr+COUNTA($B$15:B29)>Endjahr,\"\",Startjahr+COUNTA($B$15:B29))","v":2041}]
[null,"Jahr 17",{"$f":"IF(Startjahr+COUNTA($B$15:B30)>Endjahr,\"\",Startjahr+COUNTA($B$15:B30))","v":2042}]
[null,"Jahr 18",{"$f":"IF(Startjahr+COUNTA($B$15:B31)>Endjahr,\"\",Startjahr+COUNTA($B$15:B31))","v":2043}]
[null,"Jahr 19",{"$f":"IF(Startjahr+COUNTA($B$15:B32)>Endjahr,\"\",Startjahr+COUNTA($B$15:B32))","v":2044}]
[null,"Jahr 20",{"$f":"IF(Startjahr+COUNTA($B$15:B33)>Endjahr,\"\",Startjahr+COUNTA($B$15:B33))","v":2045}]
[null,"Jahr 21",{"$f":"IF(Startjahr+COUNTA($B$15:B34)>Endjahr,\"\",Startjahr+COUNTA($B$15:B34))","v":""}]
[null,"Jahr 22",{"$f":"IF(Startjahr+COUNTA($B$15:B35)>Endjahr,\"\",Startjahr+COUNTA($B$15:B35))","v":""}]
[null,"Jahr 23",{"$f":"IF(Startjahr+COUNTA($B$15:B36)>Endjahr,\"\",Startjahr+COUNTA($B$15:B36))","v":""}]
[null,"Jahr 24",{"$f":"IF(Startjahr+COUNTA($B$15:B37)>Endjahr,\"\",Startjahr+COUNTA($B$15:B37))","v":""}]
[]
[null,"Eingabe 2: Kosten für den Anlagenbetrieb (Ab Jahr der Inbetriebnahme)"]
[]
[null,{"$f":"Q98","v":"Kosten des Energieträgers"}]
[]
[null,{"$f":"R98","v":"Brennstoff"},null,null,null,{"$f":"P68","v":""},{"$f":"Q68","v":""},"",{"$nulls":5},"Es zählt das Jahr der Inbetriebnahme als Bezugsjahr."]
[null,{"$f":"S98","v":"Brennstoffkosten"},null,null,"[ Euro/MWh]",{"$nulls":8},"Nutzen Sie Marktpreise und geben Sie bitte Quellen an (bspw. EEX)"]
[null,{"$f":"T98","v":"Kostenentw. Brennstoff"},null,null,"[%/Jahr]",{"$nulls":8},"Bezug: Brennwert Hs, soweit relevant"]
[{"$nulls":13},">> Hier können Sie Erläuterungen hinterlegen"]
[null,"Allgemeine Betriebskosten und Instandhaltung"]
[]
[{"$nulls":7},"Kostenentw.\n [%/Jahr]",{"$nulls":5},"Die Instandhaltungskosten können pauschal oder abhängig vom Wert des Anlagenbestandes angegeben werden. Berechnungsgrundlage ist im zweiten Fall die  bis zum jeweiligen Jahr getätigte Investition. \n\nDie allgemeinen Betriebskosten umfassen die Kosten für den Betrieb der geplanten Anlage inkl. Stromkosten, Betriebsmittel (ohne Brennstoff), Kosten für Versicherungen und Kosten für Personal."]
[null,"Instandhaltungskosten pro Jahr",null,null,null,"% der Investition"]
[]
[{"$nulls":5},"Soll berücksichtigt ab dem Jahr (z.B. 2027):"]
[]
[null,"Allgemeine Betriebskosten pro Jahr",null,null,null,"Euro"]
[]
[]
[{"$nulls":13},"Die Angaben beziehen sich auf die gesamte technische Anlage. Unterscheiden sich die Teilkomponenten hinsichtlich des Kostenansatzes, ist ein wertgewichteter Mittelwert zu berechnen."]
[]
[]
[{"$nulls":15},"Dropdownfelder"]
[]
[{"$nulls":15},"Instandhaltungskosten",null,null,"Heizwert"]
[{"$nulls":15},"% der Investition",null,null,"Brennwert Hs."]
[{"$nulls":15},"Euro pauschal ",null,null,"Heizwert Hi."]
[]
[{"$nulls":15},"Inputfelder"]
[{"$nulls":15},"Brennstoff"]
[{"$nulls":15},{"$f":"IF(P108=P95,\"Wärme\",IF('INPUT | TSz > Technik'!F11='INPUT | TSz > Technik'!$S$79,\"\",INDEX(Ablage!$B$8:$B$25,MATCH('INPUT | TSz > Technik'!F11,Ablage!$A$8:$A$25,0))))","v":""},{"$f":"IF('INPUT | TSz > Technik'!G11='INPUT | TSz > Technik'!$S$79,\"\",INDEX(Ablage!$B$8:$B$25,MATCH('INPUT | TSz > Technik'!G11,Ablage!$A$8:$A$25,0)))","v":""},{"$f":"IF('INPUT | TSz > Technik'!H11='INPUT | TSz > Technik'!$S$79,\"\",INDEX(Ablage!$B$8:$B$25,MATCH('INPUT | TSz > Technik'!H11,Ablage!$A$8:$A$25,0)))","v":""}]
[]
[{"$nulls":15},"Dauer"]
[{"$nulls":15},{"$f":"'INPUT | Allgemeines'!R102","v":20}]
[]
[]
[{"$nulls":15},"Übergabefelder"]
[{"$nulls":15},"Alternativwert Jahr  Beginn der Berücksichtigung der Instandhaltungskosten"]
[{"$nulls":15},{"$f":"IF(G52=0,'INPUT | Allgemeines'!R87,G52)","v":2026}]
[]
[{"$nulls":15},"Kosten des Energieträgers"]
[{"$nulls":15},{"$f":"IF(P68=\"\",0,F44)","v":0},{"$f":"IF(Q68=\"\",0,G44)","v":0},{"$f":"IF(R68=\"\",0,H44)","v":0}]
[{"$nulls":15},{"$f":"IF(P68=\"\",0,F45)","v":0},{"$f":"IF(Q68=\"\",0,G45)","v":0},{"$f":"IF(R68=\"\",0,H45)","v":0}]
[]
[]
[]
[{"$nulls":15},"Formatierungen und Begriffe in Abhängigkeit der notwendigen Eingaben"]
[]
[]
[]
[]
[]
[{"$nulls":15},"Texte"]
[{"$nulls":16},"Eingabe 2","Brennstoff","Brennstoffkosten","Kostenentw. Brennstoff"]
[{"$nulls":15},"nicht definiert","Kosten des Energieträgers","Brennstoff","Brennstoffkosten","Kostenentw. Brennstoff"]
[{"$nulls":15},"Erzeugung","Kosten des Energieträgers","Brennstoff","Brennstoffkosten","Kostenentw. Brennstoff"]
[{"$nulls":15},"Alles","Kosten des Energieträgers","Brennstoff","Brennstoffkosten","Kostenentw. Brennstoff"]
[{"$nulls":15},"Netz","Kosten des Wärmebezugs",".","Wärmebezugskosten","Kostenentw. Wärmebezug"]
[]
[{"$nulls":15},"Verwendeter Text"]
[{"$nulls":16},{"$f":"INDEX(Q92:Q95,MATCH($P$108,$P$92:$P$95,0))","v":"Kosten des Energieträgers"},{"$f":"INDEX(R92:R95,MATCH($P$108,$P$92:$P$95,0))","v":"Brennstoff"},{"$f":"INDEX(S92:S95,MATCH($P$108,$P$92:$P$95,0))","v":"Brennstoffkosten"},{"$f":"INDEX(T92:T95,MATCH($P$108,$P$92:$P$95,0))","v":"Kostenentw. Brennstoff"}]
[]
[]
[]
[{"$nulls":15},"Präzisierung TSz:"]
[{"$nulls":15},"Muss die Erzeugung mit betrachtet werden?   0=Nein, 1=Ja"]
[{"$nulls":15},{"$f":"'INPUT | Allgemeines'!$O$80","v":1}]
[{"$nulls":15},"Muss das Netz mit betrachtet werden?   0=Nein, 1=Ja"]
[{"$nulls":15},{"$f":"'INPUT | Allgemeines'!$O$82","v":1}]
[{"$nulls":15},"… in Textform: Was soll angezeigt werden?"]
[{"$nulls":15},{"$f":"'INPUT | Allgemeines'!$O$84","v":"Alles"}]

{"sheet":"INPUT | TSz > Erlöse & Finanz","index":5,"n_rows":101,"n_cols":25,"rows_kept":101,"cut":false,"hidden":false,"merged":[[56,8,56,14],[42,17,44,17],[39,17,41,17],[16,17,17,17],[54,17,58,17],[6,12,12,14],[7,8,8,8],[7,10,8,10],[6,17,8,17],[41,8,41,12],[9,17,12,17],[21,17,24,17]]}
[]
[null,"Erlöse, Finanzierung & Restwert",{"$nulls":13},"Alle Kosten-/Preisangaben netto.",null,"Hinweise/ Anmerkungen",null,"Ausblenden","Ausblenden","Ausblenden","Ausblenden","Ausblenden","Ausblenden"]
[null,{"$f":"CONCATENATE(\"Tatsächliches Szenario (TSz) | \",Kurztitel)","v":"Tatsächliches Szenario (TSz) | "},{"$nulls":15},"blau hinterlegte Felder sind Eingabefelder"]
[]
[null,"Eingabe 1: Einnahmen …"]
[]
[null,"… aus Systemnutzung | Eingabeoption 1 | Hochrechnung",{"$nulls":10},"... aus Netzanschluss & sonstige Einnahmen",{"$nulls":4},"Einnahmen aus Netzanschluss: Dem Anschlußnehmer für die Herstellung oder Umstellung des Anschlusses berechnete Kosten. Summe über alle geplanten Anschlüsse."]
[{"$nulls":8},"Mischpreis \n[Euro/MWh]",null,"Preisentwicklung \n[%/Jahr]"]
[]
[null,null,"im Jahr der Inbetriebnahme >>>",null,null,null,"Wärme",{"$nulls":10},"Der Mischpreis  setzt sich  aus Arbeitspreis, Grund- oder Leistungspreis und Mess- oder Verrechnungspreis zusammen. Dieser ist durch den Antragsteller über die potenziell zu erwartende/n Kunden(struktur) zu kalkulieren. "]
[{"$nulls":6},"Strom"]
[]
[null,"… aus Systemnutzung | Eingabeoption 2 | Jahresgenaue Eingabe"]
[{"$nulls":12},"Einnahmen aus",null,"Sonstige "]
[null,"Mischpreis",null,null,"Wärme",null,"verwendeter Wert",null,"Strom",null,"verwendeter Wert",null,"Netzanschluss",null,"Einnahmen"]
[{"$nulls":4},"[ Euro/MWh]",null,"[ Euro/MWh]",null,"[ Euro/MWh]",null,null,null,"[ Euro]",null,"[ Euro]"]
[null,{"$f":"'INPUT | TSz > Technik'!B16","v":"Jahr 1"},{"$f":"'INPUT | TSz > Technik'!C16","v":2026},null,null,null,{"$f":"IF(E17>0,E17,$I$10*(1+$K$10)^(COUNT($C$17:C17)-1))","v":0},null,null,null,{"$f":"IF(I17>0,I17,$I$11*(1+$K$11)^(COUNT($C$17:C17)-1))","v":0},{"$nulls":6},"Sonstige Einnahmen sind z.B. der KWK-Zuschuss oder anderweitige, dem Projekt zurechenbare Einnahmen"]
[null,{"$f":"'INPUT | TSz > Technik'!B17","v":"Jahr 2"},{"$f":"'INPUT | TSz > Technik'!C17","v":2027},null,null,null,{"$f":"IF(E18>0,E18,$I$10*(1+$K$10)^(COUNT($C$17:C18)-1))","v":0},null,null,null,{"$f":"IF(I18>0,I18,$I$11*(1+$K$11)^(COUNT($C$17:C18)-1))","v":0}]
[null,{"$f":"'INPUT | TSz > Technik'!B18","v":"Jahr 3"},{"$f":"'INPUT | TSz > Technik'!C18","v":2028},null,null,null,{"$f":"IF(E19>0,E19,$I$10*(1+$K$10)^(COUNT($C$17:C19)-1))","v":0},null,null,null,{"$f":"IF(I19>0,I19,$I$11*(1+$K$11)^(COUNT($C$17:C19)-1))","v":0}]
[null,{"$f":"'INPUT | TSz > Technik'!B19","v":"Jahr 4"},{"$f":"'INPUT | TSz > Technik'!C19","v":2029},null,null,null,{"$f":"IF(E20>0,E20,$I$10*(1+$K$10)^(COUNT($C$17:C20)-1))","v":0},null,null,null,{"$f":"IF(I20>0,I20,$I$11*(1+$K$11)^(COUNT($C$17:C20)-1))","v":0},{"$nulls":6},">> Bitte erläutern Sie hier Ihre Eingaben (Pflichtangabe)."]
[null,{"$f":"'INPUT | TSz > Technik'!B20","v":"Jahr 5"},{"$f":"'INPUT | TSz > Technik'!C20","v":2030},null,null,null,{"$f":"IF(E21>0,E21,$I$10*(1+$K$10)^(COUNT($C$17:C21)-1))","v":0},null,null,null,{"$f":"IF(I21>0,I21,$I$11*(1+$K$11)^(COUNT($C$17:C21)-1))","v":0}]
[null,{"$f":"'INPUT | TSz > Technik'!B21","v":"Jahr 6"},{"$f":"'INPUT | TSz > Technik'!C21","v":2031},null,null,null,{"$f":"IF(E22>0,E22,$I$10*(1+$K$10)^(COUNT($C$17:C22)-1))","v":0},null,null,null,{"$f":"IF(I22>0,I22,$I$11*(1+$K$11)^(COUNT($C$17:C22)-1))","v":0},{"$nulls":6},{"$f":"IF('INPUT | TSz > iHaSt'!$Z$82=1,\"Bei Verwendung von iHaSt im Bestand: Gemäß der Empfehlungen des AGFW e.V. wird der Mischpreis zur Berechnung vermiedener Brennstoffkosten herangezogen.\",\"\")","v":""}]
[null,{"$f":"'INPUT | TSz > Technik'!B22","v":"Jahr 7"},{"$f":"'INPUT | TSz > Technik'!C22","v":2032},null,null,null,{"$f":"IF(E23>0,E23,$I$10*(1+$K$10)^(COUNT($C$17:C23)-1))","v":0},null,null,null,{"$f":"IF(I23>0,I23,$I$11*(1+$K$11)^(COUNT($C$17:C23)-1))","v":0}]
[null,{"$f":"'INPUT | TSz > Technik'!B23","v":"Jahr 8"},{"$f":"'INPUT | TSz > Technik'!C23","v":2033},null,null,null,{"$f":"IF(E24>0,E24,$I$10*(1+$K$10)^(COUNT($C$17:C24)-1))","v":0},null,null,null,{"$f":"IF(I24>0,I24,$I$11*(1+$K$11)^(COUNT($C$17:C24)-1))","v":0}]
[null,{"$f":"'INPUT | TSz > Technik'!B24","v":"Jahr 9"},{"$f":"'INPUT | TSz > Technik'!C24","v":2034},null,null,null,{"$f":"IF(E25>0,E25,$I$10*(1+$K$10)^(COUNT($C$17:C25)-1))","v":0},null,null,null,{"$f":"IF(I25>0,I25,$I$11*(1+$K$11)^(COUNT($C$17:C25)-1))","v":0}]
[null,{"$f":"'INPUT | TSz > Technik'!B25","v":"Jahr 10"},{"$f":"'INPUT | TSz > Technik'!C25","v":2035},null,null,null,{"$f":"IF(E26>0,E26,$I$10*(1+$K$10)^(COUNT($C$17:C26)-1))","v":0},null,null,null,{"$f":"IF(I26>0,I26,$I$11*(1+$K$11)^(COUNT($C$17:C26)-1))","v":0}]
[null,{"$f":"'INPUT | TSz > Technik'!B26","v":"Jahr 11"},{"$f":"'INPUT | TSz > Technik'!C26","v":2036},null,null,null,{"$f":"IF(E27>0,E27,$I$10*(1+$K$10)^(COUNT($C$17:C27)-1))","v":0},null,null,null,{"$f":"IF(I27>0,I27,$I$11*(1+$K$11)^(COUNT($C$17:C27)-1))","v":0}]
[null,{"$f":"'INPUT | TSz > Technik'!B27","v":"Jahr 12"},{"$f":"'INPUT | TSz > Technik'!C27","v":2037},null,null,null,{"$f":"IF(E28>0,E28,$I$10*(1+$K$10)^(COUNT($C$17:C28)-1))","v":0},null,null,null,{"$f":"IF(I28>0,I28,$I$11*(1+$K$11)^(COUNT($C$17:C28)-1))","v":0}]
[null,{"$f":"'INPUT | TSz > Technik'!B28","v":"Jahr 13"},{"$f":"'INPUT | TSz > Technik'!C28","v":2038},null,null,null,{"$f":"IF(E29>0,E29,$I$10*(1+$K$10)^(COUNT($C$17:C29)-1))","v":0},null,null,null,{"$f":"IF(I29>0,I29,$I$11*(1+$K$11)^(COUNT($C$17:C29)-1))","v":0}]
[null,{"$f":"'INPUT | TSz > Technik'!B29","v":"Jahr 14"},{"$f":"'INPUT | TSz > Technik'!C29","v":2039},null,null,null,{"$f":"IF(E30>0,E30,$I$10*(1+$K$10)^(COUNT($C$17:C30)-1))","v":0},null,null,null,{"$f":"IF(I30>0,I30,$I$11*(1+$K$11)^(COUNT($C$17:C30)-1))","v":0}]
[null,{"$f":"'INPUT | TSz > Technik'!B30","v":"Jahr 15"},{"$f":"'INPUT | TSz > Technik'!C30","v":2040},null,null,null,{"$f":"IF(E31>0,E31,$I$10*(1+$K$10)^(COUNT($C$17:C31)-1))","v":0},null,null,null,{"$f":"IF(I31>0,I31,$I$11*(1+$K$11)^(COUNT($C$17:C31)-1))","v":0}]
[null,{"$f":"'INPUT | TSz > Technik'!B31","v":"Jahr 16"},{"$f":"'INPUT | TSz > Technik'!C31","v":2041},null,null,null,{"$f":"IF(E32>0,E32,$I$10*(1+$K$10)^(COUNT($C$17:C32)-1))","v":0},null,null,null,{"$f":"IF(I32>0,I32,$I$11*(1+$K$11)^(COUNT($C$17:C32)-1))","v":0}]
[null,{"$f":"'INPUT | TSz > Technik'!B32","v":"Jahr 17"},{"$f":"'INPUT | TSz > Technik'!C32","v":2042},null,null,null,{"$f":"IF(E33>0,E33,$I$10*(1+$K$10)^(COUNT($C$17:C33)-1))","v":0},null,null,null,{"$f":"IF(I33>0,I33,$I$11*(1+$K$11)^(COUNT($C$17:C33)-1))","v":0}]
[null,{"$f":"'INPUT | TSz > Technik'!B33","v":"Jahr 18"},{"$f":"'INPUT | TSz > Technik'!C33","v":2043},null,null,null,{"$f":"IF(E34>0,E34,$I$10*(1+$K$10)^(COUNT($C$17:C34)-1))","v":0},null,null,null,{"$f":"IF(I34>0,I34,$I$11*(1+$K$11)^(COUNT($C$17:C34)-1))","v":0}]
[null,{"$f":"'INPUT | TSz > Technik'!B34","v":"Jahr 19"},{"$f":"'INPUT | TSz > Technik'!C34","v":2044},null,null,null,{"$f":"IF(E35>0,E35,$I$10*(1+$K$10)^(COUNT($C$17:C35)-1))","v":0},null,null,null,{"$f":"IF(I35>0,I35,$I$11*(1+$K$11)^(COUNT($C$17:C35)-1))","v":0}]
[null,{"$f":"'INPUT | TSz > Technik'!B35","v":"Jahr 20"},{"$f":"'INPUT | TSz > Technik'!C35","v":2045},null,null,null,{"$f":"IF(E36>0,E36,$I$10*(1+$K$10)^(COUNT($C$17:C36)-1))","v":0},null,null,null,{"$f":"IF(I36>0,I36,$I$11*(1+$K$11)^(COUNT($C$17:C36)-1))","v":0}]
[]
[null,"Eingabe 2: Angaben zur Errechnung des Diskontierungszinssatzes"]
[]
[null,"Der in der Berechnung verwendete WACC-Wert beträgt ….",{"$nulls":6},{"$f":"WACCTSz","v":0.08},null,{"$f":"V85","v":"(Empfohlener Wert)"},{"$nulls":6},"Für die Abzinsung der jährlichen Kapitalströme werden die gewichteten durchschnittlichen Kapitalkosten (WACC) herangezogen. "]
[]
[null,"Bitte wählen Sie, wie Sie verfahren wollen:",{"$nulls":6},"Empfohlenen WACC-Wert verwenden "]
[{"$nulls":17},"Zur Berechnung kann der empfohlene WACC-Wert genutzt oder ein projektbezogener Wert errechnet werden. Bei eigener Berechnung ist ein Nachweis zu führen."]
[null,"Eigene Berechnung WACC-Wert"]
[{"$nulls":8},"Eigenkapital",null,"Fremdkapital",null,"Zuschüsse"]
[{"$nulls":4},"Finanzierung der  Investition in Höhe von ",null,{"$f":"Nebenrechnungen!F21","v":0},"durch"]
[{"$nulls":4},"noch zu definieren",null,{"$f":"G46-I46-K46-M46","v":0},null,{"$f":"IFERROR(I46/$G$46,0)","v":0},null,{"$f":"IFERROR(K46/$G$46,0)","v":0},null,{"$f":"IFERROR(M46/$G$46,0)","v":0}]
[]
[{"$nulls":4},"Effektive Verzinsung ",null,null,"[%]",{"$nulls":9},"Verzinsung einschließlich Renditeausgleich für erhöhtes Risiko."]
[]
[{"$nulls":4},"Ertragssteuersatz des Unternehmens",null,null,"[%]",{"$nulls":4},"Eigener WACC",null,{"$f":"IFERROR(I46/(I46+K46)*I49+K46/(I46+K46)*K49*(1-I51),0)","v":0}]
[]
[null,"Eingabe 3: Restwert am Ende der Nutzungsdauer"]
[]
[null,"Der Restwert beträgt",{"$nulls":8},"Euro",{"$nulls":6},"Der Restwert entspricht dem Zeitwert des Anlagevermögens am Ende der Nutzungsdauer. Dieser ist für Wirtschaftsgüter zu ermitteln, deren Nutzungsdauer wesentlich von der Nutzungsdauer des Gesamtvorhabens abweicht. Dazu zählen zum Beispiel Gebäude und Grundstücke."]
[]
[{"$nulls":8},">> Bitte erläutern Sie den hinterlegten Wert! "]
[]
[]
[]
[]
[]
[{"$nulls":19},"Dropdownfelder"]
[{"$nulls":22},"Anzeige"]
[{"$nulls":19},"Empfohlenen WACC-Wert verwenden ",null,null,"(Empfohlener Wert)"]
[{"$nulls":19},"Eigenen WACC berechnen",null,null,"(Eigener Wert)"]
{"$rows_empty":10}
[{"$nulls":19},"Bitte auswählen"]
[{"$nulls":19},"händisch eingetragen werden"]
[{"$nulls":19},"aus der Berechnung im Arbeitsblatt xxxx übernommen werden."]
[]
[]
[{"$nulls":19},"Übergabefelder"]
[]
[{"$nulls":19},"WACC-Wert",null,"Text WACC-Wert"]
[{"$nulls":19},{"$f":"IF(I42=T65,WACCBasissatz,O51)","v":0.08},null,{"$f":"INDEX(W65:W66,MATCH(I42,T65:T66,0))","v":"(Empfohlener Wert)"}]
[]
[]
[]
[{"$nulls":19},"Formatierungen und Begriffe in Abhängigkeit der notwendigen Eingaben"]
[]
[{"$nulls":19},"Präzisierung TSz:"]
[{"$nulls":19},"Muss die Erzeugung mit betrachtet werden?   0=Nein, 1=Ja"]
[{"$nulls":19},{"$f":"'INPUT | Allgemeines'!$O$80","v":1}]
[{"$nulls":19},"Muss das Netz mit betrachtet werden?   0=Nein, 1=Ja"]
[{"$nulls":19},{"$f":"'INPUT | Allgemeines'!$O$82","v":1}]
[{"$nulls":19},"… in Textform: Was soll angezeigt werden?"]
[{"$nulls":19},{"$f":"'INPUT | Allgemeines'!$O$84","v":"Alles"}]
[]
[]
[{"$nulls":19},"KWK? >> Dann KWK-relevante Eingabefelder anzeigen(Bei größer 0 ja)"]
[{"$nulls":19},{"$f":"SUM('INPUT | TSz > Technik'!S102:U102)","v":0}]

{"sheet":"INPUT | KSz > Technik","index":6,"n_rows":124,"n_cols":26,"rows_kept":124,"cut":false,"hidden":false,"merged":[[56,12,58,12],[8,12,10,12],[12,12,14,12],[15,12,17,12],[39,12,40,12],[45,12,47,12]]}
[{"$nulls":18},"Ausblenden"]
[null,"Technische Parameter der geplanten Anlagenkonstellation & Wärmeabsatz",{"$nulls":10},"Hinweise/ Anmerkungen",{"$nulls":5},"Ausblenden","Ausblenden","Ausblenden","Ausblenden","Ausblenden","Ausblenden","Ausblenden","Ausblenden"]
[null,{"$f":"CONCATENATE(\"Kontrafaktisches Szenario (TSz) | \",Kurztitel)","v":"Kontrafaktisches Szenario (TSz) | "},{"$nulls":10},"blau hinterlegte Felder sind Eingabefelder"]
[]
[]
[null,"Eingabe 1: Wärmeerzeugungsanlagen",{"$nulls":8},"Keine Eingabe erforderlich."]
[]
[{"$nulls":6},"optional","optional"]
[{"$nulls":5},"Erzeugungsanlage 1","Erzeugungsanlage 2","Erzeugungsanlage 3",{"$nulls":4},"Wählen Sie die Erzeugungsanlage/-n aus den Optionsfeld und ergänzen Sie die Angaben zu den Nutzungsgraden."]
[]
[null,"Erzeugungsanlage",null,null,null,"Bitte auswählen","Bitte auswählen","Bitte auswählen"]
[]
[null,"Thermischer Nutzungsgrad* | JAZ",{"$nulls":10},"*) soweit relevant: bezogen auf Heizwert Hi. | bei Wärmepumpen Jahresarbeitszahl JAZ in %, z.B. 3,5 >> 350% | bei EXTERNem Wärmebezug >> 100%"]
[null,"Elektrischer Nutzungsgrad"]
[null,"Geplante Arbeitsanteile der Erzeugeranlagen (Wärme)"]
[null,{"$f":"'INPUT | TSz > Technik'!B16","v":"Jahr 1"},{"$f":"'INPUT | TSz > Technik'!C16","v":2026},null,null,{"$f":"IF(AND($G$11=$S$78,$H$11=$S$78),1,IF($H$11=$S$78,1-G16,IF($G$11=$S$78,1-H16,1-H16-G16)))","v":1},{"$nulls":6},"Wenn Sie mehr als eine Erzeugungsanlage angeben: Geben Sie die Arbeitsanteile der weiteren Erzeugunganlagen in % an. Bezugsgröße ist die Jahresarbeit."]
[null,{"$f":"'INPUT | TSz > Technik'!B17","v":"Jahr 2"},{"$f":"'INPUT | TSz > Technik'!C17","v":2027},null,null,{"$f":"IF(AND($G$11=$S$78,$H$11=$S$78),1,IF($H$11=$S$78,1-G17,IF($G$11=$S$78,1-H17,1-H17-G17)))","v":1}]
[null,{"$f":"'INPUT | TSz > Technik'!B18","v":"Jahr 3"},{"$f":"'INPUT | TSz > Technik'!C18","v":2028},null,null,{"$f":"IF(AND($G$11=$S$78,$H$11=$S$78),1,IF($H$11=$S$78,1-G18,IF($G$11=$S$78,1-H18,1-H18-G18)))","v":1}]
[null,{"$f":"'INPUT | TSz > Technik'!B19","v":"Jahr 4"},{"$f":"'INPUT | TSz > Technik'!C19","v":2029},null,null,1]
[null,{"$f":"'INPUT | TSz > Technik'!B20","v":"Jahr 5"},{"$f":"'INPUT | TSz > Technik'!C20","v":2030},null,null,1]
[null,{"$f":"'INPUT | TSz > Technik'!B21","v":"Jahr 6"},{"$f":"'INPUT | TSz > Technik'!C21","v":2031},null,null,1]
[null,{"$f":"'INPUT | TSz > Technik'!B22","v":"Jahr 7"},{"$f":"'INPUT | TSz > Technik'!C22","v":2032},null,null,1]
[null,{"$f":"'INPUT | TSz > Technik'!B23","v":"Jahr 8"},{"$f":"'INPUT | TSz > Technik'!C23","v":2033},null,null,1]
[null,{"$f":"'INPUT | TSz > Technik'!B24","v":"Jahr 9"},{"$f":"'INPUT | TSz > Technik'!C24","v":2034},null,null,1]
[null,{"$f":"'INPUT | TSz > Technik'!B25","v":"Jahr 10"},{"$f":"'INPUT | TSz > Technik'!C25","v":2035},null,null,1]
[null,{"$f":"'INPUT | TSz > Technik'!B26","v":"Jahr 11"},{"$f":"'INPUT | TSz > Technik'!C26","v":2036},null,null,1]
[null,{"$f":"'INPUT | TSz > Technik'!B27","v":"Jahr 12"},{"$f":"'INPUT | TSz > Technik'!C27","v":2037},null,null,1]
[null,{"$f":"'INPUT | TSz > Technik'!B28","v":"Jahr 13"},{"$f":"'INPUT | TSz > Technik'!C28","v":2038},null,null,1]
[null,{"$f":"'INPUT | TSz > Technik'!B29","v":"Jahr 14"},{"$f":"'INPUT | TSz > Technik'!C29","v":2039},null,null,1]
[null,{"$f":"'INPUT | TSz > Technik'!B30","v":"Jahr 15"},{"$f":"'INPUT | TSz > Technik'!C30","v":2040},null,null,1]
[null,{"$f":"'INPUT | TSz > Technik'!B31","v":"Jahr 16"},{"$f":"'INPUT | TSz > Technik'!C31","v":2041},null,null,1]
[null,{"$f":"'INPUT | TSz > Technik'!B32","v":"Jahr 17"},{"$f":"'INPUT | TSz > Technik'!C32","v":2042},null,null,1]
[null,{"$f":"'INPUT | TSz > Technik'!B33","v":"Jahr 18"},{"$f":"'INPUT | TSz > Technik'!C33","v":2043},null,null,1]
[null,{"$f":"'INPUT | TSz > Technik'!B34","v":"Jahr 19"},{"$f":"'INPUT | TSz > Technik'!C34","v":2044},null,null,1]
[null,{"$f":"'INPUT | TSz > Technik'!B35","v":"Jahr 20"},{"$f":"'INPUT | TSz > Technik'!C35","v":2045},null,null,1]
[]
[]
[null,"Eingabe 2: Leitungsnetz",{"$nulls":8},"Keine Eingabe erforderlich."]
[]
[null,"Mittlerer Wärmeverlust des Wärmenetzes (Übertragungsverlust) in [%]",{"$nulls":6},"oder absolut",null,"[MWh/Jahr]",null,"Der Absolutwert hat Vorrang, ein Verlust wird \nab Wärmeabgabe > 0 berücksichtigt."]
[]
[]
[null,"Eingabe 3: Wärmeabsatz",{"$nulls":8},"Keine Eingabe erforderlich."]
[]
[{"$nulls":6},{"$f":"W113","v":"Wärmeabgabe an Kunden"}]
[{"$nulls":6},"Zu-/Abnahme","kumuliert",{"$nulls":4},"Relevant sind die zur Deckung der Netzkosten herangezogenen Mengen, kumuliert über den zu betrachtenden Netzbereich."]
[]
[{"$nulls":6},"[MWh]","[MWh]"]
[]
[null,{"$f":"B16","v":"Jahr 1"},{"$f":"'INPUT | TSz > Technik'!C16","v":2026},{"$nulls":4},{"$f":"G50","v":0},{"$nulls":4},"Angegeben wird die ZU-/ABNAHME im jeweiligen Jahr."]
[null,{"$f":"B17","v":"Jahr 2"},{"$f":"'INPUT | TSz > Technik'!C17","v":2027},{"$nulls":4},{"$f":"H50+G51","v":0}]
[null,"Jahr 3",{"$f":"'INPUT | TSz > Technik'!C18","v":2028},{"$nulls":4},{"$f":"H51+G52","v":0},{"$nulls":4},"Risiken bitte durch vorsichtige Prognosen berücksichtigen!"]
[null,"Jahr 4",{"$f":"'INPUT | TSz > Technik'!C19","v":2029},{"$nulls":4},0]
[null,"Jahr 5",{"$f":"'INPUT | TSz > Technik'!C20","v":2030},{"$nulls":4},0]
[null,"Jahr 6",{"$f":"'INPUT | TSz > Technik'!C21","v":2031},{"$nulls":4},0]
[null,"Jahr 7",{"$f":"'INPUT | TSz > Technik'!C22","v":2032},{"$nulls":4},0]
[null,"Jahr 8",{"$f":"'INPUT | TSz > Technik'!C23","v":2033},{"$nulls":4},0]
[null,"Jahr 9",{"$f":"'INPUT | TSz > Technik'!C24","v":2034},{"$nulls":4},0]
[null,"Jahr 10",{"$f":"'INPUT | TSz > Technik'!C25","v":2035},{"$nulls":4},0]
[null,"Jahr 11",{"$f":"'INPUT | TSz > Technik'!C26","v":2036},{"$nulls":4},0]
[null,"Jahr 12",{"$f":"'INPUT | TSz > Technik'!C27","v":2037},{"$nulls":4},0]
[null,"Jahr 13",{"$f":"'INPUT | TSz > Technik'!C28","v":2038},{"$nulls":4},0]
[null,"Jahr 14",{"$f":"'INPUT | TSz > Technik'!C29","v":2039},{"$nulls":4},0]
[null,"Jahr 15",{"$f":"'INPUT | TSz > Technik'!C30","v":2040},{"$nulls":4},0]
[null,"Jahr 16",{"$f":"'INPUT | TSz > Technik'!C31","v":2041},{"$nulls":4},0]
[null,"Jahr 17",{"$f":"'INPUT | TSz > Technik'!C32","v":2042},{"$nulls":4},0]
[null,"Jahr 18",{"$f":"'INPUT | TSz > Technik'!C33","v":2043},{"$nulls":4},0]
[null,"Jahr 19",{"$f":"'INPUT | TSz > Technik'!C34","v":2044},{"$nulls":4},0]
[null,"Jahr 20",{"$f":"'INPUT | TSz > Technik'!C35","v":2045},{"$nulls":4},0]
[]
[]
[]
[]
[]
[{"$nulls":18},"Dropdownfelder"]
[]
[{"$nulls":18},"Art der Erzeugungsanlage",null,null,"KWK?"]
[{"$nulls":18},"Bitte auswählen"]
[{"$nulls":18},"KESSEL_Erdgas"]
[{"$nulls":18},"KESSEL_Biogas"]
[{"$nulls":18},"KESSEL_Biomethan"]
[{"$nulls":18},"KESSEL_Holz/Pellet/Stroh"]
[{"$nulls":18},"BHKW_Erdgas",null,null,1]
[{"$nulls":18},"BHKW_Biogas",null,null,1]
[{"$nulls":18},"BHKW_Biomethan",null,null,1]
[{"$nulls":18},"WÄRMEPUMPE_Sole"]
[{"$nulls":18},"WÄRMEPUMPE_Luft"]
[{"$nulls":18},"WÄRMEPUMPE_Erdgas"]
[{"$nulls":18},"WÄRMEPUMPE_Biogas"]
[{"$nulls":18},"WÄRMEPUMPE_Biomethan"]
[{"$nulls":18},"SOLAR_Kollektor"]
[{"$nulls":18},"P2H_Strom"]
[{"$nulls":18},"EXTERNer Wärmebezug"]
[{"$nulls":18},"KÄLTE_aus_Kompression"]
[{"$nulls":18},"KÄLTE_aus_Ad-/Absorbtion"]
[{"$nulls":18},"Therm. Abfallverwertung"]
[]
[]
[{"$nulls":18},"Übergabefelder"]
[{"$nulls":18},"KWK >> bedingte Formatierung el. Nutzungsgrad"]
[{"$nulls":18},{"$f":"INDEX($V$78:$V$96,MATCH(F11,$S$78:$S$96,0))","v":0},{"$f":"INDEX($V$78:$V$96,MATCH(G11,$S$78:$S$96,0))","v":0},0]
[{"$nulls":18},"Aktivierung elektrischer Nutzungsgrad nur bei KWK, falls Fehleingabe"]
[{"$nulls":18},{"$f":"IF(S101=1,F14,0)","v":0},{"$f":"IF(T101=1,G14,0)","v":0},0]
[]
[{"$nulls":18},"Aktivierung thermischer Nutzungsgrad nur bei Auswahl, falls Fehleingabe"]
[{"$nulls":18},{"$f":"IF(F11=$S$78,0,F13)","v":0},{"$f":"IF(G11=$S$78,0,G13)","v":0},0]
[]
[]
[]
[]
[{"$nulls":18},"Formatierungen und Begriffe in Abhängigkeit der notwendigen Eingaben"]
[{"$nulls":18},"Eingabe ","Beschreibung",null,null,"Verwendeter Text"]
[{"$nulls":18},"nicht definiert","Keine Anlagenkonstellation ausgewählt!",null,null,{"$f":"INDEX(T113:T116,MATCH('INPUT | Allgemeines'!O84,'INPUT | KSz > Technik'!S113:S116,0))","v":"Wärmeabgabe an Kunden"}]
[{"$nulls":18},"Erzeugung","Wärmeabgabe an das Netz"]
[{"$nulls":18},"Alles","Wärmeabgabe an Kunden"]
[{"$nulls":18},"Netz","Wärmeabgabe an Kunden"]
[]
[]
[]
[]
[]
[]
[{"$nulls":18},"Soll es Eingaben für ein Kontrafaktisches Szenario geben?  0=Nein, 1=Ja"]
[{"$nulls":18},{"$f":"'INPUT | Allgemeines'!$O$76","v":0}]

{"sheet":"INPUT | KSz > Kosten","index":7,"n_rows":112,"n_cols":23,"rows_kept":112,"cut":false,"hidden":false,"merged":[[48,13,55,13],[9,13,11,13],[11,1,11,2],[13,13,15,13],[16,13,18,13],[19,13,20,13]]}
[]
[null,"Kosten",{"$nulls":9},"Alle Kosten-/Preisangaben in Euro netto.",null,"Hinweise/ Anmerkungen",null,"Ausblenden","Ausblenden","Ausblenden","Ausblenden","Ausblenden","Ausblenden","Ausblenden","Ausblenden"]
[null,{"$f":"CONCATENATE(\"Kontrafaktisches Szenario (TSz) | \",Kurztitel)","v":"Kontrafaktisches Szenario (TSz) | "},{"$nulls":11},"blau hinterlegte Felder sind Eingabefelder"]
[]
[{"$nulls":7},"Brennstoff",null,"Brennstoffkosten","Kostenentw. Brennstoff"]
[null,"Eingabe 1: Kosten für die Anschaffung der Anlagen und Herstellung der Funktion | Investitionskosten"]
[]
[{"$nulls":4},"Technische","Gebäude &","Grunderwerb &","immaterielle","Personalkosten","Sachverständigen-, ","Sonstige Kosten"]
[{"$nulls":4},"Anlagen","bauliche Anlagen","-nebenkosten","Vermögenswerte",null,"Planungs-, Beratg.-"]
[{"$nulls":9},"leistungen",null,null,null,"Achtung: Zur Ermittlung der Finanzierungslücke sind alle Investitionen anzugeben. "]
[null,"Summe",null,null,"[Euro] ","[Euro] ","[Euro] ","[Euro] ","[Euro] ","[Euro] ","[Euro] "]
[null,{"$f":"SUM(E12:K12)","v":0},null,null,{"$f":"SUM(OFFSET(E14,0,0,$P$71,1))","v":0},{"$f":"SUM(OFFSET(F14,0,0,$P$71,1))","v":0},0,0,0,0,0]
[]
[null,"Jahr 1",{"$f":"'INPUT | TSz > Kosten'!C14","v":2026}]
[null,"Jahr 2",{"$f":"'INPUT | TSz > Kosten'!C15","v":2027}]
[null,"Jahr 3",{"$f":"'INPUT | TSz > Kosten'!C16","v":2028}]
[null,"Jahr 4",{"$f":"'INPUT | TSz > Kosten'!C17","v":2029}]
[null,"Jahr 5",{"$f":"'INPUT | TSz > Kosten'!C18","v":2030}]
[null,"Jahr 6",{"$f":"'INPUT | TSz > Kosten'!C19","v":2031}]
[null,"Jahr 7",{"$f":"'INPUT | TSz > Kosten'!C20","v":2032}]
[null,"Jahr 8",{"$f":"'INPUT | TSz > Kosten'!C21","v":2033}]
[null,"Jahr 9",{"$f":"'INPUT | TSz > Kosten'!C22","v":2034}]
[null,"Jahr 10",{"$f":"'INPUT | TSz > Kosten'!C23","v":2035}]
[null,"Jahr 11",{"$f":"'INPUT | TSz > Kosten'!C24","v":2036}]
[null,"Jahr 12",{"$f":"'INPUT | TSz > Kosten'!C25","v":2037}]
[null,"Jahr 13",{"$f":"'INPUT | TSz > Kosten'!C26","v":2038}]
[null,"Jahr 14",{"$f":"'INPUT | TSz > Kosten'!C27","v":2039}]
[null,"Jahr 15",{"$f":"'INPUT | TSz > Kosten'!C28","v":2040}]
[null,"Jahr 16",{"$f":"'INPUT | TSz > Kosten'!C29","v":2041}]
[null,"Jahr 17",{"$f":"'INPUT | TSz > Kosten'!C30","v":2042}]
[null,"Jahr 18",{"$f":"'INPUT | TSz > Kosten'!C31","v":2043}]
[null,"Jahr 19",{"$f":"'INPUT | TSz > Kosten'!C32","v":2044}]
[null,"Jahr 20",{"$f":"'INPUT | TSz > Kosten'!C33","v":2045}]
[null,"Jahr 21",{"$f":"'INPUT | TSz > Kosten'!C34","v":""}]
[null,"Jahr 22",{"$f":"'INPUT | TSz > Kosten'!C35","v":""}]
[null,"Jahr 23",{"$f":"'INPUT | TSz > Kosten'!C36","v":""}]
[null,"Jahr 24",{"$f":"'INPUT | TSz > Kosten'!C37","v":""}]
[]
[null,"Eingabe 2: Kosten für den Anlagenbetrieb",{"$nulls":9},"Keine Eingabe erforderlich."]
[]
[null,{"$f":"Q98","v":"Kosten des Energieträgers"}]
[]
[null,{"$f":"R98","v":"Brennstoff"},null,null,null,{"$f":"P68","v":""},{"$f":"Q68","v":""},""]
[null,{"$f":"S98","v":"Brennstoffkosten"},null,null,"[ Euro/MWh]",{"$nulls":8},"Bezug: Brennwert Hs, soweit relevant"]
[null,{"$f":"T98","v":"Kostenentw. Brennstoff"},null,null,"[%/Jahr]",{"$nulls":8},"Es zählt das Jahr der Inbetriebnahme als Bezugsjahr."]
[]
[null,"Allgemeine Betriebskosten und Instandhaltung"]
[]
[{"$nulls":7},"Kostenentwicklung\n [%/Jahr]",{"$nulls":5},"Die Instandhaltungskosten können pauschal oder abhängig vom Wert des Anlagenbestandes angegeben werden. Berechnungsgrundlage ist im zweiten Fall die  bis zum jeweiligen Jahr getätigte Investition. \n\nDie allgemeinen Betriebskosten umfassen sowohl die Kosten für den Betrieb der geplanten Anlage inkl. Stromkosten, Betriebsmittel (ohne Brennstoff), Kosten für Versicherungen und Kosten für Personal."]
[null,"Instandhaltung je Jahr",null,null,null,"Euro pauschal "]
[]
[{"$nulls":5},"Soll berücksichtigt ab dem Jahr (z.B. 2027):"]
[]
[null,"Allgemeine Betriebskosten je Jahr",null,null,null,"Euro"]
[]
[]
[{"$nulls":13},"Die Angaben beziehen sich auf die gesamte technische Anlage. Unterscheiden sich die Teilkomponenten hinsichtlich des Kostenansatzes, ist ein wertgewichteter Mittelwert zu berechnen."]
[]
[]
[{"$nulls":15},"Dropdownfelder"]
[]
[{"$nulls":15},"Instandhaltungskosten",null,null,"Heizwert"]
[{"$nulls":15},"% der Investition",null,null,"Brennwert Hs."]
[{"$nulls":15},"Euro pauschal ",null,null,"Heizwert Hi."]
[]
[{"$nulls":15},"Inputfelder"]
[{"$nulls":15},"Brennstoff"]
[{"$nulls":15},{"$f":"IF(P112=P95,\"Wärme\",IF('INPUT | KSz > Technik'!F11='INPUT | KSz > Technik'!$S$78,\"\",INDEX(Ablage!$B$8:$B$25,MATCH('INPUT | KSz > Technik'!F11,Ablage!$A$8:$A$25,0))))","v":""},{"$f":"IF('INPUT | KSz > Technik'!G11='INPUT | KSz > Technik'!$S$78,\"\",INDEX(Ablage!$B$8:$B$25,MATCH('INPUT | KSz > Technik'!G11,Ablage!$A$8:$A$25,0)))","v":""},{"$f":"IF('INPUT | KSz > Technik'!H11='INPUT | KSz > Technik'!$S$78,\"\",INDEX(Ablage!$B$8:$B$25,MATCH('INPUT | KSz > Technik'!H11,Ablage!$A$8:$A$25,0)))","v":""}]
[]
[{"$nulls":15},"Dauer"]
[{"$nulls":15},{"$f":"'INPUT | Allgemeines'!R102","v":20}]
[]
[]
[{"$nulls":15},"Übergabefelder"]
[{"$nulls":15},"Alternativwert Jahr  Beginn der Berücksichtigung der Instandhaltungskosten"]
[{"$nulls":15},{"$f":"IF(G52=0,'INPUT | Allgemeines'!R87,G52)","v":2026}]
[]
[{"$nulls":15},"Kosten des Energieträgers"]
[{"$nulls":15},{"$f":"IF(P68=\"\",0,F44)","v":0},{"$f":"IF(Q68=\"\",0,G44)","v":0},{"$f":"IF(R68=\"\",0,H44)","v":0}]
[{"$nulls":15},{"$f":"IF(P68=\"\",0,F45)","v":0},{"$f":"IF(Q68=\"\",0,G45)","v":0},{"$f":"IF(R68=\"\",0,H45)","v":0}]
[]
[]
[]
[{"$nulls":15},"Formatierungen und Begriffe in Abhängigkeit der notwendigen Eingaben"]
[]
[]
[]
[]
[]
[{"$nulls":15},"Texte"]
[{"$nulls":16},"Eingabe 2","Brennstoff","Brennstoffkosten","Kostenentw. Brennstoff"]
[{"$nulls":15},"nicht definiert","Kosten des Energieträgers","Brennstoff","Brennstoffkosten","Kostenentw. Brennstoff"]
[{"$nulls":15},"Erzeugung","Kosten des Energieträgers","Brennstoff","Brennstoffkosten","Kostenentw. Brennstoff"]
[{"$nulls":15},"Alles","Kosten des Energieträgers","Brennstoff","Brennstoffkosten","Kostenentw. Brennstoff"]
[{"$nulls":15},"Netz","Kosten des Wärmebezugs",".","Wärmebezugskosten","Kostenentw. Wärmebezug"]
[]
[{"$nulls":15},"Verwendeter Text"]
[{"$nulls":16},{"$f":"INDEX(Q92:Q95,MATCH($P$112,$P$92:$P$95,0))","v":"Kosten des Energieträgers"},{"$f":"INDEX(R92:R95,MATCH($P$112,$P$92:$P$95,0))","v":"Brennstoff"},{"$f":"INDEX(S92:S95,MATCH($P$112,$P$92:$P$95,0))","v":"Brennstoffkosten"},{"$f":"INDEX(T92:T95,MATCH($P$112,$P$92:$P$95,0))","v":"Kostenentw. Brennstoff"}]
[]
[]
[{"$nulls":15},"Soll es Eingaben für ein Kontrafaktisches Szenario geben?  0=Nein, 1=Ja"]
[{"$nulls":15},{"$f":"'INPUT | Allgemeines'!$O$76","v":0}]
[]
[]
[]
[{"$nulls":15},"Präzisierung TSz:"]
[{"$nulls":15},"Muss die Erzeugung mit betrachtet werden?   0=Nein, 1=Ja"]
[{"$nulls":15},{"$f":"'INPUT | Allgemeines'!O80","v":1}]
[{"$nulls":15},"Muss das Netz mit betrachtet werden?   0=Nein, 1=Ja"]
[{"$nulls":15},{"$f":"'INPUT | Allgemeines'!O82","v":1}]
[{"$nulls":15},"… in Textform: Was soll angezeigt werden?"]
[{"$nulls":15},{"$f":"'INPUT | Allgemeines'!O84","v":"Alles"}]

{"sheet":"INPUT | KSz > Erlöse & Finanz","index":8,"n_rows":99,"n_cols":25,"rows_kept":99,"cut":false,"hidden":false,"merged":[[6,12,12,14],[6,17,8,17],[7,8,8,8],[7,10,8,10],[9,17,12,17],[39,17,41,17],[41,8,41,12],[42,17,44,17],[54,17,58,17],[16,17,17,17]]}
[]
[null,"Erlöse, Finanzierung & Restwert",{"$nulls":13},"Alle Kosten-/Preisangaben netto.",null,"Hinweise/ Anmerkungen",null,"Ausblenden","Ausblenden","Ausblenden","Ausblenden","Ausblenden","Ausblenden"]
[null,{"$f":"CONCATENATE(\"Tatsächliches Szenario (TSz) | \",Kurztitel)","v":"Tatsächliches Szenario (TSz) | "},{"$nulls":15},"blau hinterlegte Felder sind Eingabefelder"]
[]
[null,"Eingabe 1: Einnahmen …",{"$nulls":13},"Keine Eingabe erforderlich."]
[]
[null,"… aus Systemnutzung | Eingabeoption 1 | Hochrechnung",{"$nulls":10},"... aus Netzanschluss & sonstige Einnahmen",{"$nulls":4},"Einnahmen aus Netzanschluss: Dem Anschlußnehmer für die Herstellung oder Umstellung des Anschlusses berechnete Kosten. Summe über alle geplanten Anschlüsse."]
[{"$nulls":8},"[ Euro/MWh]",null,"Preisentwicklung \n[%/Jahr]"]
[]
[null,"Mischpreis ","im Startjahr >>>",null,null,null,"Wärme",{"$nulls":10},"Der Mischpreis  setzt sich  aus Arbeitspreis, Grund- oder Leistungspreis und Mess- oder Verrechnungspreis zusammen. Dieser ist durch den Antragsteller über die potenziell zu erwartende/n Kunden(struktur) zu kalkulieren. "]
[{"$nulls":6},"Strom"]
[]
[null,"… aus Systemnutzung | Eingabeoption 2 | Jahresgenaue Eingabe"]
[{"$nulls":12},"Einnahmen aus",null,"Sonstige "]
[null,"Mischpreis",null,null,"Wärme",null,"verwendeter Wert",null,"Strom",null,"verwendeter Wert",null,"Netzanschluss",null,"Einnahmen"]
[{"$nulls":4},"[ Euro/MWh]",null,"[ Euro/MWh]",null,"[ Euro/MWh]",null,null,null,"[ Euro]",null,"[ Euro]"]
[null,{"$f":"'INPUT | TSz > Technik'!B16","v":"Jahr 1"},{"$f":"'INPUT | TSz > Technik'!C16","v":2026},null,null,null,{"$f":"IF(E17>0,E17,$I$10*(1+$K$10)^(COUNT($C$17:C17)-1))","v":0},null,null,null,{"$f":"IF(I17>0,I17,$I$11*(1+$K$11)^(COUNT($C$17:C17)-1))","v":0},{"$nulls":6},"Sonstige Einnahmen sind z.B. der KWK-Zuschuss oder anderweitige, dem Projekt zurechenbare Einnahmen"]
[null,{"$f":"'INPUT | TSz > Technik'!B17","v":"Jahr 2"},{"$f":"'INPUT | TSz > Technik'!C17","v":2027},null,null,null,{"$f":"IF(E18>0,E18,$I$10*(1+$K$10)^(COUNT($C$17:C18)-1))","v":0},null,null,null,{"$f":"IF(I18>0,I18,$I$11*(1+$K$11)^(COUNT($C$17:C18)-1))","v":0}]
[null,{"$f":"'INPUT | TSz > Technik'!B18","v":"Jahr 3"},{"$f":"'INPUT | TSz > Technik'!C18","v":2028},null,null,null,{"$f":"IF(E19>0,E19,$I$10*(1+$K$10)^(COUNT($C$17:C19)-1))","v":0},null,null,null,{"$f":"IF(I19>0,I19,$I$11*(1+$K$11)^(COUNT($C$17:C19)-1))","v":0}]
[null,{"$f":"'INPUT | TSz > Technik'!B19","v":"Jahr 4"},{"$f":"'INPUT | TSz > Technik'!C19","v":2029},null,null,null,{"$f":"IF(E20>0,E20,$I$10*(1+$K$10)^(COUNT($C$17:C20)-1))","v":0},null,null,null,{"$f":"IF(I20>0,I20,$I$11*(1+$K$11)^(COUNT($C$17:C20)-1))","v":0}]
[null,{"$f":"'INPUT | TSz > Technik'!B20","v":"Jahr 5"},{"$f":"'INPUT | TSz > Technik'!C20","v":2030},null,null,null,{"$f":"IF(E21>0,E21,$I$10*(1+$K$10)^(COUNT($C$17:C21)-1))","v":0},null,null,null,{"$f":"IF(I21>0,I21,$I$11*(1+$K$11)^(COUNT($C$17:C21)-1))","v":0}]
[null,{"$f":"'INPUT | TSz > Technik'!B21","v":"Jahr 6"},{"$f":"'INPUT | TSz > Technik'!C21","v":2031},null,null,null,{"$f":"IF(E22>0,E22,$I$10*(1+$K$10)^(COUNT($C$17:C22)-1))","v":0},null,null,null,{"$f":"IF(I22>0,I22,$I$11*(1+$K$11)^(COUNT($C$17:C22)-1))","v":0}]
[null,{"$f":"'INPUT | TSz > Technik'!B22","v":"Jahr 7"},{"$f":"'INPUT | TSz > Technik'!C22","v":2032},null,null,null,{"$f":"IF(E23>0,E23,$I$10*(1+$K$10)^(COUNT($C$17:C23)-1))","v":0},null,null,null,{"$f":"IF(I23>0,I23,$I$11*(1+$K$11)^(COUNT($C$17:C23)-1))","v":0}]
[null,{"$f":"'INPUT | TSz > Technik'!B23","v":"Jahr 8"},{"$f":"'INPUT | TSz > Technik'!C23","v":2033},null,null,null,{"$f":"IF(E24>0,E24,$I$10*(1+$K$10)^(COUNT($C$17:C24)-1))","v":0},null,null,null,{"$f":"IF(I24>0,I24,$I$11*(1+$K$11)^(COUNT($C$17:C24)-1))","v":0}]
[null,{"$f":"'INPUT | TSz > Technik'!B24","v":"Jahr 9"},{"$f":"'INPUT | TSz > Technik'!C24","v":2034},null,null,null,{"$f":"IF(E25>0,E25,$I$10*(1+$K$10)^(COUNT($C$17:C25)-1))","v":0},null,null,null,{"$f":"IF(I25>0,I25,$I$11*(1+$K$11)^(COUNT($C$17:C25)-1))","v":0}]
[null,{"$f":"'INPUT | TSz > Technik'!B25","v":"Jahr 10"},{"$f":"'INPUT | TSz > Technik'!C25","v":2035},null,null,null,{"$f":"IF(E26>0,E26,$I$10*(1+$K$10)^(COUNT($C$17:C26)-1))","v":0},null,null,null,{"$f":"IF(I26>0,I26,$I$11*(1+$K$11)^(COUNT($C$17:C26)-1))","v":0}]
[null,{"$f":"'INPUT | TSz > Technik'!B26","v":"Jahr 11"},{"$f":"'INPUT | TSz > Technik'!C26","v":2036},null,null,null,{"$f":"IF(E27>0,E27,$I$10*(1+$K$10)^(COUNT($C$17:C27)-1))","v":0},null,null,null,{"$f":"IF(I27>0,I27,$I$11*(1+$K$11)^(COUNT($C$17:C27)-1))","v":0}]
[null,{"$f":"'INPUT | TSz > Technik'!B27","v":"Jahr 12"},{"$f":"'INPUT | TSz > Technik'!C27","v":2037},null,null,null,{"$f":"IF(E28>0,E28,$I$10*(1+$K$10)^(COUNT($C$17:C28)-1))","v":0},null,null,null,{"$f":"IF(I28>0,I28,$I$11*(1+$K$11)^(COUNT($C$17:C28)-1))","v":0}]
[null,{"$f":"'INPUT | TSz > Technik'!B28","v":"Jahr 13"},{"$f":"'INPUT | TSz > Technik'!C28","v":2038},null,null,null,{"$f":"IF(E29>0,E29,$I$10*(1+$K$10)^(COUNT($C$17:C29)-1))","v":0},null,null,null,{"$f":"IF(I29>0,I29,$I$11*(1+$K$11)^(COUNT($C$17:C29)-1))","v":0}]
[null,{"$f":"'INPUT | TSz > Technik'!B29","v":"Jahr 14"},{"$f":"'INPUT | TSz > Technik'!C29","v":2039},null,null,null,{"$f":"IF(E30>0,E30,$I$10*(1+$K$10)^(COUNT($C$17:C30)-1))","v":0},null,null,null,{"$f":"IF(I30>0,I30,$I$11*(1+$K$11)^(COUNT($C$17:C30)-1))","v":0}]
[null,{"$f":"'INPUT | TSz > Technik'!B30","v":"Jahr 15"},{"$f":"'INPUT | TSz > Technik'!C30","v":2040},null,null,null,{"$f":"IF(E31>0,E31,$I$10*(1+$K$10)^(COUNT($C$17:C31)-1))","v":0},null,null,null,{"$f":"IF(I31>0,I31,$I$11*(1+$K$11)^(COUNT($C$17:C31)-1))","v":0}]
[null,{"$f":"'INPUT | TSz > Technik'!B31","v":"Jahr 16"},{"$f":"'INPUT | TSz > Technik'!C31","v":2041},null,null,null,{"$f":"IF(E32>0,E32,$I$10*(1+$K$10)^(COUNT($C$17:C32)-1))","v":0},null,null,null,{"$f":"IF(I32>0,I32,$I$11*(1+$K$11)^(COUNT($C$17:C32)-1))","v":0}]
[null,{"$f":"'INPUT | TSz > Technik'!B32","v":"Jahr 17"},{"$f":"'INPUT | TSz > Technik'!C32","v":2042},null,null,null,{"$f":"IF(E33>0,E33,$I$10*(1+$K$10)^(COUNT($C$17:C33)-1))","v":0},null,null,null,{"$f":"IF(I33>0,I33,$I$11*(1+$K$11)^(COUNT($C$17:C33)-1))","v":0}]
[null,{"$f":"'INPUT | TSz > Technik'!B33","v":"Jahr 18"},{"$f":"'INPUT | TSz > Technik'!C33","v":2043},null,null,null,{"$f":"IF(E34>0,E34,$I$10*(1+$K$10)^(COUNT($C$17:C34)-1))","v":0},null,null,null,{"$f":"IF(I34>0,I34,$I$11*(1+$K$11)^(COUNT($C$17:C34)-1))","v":0}]
[null,{"$f":"'INPUT | TSz > Technik'!B34","v":"Jahr 19"},{"$f":"'INPUT | TSz > Technik'!C34","v":2044},null,null,null,{"$f":"IF(E35>0,E35,$I$10*(1+$K$10)^(COUNT($C$17:C35)-1))","v":0},null,null,null,{"$f":"IF(I35>0,I35,$I$11*(1+$K$11)^(COUNT($C$17:C35)-1))","v":0}]
[null,{"$f":"'INPUT | TSz > Technik'!B35","v":"Jahr 20"},{"$f":"'INPUT | TSz > Technik'!C35","v":2045},null,null,null,{"$f":"IF(E36>0,E36,$I$10*(1+$K$10)^(COUNT($C$17:C36)-1))","v":0},null,null,null,{"$f":"IF(I36>0,I36,$I$11*(1+$K$11)^(COUNT($C$17:C36)-1))","v":0}]
[]
[null,"Eingabe 2: Angaben zur Errechnung des Diskontierungszinssatzes",{"$nulls":13},"Keine Eingabe erforderlich."]
[]
[null,"Der in der Berechnung verwendete WACC-Wert beträgt ….",{"$nulls":6},{"$f":"WACCKSz","v":0},null,{"$f":"V85","v":"(Eigener Wert)"},{"$nulls":6},"Für die Abzinsung der jährlichen Kapitalströme werden die gewichteten durchschnittlichen Kapitalkosten (WACC) herangezogen. "]
[]
[null,"Bitte wählen Sie, wie Sie verfahren wollen:",{"$nulls":6},"Eigenen WACC berechnen"]
[{"$nulls":17},"Zur Berechnung kann der empfohlene WACC-Wert genutzt oder ein projektbezogener Wert errechnet werden. Bei eigener Berechnung ist ein Nachweis zu führen."]
[null,"Eigene Berechnung WACC-Wert"]
[{"$nulls":8},"Eigenkapital",null,"Fremdkapital",null,"Zuschüsse"]
[{"$nulls":4},"Finanzierung der  Investition in Höhe von ",null,{"$f":"Nebenrechnungen!BM21","v":0},"durch"]
[{"$nulls":4},"noch zu finanzierender Betrag",null,{"$f":"-(SUM(I46:K46)-G46)","v":0},null,{"$f":"IFERROR(I46/$G$46,0)","v":0},null,{"$f":"IFERROR(K46/$G$46,0)","v":0},null,{"$f":"IFERROR(M46/$G$46,0)","v":0}]
[]
[{"$nulls":4},"Effektive Verzinsung ",null,null,"[%]",{"$nulls":9},"Verzinsung einschließlich Renditeausgleich für erhöhtes Risiko."]
[]
[{"$nulls":4},"Ertragssteuersatz des Unternehmens",null,null,"[%]",{"$nulls":4},"Eigener WACC",null,{"$f":"IFERROR(I46/(I46+K46)*I49+K46/(I46+K46)*K49*(1-I51),0)","v":0}]
[]
[null,"Eingabe 3: Restwert am Ende der Nutzungsdauer",{"$nulls":13},"Keine Eingabe erforderlich."]
[]
[null,"Der Restwert beträgt",{"$nulls":8},"Euro",{"$nulls":6},"Der Restwert entspricht dem Zeitwert des Anlagevermögens am Ende der Nutzungsdauer. Dieser ist für Wirtschaftsgüter zu ermitteln, deren Nutzungsdauer wesentlich von der Nutzungsdauer des Gesamtvorhabens abweicht. Dazu zählen zum Beispiel Gebäude und Grundstücke."]
{"$rows_empty":7}
[{"$nulls":19},"Dropdownfelder"]
[{"$nulls":22},"Anzeige"]
[{"$nulls":19},"Empfohlenen WACC-Wert verwenden ",null,null,"(Empfohlener Wert)"]
[{"$nulls":19},"Eigenen WACC berechnen",null,null,"(Eigener Wert)"]
{"$rows_empty":10}
[{"$nulls":19},"Bitte auswählen"]
[{"$nulls":19},"händisch eingetragen werden"]
[{"$nulls":19},"aus der Berechnung im Arbeitsblatt xxxx übernommen werden."]
[]
[]
[{"$nulls":19},"Übergabefelder"]
[]
[{"$nulls":19},"WACC-Wert",null,"Text WACC-Wert"]
[{"$nulls":19},{"$f":"IF(I42=T65,WACCBasissatz,O51)","v":0},null,{"$f":"INDEX(W65:W66,MATCH(I42,T65:T66,0))","v":"(Eigener Wert)"}]
[]
[{"$nulls":19},"Restwert"]
[{"$nulls":19},{"$f":"IF(T99=0,0,I55)","v":0}]
[{"$nulls":19},"Formatierungen und Begriffe in Abhängigkeit der notwendigen Eingaben"]
[]
[{"$nulls":19},"Anzeige"]
[{"$nulls":19},"Text","Erzeugungsanlage?","Netz?"]
[{"$nulls":19},{"$f":"'INPUT | Allgemeines'!O84","v":"Alles"},{"$f":"'INPUT | Allgemeines'!O80","v":1},{"$f":"'INPUT | Allgemeines'!O82","v":1}]
[]
[{"$nulls":19},"KWK? (Bei größer 0 ja)"]
[{"$nulls":19},{"$f":"SUM('INPUT | KSz > Technik'!S101:U101)","v":0}]
[]
[{"$nulls":19},"Soll es Eingaben für ein Kontrafaktisches Szenario geben?  0=Nein, 1=Ja"]
[{"$nulls":19},{"$f":"'INPUT | Allgemeines'!$O$76","v":0}]

{"sheet":"Nebenrechnungen","index":9,"n_rows":62,"n_cols":123,"rows_kept":62,"cut":false,"hidden":false,"merged":[[14,75,14,76],[11,71,11,72],[11,73,11,74],[12,71,12,72],[12,73,12,74],[14,71,14,72],[14,73,14,74],[12,75,12,76],[11,75,11,76],[12,88,12,89],[11,84,11,85],[11,86,11,87],[12,84,12,85],[12,86,12,87],[11,88,11,89],[6,5,6,6],[6,29,6,32],[6,43,6,46],[12,12,12,13],[12,14,12,15],[12,16,12,17],[12,25,12,26],[12,27,12,28],[6,33,6,34],[5,31,5,32],[11,12,11,13],[11,14,11,15],[11,16,11,17],[11,25,11,26],[11,27,11,28],[11,29,11,30],[6,7,6,14],[5,27,5,28],[5,29,5,30],[14,12,14,13],[14,14,14,15],[14,16,14,17],[12,29,12,30],[5,7,5,12],[5,13,5,14],[5,15,5,16],[5,17,5,18],[5,25,5,26],[6,96,6,97],[6,98,6,99],[6,36,6,37],[6,94,6,95],[6,25,6,26],[6,27,6,28]]}
[]
[null,{"$f":"CONCATENATE(\"Nebenrechnungen Finanzierungslücke | \",Kurztitel,\" | \",'INPUT | Allgemeines'!G7)","v":"Nebenrechnungen Finanzierungslücke |  | "},{"$nulls":115},"Ausblenden","Ausblenden","Ausblenden","Ausblenden","Ausblenden","Ausblenden"]
[null,"Berechnung der Finanzierungslücke nach AGVO",{"$nulls":62},{"$f":"IF(DN59=0,DP59,\"\")","v":"Es wurde noch keine alternative Lösung ausgewählt."}]
[]
[]
[{"$nulls":52},{"$f":"'INPUT | TSz > iHaSt'!$X$82","v":"Tabelle ist NICHT aktiv"},null,null,{"$f":"'INPUT | TSz > iHaSt'!$X$82","v":"Tabelle ist NICHT aktiv"},{"$nulls":4},{"$f":"'INPUT | TSz > iHaSt'!$X$82","v":"Tabelle ist NICHT aktiv"}]
[{"$nulls":5},"Tatsächliches Szenario",{"$nulls":9},"Tatsächliches Szenario",{"$nulls":13},"Tatsächliches Szenario",{"$nulls":13},"Tatsächliches Szenario",{"$nulls":8},"Tatsächliches Szenario iHast",{"$nulls":11},"Kontrafaktisches  Szenario",{"$nulls":8},"Kontrafaktisches  Szenario",{"$nulls":10},"Kontrafaktisches  Szenario",{"$nulls":9},"Kontrafaktisches  Szenario",{"$nulls":8},"Kontrafaktisches  Szenario"]
[]
[{"$nulls":5},"Investitionen",null,null,"Wärmemenge",null,null,null,"Erforderliche Brennstoffwärme",{"$nulls":6},"Brennstoffenergie",null,null,null,"Wärmebezug",null,"Brennstoffkosten | Wärmebezugskosten bei \"Nur Netz\"",{"$nulls":7},"Instandhaltungskosten",null,null,"Betriebskosten ",null,"Erlöse aus Wärmeverkauf",null,null,null,"Erlöse aus Stromverkauf (bei KWK)",{"$nulls":5},"Sonstige Einnahmen",null,null,null,"iHAST Ausbau",null,"Veränderung der Wärmeabgabe",null,null,"Fernwärme Mischpreis",null,null,"Instandhaltungskosten",null,"All. Betriebskosten",null,"Investitionen",null,null,"Wärmemenge",null,null,null,"Erforderliche Brennstoffwärme",{"$nulls":6},"Brennstoffenergie",null,null,null,"Wärmebezug",null,"Brennstoffkosten | Wärmebezugskosten bei \"Nur Netz\"",{"$nulls":7},"Instandhaltungskosten Netz",null,null,"Betriebskosten Netz",null,"Erlöse aus Wärmeverkauf",null,null,null,"Erlöse aus Stromverkauf (bei KWK)",{"$nulls":5},"Sonstige"]
[{"$nulls":5},"im Jahr","kumuliert",{"$nulls":5},"Bezug: Heizwert Hi",{"$nulls":6},"Bezug: Brennwert Hs",{"$nulls":5},"wenn Erzeugungsanlage ausgewählt",null,null,"Bezug: Brennwert Hs",{"$nulls":7},"Allgemeine BK",{"$nulls":20},"zur Berechnung vermiedener Kosten",null,null,"Veränderung",null,"Veränderung",null,"im Jahr","kumuliert",{"$nulls":5},"Bezug: Heizwert Hi",{"$nulls":6},"Bezug: Brennwert Hs",{"$nulls":5},"wenn Erzeugungsanlage ausgewählt",null,null,"Bezug: Brennwert Hs",{"$nulls":7},"Allgemeine BK",{"$nulls":11},"Einnahmen"]
[]
[{"$nulls":8},"Wärme","Netzverlust","zu erzeugende",null,"Erzeugungsanlage 1",null,"Erzeugungsanlage 2",null,"Erzeugungsanlage 3",null,null,"EA1","EA2","EA3",null,"bei nur Netz",null,"Erzeugungsanlage 1",null,"Erzeugungsanlage 2",null,"Erzeugungsanlage 3",null,null,null,{"$f":"'INPUT | TSz > Kosten'!F50","v":"% der Investition"},"unter",null,{"$f":"'INPUT | TSz > Kosten'!F54","v":"Euro"},null,"Entnahme","Mischpreis","Erlöse",null,"Erzeugungsanlage 1","Erzeugungsanlage 2","Erzeugungsanlage 3","Mischpreis","Einnahmen",null,"Entgelt aus ","Sonstige ","Summe",null,"Veränderung",null,"auf umzurüstende Anschlüsse ","Verlustreduzierung",{"$nulls":11},"Wärme","Netzverlust","zu erzeugende",null,"Erzeugungsanlage 1",null,"Erzeugungsanlage 2",null,"Erzeugungsanlage 3",null,null,"EA1","EA2","EA3",null,"bei nur Netz",null,"Erzeugungsanlage 1",null,"Erzeugungsanlage 2",null,"Erzeugungsanlage 3",null,null,null,{"$f":"'INPUT | KSz > Kosten'!F50","v":"Euro pauschal "},"unter",null,{"$f":"'INPUT | KSz > Kosten'!F54","v":"Euro"},null,"Entnahme","Mischpreis","Erlöse",null,"Erzeugungsanlage 1","Erzeugungsanlage 2","Erzeugungsanlage 3","Mischpreis","Einnahmen",null,"Entgelt aus ","Sonstige ","Summe"]
[{"$nulls":8},"Kundenseitig",null,"Wärme",null,{"$f":"IF('INPUT | TSz > Technik'!F11='INPUT | TSz > Technik'!$S$79,\"\",'INPUT | TSz > Technik'!F11)","v":""},null,{"$f":"IF('INPUT | TSz > Technik'!G11='INPUT | TSz > Technik'!$S$79,\"\",'INPUT | TSz > Technik'!G11)","v":""},null,{"$f":"IF('INPUT | TSz > Technik'!H11='INPUT | TSz > Technik'!$S$79,\"\",'INPUT | TSz > Technik'!H11)","v":""},null,null,{"$f":"M15","v":""},{"$f":"O15","v":""},{"$f":"Q15","v":""},null,null,null,{"$f":"M15","v":""},null,{"$f":"O15","v":""},null,{"$f":"Q15","v":""},null,"Summe",null,null," Berücksichtigung",{"$nulls":7},"Erzeugter Strom","Erzeugter Strom","Erzeugter Strom",null,null,null,"Anschluss","Einnahmen",null,null,"kumuliert",null,"entfallender Netzverlust","durch Ihast",{"$nulls":11},"Kundenseitig",null,"Wärme",null,{"$f":"IF('INPUT | KSz > Technik'!F11='INPUT | KSz > Technik'!$S$78,\"\",'INPUT | KSz > Technik'!F11)","v":""},null,{"$f":"IF('INPUT | KSz > Technik'!G11='INPUT | KSz > Technik'!$S$78,\"\",'INPUT | KSz > Technik'!G11)","v":""},null,{"$f":"IF('INPUT | KSz > Technik'!H11='INPUT | KSz > Technik'!$S$78,\"\",'INPUT | KSz > Technik'!H11)","v":""},null,null,{"$f":"BT15","v":""},{"$f":"BV15","v":""},{"$f":"BX15","v":""},null,null,null,{"$f":"BT15","v":""},null,{"$f":"BV15","v":""},null,{"$f":"BX15","v":""},null,"Summe",null,null," Berücksichtigung",{"$nulls":7},"Erzeugter Strom","Erzeugter Strom","Erzeugter Strom",null,null,null,"Anschluss","Einnahmen"]
[]
[null,null,null,"Basiswerte",{"$nulls":5},{"$f":"'INPUT | TSz > Technik'!H40","v":0},null,null,{"$f":"'INPUT | TSz > Kosten'!P68","v":""},null,{"$f":"'INPUT | TSz > Kosten'!Q68","v":""},null,{"$f":"'INPUT | TSz > Kosten'!R68","v":""},{"$nulls":16},"Preisanpassung","der Zeitangabe:",{"$nulls":7},"el. Nutzungsgrad","el. Nutzungsgrad","el. Nutzungsgrad",{"$nulls":9},"Mittlerer Netzverlust","Veränderung",null,"Übernahme","Einsparung",null,{"$f":"'INPUT | TSz > iHaSt'!I55*'INPUT | TSz > iHaSt'!Z83","v":0},null,{"$f":"'INPUT | TSz > iHaSt'!I58*'INPUT | TSz > iHaSt'!Z84","v":0},{"$nulls":5},{"$f":"'INPUT | KSz > Technik'!H40","v":0},null,null,{"$f":"'INPUT | KSz > Kosten'!P68","v":""},null,{"$f":"'INPUT | KSz > Kosten'!Q68","v":""},null,{"$f":"'INPUT | KSz > Kosten'!R68","v":""},{"$nulls":16},"Preisanpassung","der Zeitangabe:",{"$nulls":7},"el. Nutzungsgrad","el. Nutzungsgrad","el. Nutzungsgrad"]
[{"$nulls":9},{"$f":"'INPUT | TSz > Technik'!J40","v":0},null,null,null,{"$f":"'INPUT | TSz > Technik'!S107","v":0},null,{"$f":"'INPUT | TSz > Technik'!T107","v":0},null,{"$f":"'INPUT | TSz > Technik'!U107","v":0},null,{"$f":"IFERROR(INDEX(Ablage!$B$33:$B$41,MATCH(M15,Ablage!$A$33:$A$41,0)),0)","v":0},{"$f":"IFERROR(INDEX(Ablage!$B$33:$B$41,MATCH(O15,Ablage!$A$33:$A$41,0)),0)","v":0},{"$f":"IFERROR(INDEX(Ablage!$B$33:$B$41,MATCH(Q15,Ablage!$A$33:$A$41,0)),0)","v":0},null,{"$f":"IF('INPUT | Allgemeines'!O84='INPUT | Allgemeines'!S45,1,0)","v":0},null,null,{"$f":"'INPUT | TSz > Kosten'!P79","v":0},null,{"$f":"'INPUT | TSz > Kosten'!Q79","v":0},null,{"$f":"'INPUT | TSz > Kosten'!R79","v":0},null,null,null,"Startjahr",{"$nulls":7},{"$f":"'INPUT | TSz > Technik'!S104","v":0},{"$f":"'INPUT | TSz > Technik'!T104","v":0},{"$f":"'INPUT | TSz > Technik'!U104","v":0},{"$nulls":9},{"$f":"'INPUT | TSz > iHaSt'!H10","v":0},{"$f":"'INPUT | TSz > iHaSt'!H16","v":0.06},null,"aus","(vermiedene ",{"$nulls":9},{"$f":"'INPUT | KSz > Technik'!J40","v":0},null,null,null,{"$f":"'INPUT | KSz > Technik'!S106","v":0},null,{"$f":"'INPUT | KSz > Technik'!T106","v":0},null,{"$f":"'INPUT | KSz > Technik'!U106","v":0},null,{"$f":"IFERROR(INDEX(Ablage!$B$33:$B$41,MATCH(BT15,Ablage!$A$33:$A$41,0)),0)","v":0},{"$f":"IFERROR(INDEX(Ablage!$B$33:$B$41,MATCH(BV15,Ablage!$A$33:$A$41,0)),0)","v":0},{"$f":"IFERROR(INDEX(Ablage!$B$33:$B$41,MATCH(BX15,Ablage!$A$33:$A$41,0)),0)","v":0},null,{"$f":"IF('INPUT | Allgemeines'!O84='INPUT | Allgemeines'!S45,1,0)","v":0},null,null,{"$f":"'INPUT | KSz > Kosten'!P79","v":0},null,{"$f":"'INPUT | KSz > Kosten'!Q79","v":0},null,{"$f":"'INPUT | KSz > Kosten'!R79","v":0},null,null,null,"Startjahr",{"$nulls":7},{"$f":"'INPUT | KSz > Technik'!S103","v":0},{"$f":"'INPUT | KSz > Technik'!T103","v":0},{"$f":"'INPUT | KSz > Technik'!U103","v":0}]
[{"$nulls":26},{"$f":"'INPUT | TSz > Kosten'!P80","v":0},null,{"$f":"'INPUT | TSz > Kosten'!Q80","v":0},null,{"$f":"'INPUT | TSz > Kosten'!R80","v":0},null,null,{"$f":"'INPUT | TSz > Kosten'!H50","v":0},{"$f":"'INPUT | TSz > Kosten'!P76","v":2026},null,{"$f":"'INPUT | TSz > Kosten'!H54","v":0},null,null,{"$f":"'INPUT | TSz > Erlöse & Finanz'!K10","v":0},{"$nulls":17},"Wärmeverkauf","Kosten)",null,{"$f":"'INPUT | TSz > iHaSt'!J55","v":0},null,{"$f":"'INPUT | TSz > iHaSt'!J58","v":0},{"$nulls":22},{"$f":"'INPUT | KSz > Kosten'!P80","v":0},null,{"$f":"'INPUT | KSz > Kosten'!Q80","v":0},null,{"$f":"'INPUT | KSz > Kosten'!R80","v":0},null,null,{"$f":"'INPUT | KSz > Kosten'!H50","v":0},{"$f":"'INPUT | KSz > Kosten'!P76","v":2026},null,{"$f":"'INPUT | KSz > Kosten'!H54","v":0},null,null,{"$f":"'INPUT | KSz > Erlöse & Finanz'!K10","v":0}]
[]
[null,null,null,"Jahr ",null,"[Euro] ","[Euro] ",null,"[MWh]","[MWh]","[MWh]",null,null,"[MWh]",null,"[MWh]",null,"[MWh]",null,"[MWh]","[MWh]","[MWh]",null,null,null,"[Euro/MWh]","[Euro]","[Euro/MWh]","[Euro]","[Euro/MWh]","[Euro]","[Euro]",null,"[Euro] ","[Euro] ",null,"[Euro] ",null,"[MWh]","[Euro/MWh]","[Euro] ",null,"[MWh]","[MWh]","[MWh]","[Euro/MWh]","[Euro] ",null,"[Euro] ","[Euro] ","[Euro] ",null,"[MWh/a]",null,"[MWh/a]","[MWh/a]",null,"[Euro/MWh]","[Euro]",null,"[Euro/a] ",null,"[Euro/a] ",null,"[Euro] ","[Euro] ",null,"[MWh]","[MWh]","[MWh]",null,null,"[MWh]",null,"[MWh]",null,"[MWh]",null,"[MWh]","[MWh]","[MWh]",null,null,null,"[Euro/MWh]","[Euro]","[Euro/MWh]","[Euro]","[Euro/MWh]","[Euro]","[Euro]",null,"[Euro] ","[Euro] ",null,"[Euro] ",null,"[MWh]","[Euro/MWh]","[Euro] ",null,"[MWh]","[MWh]","[MWh]","[Euro/MWh]","[Euro] ",null,"[Euro] ","[Euro] ","[Euro] "]
[]
[null,null,null,"Summen",null,{"$f":"SUM(OFFSET(F23,0,0,$DN$62,1))","v":0},{"$nulls":58},{"$f":"SUM(OFFSET(BM23,0,0,$DN$62,1))","v":0}]
[]
[null,"Jahr",1,{"$f":"'INPUT | TSz > Kosten'!C14","v":2026},null,{"$f":"SUM('INPUT | TSz > Kosten'!E14:K14)","v":0},{"$f":"F23","v":0},null,{"$f":"IFERROR(INDEX('INPUT | TSz > Technik'!$H$51:$H$70,MATCH(Nebenrechnungen!D23,'INPUT | TSz > Technik'!$C$51:$C$70,0)),0)","v":0},{"$f":"IF($I23>0,IF($J$16>0,$J$16,$I23*$J$15),0)","v":0},{"$f":"SUM(I23:J23)","v":0},null,{"$f":"IFERROR(INDEX('INPUT | TSz > Technik'!$F$16:$F$35,MATCH(Nebenrechnungen!$D23,'INPUT | TSz > Technik'!$C$16:$C$35,0)),0)","v":1},{"$f":"IFERROR(K23*M23/$N$16,0)","v":0},{"$f":"IFERROR(INDEX('INPUT | TSz > Technik'!$G$16:$G$35,MATCH(Nebenrechnungen!$D23,'INPUT | TSz > Technik'!$C$16:$C$35,0)),0)","v":0},{"$f":"IFERROR(K23*O23/$P$16,0)","v":0},{"$f":"IFERROR(INDEX('INPUT | TSz > Technik'!$H$16:$H$35,MATCH(Nebenrechnungen!$D23,'INPUT | TSz > Technik'!$C$16:$C$35,0)),0)","v":0},{"$f":"IFERROR(K23*Q23/$R$16,0)","v":0},null,{"$f":"N23*T$16","v":0},{"$f":"P23*U$16","v":0},{"$f":"R23*V$16","v":0},null,{"$f":"K23*$X$16","v":0},null,{"$f":"$AA$16*(1+$AA$17)^(Ablage!$D54)","v":0},{"$f":"IF(X$16=1,X23,T23)*Z23","v":0},{"$f":"$AC$16*(1+$AC$17)^(Ablage!$D54)","v":0},{"$f":"AB23*U23","v":0},{"$f":"$AE$16*(1+$AE$17)^(Ablage!$D54)","v":0},{"$f":"AD23*V23","v":0},{"$f":"SUM(AA23,AC23,AE23)","v":0},null,{"$f":"(IF(AH$12='INPUT | TSz > Kosten'!$P$64,'INPUT | TSz > Kosten'!$G$50,'INPUT | TSz > Kosten'!$G$50*G23))*(1+AH$17)^Ablage!D54*Ablage!E54","v":0},{"$f":"IF($D23>='INPUT | TSz > Kosten'!$G$52,Nebenrechnungen!AH23,0)","v":0},null,{"$f":"IF(SUM(T23:V23)=0,0,'INPUT | TSz > Kosten'!$G$54*(1+AK$17)^Ablage!D54)","v":0},null,{"$f":"I23","v":0},{"$f":"IFERROR(INDEX('INPUT | TSz > Erlöse & Finanz'!$G$17:$G$36,MATCH(Nebenrechnungen!D23,'INPUT | TSz > Erlöse & Finanz'!$C$17:$C$36,0)),0)","v":0},{"$f":"AM23*AN23","v":0},null,{"$f":"$AQ$16*N23","v":0},{"$f":"$AR$16*P23","v":0},{"$f":"$AS$16*R23","v":0},{"$f":"IFERROR(INDEX('INPUT | TSz > Erlöse & Finanz'!$K$17:$K$36,MATCH(Nebenrechnungen!D23,'INPUT | TSz > Erlöse & Finanz'!$C$17:$C$36,0)),0)","v":0},{"$f":"(AQ23+AR23+AS23)*AT23","v":0},null,{"$f":"IFERROR(INDEX('INPUT | TSz > Erlöse & Finanz'!$M$17:$M$36,MATCH(Nebenrechnungen!$D23,'INPUT | TSz > Erlöse & Finanz'!$C$17:$C$36,0)),0)","v":0},{"$f":"IFERROR(INDEX('INPUT | TSz > Erlöse & Finanz'!$O$17:$O$36,MATCH(Nebenrechnungen!$D23,'INPUT | TSz > Erlöse & Finanz'!$C$17:$C$36,0)),0)","v":0},{"$f":"SUM(AW23:AX23)","v":0},null,{"$f":"'INPUT | TSz > iHaSt'!Z90*'INPUT | TSz > iHaSt'!$Z$82","v":0},null,{"$f":"BA23*$BC$16","v":0},{"$f":"BC23*$BD$16","v":0},null,{"$f":"AN23","v":0},{"$f":"BF23*BD23","v":0},null,{"$f":"$BI$15*(1+$BI$17)^Ablage!D54*Ablage!E54","v":0},null,{"$f":"$BK$15*(1+$BK$17)^Ablage!D54*Ablage!E54","v":0},null,{"$f":"IF($DN$59=0,0,SUM('INPUT | KSz > Kosten'!E14:K14))","v":0},{"$f":"BM23","v":0},null,{"$f":"IF($DN$59=0,0,IFERROR(INDEX('INPUT | KSz > Technik'!$H$50:$H$69,MATCH(Nebenrechnungen!D23,'INPUT | KSz > Technik'!$C$50:$C$69,0)),0))","v":0},{"$f":"IF($BP23>0,IF($BQ$16>0,$BQ$16,$BP23*$BQ$15),0)","v":0},{"$f":"SUM(BP23:BQ23)","v":0},null,{"$f":"IFERROR(INDEX('INPUT | KSz > Technik'!$F$16:$F$35,MATCH(Nebenrechnungen!$D23,'INPUT | KSz > Technik'!$C$16:$C$35,0)),0)","v":1},{"$f":"IFERROR(BR23*BT23/$BU$16,0)","v":0},{"$f":"IFERROR(INDEX('INPUT | KSz > Technik'!$G$16:$G$35,MATCH(Nebenrechnungen!$D23,'INPUT | KSz > Technik'!$C$16:$C$35,0)),0)","v":0},{"$f":"IFERROR(BR23*BV23/$BW$16,0)","v":0},{"$f":"IFERROR(INDEX('INPUT | KSz > Technik'!$H$16:$H$35,MATCH(Nebenrechnungen!$D23,'INPUT | KSz > Technik'!$C$16:$C$35,0)),0)","v":0},{"$f":"IFERROR(BR23*BX23/$BY$16,0)","v":0},null,{"$f":"BU23*CA$16","v":0},{"$f":"BW23*CB$16","v":0},{"$f":"BY23*CC$16","v":0},null,{"$f":"BR23*$CE$16","v":0},null,{"$f":"$CH$16*(1+$CH$17)^(Ablage!$D54)","v":0},{"$f":"IF(CE$16=1,CE23,CA23)*CG23","v":0},{"$f":"$CJ$16*(1+$CJ$17)^(Ablage!$D54)","v":0},{"$f":"CI23*CB23","v":0},{"$f":"$CL$16*(1+$CL$17)^(Ablage!$D54)","v":0},{"$f":"CK23*CC23","v":0},{"$f":"SUM(CH23,CJ23,CL23)","v":0},null,{"$f":"IF($DN$59=0,0,(IF(CO$12='INPUT | TSz > Kosten'!$P$64,'INPUT | KSz > Kosten'!$G$50,'INPUT | KSz > Kosten'!$G$50*Nebenrechnungen!BN23))*(1+CO$17)^Ablage!D54*Ablage!E54)","v":0},{"$f":"IF($D23>='INPUT | KSz > Kosten'!$G$52,Nebenrechnungen!CO23,0)","v":0},null,{"$f":"IF(SUM(CA23:CC23)=0,0,'INPUT | KSz > Kosten'!$G$54*(1+AK$17)^Ablage!D54)","v":0},null,{"$f":"BP23","v":0},{"$f":"IFERROR(INDEX('INPUT | KSz > Erlöse & Finanz'!$G$17:$G$36,MATCH(Nebenrechnungen!D23,'INPUT | KSz > Erlöse & Finanz'!$C$17:$C$36,0)),0)","v":0},{"$f":"CT23*CU23","v":0},null,{"$f":"$CX$16*BU23","v":0},{"$f":"$CY$16*BW23","v":0},{"$f":"$CZ$16*BY23","v":0},{"$f":"IFERROR(INDEX('INPUT | KSz > Erlöse & Finanz'!$K$17:$K$36,MATCH(Nebenrechnungen!D23,'INPUT | KSz > Erlöse & Finanz'!$C$17:$C$36,0)),0)","v":0},{"$f":"(CX23+CY23+CZ23)*DA23","v":0},null,{"$f":"IFERROR(INDEX('INPUT | KSz > Erlöse & Finanz'!$M$17:$M$36,MATCH(Nebenrechnungen!$D23,'INPUT | KSz > Erlöse & Finanz'!$C$17:$C$36,0)),0)","v":0},{"$f":"IFERROR(INDEX('INPUT | KSz > Erlöse & Finanz'!$O$17:$O$36,MATCH(Nebenrechnungen!$D23,'INPUT | KSz > Erlöse & Finanz'!$C$17:$C$36,0)),0)","v":0},{"$f":"SUM(DD23:DE23)","v":0}]
[null,"Jahr",2,{"$f":"'INPUT | TSz > Kosten'!C15","v":2027},null,{"$f":"SUM('INPUT | TSz > Kosten'!E15:K15)","v":0},{"$f":"G23+F24","v":0},null,{"$f":"IFERROR(INDEX('INPUT | TSz > Technik'!$H$51:$H$70,MATCH(Nebenrechnungen!D24,'INPUT | TSz > Technik'!$C$51:$C$70,0)),0)","v":0},{"$f":"IF($I24>0,IF($J$16>0,$J$16,$I24*$J$15),0)","v":0},{"$f":"SUM(I24:J24)","v":0},null,{"$f":"IFERROR(INDEX('INPUT | TSz > Technik'!$F$16:$F$35,MATCH(Nebenrechnungen!$D24,'INPUT | TSz > Technik'!$C$16:$C$35,0)),0)","v":1},{"$f":"IFERROR(K24*M24/$N$16,0)","v":0},{"$f":"IFERROR(INDEX('INPUT | TSz > Technik'!$G$16:$G$35,MATCH(Nebenrechnungen!$D24,'INPUT | TSz > Technik'!$C$16:$C$35,0)),0)","v":0},{"$f":"IFERROR(K24*O24/$P$16,0)","v":0},{"$f":"IFERROR(INDEX('INPUT | TSz > Technik'!$H$16:$H$35,MATCH(Nebenrechnungen!$D24,'INPUT | TSz > Technik'!$C$16:$C$35,0)),0)","v":0},{"$f":"IFERROR(K24*Q24/$R$16,0)","v":0},null,{"$f":"N24*T$16","v":0},{"$f":"P24*U$16","v":0},{"$f":"R24*V$16","v":0},null,{"$f":"K24*$X$16","v":0},null,{"$f":"$AA$16*(1+$AA$17)^(Ablage!D55)","v":0},{"$f":"IF(X$16=1,X24,T24)*Z24","v":0},{"$f":"$AC$16*(1+$AC$17)^(Ablage!$D55)","v":0},0,{"$f":"$AE$16*(1+$AE$17)^(Ablage!$D55)","v":0},0,{"$f":"SUM(AA24,AC24,AE24)","v":0},null,{"$f":"(IF(AH$12='INPUT | TSz > Kosten'!$P$64,'INPUT | TSz > Kosten'!$G$50,'INPUT | TSz > Kosten'!$G$50*G24))*(1+AH$17)^Ablage!D55*Ablage!E55","v":0},{"$f":"IF($D24>='INPUT | TSz > Kosten'!$G$52,Nebenrechnungen!AH24,0)","v":0},null,{"$f":"IF(SUM(T24:V24)=0,0,'INPUT | TSz > Kosten'!$G$54*(1+AK$17)^Ablage!D55)","v":0},null,{"$f":"I24","v":0},{"$f":"IFERROR(INDEX('INPUT | TSz > Erlöse & Finanz'!$G$17:$G$36,MATCH(Nebenrechnungen!D24,'INPUT | TSz > Erlöse & Finanz'!$C$17:$C$36,0)),0)","v":0},0,null,0,0,0,{"$f":"IFERROR(INDEX('INPUT | TSz > Erlöse & Finanz'!$K$17:$K$36,MATCH(Nebenrechnungen!D24,'INPUT | TSz > Erlöse & Finanz'!$C$17:$C$36,0)),0)","v":0},{"$f":"(AQ24+AR24+AS24)*AT24","v":0},null,{"$f":"IFERROR(INDEX('INPUT | TSz > Erlöse & Finanz'!$M$17:$M$36,MATCH(Nebenrechnungen!$D24,'INPUT | TSz > Erlöse & Finanz'!$C$17:$C$36,0)),0)","v":0},{"$f":"IFERROR(INDEX('INPUT | TSz > Erlöse & Finanz'!$O$17:$O$36,MATCH(Nebenrechnungen!$D24,'INPUT | TSz > Erlöse & Finanz'!$C$17:$C$36,0)),0)","v":0},{"$f":"SUM(AW24:AX24)","v":0},null,{"$f":"'INPUT | TSz > iHaSt'!Z91*'INPUT | TSz > iHaSt'!$Z$82","v":0},null,{"$f":"BA24*$BC$16","v":0},{"$f":"BC24*$BD$16","v":0},null,{"$f":"AN24","v":0},{"$f":"BF24*BD24","v":0},null,{"$f":"$BI$15*(1+$BI$17)^Ablage!D55*Ablage!E55","v":0},null,{"$f":"$BK$15*(1+$BK$17)^Ablage!D55*Ablage!E55","v":0},null,{"$f":"IF($DN$59=0,0,SUM('INPUT | KSz > Kosten'!E15:K15))","v":0},{"$f":"BN23+BM24","v":0},null,{"$f":"IF($DN$59=0,0,IFERROR(INDEX('INPUT | KSz > Technik'!$H$50:$H$69,MATCH(Nebenrechnungen!D24,'INPUT | KSz > Technik'!$C$50:$C$69,0)),0))","v":0},{"$f":"IF($BP24>0,IF($BQ$16>0,$BQ$16,$BP24*$BQ$15),0)","v":0},{"$f":"SUM(BP24:BQ24)","v":0},null,{"$f":"IFERROR(INDEX('INPUT | KSz > Technik'!$F$16:$F$35,MATCH(Nebenrechnungen!$D24,'INPUT | KSz > Technik'!$C$16:$C$35,0)),0)","v":1},{"$f":"IFERROR(BR24*BT24/$BU$16,0)","v":0},{"$f":"IFERROR(INDEX('INPUT | KSz > Technik'!$G$16:$G$35,MATCH(Nebenrechnungen!$D24,'INPUT | KSz > Technik'!$C$16:$C$35,0)),0)","v":0},{"$f":"IFERROR(BR24*BV24/$BW$16,0)","v":0},{"$f":"IFERROR(INDEX('INPUT | KSz > Technik'!$H$16:$H$35,MATCH(Nebenrechnungen!$D24,'INPUT | KSz > Technik'!$C$16:$C$35,0)),0)","v":0},{"$f":"IFERROR(BR24*BX24/$BY$16,0)","v":0},null,{"$f":"BU24*CA$16","v":0},{"$f":"BW24*CB$16","v":0},{"$f":"BY24*CC$16","v":0},null,{"$f":"BR24*$CE$16","v":0},null,{"$f":"$CH$16*(1+$CH$17)^(Ablage!$D55)","v":0},{"$f":"IF(CE$16=1,CE24,CA24)*CG24","v":0},{"$f":"$CJ$16*(1+$CJ$17)^(Ablage!$D55)","v":0},0,{"$f":"$CL$16*(1+$CL$17)^(Ablage!$D55)","v":0},0,{"$f":"SUM(CH24,CJ24,CL24)","v":0},null,{"$f":"IF($DN$59=0,0,(IF(CO$12='INPUT | TSz > Kosten'!$P$64,'INPUT | KSz > Kosten'!$G$50,'INPUT | KSz > Kosten'!$G$50*Nebenrechnungen!BN24))*(1+CO$17)^Ablage!D55*Ablage!E55)","v":0},{"$f":"IF($D24>='INPUT | KSz > Kosten'!$G$52,Nebenrechnungen!CO24,0)","v":0},null,{"$f":"IF(SUM(CA24:CC24)=0,0,'INPUT | KSz > Kosten'!$G$54*(1+AK$17)^Ablage!D55)","v":0},null,{"$f":"BP24","v":0},{"$f":"IFERROR(INDEX('INPUT | KSz > Erlöse & Finanz'!$G$17:$G$36,MATCH(Nebenrechnungen!D24,'INPUT | KSz > Erlöse & Finanz'!$C$17:$C$36,0)),0)","v":0},{"$f":"CT24*CU24","v":0},null,{"$f":"$CX$16*BU24","v":0},{"$f":"$CY$16*BW24","v":0},{"$f":"$CZ$16*BY24","v":0},{"$f":"IFERROR(INDEX('INPUT | KSz > Erlöse & Finanz'!$K$17:$K$36,MATCH(Nebenrechnungen!D24,'INPUT | KSz > Erlöse & Finanz'!$C$17:$C$36,0)),0)","v":0},{"$f":"(CX24+CY24+CZ24)*DA24","v":0},null,{"$f":"IFERROR(INDEX('INPUT | KSz > Erlöse & Finanz'!$M$17:$M$36,MATCH(Nebenrechnungen!$D24,'INPUT | KSz > Erlöse & Finanz'!$C$17:$C$36,0)),0)","v":0},{"$f":"IFERROR(INDEX('INPUT | KSz > Erlöse & Finanz'!$O$17:$O$36,MATCH(Nebenrechnungen!$D24,'INPUT | KSz > Erlöse & Finanz'!$C$17:$C$36,0)),0)","v":0},{"$f":"SUM(DD24:DE24)","v":0}]
[null,"Jahr",3,{"$f":"'INPUT | TSz > Kosten'!C16","v":2028},null,{"$f":"SUM('INPUT | TSz > Kosten'!E16:K16)","v":0},{"$f":"G24+F25","v":0},null,{"$f":"IFERROR(INDEX('INPUT | TSz > Technik'!$H$51:$H$70,MATCH(Nebenrechnungen!D25,'INPUT | TSz > Technik'!$C$51:$C$70,0)),0)","v":0},0,0,null,{"$f":"IFERROR(INDEX('INPUT | TSz > Technik'!$F$16:$F$35,MATCH(Nebenrechnungen!$D25,'INPUT | TSz > Technik'!$C$16:$C$35,0)),0)","v":1},{"$f":"IFERROR(K25*M25/$N$16,0)","v":0},{"$f":"IFERROR(INDEX('INPUT | TSz > Technik'!$G$16:$G$35,MATCH(Nebenrechnungen!$D25,'INPUT | TSz > Technik'!$C$16:$C$35,0)),0)","v":0},0,{"$f":"IFERROR(INDEX('INPUT | TSz > Technik'!$H$16:$H$35,MATCH(Nebenrechnungen!$D25,'INPUT | TSz > Technik'!$C$16:$C$35,0)),0)","v":0},0,null,0,0,0,null,{"$f":"K25*$X$16","v":0},null,{"$f":"$AA$16*(1+$AA$17)^(Ablage!D56)","v":0},0,{"$f":"$AC$16*(1+$AC$17)^(Ablage!$D56)","v":0},0,{"$f":"$AE$16*(1+$AE$17)^(Ablage!$D56)","v":0},0,0,null,{"$f":"(IF(AH$12='INPUT | TSz > Kosten'!$P$64,'INPUT | TSz > Kosten'!$G$50,'INPUT | TSz > Kosten'!$G$50*G25))*(1+AH$17)^Ablage!D56*Ablage!E56","v":0},{"$f":"IF($D25>='INPUT | TSz > Kosten'!$G$52,Nebenrechnungen!AH25,0)","v":0},null,{"$f":"IF(SUM(T25:V25)=0,0,'INPUT | TSz > Kosten'!$G$54*(1+AK$17)^Ablage!D56)","v":0},null,0,{"$f":"IFERROR(INDEX('INPUT | TSz > Erlöse & Finanz'!$G$17:$G$36,MATCH(Nebenrechnungen!D25,'INPUT | TSz > Erlöse & Finanz'!$C$17:$C$36,0)),0)","v":0},0,null,0,0,0,{"$f":"IFERROR(INDEX('INPUT | TSz > Erlöse & Finanz'!$K$17:$K$36,MATCH(Nebenrechnungen!D25,'INPUT | TSz > Erlöse & Finanz'!$C$17:$C$36,0)),0)","v":0},0,null,{"$f":"IFERROR(INDEX('INPUT | TSz > Erlöse & Finanz'!$M$17:$M$36,MATCH(Nebenrechnungen!$D25,'INPUT | TSz > Erlöse & Finanz'!$C$17:$C$36,0)),0)","v":0},{"$f":"IFERROR(INDEX('INPUT | TSz > Erlöse & Finanz'!$O$17:$O$36,MATCH(Nebenrechnungen!$D25,'INPUT | TSz > Erlöse & Finanz'!$C$17:$C$36,0)),0)","v":0},0,null,{"$f":"'INPUT | TSz > iHaSt'!Z92*'INPUT | TSz > iHaSt'!$Z$82","v":0},null,0,0,null,0,0,null,{"$f":"$BI$15*(1+$BI$17)^Ablage!D56*Ablage!E56","v":0},null,{"$f":"$BK$15*(1+$BK$17)^Ablage!D56*Ablage!E56","v":0},null,{"$f":"IF($DN$59=0,0,SUM('INPUT | KSz > Kosten'!E16:K16))","v":0},{"$f":"BN24+BM25","v":0},null,{"$f":"IF($DN$59=0,0,IFERROR(INDEX('INPUT | KSz > Technik'!$H$50:$H$69,MATCH(Nebenrechnungen!D25,'INPUT | KSz > Technik'!$C$50:$C$69,0)),0))","v":0},0,0,null,{"$f":"IFERROR(INDEX('INPUT | KSz > Technik'!$F$16:$F$35,MATCH(Nebenrechnungen!$D25,'INPUT | KSz > Technik'!$C$16:$C$35,0)),0)","v":1},0,{"$f":"IFERROR(INDEX('INPUT | KSz > Technik'!$G$16:$G$35,MATCH(Nebenrechnungen!$D25,'INPUT | KSz > Technik'!$C$16:$C$35,0)),0)","v":0},0,{"$f":"IFERROR(INDEX('INPUT | KSz > Technik'!$H$16:$H$35,MATCH(Nebenrechnungen!$D25,'INPUT | KSz > Technik'!$C$16:$C$35,0)),0)","v":0},0,null,{"$f":"BU25*CA$16","v":0},{"$f":"BW25*CB$16","v":0},{"$f":"BY25*CC$16","v":0},null,0,null,{"$f":"$CH$16*(1+$CH$17)^(Ablage!$D56)","v":0},{"$f":"IF(CE$16=1,CE25,CA25)*CG25","v":0},{"$f":"$CJ$16*(1+$CJ$17)^(Ablage!$D56)","v":0},{"$f":"CI25*CB25","v":0},{"$f":"$CL$16*(1+$CL$17)^(Ablage!$D56)","v":0},{"$f":"CK25*CC25","v":0},{"$f":"SUM(CH25,CJ25,CL25)","v":0},null,{"$f":"IF($DN$59=0,0,(IF(CO$12='INPUT | TSz > Kosten'!$P$64,'INPUT | KSz > Kosten'!$G$50,'INPUT | KSz > Kosten'!$G$50*Nebenrechnungen!BN25))*(1+CO$17)^Ablage!D56*Ablage!E56)","v":0},{"$f":"IF($D25>='INPUT | KSz > Kosten'!$G$52,Nebenrechnungen!CO25,0)","v":0},null,{"$f":"IF(SUM(CA25:CC25)=0,0,'INPUT | KSz > Kosten'!$G$54*(1+AK$17)^Ablage!D56)","v":0},null,0,{"$f":"IFERROR(INDEX('INPUT | KSz > Erlöse & Finanz'!$G$17:$G$36,MATCH(Nebenrechnungen!D25,'INPUT | KSz > Erlöse & Finanz'!$C$17:$C$36,0)),0)","v":0},0,null,0,0,0,{"$f":"IFERROR(INDEX('INPUT | KSz > Erlöse & Finanz'!$K$17:$K$36,MATCH(Nebenrechnungen!D25,'INPUT | KSz > Erlöse & Finanz'!$C$17:$C$36,0)),0)","v":0},0,null,{"$f":"IFERROR(INDEX('INPUT | KSz > Erlöse & Finanz'!$M$17:$M$36,MATCH(Nebenrechnungen!$D25,'INPUT | KSz > Erlöse & Finanz'!$C$17:$C$36,0)),0)","v":0},{"$f":"IFERROR(INDEX('INPUT | KSz > Erlöse & Finanz'!$O$17:$O$36,MATCH(Nebenrechnungen!$D25,'INPUT | KSz > Erlöse & Finanz'!$C$17:$C$36,0)),0)","v":0},0]
[null,"Jahr",4,{"$f":"'INPUT | TSz > Kosten'!C17","v":2029},null,{"$f":"SUM('INPUT | TSz > Kosten'!E17:K17)","v":0},0,null,{"$f":"IFERROR(INDEX('INPUT | TSz > Technik'!$H$51:$H$70,MATCH(Nebenrechnungen!D26,'INPUT | TSz > Technik'!$C$51:$C$70,0)),0)","v":0},0,0,null,{"$f":"IFERROR(INDEX('INPUT | TSz > Technik'!$F$16:$F$35,MATCH(Nebenrechnungen!$D26,'INPUT | TSz > Technik'!$C$16:$C$35,0)),0)","v":1},0,{"$f":"IFERROR(INDEX('INPUT | TSz > Technik'!$G$16:$G$35,MATCH(Nebenrechnungen!$D26,'INPUT | TSz > Technik'!$C$16:$C$35,0)),0)","v":0},0,{"$f":"IFERROR(INDEX('INPUT | TSz > Technik'!$H$16:$H$35,MATCH(Nebenrechnungen!$D26,'INPUT | TSz > Technik'!$C$16:$C$35,0)),0)","v":0},0,null,0,0,0,null,0,null,{"$f":"$AA$16*(1+$AA$17)^(Ablage!D57)","v":0},0,{"$f":"$AC$16*(1+$AC$17)^(Ablage!$D57)","v":0},0,{"$f":"$AE$16*(1+$AE$17)^(Ablage!$D57)","v":0},0,0,null,{"$f":"(IF(AH$12='INPUT | TSz > Kosten'!$P$64,'INPUT | TSz > Kosten'!$G$50,'INPUT | TSz > Kosten'!$G$50*G26))*(1+AH$17)^Ablage!D57*Ablage!E57","v":0},{"$f":"IF($D26>='INPUT | TSz > Kosten'!$G$52,Nebenrechnungen!AH26,0)","v":0},null,{"$f":"IF(SUM(T26:V26)=0,0,'INPUT | TSz > Kosten'!$G$54*(1+AK$17)^Ablage!D57)","v":0},null,0,{"$f":"IFERROR(INDEX('INPUT | TSz > Erlöse & Finanz'!$G$17:$G$36,MATCH(Nebenrechnungen!D26,'INPUT | TSz > Erlöse & Finanz'!$C$17:$C$36,0)),0)","v":0},0,null,0,0,0,{"$f":"IFERROR(INDEX('INPUT | TSz > Erlöse & Finanz'!$K$17:$K$36,MATCH(Nebenrechnungen!D26,'INPUT | TSz > Erlöse & Finanz'!$C$17:$C$36,0)),0)","v":0},0,null,{"$f":"IFERROR(INDEX('INPUT | TSz > Erlöse & Finanz'!$M$17:$M$36,MATCH(Nebenrechnungen!$D26,'INPUT | TSz > Erlöse & Finanz'!$C$17:$C$36,0)),0)","v":0},{"$f":"IFERROR(INDEX('INPUT | TSz > Erlöse & Finanz'!$O$17:$O$36,MATCH(Nebenrechnungen!$D26,'INPUT | TSz > Erlöse & Finanz'!$C$17:$C$36,0)),0)","v":0},0,null,{"$f":"'INPUT | TSz > iHaSt'!Z93*'INPUT | TSz > iHaSt'!$Z$82","v":0},null,0,0,null,0,0,null,{"$f":"$BI$15*(1+$BI$17)^Ablage!D57*Ablage!E57","v":0},null,{"$f":"$BK$15*(1+$BK$17)^Ablage!D57*Ablage!E57","v":0},null,{"$f":"IF($DN$59=0,0,SUM('INPUT | KSz > Kosten'!E17:K17))","v":0},0,null,{"$f":"IF($DN$59=0,0,IFERROR(INDEX('INPUT | KSz > Technik'!$H$50:$H$69,MATCH(Nebenrechnungen!D26,'INPUT | KSz > Technik'!$C$50:$C$69,0)),0))","v":0},0,0,null,{"$f":"IFERROR(INDEX('INPUT | KSz > Technik'!$F$16:$F$35,MATCH(Nebenrechnungen!$D26,'INPUT | KSz > Technik'!$C$16:$C$35,0)),0)","v":1},0,{"$f":"IFERROR(INDEX('INPUT | KSz > Technik'!$G$16:$G$35,MATCH(Nebenrechnungen!$D26,'INPUT | KSz > Technik'!$C$16:$C$35,0)),0)","v":0},0,{"$f":"IFERROR(INDEX('INPUT | KSz > Technik'!$H$16:$H$35,MATCH(Nebenrechnungen!$D26,'INPUT | KSz > Technik'!$C$16:$C$35,0)),0)","v":0},0,null,0,0,0,null,0,null,{"$f":"$CH$16*(1+$CH$17)^(Ablage!$D57)","v":0},0,{"$f":"$CJ$16*(1+$CJ$17)^(Ablage!$D57)","v":0},0,{"$f":"$CL$16*(1+$CL$17)^(Ablage!$D57)","v":0},0,0,null,{"$f":"IF($DN$59=0,0,(IF(CO$12='INPUT | TSz > Kosten'!$P$64,'INPUT | KSz > Kosten'!$G$50,'INPUT | KSz > Kosten'!$G$50*Nebenrechnungen!BN26))*(1+CO$17)^Ablage!D57*Ablage!E57)","v":0},{"$f":"IF($D26>='INPUT | KSz > Kosten'!$G$52,Nebenrechnungen!CO26,0)","v":0},null,{"$f":"IF(SUM(CA26:CC26)=0,0,'INPUT | KSz > Kosten'!$G$54*(1+AK$17)^Ablage!D57)","v":0},null,0,{"$f":"IFERROR(INDEX('INPUT | KSz > Erlöse & Finanz'!$G$17:$G$36,MATCH(Nebenrechnungen!D26,'INPUT | KSz > Erlöse & Finanz'!$C$17:$C$36,0)),0)","v":0},0,null,0,0,0,{"$f":"IFERROR(INDEX('INPUT | KSz > Erlöse & Finanz'!$K$17:$K$36,MATCH(Nebenrechnungen!D26,'INPUT | KSz > Erlöse & Finanz'!$C$17:$C$36,0)),0)","v":0},0,null,{"$f":"IFERROR(INDEX('INPUT | KSz > Erlöse & Finanz'!$M$17:$M$36,MATCH(Nebenrechnungen!$D26,'INPUT | KSz > Erlöse & Finanz'!$C$17:$C$36,0)),0)","v":0},{"$f":"IFERROR(INDEX('INPUT | KSz > Erlöse & Finanz'!$O$17:$O$36,MATCH(Nebenrechnungen!$D26,'INPUT | KSz > Erlöse & Finanz'!$C$17:$C$36,0)),0)","v":0},0]
[null,"Jahr",5,{"$f":"'INPUT | TSz > Kosten'!C18","v":2030},null,{"$f":"SUM('INPUT | TSz > Kosten'!E18:K18)","v":0},0,null,{"$f":"IFERROR(INDEX('INPUT | TSz > Technik'!$H$51:$H$70,MATCH(Nebenrechnungen!D27,'INPUT | TSz > Technik'!$C$51:$C$70,0)),0)","v":0},0,0,null,{"$f":"IFERROR(INDEX('INPUT | TSz > Technik'!$F$16:$F$35,MATCH(Nebenrechnungen!$D27,'INPUT | TSz > Technik'!$C$16:$C$35,0)),0)","v":1},0,{"$f":"IFERROR(INDEX('INPUT | TSz > Technik'!$G$16:$G$35,MATCH(Nebenrechnungen!$D27,'INPUT | TSz > Technik'!$C$16:$C$35,0)),0)","v":0},0,{"$f":"IFERROR(INDEX('INPUT | TSz > Technik'!$H$16:$H$35,MATCH(Nebenrechnungen!$D27,'INPUT | TSz > Technik'!$C$16:$C$35,0)),0)","v":0},0,null,0,0,0,null,0,null,{"$f":"$AA$16*(1+$AA$17)^(Ablage!D58)","v":0},0,{"$f":"$AC$16*(1+$AC$17)^(Ablage!$D58)","v":0},0,{"$f":"$AE$16*(1+$AE$17)^(Ablage!$D58)","v":0},0,0,null,{"$f":"(IF(AH$12='INPUT | TSz > Kosten'!$P$64,'INPUT | TSz > Kosten'!$G$50,'INPUT | TSz > Kosten'!$G$50*G27))*(1+AH$17)^Ablage!D58*Ablage!E58","v":0},{"$f":"IF($D27>='INPUT | TSz > Kosten'!$G$52,Nebenrechnungen!AH27,0)","v":0},null,{"$f":"IF(SUM(T27:V27)=0,0,'INPUT | TSz > Kosten'!$G$54*(1+AK$17)^Ablage!D58)","v":0},null,0,{"$f":"IFERROR(INDEX('INPUT | TSz > Erlöse & Finanz'!$G$17:$G$36,MATCH(Nebenrechnungen!D27,'INPUT | TSz > Erlöse & Finanz'!$C$17:$C$36,0)),0)","v":0},0,null,0,0,0,{"$f":"IFERROR(INDEX('INPUT | TSz > Erlöse & Finanz'!$K$17:$K$36,MATCH(Nebenrechnungen!D27,'INPUT | TSz > Erlöse & Finanz'!$C$17:$C$36,0)),0)","v":0},0,null,{"$f":"IFERROR(INDEX('INPUT | TSz > Erlöse & Finanz'!$M$17:$M$36,MATCH(Nebenrechnungen!$D27,'INPUT | TSz > Erlöse & Finanz'!$C$17:$C$36,0)),0)","v":0},{"$f":"IFERROR(INDEX('INPUT | TSz > Erlöse & Finanz'!$O$17:$O$36,MATCH(Nebenrechnungen!$D27,'INPUT | TSz > Erlöse & Finanz'!$C$17:$C$36,0)),0)","v":0},0,null,{"$f":"'INPUT | TSz > iHaSt'!Z94*'INPUT | TSz > iHaSt'!$Z$82","v":0},null,0,0,null,0,{"$f":"BF27*BD27","v":0},null,{"$f":"$BI$15*(1+$BI$17)^Ablage!D58*Ablage!E58","v":0},null,{"$f":"$BK$15*(1+$BK$17)^Ablage!D58*Ablage!E58","v":0},null,{"$f":"IF($DN$59=0,0,SUM('INPUT | KSz > Kosten'!E18:K18))","v":0},0,null,{"$f":"IF($DN$59=0,0,IFERROR(INDEX('INPUT | KSz > Technik'!$H$50:$H$69,MATCH(Nebenrechnungen!D27,'INPUT | KSz > Technik'!$C$50:$C$69,0)),0))","v":0},0,0,null,{"$f":"IFERROR(INDEX('INPUT | KSz > Technik'!$F$16:$F$35,MATCH(Nebenrechnungen!$D27,'INPUT | KSz > Technik'!$C$16:$C$35,0)),0)","v":1},0,{"$f":"IFERROR(INDEX('INPUT | KSz > Technik'!$G$16:$G$35,MATCH(Nebenrechnungen!$D27,'INPUT | KSz > Technik'!$C$16:$C$35,0)),0)","v":0},0,{"$f":"IFERROR(INDEX('INPUT | KSz > Technik'!$H$16:$H$35,MATCH(Nebenrechnungen!$D27,'INPUT | KSz > Technik'!$C$16:$C$35,0)),0)","v":0},0,null,0,0,0,null,0,null,{"$f":"$CH$16*(1+$CH$17)^(Ablage!$D58)","v":0},0,{"$f":"$CJ$16*(1+$CJ$17)^(Ablage!$D58)","v":0},0,{"$f":"$CL$16*(1+$CL$17)^(Ablage!$D58)","v":0},0,0,null,{"$f":"IF($DN$59=0,0,(IF(CO$12='INPUT | TSz > Kosten'!$P$64,'INPUT | KSz > Kosten'!$G$50,'INPUT | KSz > Kosten'!$G$50*Nebenrechnungen!BN27))*(1+CO$17)^Ablage!D58*Ablage!E58)","v":0},{"$f":"IF($D27>='INPUT | KSz > Kosten'!$G$52,Nebenrechnungen!CO27,0)","v":0},null,{"$f":"IF(SUM(CA27:CC27)=0,0,'INPUT | KSz > Kosten'!$G$54*(1+AK$17)^Ablage!D58)","v":0},null,0,{"$f":"IFERROR(INDEX('INPUT | KSz > Erlöse & Finanz'!$G$17:$G$36,MATCH(Nebenrechnungen!D27,'INPUT | KSz > Erlöse & Finanz'!$C$17:$C$36,0)),0)","v":0},0,null,0,0,0,{"$f":"IFERROR(INDEX('INPUT | KSz > Erlöse & Finanz'!$K$17:$K$36,MATCH(Nebenrechnungen!D27,'INPUT | KSz > Erlöse & Finanz'!$C$17:$C$36,0)),0)","v":0},0,null,{"$f":"IFERROR(INDEX('INPUT | KSz > Erlöse & Finanz'!$M$17:$M$36,MATCH(Nebenrechnungen!$D27,'INPUT | KSz > Erlöse & Finanz'!$C$17:$C$36,0)),0)","v":0},{"$f":"IFERROR(INDEX('INPUT | KSz > Erlöse & Finanz'!$O$17:$O$36,MATCH(Nebenrechnungen!$D27,'INPUT | KSz > Erlöse & Finanz'!$C$17:$C$36,0)),0)","v":0},0]
[null,"Jahr",6,{"$f":"'INPUT | TSz > Kosten'!C19","v":2031},null,{"$f":"SUM('INPUT | TSz > Kosten'!E19:K19)","v":0},0,null,{"$f":"IFERROR(INDEX('INPUT | TSz > Technik'!$H$51:$H$70,MATCH(Nebenrechnungen!D28,'INPUT | TSz > Technik'!$C$51:$C$70,0)),0)","v":0},0,0,null,{"$f":"IFERROR(INDEX('INPUT | TSz > Technik'!$F$16:$F$35,MATCH(Nebenrechnungen!$D28,'INPUT | TSz > Technik'!$C$16:$C$35,0)),0)","v":1},0,{"$f":"IFERROR(INDEX('INPUT | TSz > Technik'!$G$16:$G$35,MATCH(Nebenrechnungen!$D28,'INPUT | TSz > Technik'!$C$16:$C$35,0)),0)","v":0},0,{"$f":"IFERROR(INDEX('INPUT | TSz > Technik'!$H$16:$H$35,MATCH(Nebenrechnungen!$D28,'INPUT | TSz > Technik'!$C$16:$C$35,0)),0)","v":0},0,null,0,0,0,null,0,null,{"$f":"$AA$16*(1+$AA$17)^(Ablage!D59)","v":0},0,{"$f":"$AC$16*(1+$AC$17)^(Ablage!$D59)","v":0},0,{"$f":"$AE$16*(1+$AE$17)^(Ablage!$D59)","v":0},0,0,null,{"$f":"(IF(AH$12='INPUT | TSz > Kosten'!$P$64,'INPUT | TSz > Kosten'!$G$50,'INPUT | TSz > Kosten'!$G$50*G28))*(1+AH$17)^Ablage!D59*Ablage!E59","v":0},{"$f":"IF($D28>='INPUT | TSz > Kosten'!$G$52,Nebenrechnungen!AH28,0)","v":0},null,{"$f":"IF(SUM(T28:V28)=0,0,'INPUT | TSz > Kosten'!$G$54*(1+AK$17)^Ablage!D59)","v":0},null,0,{"$f":"IFERROR(INDEX('INPUT | TSz > Erlöse & Finanz'!$G$17:$G$36,MATCH(Nebenrechnungen!D28,'INPUT | TSz > Erlöse & Finanz'!$C$17:$C$36,0)),0)","v":0},0,null,0,0,0,{"$f":"IFERROR(INDEX('INPUT | TSz > Erlöse & Finanz'!$K$17:$K$36,MATCH(Nebenrechnungen!D28,'INPUT | TSz > Erlöse & Finanz'!$C$17:$C$36,0)),0)","v":0},0,null,{"$f":"IFERROR(INDEX('INPUT | TSz > Erlöse & Finanz'!$M$17:$M$36,MATCH(Nebenrechnungen!$D28,'INPUT | TSz > Erlöse & Finanz'!$C$17:$C$36,0)),0)","v":0},{"$f":"IFERROR(INDEX('INPUT | TSz > Erlöse & Finanz'!$O$17:$O$36,MATCH(Nebenrechnungen!$D28,'INPUT | TSz > Erlöse & Finanz'!$C$17:$C$36,0)),0)","v":0},0,null,{"$f":"'INPUT | TSz > iHaSt'!Z95*'INPUT | TSz > iHaSt'!$Z$82","v":0},null,0,0,null,0,0,null,{"$f":"$BI$15*(1+$BI$17)^Ablage!D59*Ablage!E59","v":0},null,{"$f":"$BK$15*(1+$BK$17)^Ablage!D59*Ablage!E59","v":0},null,{"$f":"IF($DN$59=0,0,SUM('INPUT | KSz > Kosten'!E19:K19))","v":0},0,null,{"$f":"IF($DN$59=0,0,IFERROR(INDEX('INPUT | KSz > Technik'!$H$50:$H$69,MATCH(Nebenrechnungen!D28,'INPUT | KSz > Technik'!$C$50:$C$69,0)),0))","v":0},0,0,null,{"$f":"IFERROR(INDEX('INPUT | KSz > Technik'!$F$16:$F$35,MATCH(Nebenrechnungen!$D28,'INPUT | KSz > Technik'!$C$16:$C$35,0)),0)","v":1},0,{"$f":"IFERROR(INDEX('INPUT | KSz > Technik'!$G$16:$G$35,MATCH(Nebenrechnungen!$D28,'INPUT | KSz > Technik'!$C$16:$C$35,0)),0)","v":0},0,{"$f":"IFERROR(INDEX('INPUT | KSz > Technik'!$H$16:$H$35,MATCH(Nebenrechnungen!$D28,'INPUT | KSz > Technik'!$C$16:$C$35,0)),0)","v":0},0,null,0,0,0,null,0,null,{"$f":"$CH$16*(1+$CH$17)^(Ablage!$D59)","v":0},0,{"$f":"$CJ$16*(1+$CJ$17)^(Ablage!$D59)","v":0},0,{"$f":"$CL$16*(1+$CL$17)^(Ablage!$D59)","v":0},0,0,null,{"$f":"IF($DN$59=0,0,(IF(CO$12='INPUT | TSz > Kosten'!$P$64,'INPUT | KSz > Kosten'!$G$50,'INPUT | KSz > Kosten'!$G$50*Nebenrechnungen!BN28))*(1+CO$17)^Ablage!D59*Ablage!E59)","v":0},{"$f":"IF($D28>='INPUT | KSz > Kosten'!$G$52,Nebenrechnungen!CO28,0)","v":0},null,{"$f":"IF(SUM(CA28:CC28)=0,0,'INPUT | KSz > Kosten'!$G$54*(1+AK$17)^Ablage!D59)","v":0},null,0,{"$f":"IFERROR(INDEX('INPUT | KSz > Erlöse & Finanz'!$G$17:$G$36,MATCH(Nebenrechnungen!D28,'INPUT | KSz > Erlöse & Finanz'!$C$17:$C$36,0)),0)","v":0},0,null,0,0,0,{"$f":"IFERROR(INDEX('INPUT | KSz > Erlöse & Finanz'!$K$17:$K$36,MATCH(Nebenrechnungen!D28,'INPUT | KSz > Erlöse & Finanz'!$C$17:$C$36,0)),0)","v":0},0,null,{"$f":"IFERROR(INDEX('INPUT | KSz > Erlöse & Finanz'!$M$17:$M$36,MATCH(Nebenrechnungen!$D28,'INPUT | KSz > Erlöse & Finanz'!$C$17:$C$36,0)),0)","v":0},{"$f":"IFERROR(INDEX('INPUT | KSz > Erlöse & Finanz'!$O$17:$O$36,MATCH(Nebenrechnungen!$D28,'INPUT | KSz > Erlöse & Finanz'!$C$17:$C$36,0)),0)","v":0},0]
[null,"Jahr",7,{"$f":"'INPUT | TSz > Kosten'!C20","v":2032},null,{"$f":"SUM('INPUT | TSz > Kosten'!E20:K20)","v":0},0,null,{"$f":"IFERROR(INDEX('INPUT | TSz > Technik'!$H$51:$H$70,MATCH(Nebenrechnungen!D29,'INPUT | TSz > Technik'!$C$51:$C$70,0)),0)","v":0},0,0,null,{"$f":"IFERROR(INDEX('INPUT | TSz > Technik'!$F$16:$F$35,MATCH(Nebenrechnungen!$D29,'INPUT | TSz > Technik'!$C$16:$C$35,0)),0)","v":1},0,{"$f":"IFERROR(INDEX('INPUT | TSz > Technik'!$G$16:$G$35,MATCH(Nebenrechnungen!$D29,'INPUT | TSz > Technik'!$C$16:$C$35,0)),0)","v":0},0,{"$f":"IFERROR(INDEX('INPUT | TSz > Technik'!$H$16:$H$35,MATCH(Nebenrechnungen!$D29,'INPUT | TSz > Technik'!$C$16:$C$35,0)),0)","v":0},0,null,0,0,0,null,0,null,{"$f":"$AA$16*(1+$AA$17)^(Ablage!D60)","v":0},0,{"$f":"$AC$16*(1+$AC$17)^(Ablage!$D60)","v":0},0,{"$f":"$AE$16*(1+$AE$17)^(Ablage!$D60)","v":0},0,0,null,{"$f":"(IF(AH$12='INPUT | TSz > Kosten'!$P$64,'INPUT | TSz > Kosten'!$G$50,'INPUT | TSz > Kosten'!$G$50*G29))*(1+AH$17)^Ablage!D60*Ablage!E60","v":0},{"$f":"IF($D29>='INPUT | TSz > Kosten'!$G$52,Nebenrechnungen!AH29,0)","v":0},null,{"$f":"IF(SUM(T29:V29)=0,0,'INPUT | TSz > Kosten'!$G$54*(1+AK$17)^Ablage!D60)","v":0},null,0,{"$f":"IFERROR(INDEX('INPUT | TSz > Erlöse & Finanz'!$G$17:$G$36,MATCH(Nebenrechnungen!D29,'INPUT | TSz > Erlöse & Finanz'!$C$17:$C$36,0)),0)","v":0},0,null,0,0,0,{"$f":"IFERROR(INDEX('INPUT | TSz > Erlöse & Finanz'!$K$17:$K$36,MATCH(Nebenrechnungen!D29,'INPUT | TSz > Erlöse & Finanz'!$C$17:$C$36,0)),0)","v":0},0,null,{"$f":"IFERROR(INDEX('INPUT | TSz > Erlöse & Finanz'!$M$17:$M$36,MATCH(Nebenrechnungen!$D29,'INPUT | TSz > Erlöse & Finanz'!$C$17:$C$36,0)),0)","v":0},{"$f":"IFERROR(INDEX('INPUT | TSz > Erlöse & Finanz'!$O$17:$O$36,MATCH(Nebenrechnungen!$D29,'INPUT | TSz > Erlöse & Finanz'!$C$17:$C$36,0)),0)","v":0},0,null,{"$f":"'INPUT | TSz > iHaSt'!Z96*'INPUT | TSz > iHaSt'!$Z$82","v":0},null,0,0,null,0,0,null,{"$f":"$BI$15*(1+$BI$17)^Ablage!D60*Ablage!E60","v":0},null,{"$f":"$BK$15*(1+$BK$17)^Ablage!D60*Ablage!E60","v":0},null,{"$f":"IF($DN$59=0,0,SUM('INPUT | KSz > Kosten'!E20:K20))","v":0},0,null,{"$f":"IF($DN$59=0,0,IFERROR(INDEX('INPUT | KSz > Technik'!$H$50:$H$69,MATCH(Nebenrechnungen!D29,'INPUT | KSz > Technik'!$C$50:$C$69,0)),0))","v":0},0,0,null,{"$f":"IFERROR(INDEX('INPUT | KSz > Technik'!$F$16:$F$35,MATCH(Nebenrechnungen!$D29,'INPUT | KSz > Technik'!$C$16:$C$35,0)),0)","v":1},0,{"$f":"IFERROR(INDEX('INPUT | KSz > Technik'!$G$16:$G$35,MATCH(Nebenrechnungen!$D29,'INPUT | KSz > Technik'!$C$16:$C$35,0)),0)","v":0},0,{"$f":"IFERROR(INDEX('INPUT | KSz > Technik'!$H$16:$H$35,MATCH(Nebenrechnungen!$D29,'INPUT | KSz > Technik'!$C$16:$C$35,0)),0)","v":0},0,null,0,0,0,null,0,null,{"$f":"$CH$16*(1+$CH$17)^(Ablage!$D60)","v":0},0,{"$f":"$CJ$16*(1+$CJ$17)^(Ablage!$D60)","v":0},0,{"$f":"$CL$16*(1+$CL$17)^(Ablage!$D60)","v":0},0,0,null,{"$f":"IF($DN$59=0,0,(IF(CO$12='INPUT | TSz > Kosten'!$P$64,'INPUT | KSz > Kosten'!$G$50,'INPUT | KSz > Kosten'!$G$50*Nebenrechnungen!BN29))*(1+CO$17)^Ablage!D60*Ablage!E60)","v":0},{"$f":"IF($D29>='INPUT | KSz > Kosten'!$G$52,Nebenrechnungen!CO29,0)","v":0},null,{"$f":"IF(SUM(CA29:CC29)=0,0,'INPUT | KSz > Kosten'!$G$54*(1+AK$17)^Ablage!D60)","v":0},null,0,{"$f":"IFERROR(INDEX('INPUT | KSz > Erlöse & Finanz'!$G$17:$G$36,MATCH(Nebenrechnungen!D29,'INPUT | KSz > Erlöse & Finanz'!$C$17:$C$36,0)),0)","v":0},0,null,0,0,0,{"$f":"IFERROR(INDEX('INPUT | KSz > Erlöse & Finanz'!$K$17:$K$36,MATCH(Nebenrechnungen!D29,'INPUT | KSz > Erlöse & Finanz'!$C$17:$C$36,0)),0)","v":0},0,null,{"$f":"IFERROR(INDEX('INPUT | KSz > Erlöse & Finanz'!$M$17:$M$36,MATCH(Nebenrechnungen!$D29,'INPUT | KSz > Erlöse & Finanz'!$C$17:$C$36,0)),0)","v":0},{"$f":"IFERROR(INDEX('INPUT | KSz > Erlöse & Finanz'!$O$17:$O$36,MATCH(Nebenrechnungen!$D29,'INPUT | KSz > Erlöse & Finanz'!$C$17:$C$36,0)),0)","v":0},0]
[null,"Jahr",8,{"$f":"'INPUT | TSz > Kosten'!C21","v":2033},null,{"$f":"SUM('INPUT | TSz > Kosten'!E21:K21)","v":0},0,null,{"$f":"IFERROR(INDEX('INPUT | TSz > Technik'!$H$51:$H$70,MATCH(Nebenrechnungen!D30,'INPUT | TSz > Technik'!$C$51:$C$70,0)),0)","v":0},0,0,null,{"$f":"IFERROR(INDEX('INPUT | TSz > Technik'!$F$16:$F$35,MATCH(Nebenrechnungen!$D30,'INPUT | TSz > Technik'!$C$16:$C$35,0)),0)","v":1},0,{"$f":"IFERROR(INDEX('INPUT | TSz > Technik'!$G$16:$G$35,MATCH(Nebenrechnungen!$D30,'INPUT | TSz > Technik'!$C$16:$C$35,0)),0)","v":0},0,{"$f":"IFERROR(INDEX('INPUT | TSz > Technik'!$H$16:$H$35,MATCH(Nebenrechnungen!$D30,'INPUT | TSz > Technik'!$C$16:$C$35,0)),0)","v":0},0,null,0,0,0,null,0,null,{"$f":"$AA$16*(1+$AA$17)^(Ablage!D61)","v":0},0,{"$f":"$AC$16*(1+$AC$17)^(Ablage!$D61)","v":0},0,{"$f":"$AE$16*(1+$AE$17)^(Ablage!$D61)","v":0},0,0,null,{"$f":"(IF(AH$12='INPUT | TSz > Kosten'!$P$64,'INPUT | TSz > Kosten'!$G$50,'INPUT | TSz > Kosten'!$G$50*G30))*(1+AH$17)^Ablage!D61*Ablage!E61","v":0},{"$f":"IF($D30>='INPUT | TSz > Kosten'!$G$52,Nebenrechnungen!AH30,0)","v":0},null,{"$f":"IF(SUM(T30:V30)=0,0,'INPUT | TSz > Kosten'!$G$54*(1+AK$17)^Ablage!D61)","v":0},null,0,{"$f":"IFERROR(INDEX('INPUT | TSz > Erlöse & Finanz'!$G$17:$G$36,MATCH(Nebenrechnungen!D30,'INPUT | TSz > Erlöse & Finanz'!$C$17:$C$36,0)),0)","v":0},0,null,0,0,0,{"$f":"IFERROR(INDEX('INPUT | TSz > Erlöse & Finanz'!$K$17:$K$36,MATCH(Nebenrechnungen!D30,'INPUT | TSz > Erlöse & Finanz'!$C$17:$C$36,0)),0)","v":0},0,null,{"$f":"IFERROR(INDEX('INPUT | TSz > Erlöse & Finanz'!$M$17:$M$36,MATCH(Nebenrechnungen!$D30,'INPUT | TSz > Erlöse & Finanz'!$C$17:$C$36,0)),0)","v":0},{"$f":"IFERROR(INDEX('INPUT | TSz > Erlöse & Finanz'!$O$17:$O$36,MATCH(Nebenrechnungen!$D30,'INPUT | TSz > Erlöse & Finanz'!$C$17:$C$36,0)),0)","v":0},0,null,{"$f":"'INPUT | TSz > iHaSt'!Z97*'INPUT | TSz > iHaSt'!$Z$82","v":0},null,0,0,null,0,0,null,{"$f":"$BI$15*(1+$BI$17)^Ablage!D61*Ablage!E61","v":0},null,{"$f":"$BK$15*(1+$BK$17)^Ablage!D61*Ablage!E61","v":0},null,{"$f":"IF($DN$59=0,0,SUM('INPUT | KSz > Kosten'!E21:K21))","v":0},0,null,{"$f":"IF($DN$59=0,0,IFERROR(INDEX('INPUT | KSz > Technik'!$H$50:$H$69,MATCH(Nebenrechnungen!D30,'INPUT | KSz > Technik'!$C$50:$C$69,0)),0))","v":0},0,0,null,{"$f":"IFERROR(INDEX('INPUT | KSz > Technik'!$F$16:$F$35,MATCH(Nebenrechnungen!$D30,'INPUT | KSz > Technik'!$C$16:$C$35,0)),0)","v":1},0,{"$f":"IFERROR(INDEX('INPUT | KSz > Technik'!$G$16:$G$35,MATCH(Nebenrechnungen!$D30,'INPUT | KSz > Technik'!$C$16:$C$35,0)),0)","v":0},0,{"$f":"IFERROR(INDEX('INPUT | KSz > Technik'!$H$16:$H$35,MATCH(Nebenrechnungen!$D30,'INPUT | KSz > Technik'!$C$16:$C$35,0)),0)","v":0},0,null,0,0,0,null,0,null,{"$f":"$CH$16*(1+$CH$17)^(Ablage!$D61)","v":0},0,{"$f":"$CJ$16*(1+$CJ$17)^(Ablage!$D61)","v":0},0,{"$f":"$CL$16*(1+$CL$17)^(Ablage!$D61)","v":0},0,0,null,{"$f":"IF($DN$59=0,0,(IF(CO$12='INPUT | TSz > Kosten'!$P$64,'INPUT | KSz > Kosten'!$G$50,'INPUT | KSz > Kosten'!$G$50*Nebenrechnungen!BN30))*(1+CO$17)^Ablage!D61*Ablage!E61)","v":0},{"$f":"IF($D30>='INPUT | KSz > Kosten'!$G$52,Nebenrechnungen!CO30,0)","v":0},null,{"$f":"IF(SUM(CA30:CC30)=0,0,'INPUT | KSz > Kosten'!$G$54*(1+AK$17)^Ablage!D61)","v":0},null,0,{"$f":"IFERROR(INDEX('INPUT | KSz > Erlöse & Finanz'!$G$17:$G$36,MATCH(Nebenrechnungen!D30,'INPUT | KSz > Erlöse & Finanz'!$C$17:$C$36,0)),0)","v":0},0,null,0,0,0,{"$f":"IFERROR(INDEX('INPUT | KSz > Erlöse & Finanz'!$K$17:$K$36,MATCH(Nebenrechnungen!D30,'INPUT | KSz > Erlöse & Finanz'!$C$17:$C$36,0)),0)","v":0},0,null,{"$f":"IFERROR(INDEX('INPUT | KSz > Erlöse & Finanz'!$M$17:$M$36,MATCH(Nebenrechnungen!$D30,'INPUT | KSz > Erlöse & Finanz'!$C$17:$C$36,0)),0)","v":0},{"$f":"IFERROR(INDEX('INPUT | KSz > Erlöse & Finanz'!$O$17:$O$36,MATCH(Nebenrechnungen!$D30,'INPUT | KSz > Erlöse & Finanz'!$C$17:$C$36,0)),0)","v":0},0]
[null,"Jahr",9,{"$f":"'INPUT | TSz > Kosten'!C22","v":2034},null,{"$f":"SUM('INPUT | TSz > Kosten'!E22:K22)","v":0},0,null,{"$f":"IFERROR(INDEX('INPUT | TSz > Technik'!$H$51:$H$70,MATCH(Nebenrechnungen!D31,'INPUT | TSz > Technik'!$C$51:$C$70,0)),0)","v":0},0,0,null,{"$f":"IFERROR(INDEX('INPUT | TSz > Technik'!$F$16:$F$35,MATCH(Nebenrechnungen!$D31,'INPUT | TSz > Technik'!$C$16:$C$35,0)),0)","v":1},0,{"$f":"IFERROR(INDEX('INPUT | TSz > Technik'!$G$16:$G$35,MATCH(Nebenrechnungen!$D31,'INPUT | TSz > Technik'!$C$16:$C$35,0)),0)","v":0},0,{"$f":"IFERROR(INDEX('INPUT | TSz > Technik'!$H$16:$H$35,MATCH(Nebenrechnungen!$D31,'INPUT | TSz > Technik'!$C$16:$C$35,0)),0)","v":0},0,null,0,0,0,null,0,null,{"$f":"$AA$16*(1+$AA$17)^(Ablage!D62)","v":0},0,{"$f":"$AC$16*(1+$AC$17)^(Ablage!$D62)","v":0},0,{"$f":"$AE$16*(1+$AE$17)^(Ablage!$D62)","v":0},0,0,null,{"$f":"(IF(AH$12='INPUT | TSz > Kosten'!$P$64,'INPUT | TSz > Kosten'!$G$50,'INPUT | TSz > Kosten'!$G$50*G31))*(1+AH$17)^Ablage!D62*Ablage!E62","v":0},{"$f":"IF($D31>='INPUT | TSz > Kosten'!$G$52,Nebenrechnungen!AH31,0)","v":0},null,{"$f":"IF(SUM(T31:V31)=0,0,'INPUT | TSz > Kosten'!$G$54*(1+AK$17)^Ablage!D62)","v":0},null,0,{"$f":"IFERROR(INDEX('INPUT | TSz > Erlöse & Finanz'!$G$17:$G$36,MATCH(Nebenrechnungen!D31,'INPUT | TSz > Erlöse & Finanz'!$C$17:$C$36,0)),0)","v":0},0,null,0,0,0,{"$f":"IFERROR(INDEX('INPUT | TSz > Erlöse & Finanz'!$K$17:$K$36,MATCH(Nebenrechnungen!D31,'INPUT | TSz > Erlöse & Finanz'!$C$17:$C$36,0)),0)","v":0},0,null,{"$f":"IFERROR(INDEX('INPUT | TSz > Erlöse & Finanz'!$M$17:$M$36,MATCH(Nebenrechnungen!$D31,'INPUT | TSz > Erlöse & Finanz'!$C$17:$C$36,0)),0)","v":0},{"$f":"IFERROR(INDEX('INPUT | TSz > Erlöse & Finanz'!$O$17:$O$36,MATCH(Nebenrechnungen!$D31,'INPUT | TSz > Erlöse & Finanz'!$C$17:$C$36,0)),0)","v":0},0,null,{"$f":"'INPUT | TSz > iHaSt'!Z98*'INPUT | TSz > iHaSt'!$Z$82","v":0},null,0,0,null,0,0,null,{"$f":"$BI$15*(1+$BI$17)^Ablage!D62*Ablage!E62","v":0},null,{"$f":"$BK$15*(1+$BK$17)^Ablage!D62*Ablage!E62","v":0},null,{"$f":"IF($DN$59=0,0,SUM('INPUT | KSz > Kosten'!E22:K22))","v":0},0,null,{"$f":"IF($DN$59=0,0,IFERROR(INDEX('INPUT | KSz > Technik'!$H$50:$H$69,MATCH(Nebenrechnungen!D31,'INPUT | KSz > Technik'!$C$50:$C$69,0)),0))","v":0},0,0,null,{"$f":"IFERROR(INDEX('INPUT | KSz > Technik'!$F$16:$F$35,MATCH(Nebenrechnungen!$D31,'INPUT | KSz > Technik'!$C$16:$C$35,0)),0)","v":1},0,{"$f":"IFERROR(INDEX('INPUT | KSz > Technik'!$G$16:$G$35,MATCH(Nebenrechnungen!$D31,'INPUT | KSz > Technik'!$C$16:$C$35,0)),0)","v":0},0,{"$f":"IFERROR(INDEX('INPUT | KSz > Technik'!$H$16:$H$35,MATCH(Nebenrechnungen!$D31,'INPUT | KSz > Technik'!$C$16:$C$35,0)),0)","v":0},0,null,0,0,0,null,0,null,{"$f":"$CH$16*(1+$CH$17)^(Ablage!$D62)","v":0},0,{"$f":"$CJ$16*(1+$CJ$17)^(Ablage!$D62)","v":0},0,{"$f":"$CL$16*(1+$CL$17)^(Ablage!$D62)","v":0},0,0,null,{"$f":"IF($DN$59=0,0,(IF(CO$12='INPUT | TSz > Kosten'!$P$64,'INPUT | KSz > Kosten'!$G$50,'INPUT | KSz > Kosten'!$G$50*Nebenrechnungen!BN31))*(1+CO$17)^Ablage!D62*Ablage!E62)","v":0},{"$f":"IF($D31>='INPUT | KSz > Kosten'!$G$52,Nebenrechnungen!CO31,0)","v":0},null,{"$f":"IF(SUM(CA31:CC31)=0,0,'INPUT | KSz > Kosten'!$G$54*(1+AK$17)^Ablage!D62)","v":0},null,0,{"$f":"IFERROR(INDEX('INPUT | KSz > Erlöse & Finanz'!$G$17:$G$36,MATCH(Nebenrechnungen!D31,'INPUT | KSz > Erlöse & Finanz'!$C$17:$C$36,0)),0)","v":0},0,null,0,0,0,{"$f":"IFERROR(INDEX('INPUT | KSz > Erlöse & Finanz'!$K$17:$K$36,MATCH(Nebenrechnungen!D31,'INPUT | KSz > Erlöse & Finanz'!$C$17:$C$36,0)),0)","v":0},0,null,{"$f":"IFERROR(INDEX('INPUT | KSz > Erlöse & Finanz'!$M$17:$M$36,MATCH(Nebenrechnungen!$D31,'INPUT | KSz > Erlöse & Finanz'!$C$17:$C$36,0)),0)","v":0},{"$f":"IFERROR(INDEX('INPUT | KSz > Erlöse & Finanz'!$O$17:$O$36,MATCH(Nebenrechnungen!$D31,'INPUT | KSz > Erlöse & Finanz'!$C$17:$C$36,0)),0)","v":0},0]
[null,"Jahr",10,{"$f":"'INPUT | TSz > Kosten'!C23","v":2035},null,{"$f":"SUM('INPUT | TSz > Kosten'!E23:K23)","v":0},0,null,{"$f":"IFERROR(INDEX('INPUT | TSz > Technik'!$H$51:$H$70,MATCH(Nebenrechnungen!D32,'INPUT | TSz > Technik'!$C$51:$C$70,0)),0)","v":0},0,0,null,{"$f":"IFERROR(INDEX('INPUT | TSz > Technik'!$F$16:$F$35,MATCH(Nebenrechnungen!$D32,'INPUT | TSz > Technik'!$C$16:$C$35,0)),0)","v":1},0,{"$f":"IFERROR(INDEX('INPUT | TSz > Technik'!$G$16:$G$35,MATCH(Nebenrechnungen!$D32,'INPUT | TSz > Technik'!$C$16:$C$35,0)),0)","v":0},0,{"$f":"IFERROR(INDEX('INPUT | TSz > Technik'!$H$16:$H$35,MATCH(Nebenrechnungen!$D32,'INPUT | TSz > Technik'!$C$16:$C$35,0)),0)","v":0},0,null,0,0,0,null,0,null,{"$f":"$AA$16*(1+$AA$17)^(Ablage!D63)","v":0},0,{"$f":"$AC$16*(1+$AC$17)^(Ablage!$D63)","v":0},0,{"$f":"$AE$16*(1+$AE$17)^(Ablage!$D63)","v":0},0,0,null,{"$f":"(IF(AH$12='INPUT | TSz > Kosten'!$P$64,'INPUT | TSz > Kosten'!$G$50,'INPUT | TSz > Kosten'!$G$50*G32))*(1+AH$17)^Ablage!D63*Ablage!E63","v":0},{"$f":"IF($D32>='INPUT | TSz > Kosten'!$G$52,Nebenrechnungen!AH32,0)","v":0},null,{"$f":"IF(SUM(T32:V32)=0,0,'INPUT | TSz > Kosten'!$G$54*(1+AK$17)^Ablage!D63)","v":0},null,0,{"$f":"IFERROR(INDEX('INPUT | TSz > Erlöse & Finanz'!$G$17:$G$36,MATCH(Nebenrechnungen!D32,'INPUT | TSz > Erlöse & Finanz'!$C$17:$C$36,0)),0)","v":0},0,null,0,0,0,{"$f":"IFERROR(INDEX('INPUT | TSz > Erlöse & Finanz'!$K$17:$K$36,MATCH(Nebenrechnungen!D32,'INPUT | TSz > Erlöse & Finanz'!$C$17:$C$36,0)),0)","v":0},0,null,{"$f":"IFERROR(INDEX('INPUT | TSz > Erlöse & Finanz'!$M$17:$M$36,MATCH(Nebenrechnungen!$D32,'INPUT | TSz > Erlöse & Finanz'!$C$17:$C$36,0)),0)","v":0},{"$f":"IFERROR(INDEX('INPUT | TSz > Erlöse & Finanz'!$O$17:$O$36,MATCH(Nebenrechnungen!$D32,'INPUT | TSz > Erlöse & Finanz'!$C$17:$C$36,0)),0)","v":0},0,null,{"$f":"'INPUT | TSz > iHaSt'!Z99*'INPUT | TSz > iHaSt'!$Z$82","v":0},null,0,0,null,0,0,null,{"$f":"$BI$15*(1+$BI$17)^Ablage!D63*Ablage!E63","v":0},null,{"$f":"$BK$15*(1+$BK$17)^Ablage!D63*Ablage!E63","v":0},null,{"$f":"IF($DN$59=0,0,SUM('INPUT | KSz > Kosten'!E23:K23))","v":0},0,null,{"$f":"IF($DN$59=0,0,IFERROR(INDEX('INPUT | KSz > Technik'!$H$50:$H$69,MATCH(Nebenrechnungen!D32,'INPUT | KSz > Technik'!$C$50:$C$69,0)),0))","v":0},0,0,null,{"$f":"IFERROR(INDEX('INPUT | KSz > Technik'!$F$16:$F$35,MATCH(Nebenrechnungen!$D32,'INPUT | KSz > Technik'!$C$16:$C$35,0)),0)","v":1},0,{"$f":"IFERROR(INDEX('INPUT | KSz > Technik'!$G$16:$G$35,MATCH(Nebenrechnungen!$D32,'INPUT | KSz > Technik'!$C$16:$C$35,0)),0)","v":0},0,{"$f":"IFERROR(INDEX('INPUT | KSz > Technik'!$H$16:$H$35,MATCH(Nebenrechnungen!$D32,'INPUT | KSz > Technik'!$C$16:$C$35,0)),0)","v":0},0,null,0,0,0,null,0,null,{"$f":"$CH$16*(1+$CH$17)^(Ablage!$D63)","v":0},0,{"$f":"$CJ$16*(1+$CJ$17)^(Ablage!$D63)","v":0},0,{"$f":"$CL$16*(1+$CL$17)^(Ablage!$D63)","v":0},0,0,null,{"$f":"IF($DN$59=0,0,(IF(CO$12='INPUT | TSz > Kosten'!$P$64,'INPUT | KSz > Kosten'!$G$50,'INPUT | KSz > Kosten'!$G$50*Nebenrechnungen!BN32))*(1+CO$17)^Ablage!D63*Ablage!E63)","v":0},{"$f":"IF($D32>='INPUT | KSz > Kosten'!$G$52,Nebenrechnungen!CO32,0)","v":0},null,{"$f":"IF(SUM(CA32:CC32)=0,0,'INPUT | KSz > Kosten'!$G$54*(1+AK$17)^Ablage!D63)","v":0},null,0,{"$f":"IFERROR(INDEX('INPUT | KSz > Erlöse & Finanz'!$G$17:$G$36,MATCH(Nebenrechnungen!D32,'INPUT | KSz > Erlöse & Finanz'!$C$17:$C$36,0)),0)","v":0},0,null,0,0,0,{"$f":"IFERROR(INDEX('INPUT | KSz > Erlöse & Finanz'!$K$17:$K$36,MATCH(Nebenrechnungen!D32,'INPUT | KSz > Erlöse & Finanz'!$C$17:$C$36,0)),0)","v":0},0,null,{"$f":"IFERROR(INDEX('INPUT | KSz > Erlöse & Finanz'!$M$17:$M$36,MATCH(Nebenrechnungen!$D32,'INPUT | KSz > Erlöse & Finanz'!$C$17:$C$36,0)),0)","v":0},{"$f":"IFERROR(INDEX('INPUT | KSz > Erlöse & Finanz'!$O$17:$O$36,MATCH(Nebenrechnungen!$D32,'INPUT | KSz > Erlöse & Finanz'!$C$17:$C$36,0)),0)","v":0},0]
[null,"Jahr",11,{"$f":"'INPUT | TSz > Kosten'!C24","v":2036},null,{"$f":"SUM('INPUT | TSz > Kosten'!E24:K24)","v":0},0,null,{"$f":"IFERROR(INDEX('INPUT | TSz > Technik'!$H$51:$H$70,MATCH(Nebenrechnungen!D33,'INPUT | TSz > Technik'!$C$51:$C$70,0)),0)","v":0},0,0,null,{"$f":"IFERROR(INDEX('INPUT | TSz > Technik'!$F$16:$F$35,MATCH(Nebenrechnungen!$D33,'INPUT | TSz > Technik'!$C$16:$C$35,0)),0)","v":1},0,{"$f":"IFERROR(INDEX('INPUT | TSz > Technik'!$G$16:$G$35,MATCH(Nebenrechnungen!$D33,'INPUT | TSz > Technik'!$C$16:$C$35,0)),0)","v":0},0,{"$f":"IFERROR(INDEX('INPUT | TSz > Technik'!$H$16:$H$35,MATCH(Nebenrechnungen!$D33,'INPUT | TSz > Technik'!$C$16:$C$35,0)),0)","v":0},0,null,0,0,0,null,0,null,{"$f":"$AA$16*(1+$AA$17)^(Ablage!D64)","v":0},0,{"$f":"$AC$16*(1+$AC$17)^(Ablage!$D64)","v":0},0,{"$f":"$AE$16*(1+$AE$17)^(Ablage!$D64)","v":0},0,0,null,{"$f":"(IF(AH$12='INPUT | TSz > Kosten'!$P$64,'INPUT | TSz > Kosten'!$G$50,'INPUT | TSz > Kosten'!$G$50*G33))*(1+AH$17)^Ablage!D64*Ablage!E64","v":0},{"$f":"IF($D33>='INPUT | TSz > Kosten'!$G$52,Nebenrechnungen!AH33,0)","v":0},null,{"$f":"IF(SUM(T33:V33)=0,0,'INPUT | TSz > Kosten'!$G$54*(1+AK$17)^Ablage!D64)","v":0},null,0,{"$f":"IFERROR(INDEX('INPUT | TSz > Erlöse & Finanz'!$G$17:$G$36,MATCH(Nebenrechnungen!D33,'INPUT | TSz > Erlöse & Finanz'!$C$17:$C$36,0)),0)","v":0},0,null,0,0,0,{"$f":"IFERROR(INDEX('INPUT | TSz > Erlöse & Finanz'!$K$17:$K$36,MATCH(Nebenrechnungen!D33,'INPUT | TSz > Erlöse & Finanz'!$C$17:$C$36,0)),0)","v":0},0,null,{"$f":"IFERROR(INDEX('INPUT | TSz > Erlöse & Finanz'!$M$17:$M$36,MATCH(Nebenrechnungen!$D33,'INPUT | TSz > Erlöse & Finanz'!$C$17:$C$36,0)),0)","v":0},{"$f":"IFERROR(INDEX('INPUT | TSz > Erlöse & Finanz'!$O$17:$O$36,MATCH(Nebenrechnungen!$D33,'INPUT | TSz > Erlöse & Finanz'!$C$17:$C$36,0)),0)","v":0},0,null,{"$f":"'INPUT | TSz > iHaSt'!Z100*'INPUT | TSz > iHaSt'!$Z$82","v":0},null,0,0,null,0,0,null,{"$f":"$BI$15*(1+$BI$17)^Ablage!D64*Ablage!E64","v":0},null,{"$f":"$BK$15*(1+$BK$17)^Ablage!D64*Ablage!E64","v":0},null,{"$f":"IF($DN$59=0,0,SUM('INPUT | KSz > Kosten'!E24:K24))","v":0},0,null,{"$f":"IF($DN$59=0,0,IFERROR(INDEX('INPUT | KSz > Technik'!$H$50:$H$69,MATCH(Nebenrechnungen!D33,'INPUT | KSz > Technik'!$C$50:$C$69,0)),0))","v":0},0,0,null,{"$f":"IFERROR(INDEX('INPUT | KSz > Technik'!$F$16:$F$35,MATCH(Nebenrechnungen!$D33,'INPUT | KSz > Technik'!$C$16:$C$35,0)),0)","v":1},0,{"$f":"IFERROR(INDEX('INPUT | KSz > Technik'!$G$16:$G$35,MATCH(Nebenrechnungen!$D33,'INPUT | KSz > Technik'!$C$16:$C$35,0)),0)","v":0},0,{"$f":"IFERROR(INDEX('INPUT | KSz > Technik'!$H$16:$H$35,MATCH(Nebenrechnungen!$D33,'INPUT | KSz > Technik'!$C$16:$C$35,0)),0)","v":0},0,null,0,0,0,null,0,null,{"$f":"$CH$16*(1+$CH$17)^(Ablage!$D64)","v":0},0,{"$f":"$CJ$16*(1+$CJ$17)^(Ablage!$D64)","v":0},0,{"$f":"$CL$16*(1+$CL$17)^(Ablage!$D64)","v":0},0,0,null,{"$f":"IF($DN$59=0,0,(IF(CO$12='INPUT | TSz > Kosten'!$P$64,'INPUT | KSz > Kosten'!$G$50,'INPUT | KSz > Kosten'!$G$50*Nebenrechnungen!BN33))*(1+CO$17)^Ablage!D64*Ablage!E64)","v":0},{"$f":"IF($D33>='INPUT | KSz > Kosten'!$G$52,Nebenrechnungen!CO33,0)","v":0},null,{"$f":"IF(SUM(CA33:CC33)=0,0,'INPUT | KSz > Kosten'!$G$54*(1+AK$17)^Ablage!D64)","v":0},null,0,{"$f":"IFERROR(INDEX('INPUT | KSz > Erlöse & Finanz'!$G$17:$G$36,MATCH(Nebenrechnungen!D33,'INPUT | KSz > Erlöse & Finanz'!$C$17:$C$36,0)),0)","v":0},0,null,0,0,0,{"$f":"IFERROR(INDEX('INPUT | KSz > Erlöse & Finanz'!$K$17:$K$36,MATCH(Nebenrechnungen!D33,'INPUT | KSz > Erlöse & Finanz'!$C$17:$C$36,0)),0)","v":0},0,null,{"$f":"IFERROR(INDEX('INPUT | KSz > Erlöse & Finanz'!$M$17:$M$36,MATCH(Nebenrechnungen!$D33,'INPUT | KSz > Erlöse & Finanz'!$C$17:$C$36,0)),0)","v":0},{"$f":"IFERROR(INDEX('INPUT | KSz > Erlöse & Finanz'!$O$17:$O$36,MATCH(Nebenrechnungen!$D33,'INPUT | KSz > Erlöse & Finanz'!$C$17:$C$36,0)),0)","v":0},0]
[null,"Jahr",12,{"$f":"'INPUT | TSz > Kosten'!C25","v":2037},null,{"$f":"SUM('INPUT | TSz > Kosten'!E25:K25)","v":0},0,null,{"$f":"IFERROR(INDEX('INPUT | TSz > Technik'!$H$51:$H$70,MATCH(Nebenrechnungen!D34,'INPUT | TSz > Technik'!$C$51:$C$70,0)),0)","v":0},0,0,null,{"$f":"IFERROR(INDEX('INPUT | TSz > Technik'!$F$16:$F$35,MATCH(Nebenrechnungen!$D34,'INPUT | TSz > Technik'!$C$16:$C$35,0)),0)","v":1},0,{"$f":"IFERROR(INDEX('INPUT | TSz > Technik'!$G$16:$G$35,MATCH(Nebenrechnungen!$D34,'INPUT | TSz > Technik'!$C$16:$C$35,0)),0)","v":0},0,{"$f":"IFERROR(INDEX('INPUT | TSz > Technik'!$H$16:$H$35,MATCH(Nebenrechnungen!$D34,'INPUT | TSz > Technik'!$C$16:$C$35,0)),0)","v":0},0,null,0,0,0,null,0,null,{"$f":"$AA$16*(1+$AA$17)^(Ablage!D65)","v":0},0,{"$f":"$AC$16*(1+$AC$17)^(Ablage!$D65)","v":0},0,{"$f":"$AE$16*(1+$AE$17)^(Ablage!$D65)","v":0},0,0,null,{"$f":"(IF(AH$12='INPUT | TSz > Kosten'!$P$64,'INPUT | TSz > Kosten'!$G$50,'INPUT | TSz > Kosten'!$G$50*G34))*(1+AH$17)^Ablage!D65*Ablage!E65","v":0},{"$f":"IF($D34>='INPUT | TSz > Kosten'!$G$52,Nebenrechnungen!AH34,0)","v":0},null,{"$f":"IF(SUM(T34:V34)=0,0,'INPUT | TSz > Kosten'!$G$54*(1+AK$17)^Ablage!D65)","v":0},null,0,{"$f":"IFERROR(INDEX('INPUT | TSz > Erlöse & Finanz'!$G$17:$G$36,MATCH(Nebenrechnungen!D34,'INPUT | TSz > Erlöse & Finanz'!$C$17:$C$36,0)),0)","v":0},0,null,0,0,0,{"$f":"IFERROR(INDEX('INPUT | TSz > Erlöse & Finanz'!$K$17:$K$36,MATCH(Nebenrechnungen!D34,'INPUT | TSz > Erlöse & Finanz'!$C$17:$C$36,0)),0)","v":0},0,null,{"$f":"IFERROR(INDEX('INPUT | TSz > Erlöse & Finanz'!$M$17:$M$36,MATCH(Nebenrechnungen!$D34,'INPUT | TSz > Erlöse & Finanz'!$C$17:$C$36,0)),0)","v":0},{"$f":"IFERROR(INDEX('INPUT | TSz > Erlöse & Finanz'!$O$17:$O$36,MATCH(Nebenrechnungen!$D34,'INPUT | TSz > Erlöse & Finanz'!$C$17:$C$36,0)),0)","v":0},0,null,{"$f":"'INPUT | TSz > iHaSt'!Z101*'INPUT | TSz > iHaSt'!$Z$82","v":0},null,0,0,null,0,0,null,{"$f":"$BI$15*(1+$BI$17)^Ablage!D65*Ablage!E65","v":0},null,{"$f":"$BK$15*(1+$BK$17)^Ablage!D65*Ablage!E65","v":0},null,{"$f":"IF($DN$59=0,0,SUM('INPUT | KSz > Kosten'!E25:K25))","v":0},0,null,{"$f":"IF($DN$59=0,0,IFERROR(INDEX('INPUT | KSz > Technik'!$H$50:$H$69,MATCH(Nebenrechnungen!D34,'INPUT | KSz > Technik'!$C$50:$C$69,0)),0))","v":0},0,0,null,{"$f":"IFERROR(INDEX('INPUT | KSz > Technik'!$F$16:$F$35,MATCH(Nebenrechnungen!$D34,'INPUT | KSz > Technik'!$C$16:$C$35,0)),0)","v":1},0,{"$f":"IFERROR(INDEX('INPUT | KSz > Technik'!$G$16:$G$35,MATCH(Nebenrechnungen!$D34,'INPUT | KSz > Technik'!$C$16:$C$35,0)),0)","v":0},0,{"$f":"IFERROR(INDEX('INPUT | KSz > Technik'!$H$16:$H$35,MATCH(Nebenrechnungen!$D34,'INPUT | KSz > Technik'!$C$16:$C$35,0)),0)","v":0},0,null,0,0,0,null,0,null,{"$f":"$CH$16*(1+$CH$17)^(Ablage!$D65)","v":0},0,{"$f":"$CJ$16*(1+$CJ$17)^(Ablage!$D65)","v":0},0,{"$f":"$CL$16*(1+$CL$17)^(Ablage!$D65)","v":0},0,0,null,{"$f":"IF($DN$59=0,0,(IF(CO$12='INPUT | TSz > Kosten'!$P$64,'INPUT | KSz > Kosten'!$G$50,'INPUT | KSz > Kosten'!$G$50*Nebenrechnungen!BN34))*(1+CO$17)^Ablage!D65*Ablage!E65)","v":0},{"$f":"IF($D34>='INPUT | KSz > Kosten'!$G$52,Nebenrechnungen!CO34,0)","v":0},null,{"$f":"IF(SUM(CA34:CC34)=0,0,'INPUT | KSz > Kosten'!$G$54*(1+AK$17)^Ablage!D65)","v":0},null,0,{"$f":"IFERROR(INDEX('INPUT | KSz > Erlöse & Finanz'!$G$17:$G$36,MATCH(Nebenrechnungen!D34,'INPUT | KSz > Erlöse & Finanz'!$C$17:$C$36,0)),0)","v":0},0,null,0,0,0,{"$f":"IFERROR(INDEX('INPUT | KSz > Erlöse & Finanz'!$K$17:$K$36,MATCH(Nebenrechnungen!D34,'INPUT | KSz > Erlöse & Finanz'!$C$17:$C$36,0)),0)","v":0},0,null,{"$f":"IFERROR(INDEX('INPUT | KSz > Erlöse & Finanz'!$M$17:$M$36,MATCH(Nebenrechnungen!$D34,'INPUT | KSz > Erlöse & Finanz'!$C$17:$C$36,0)),0)","v":0},{"$f":"IFERROR(INDEX('INPUT | KSz > Erlöse & Finanz'!$O$17:$O$36,MATCH(Nebenrechnungen!$D34,'INPUT | KSz > Erlöse & Finanz'!$C$17:$C$36,0)),0)","v":0},0]
[null,"Jahr",13,{"$f":"'INPUT | TSz > Kosten'!C26","v":2038},null,{"$f":"SUM('INPUT | TSz > Kosten'!E26:K26)","v":0},0,null,{"$f":"IFERROR(INDEX('INPUT | TSz > Technik'!$H$51:$H$70,MATCH(Nebenrechnungen!D35,'INPUT | TSz > Technik'!$C$51:$C$70,0)),0)","v":0},0,0,null,{"$f":"IFERROR(INDEX('INPUT | TSz > Technik'!$F$16:$F$35,MATCH(Nebenrechnungen!$D35,'INPUT | TSz > Technik'!$C$16:$C$35,0)),0)","v":1},0,{"$f":"IFERROR(INDEX('INPUT | TSz > Technik'!$G$16:$G$35,MATCH(Nebenrechnungen!$D35,'INPUT | TSz > Technik'!$C$16:$C$35,0)),0)","v":0},0,{"$f":"IFERROR(INDEX('INPUT | TSz > Technik'!$H$16:$H$35,MATCH(Nebenrechnungen!$D35,'INPUT | TSz > Technik'!$C$16:$C$35,0)),0)","v":0},0,null,0,0,0,null,0,null,{"$f":"$AA$16*(1+$AA$17)^(Ablage!D66)","v":0},0,{"$f":"$AC$16*(1+$AC$17)^(Ablage!$D66)","v":0},0,{"$f":"$AE$16*(1+$AE$17)^(Ablage!$D66)","v":0},0,0,null,{"$f":"(IF(AH$12='INPUT | TSz > Kosten'!$P$64,'INPUT | TSz > Kosten'!$G$50,'INPUT | TSz > Kosten'!$G$50*G35))*(1+AH$17)^Ablage!D66*Ablage!E66","v":0},{"$f":"IF($D35>='INPUT | TSz > Kosten'!$G$52,Nebenrechnungen!AH35,0)","v":0},null,{"$f":"IF(SUM(T35:V35)=0,0,'INPUT | TSz > Kosten'!$G$54*(1+AK$17)^Ablage!D66)","v":0},null,0,{"$f":"IFERROR(INDEX('INPUT | TSz > Erlöse & Finanz'!$G$17:$G$36,MATCH(Nebenrechnungen!D35,'INPUT | TSz > Erlöse & Finanz'!$C$17:$C$36,0)),0)","v":0},0,null,0,0,0,{"$f":"IFERROR(INDEX('INPUT | TSz > Erlöse & Finanz'!$K$17:$K$36,MATCH(Nebenrechnungen!D35,'INPUT | TSz > Erlöse & Finanz'!$C$17:$C$36,0)),0)","v":0},0,null,{"$f":"IFERROR(INDEX('INPUT | TSz > Erlöse & Finanz'!$M$17:$M$36,MATCH(Nebenrechnungen!$D35,'INPUT | TSz > Erlöse & Finanz'!$C$17:$C$36,0)),0)","v":0},{"$f":"IFERROR(INDEX('INPUT | TSz > Erlöse & Finanz'!$O$17:$O$36,MATCH(Nebenrechnungen!$D35,'INPUT | TSz > Erlöse & Finanz'!$C$17:$C$36,0)),0)","v":0},0,null,{"$f":"'INPUT | TSz > iHaSt'!Z102*'INPUT | TSz > iHaSt'!$Z$82","v":0},null,0,0,null,0,0,null,{"$f":"$BI$15*(1+$BI$17)^Ablage!D66*Ablage!E66","v":0},null,{"$f":"$BK$15*(1+$BK$17)^Ablage!D66*Ablage!E66","v":0},null,{"$f":"IF($DN$59=0,0,SUM('INPUT | KSz > Kosten'!E26:K26))","v":0},0,null,{"$f":"IF($DN$59=0,0,IFERROR(INDEX('INPUT | KSz > Technik'!$H$50:$H$69,MATCH(Nebenrechnungen!D35,'INPUT | KSz > Technik'!$C$50:$C$69,0)),0))","v":0},0,0,null,{"$f":"IFERROR(INDEX('INPUT | KSz > Technik'!$F$16:$F$35,MATCH(Nebenrechnungen!$D35,'INPUT | KSz > Technik'!$C$16:$C$35,0)),0)","v":1},0,{"$f":"IFERROR(INDEX('INPUT | KSz > Technik'!$G$16:$G$35,MATCH(Nebenrechnungen!$D35,'INPUT | KSz > Technik'!$C$16:$C$35,0)),0)","v":0},0,{"$f":"IFERROR(INDEX('INPUT | KSz > Technik'!$H$16:$H$35,MATCH(Nebenrechnungen!$D35,'INPUT | KSz > Technik'!$C$16:$C$35,0)),0)","v":0},0,null,0,0,0,null,0,null,{"$f":"$CH$16*(1+$CH$17)^(Ablage!$D66)","v":0},0,{"$f":"$CJ$16*(1+$CJ$17)^(Ablage!$D66)","v":0},0,{"$f":"$CL$16*(1+$CL$17)^(Ablage!$D66)","v":0},0,0,null,{"$f":"IF($DN$59=0,0,(IF(CO$12='INPUT | TSz > Kosten'!$P$64,'INPUT | KSz > Kosten'!$G$50,'INPUT | KSz > Kosten'!$G$50*Nebenrechnungen!BN35))*(1+CO$17)^Ablage!D66*Ablage!E66)","v":0},{"$f":"IF($D35>='INPUT | KSz > Kosten'!$G$52,Nebenrechnungen!CO35,0)","v":0},null,{"$f":"IF(SUM(CA35:CC35)=0,0,'INPUT | KSz > Kosten'!$G$54*(1+AK$17)^Ablage!D66)","v":0},null,0,{"$f":"IFERROR(INDEX('INPUT | KSz > Erlöse & Finanz'!$G$17:$G$36,MATCH(Nebenrechnungen!D35,'INPUT | KSz > Erlöse & Finanz'!$C$17:$C$36,0)),0)","v":0},0,null,0,0,0,{"$f":"IFERROR(INDEX('INPUT | KSz > Erlöse & Finanz'!$K$17:$K$36,MATCH(Nebenrechnungen!D35,'INPUT | KSz > Erlöse & Finanz'!$C$17:$C$36,0)),0)","v":0},0,null,{"$f":"IFERROR(INDEX('INPUT | KSz > Erlöse & Finanz'!$M$17:$M$36,MATCH(Nebenrechnungen!$D35,'INPUT | KSz > Erlöse & Finanz'!$C$17:$C$36,0)),0)","v":0},{"$f":"IFERROR(INDEX('INPUT | KSz > Erlöse & Finanz'!$O$17:$O$36,MATCH(Nebenrechnungen!$D35,'INPUT | KSz > Erlöse & Finanz'!$C$17:$C$36,0)),0)","v":0},0]
[null,"Jahr",14,{"$f":"'INPUT | TSz > Kosten'!C27","v":2039},null,{"$f":"SUM('INPUT | TSz > Kosten'!E27:K27)","v":0},0,null,{"$f":"IFERROR(INDEX('INPUT | TSz > Technik'!$H$51:$H$70,MATCH(Nebenrechnungen!D36,'INPUT | TSz > Technik'!$C$51:$C$70,0)),0)","v":0},0,0,null,{"$f":"IFERROR(INDEX('INPUT | TSz > Technik'!$F$16:$F$35,MATCH(Nebenrechnungen!$D36,'INPUT | TSz > Technik'!$C$16:$C$35,0)),0)","v":1},0,{"$f":"IFERROR(INDEX('INPUT | TSz > Technik'!$G$16:$G$35,MATCH(Nebenrechnungen!$D36,'INPUT | TSz > Technik'!$C$16:$C$35,0)),0)","v":0},0,{"$f":"IFERROR(INDEX('INPUT | TSz > Technik'!$H$16:$H$35,MATCH(Nebenrechnungen!$D36,'INPUT | TSz > Technik'!$C$16:$C$35,0)),0)","v":0},0,null,0,0,0,null,0,null,{"$f":"$AA$16*(1+$AA$17)^(Ablage!D67)","v":0},0,{"$f":"$AC$16*(1+$AC$17)^(Ablage!$D67)","v":0},0,{"$f":"$AE$16*(1+$AE$17)^(Ablage!$D67)","v":0},0,0,null,{"$f":"(IF(AH$12='INPUT | TSz > Kosten'!$P$64,'INPUT | TSz > Kosten'!$G$50,'INPUT | TSz > Kosten'!$G$50*G36))*(1+AH$17)^Ablage!D67*Ablage!E67","v":0},{"$f":"IF($D36>='INPUT | TSz > Kosten'!$G$52,Nebenrechnungen!AH36,0)","v":0},null,{"$f":"IF(SUM(T36:V36)=0,0,'INPUT | TSz > Kosten'!$G$54*(1+AK$17)^Ablage!D67)","v":0},null,0,{"$f":"IFERROR(INDEX('INPUT | TSz > Erlöse & Finanz'!$G$17:$G$36,MATCH(Nebenrechnungen!D36,'INPUT | TSz > Erlöse & Finanz'!$C$17:$C$36,0)),0)","v":0},0,null,0,0,0,{"$f":"IFERROR(INDEX('INPUT | TSz > Erlöse & Finanz'!$K$17:$K$36,MATCH(Nebenrechnungen!D36,'INPUT | TSz > Erlöse & Finanz'!$C$17:$C$36,0)),0)","v":0},0,null,{"$f":"IFERROR(INDEX('INPUT | TSz > Erlöse & Finanz'!$M$17:$M$36,MATCH(Nebenrechnungen!$D36,'INPUT | TSz > Erlöse & Finanz'!$C$17:$C$36,0)),0)","v":0},{"$f":"IFERROR(INDEX('INPUT | TSz > Erlöse & Finanz'!$O$17:$O$36,MATCH(Nebenrechnungen!$D36,'INPUT | TSz > Erlöse & Finanz'!$C$17:$C$36,0)),0)","v":0},0,null,{"$f":"'INPUT | TSz > iHaSt'!Z103*'INPUT | TSz > iHaSt'!$Z$82","v":0},null,0,0,null,0,0,null,{"$f":"$BI$15*(1+$BI$17)^Ablage!D67*Ablage!E67","v":0},null,{"$f":"$BK$15*(1+$BK$17)^Ablage!D67*Ablage!E67","v":0},null,{"$f":"IF($DN$59=0,0,SUM('INPUT | KSz > Kosten'!E27:K27))","v":0},0,null,{"$f":"IF($DN$59=0,0,IFERROR(INDEX('INPUT | KSz > Technik'!$H$50:$H$69,MATCH(Nebenrechnungen!D36,'INPUT | KSz > Technik'!$C$50:$C$69,0)),0))","v":0},0,0,null,{"$f":"IFERROR(INDEX('INPUT | KSz > Technik'!$F$16:$F$35,MATCH(Nebenrechnungen!$D36,'INPUT | KSz > Technik'!$C$16:$C$35,0)),0)","v":1},0,{"$f":"IFERROR(INDEX('INPUT | KSz > Technik'!$G$16:$G$35,MATCH(Nebenrechnungen!$D36,'INPUT | KSz > Technik'!$C$16:$C$35,0)),0)","v":0},0,{"$f":"IFERROR(INDEX('INPUT | KSz > Technik'!$H$16:$H$35,MATCH(Nebenrechnungen!$D36,'INPUT | KSz > Technik'!$C$16:$C$35,0)),0)","v":0},0,null,0,0,0,null,0,null,{"$f":"$CH$16*(1+$CH$17)^(Ablage!$D67)","v":0},0,{"$f":"$CJ$16*(1+$CJ$17)^(Ablage!$D67)","v":0},0,{"$f":"$CL$16*(1+$CL$17)^(Ablage!$D67)","v":0},0,0,null,{"$f":"IF($DN$59=0,0,(IF(CO$12='INPUT | TSz > Kosten'!$P$64,'INPUT | KSz > Kosten'!$G$50,'INPUT | KSz > Kosten'!$G$50*Nebenrechnungen!BN36))*(1+CO$17)^Ablage!D67*Ablage!E67)","v":0},{"$f":"IF($D36>='INPUT | KSz > Kosten'!$G$52,Nebenrechnungen!CO36,0)","v":0},null,{"$f":"IF(SUM(CA36:CC36)=0,0,'INPUT | KSz > Kosten'!$G$54*(1+AK$17)^Ablage!D67)","v":0},null,0,{"$f":"IFERROR(INDEX('INPUT | KSz > Erlöse & Finanz'!$G$17:$G$36,MATCH(Nebenrechnungen!D36,'INPUT | KSz > Erlöse & Finanz'!$C$17:$C$36,0)),0)","v":0},0,null,0,0,0,{"$f":"IFERROR(INDEX('INPUT | KSz > Erlöse & Finanz'!$K$17:$K$36,MATCH(Nebenrechnungen!D36,'INPUT | KSz > Erlöse & Finanz'!$C$17:$C$36,0)),0)","v":0},0,null,{"$f":"IFERROR(INDEX('INPUT | KSz > Erlöse & Finanz'!$M$17:$M$36,MATCH(Nebenrechnungen!$D36,'INPUT | KSz > Erlöse & Finanz'!$C$17:$C$36,0)),0)","v":0},{"$f":"IFERROR(INDEX('INPUT | KSz > Erlöse & Finanz'!$O$17:$O$36,MATCH(Nebenrechnungen!$D36,'INPUT | KSz > Erlöse & Finanz'!$C$17:$C$36,0)),0)","v":0},0]
[null,"Jahr",15,{"$f":"'INPUT | TSz > Kosten'!C28","v":2040},null,{"$f":"SUM('INPUT | TSz > Kosten'!E28:K28)","v":0},0,null,{"$f":"IFERROR(INDEX('INPUT | TSz > Technik'!$H$51:$H$70,MATCH(Nebenrechnungen!D37,'INPUT | TSz > Technik'!$C$51:$C$70,0)),0)","v":0},0,0,null,{"$f":"IFERROR(INDEX('INPUT | TSz > Technik'!$F$16:$F$35,MATCH(Nebenrechnungen!$D37,'INPUT | TSz > Technik'!$C$16:$C$35,0)),0)","v":1},0,{"$f":"IFERROR(INDEX('INPUT | TSz > Technik'!$G$16:$G$35,MATCH(Nebenrechnungen!$D37,'INPUT | TSz > Technik'!$C$16:$C$35,0)),0)","v":0},0,{"$f":"IFERROR(INDEX('INPUT | TSz > Technik'!$H$16:$H$35,MATCH(Nebenrechnungen!$D37,'INPUT | TSz > Technik'!$C$16:$C$35,0)),0)","v":0},0,null,0,0,0,null,0,null,{"$f":"$AA$16*(1+$AA$17)^(Ablage!D68)","v":0},0,{"$f":"$AC$16*(1+$AC$17)^(Ablage!$D68)","v":0},0,{"$f":"$AE$16*(1+$AE$17)^(Ablage!$D68)","v":0},0,0,null,{"$f":"(IF(AH$12='INPUT | TSz > Kosten'!$P$64,'INPUT | TSz > Kosten'!$G$50,'INPUT | TSz > Kosten'!$G$50*G37))*(1+AH$17)^Ablage!D68*Ablage!E68","v":0},{"$f":"IF($D37>='INPUT | TSz > Kosten'!$G$52,Nebenrechnungen!AH37,0)","v":0},null,{"$f":"IF(SUM(T37:V37)=0,0,'INPUT | TSz > Kosten'!$G$54*(1+AK$17)^Ablage!D68)","v":0},null,0,{"$f":"IFERROR(INDEX('INPUT | TSz > Erlöse & Finanz'!$G$17:$G$36,MATCH(Nebenrechnungen!D37,'INPUT | TSz > Erlöse & Finanz'!$C$17:$C$36,0)),0)","v":0},0,null,0,0,0,{"$f":"IFERROR(INDEX('INPUT | TSz > Erlöse & Finanz'!$K$17:$K$36,MATCH(Nebenrechnungen!D37,'INPUT | TSz > Erlöse & Finanz'!$C$17:$C$36,0)),0)","v":0},0,null,{"$f":"IFERROR(INDEX('INPUT | TSz > Erlöse & Finanz'!$M$17:$M$36,MATCH(Nebenrechnungen!$D37,'INPUT | TSz > Erlöse & Finanz'!$C$17:$C$36,0)),0)","v":0},{"$f":"IFERROR(INDEX('INPUT | TSz > Erlöse & Finanz'!$O$17:$O$36,MATCH(Nebenrechnungen!$D37,'INPUT | TSz > Erlöse & Finanz'!$C$17:$C$36,0)),0)","v":0},0,null,{"$f":"'INPUT | TSz > iHaSt'!Z104*'INPUT | TSz > iHaSt'!$Z$82","v":0},null,0,0,null,0,0,null,{"$f":"$BI$15*(1+$BI$17)^Ablage!D68*Ablage!E68","v":0},null,{"$f":"$BK$15*(1+$BK$17)^Ablage!D68*Ablage!E68","v":0},null,{"$f":"IF($DN$59=0,0,SUM('INPUT | KSz > Kosten'!E28:K28))","v":0},0,null,{"$f":"IF($DN$59=0,0,IFERROR(INDEX('INPUT | KSz > Technik'!$H$50:$H$69,MATCH(Nebenrechnungen!D37,'INPUT | KSz > Technik'!$C$50:$C$69,0)),0))","v":0},0,0,null,{"$f":"IFERROR(INDEX('INPUT | KSz > Technik'!$F$16:$F$35,MATCH(Nebenrechnungen!$D37,'INPUT | KSz > Technik'!$C$16:$C$35,0)),0)","v":1},0,{"$f":"IFERROR(INDEX('INPUT | KSz > Technik'!$G$16:$G$35,MATCH(Nebenrechnungen!$D37,'INPUT | KSz > Technik'!$C$16:$C$35,0)),0)","v":0},0,{"$f":"IFERROR(INDEX('INPUT | KSz > Technik'!$H$16:$H$35,MATCH(Nebenrechnungen!$D37,'INPUT | KSz > Technik'!$C$16:$C$35,0)),0)","v":0},0,null,0,0,0,null,0,null,{"$f":"$CH$16*(1+$CH$17)^(Ablage!$D68)","v":0},0,{"$f":"$CJ$16*(1+$CJ$17)^(Ablage!$D68)","v":0},0,{"$f":"$CL$16*(1+$CL$17)^(Ablage!$D68)","v":0},0,0,null,{"$f":"IF($DN$59=0,0,(IF(CO$12='INPUT | TSz > Kosten'!$P$64,'INPUT | KSz > Kosten'!$G$50,'INPUT | KSz > Kosten'!$G$50*Nebenrechnungen!BN37))*(1+CO$17)^Ablage!D68*Ablage!E68)","v":0},{"$f":"IF($D37>='INPUT | KSz > Kosten'!$G$52,Nebenrechnungen!CO37,0)","v":0},null,{"$f":"IF(SUM(CA37:CC37)=0,0,'INPUT | KSz > Kosten'!$G$54*(1+AK$17)^Ablage!D68)","v":0},null,0,{"$f":"IFERROR(INDEX('INPUT | KSz > Erlöse & Finanz'!$G$17:$G$36,MATCH(Nebenrechnungen!D37,'INPUT | KSz > Erlöse & Finanz'!$C$17:$C$36,0)),0)","v":0},0,null,0,0,0,{"$f":"IFERROR(INDEX('INPUT | KSz > Erlöse & Finanz'!$K$17:$K$36,MATCH(Nebenrechnungen!D37,'INPUT | KSz > Erlöse & Finanz'!$C$17:$C$36,0)),0)","v":0},0,null,{"$f":"IFERROR(INDEX('INPUT | KSz > Erlöse & Finanz'!$M$17:$M$36,MATCH(Nebenrechnungen!$D37,'INPUT | KSz > Erlöse & Finanz'!$C$17:$C$36,0)),0)","v":0},{"$f":"IFERROR(INDEX('INPUT | KSz > Erlöse & Finanz'!$O$17:$O$36,MATCH(Nebenrechnungen!$D37,'INPUT | KSz > Erlöse & Finanz'!$C$17:$C$36,0)),0)","v":0},0]
[null,"Jahr",16,{"$f":"'INPUT | TSz > Kosten'!C29","v":2041},null,{"$f":"SUM('INPUT | TSz > Kosten'!E29:K29)","v":0},0,null,{"$f":"IFERROR(INDEX('INPUT | TSz > Technik'!$H$51:$H$70,MATCH(Nebenrechnungen!D38,'INPUT | TSz > Technik'!$C$51:$C$70,0)),0)","v":0},0,0,null,{"$f":"IFERROR(INDEX('INPUT | TSz > Technik'!$F$16:$F$35,MATCH(Nebenrechnungen!$D38,'INPUT | TSz > Technik'!$C$16:$C$35,0)),0)","v":1},0,{"$f":"IFERROR(INDEX('INPUT | TSz > Technik'!$G$16:$G$35,MATCH(Nebenrechnungen!$D38,'INPUT | TSz > Technik'!$C$16:$C$35,0)),0)","v":0},0,{"$f":"IFERROR(INDEX('INPUT | TSz > Technik'!$H$16:$H$35,MATCH(Nebenrechnungen!$D38,'INPUT | TSz > Technik'!$C$16:$C$35,0)),0)","v":0},0,null,0,0,0,null,0,null,{"$f":"$AA$16*(1+$AA$17)^(Ablage!D69)","v":0},0,{"$f":"$AC$16*(1+$AC$17)^(Ablage!$D69)","v":0},0,{"$f":"$AE$16*(1+$AE$17)^(Ablage!$D69)","v":0},0,0,null,{"$f":"(IF(AH$12='INPUT | TSz > Kosten'!$P$64,'INPUT | TSz > Kosten'!$G$50,'INPUT | TSz > Kosten'!$G$50*G38))*(1+AH$17)^Ablage!D69*Ablage!E69","v":0},{"$f":"IF($D38>='INPUT | TSz > Kosten'!$G$52,Nebenrechnungen!AH38,0)","v":0},null,{"$f":"IF(SUM(T38:V38)=0,0,'INPUT | TSz > Kosten'!$G$54*(1+AK$17)^Ablage!D69)","v":0},null,0,{"$f":"IFERROR(INDEX('INPUT | TSz > Erlöse & Finanz'!$G$17:$G$36,MATCH(Nebenrechnungen!D38,'INPUT | TSz > Erlöse & Finanz'!$C$17:$C$36,0)),0)","v":0},0,null,0,0,0,{"$f":"IFERROR(INDEX('INPUT | TSz > Erlöse & Finanz'!$K$17:$K$36,MATCH(Nebenrechnungen!D38,'INPUT | TSz > Erlöse & Finanz'!$C$17:$C$36,0)),0)","v":0},0,null,{"$f":"IFERROR(INDEX('INPUT | TSz > Erlöse & Finanz'!$M$17:$M$36,MATCH(Nebenrechnungen!$D38,'INPUT | TSz > Erlöse & Finanz'!$C$17:$C$36,0)),0)","v":0},{"$f":"IFERROR(INDEX('INPUT | TSz > Erlöse & Finanz'!$O$17:$O$36,MATCH(Nebenrechnungen!$D38,'INPUT | TSz > Erlöse & Finanz'!$C$17:$C$36,0)),0)","v":0},0,null,{"$f":"'INPUT | TSz > iHaSt'!Z105*'INPUT | TSz > iHaSt'!$Z$82","v":0},null,0,0,null,0,0,null,{"$f":"$BI$15*(1+$BI$17)^Ablage!D69*Ablage!E69","v":0},null,{"$f":"$BK$15*(1+$BK$17)^Ablage!D69*Ablage!E69","v":0},null,{"$f":"IF($DN$59=0,0,SUM('INPUT | KSz > Kosten'!E29:K29))","v":0},0,null,{"$f":"IF($DN$59=0,0,IFERROR(INDEX('INPUT | KSz > Technik'!$H$50:$H$69,MATCH(Nebenrechnungen!D38,'INPUT | KSz > Technik'!$C$50:$C$69,0)),0))","v":0},0,0,null,{"$f":"IFERROR(INDEX('INPUT | KSz > Technik'!$F$16:$F$35,MATCH(Nebenrechnungen!$D38,'INPUT | KSz > Technik'!$C$16:$C$35,0)),0)","v":1},0,{"$f":"IFERROR(INDEX('INPUT | KSz > Technik'!$G$16:$G$35,MATCH(Nebenrechnungen!$D38,'INPUT | KSz > Technik'!$C$16:$C$35,0)),0)","v":0},0,{"$f":"IFERROR(INDEX('INPUT | KSz > Technik'!$H$16:$H$35,MATCH(Nebenrechnungen!$D38,'INPUT | KSz > Technik'!$C$16:$C$35,0)),0)","v":0},0,null,0,0,0,null,0,null,{"$f":"$CH$16*(1+$CH$17)^(Ablage!$D69)","v":0},0,{"$f":"$CJ$16*(1+$CJ$17)^(Ablage!$D69)","v":0},0,{"$f":"$CL$16*(1+$CL$17)^(Ablage!$D69)","v":0},0,0,null,{"$f":"IF($DN$59=0,0,(IF(CO$12='INPUT | TSz > Kosten'!$P$64,'INPUT | KSz > Kosten'!$G$50,'INPUT | KSz > Kosten'!$G$50*Nebenrechnungen!BN38))*(1+CO$17)^Ablage!D69*Ablage!E69)","v":0},{"$f":"IF($D38>='INPUT | KSz > Kosten'!$G$52,Nebenrechnungen!CO38,0)","v":0},null,{"$f":"IF(SUM(CA38:CC38)=0,0,'INPUT | KSz > Kosten'!$G$54*(1+AK$17)^Ablage!D69)","v":0},null,0,{"$f":"IFERROR(INDEX('INPUT | KSz > Erlöse & Finanz'!$G$17:$G$36,MATCH(Nebenrechnungen!D38,'INPUT | KSz > Erlöse & Finanz'!$C$17:$C$36,0)),0)","v":0},0,null,0,0,0,{"$f":"IFERROR(INDEX('INPUT | KSz > Erlöse & Finanz'!$K$17:$K$36,MATCH(Nebenrechnungen!D38,'INPUT | KSz > Erlöse & Finanz'!$C$17:$C$36,0)),0)","v":0},0,null,{"$f":"IFERROR(INDEX('INPUT | KSz > Erlöse & Finanz'!$M$17:$M$36,MATCH(Nebenrechnungen!$D38,'INPUT | KSz > Erlöse & Finanz'!$C$17:$C$36,0)),0)","v":0},{"$f":"IFERROR(INDEX('INPUT | KSz > Erlöse & Finanz'!$O$17:$O$36,MATCH(Nebenrechnungen!$D38,'INPUT | KSz > Erlöse & Finanz'!$C$17:$C$36,0)),0)","v":0},0]
[null,"Jahr",17,{"$f":"'INPUT | TSz > Kosten'!C30","v":2042},null,{"$f":"SUM('INPUT | TSz > Kosten'!E30:K30)","v":0},0,null,{"$f":"IFERROR(INDEX('INPUT | TSz > Technik'!$H$51:$H$70,MATCH(Nebenrechnungen!D39,'INPUT | TSz > Technik'!$C$51:$C$70,0)),0)","v":0},0,0,null,{"$f":"IFERROR(INDEX('INPUT | TSz > Technik'!$F$16:$F$35,MATCH(Nebenrechnungen!$D39,'INPUT | TSz > Technik'!$C$16:$C$35,0)),0)","v":1},0,{"$f":"IFERROR(INDEX('INPUT | TSz > Technik'!$G$16:$G$35,MATCH(Nebenrechnungen!$D39,'INPUT | TSz > Technik'!$C$16:$C$35,0)),0)","v":0},0,{"$f":"IFERROR(INDEX('INPUT | TSz > Technik'!$H$16:$H$35,MATCH(Nebenrechnungen!$D39,'INPUT | TSz > Technik'!$C$16:$C$35,0)),0)","v":0},0,null,0,0,0,null,0,null,{"$f":"$AA$16*(1+$AA$17)^(Ablage!D70)","v":0},0,{"$f":"$AC$16*(1+$AC$17)^(Ablage!$D70)","v":0},0,{"$f":"$AE$16*(1+$AE$17)^(Ablage!$D70)","v":0},0,0,null,{"$f":"(IF(AH$12='INPUT | TSz > Kosten'!$P$64,'INPUT | TSz > Kosten'!$G$50,'INPUT | TSz > Kosten'!$G$50*G39))*(1+AH$17)^Ablage!D70*Ablage!E70","v":0},{"$f":"IF($D39>='INPUT | TSz > Kosten'!$G$52,Nebenrechnungen!AH39,0)","v":0},null,{"$f":"IF(SUM(T39:V39)=0,0,'INPUT | TSz > Kosten'!$G$54*(1+AK$17)^Ablage!D70)","v":0},null,0,{"$f":"IFERROR(INDEX('INPUT | TSz > Erlöse & Finanz'!$G$17:$G$36,MATCH(Nebenrechnungen!D39,'INPUT | TSz > Erlöse & Finanz'!$C$17:$C$36,0)),0)","v":0},0,null,0,0,0,{"$f":"IFERROR(INDEX('INPUT | TSz > Erlöse & Finanz'!$K$17:$K$36,MATCH(Nebenrechnungen!D39,'INPUT | TSz > Erlöse & Finanz'!$C$17:$C$36,0)),0)","v":0},0,null,{"$f":"IFERROR(INDEX('INPUT | TSz > Erlöse & Finanz'!$M$17:$M$36,MATCH(Nebenrechnungen!$D39,'INPUT | TSz > Erlöse & Finanz'!$C$17:$C$36,0)),0)","v":0},{"$f":"IFERROR(INDEX('INPUT | TSz > Erlöse & Finanz'!$O$17:$O$36,MATCH(Nebenrechnungen!$D39,'INPUT | TSz > Erlöse & Finanz'!$C$17:$C$36,0)),0)","v":0},0,null,{"$f":"'INPUT | TSz > iHaSt'!Z106*'INPUT | TSz > iHaSt'!$Z$82","v":0},null,0,0,null,0,0,null,{"$f":"$BI$15*(1+$BI$17)^Ablage!D70*Ablage!E70","v":0},null,{"$f":"$BK$15*(1+$BK$17)^Ablage!D70*Ablage!E70","v":0},null,{"$f":"IF($DN$59=0,0,SUM('INPUT | KSz > Kosten'!E30:K30))","v":0},0,null,{"$f":"IF($DN$59=0,0,IFERROR(INDEX('INPUT | KSz > Technik'!$H$50:$H$69,MATCH(Nebenrechnungen!D39,'INPUT | KSz > Technik'!$C$50:$C$69,0)),0))","v":0},0,0,null,{"$f":"IFERROR(INDEX('INPUT | KSz > Technik'!$F$16:$F$35,MATCH(Nebenrechnungen!$D39,'INPUT | KSz > Technik'!$C$16:$C$35,0)),0)","v":1},0,{"$f":"IFERROR(INDEX('INPUT | KSz > Technik'!$G$16:$G$35,MATCH(Nebenrechnungen!$D39,'INPUT | KSz > Technik'!$C$16:$C$35,0)),0)","v":0},0,{"$f":"IFERROR(INDEX('INPUT | KSz > Technik'!$H$16:$H$35,MATCH(Nebenrechnungen!$D39,'INPUT | KSz > Technik'!$C$16:$C$35,0)),0)","v":0},0,null,0,0,0,null,0,null,{"$f":"$CH$16*(1+$CH$17)^(Ablage!$D70)","v":0},0,{"$f":"$CJ$16*(1+$CJ$17)^(Ablage!$D70)","v":0},0,{"$f":"$CL$16*(1+$CL$17)^(Ablage!$D70)","v":0},0,0,null,{"$f":"IF($DN$59=0,0,(IF(CO$12='INPUT | TSz > Kosten'!$P$64,'INPUT | KSz > Kosten'!$G$50,'INPUT | KSz > Kosten'!$G$50*Nebenrechnungen!BN39))*(1+CO$17)^Ablage!D70*Ablage!E70)","v":0},{"$f":"IF($D39>='INPUT | KSz > Kosten'!$G$52,Nebenrechnungen!CO39,0)","v":0},null,{"$f":"IF(SUM(CA39:CC39)=0,0,'INPUT | KSz > Kosten'!$G$54*(1+AK$17)^Ablage!D70)","v":0},null,0,{"$f":"IFERROR(INDEX('INPUT | KSz > Erlöse & Finanz'!$G$17:$G$36,MATCH(Nebenrechnungen!D39,'INPUT | KSz > Erlöse & Finanz'!$C$17:$C$36,0)),0)","v":0},0,null,0,0,0,{"$f":"IFERROR(INDEX('INPUT | KSz > Erlöse & Finanz'!$K$17:$K$36,MATCH(Nebenrechnungen!D39,'INPUT | KSz > Erlöse & Finanz'!$C$17:$C$36,0)),0)","v":0},0,null,{"$f":"IFERROR(INDEX('INPUT | KSz > Erlöse & Finanz'!$M$17:$M$36,MATCH(Nebenrechnungen!$D39,'INPUT | KSz > Erlöse & Finanz'!$C$17:$C$36,0)),0)","v":0},{"$f":"IFERROR(INDEX('INPUT | KSz > Erlöse & Finanz'!$O$17:$O$36,MATCH(Nebenrechnungen!$D39,'INPUT | KSz > Erlöse & Finanz'!$C$17:$C$36,0)),0)","v":0},0]
[null,"Jahr",18,{"$f":"'INPUT | TSz > Kosten'!C31","v":2043},null,{"$f":"SUM('INPUT | TSz > Kosten'!E31:K31)","v":0},0,null,{"$f":"IFERROR(INDEX('INPUT | TSz > Technik'!$H$51:$H$70,MATCH(Nebenrechnungen!D40,'INPUT | TSz > Technik'!$C$51:$C$70,0)),0)","v":0},0,0,null,{"$f":"IFERROR(INDEX('INPUT | TSz > Technik'!$F$16:$F$35,MATCH(Nebenrechnungen!$D40,'INPUT | TSz > Technik'!$C$16:$C$35,0)),0)","v":1},0,{"$f":"IFERROR(INDEX('INPUT | TSz > Technik'!$G$16:$G$35,MATCH(Nebenrechnungen!$D40,'INPUT | TSz > Technik'!$C$16:$C$35,0)),0)","v":0},0,{"$f":"IFERROR(INDEX('INPUT | TSz > Technik'!$H$16:$H$35,MATCH(Nebenrechnungen!$D40,'INPUT | TSz > Technik'!$C$16:$C$35,0)),0)","v":0},0,null,0,0,0,null,0,null,{"$f":"$AA$16*(1+$AA$17)^(Ablage!D71)","v":0},0,{"$f":"$AC$16*(1+$AC$17)^(Ablage!$D71)","v":0},0,{"$f":"$AE$16*(1+$AE$17)^(Ablage!$D71)","v":0},0,0,null,{"$f":"(IF(AH$12='INPUT | TSz > Kosten'!$P$64,'INPUT | TSz > Kosten'!$G$50,'INPUT | TSz > Kosten'!$G$50*G40))*(1+AH$17)^Ablage!D71*Ablage!E71","v":0},{"$f":"IF($D40>='INPUT | TSz > Kosten'!$G$52,Nebenrechnungen!AH40,0)","v":0},null,{"$f":"IF(SUM(T40:V40)=0,0,'INPUT | TSz > Kosten'!$G$54*(1+AK$17)^Ablage!D71)","v":0},null,0,{"$f":"IFERROR(INDEX('INPUT | TSz > Erlöse & Finanz'!$G$17:$G$36,MATCH(Nebenrechnungen!D40,'INPUT | TSz > Erlöse & Finanz'!$C$17:$C$36,0)),0)","v":0},0,null,0,0,0,{"$f":"IFERROR(INDEX('INPUT | TSz > Erlöse & Finanz'!$K$17:$K$36,MATCH(Nebenrechnungen!D40,'INPUT | TSz > Erlöse & Finanz'!$C$17:$C$36,0)),0)","v":0},0,null,{"$f":"IFERROR(INDEX('INPUT | TSz > Erlöse & Finanz'!$M$17:$M$36,MATCH(Nebenrechnungen!$D40,'INPUT | TSz > Erlöse & Finanz'!$C$17:$C$36,0)),0)","v":0},{"$f":"IFERROR(INDEX('INPUT | TSz > Erlöse & Finanz'!$O$17:$O$36,MATCH(Nebenrechnungen!$D40,'INPUT | TSz > Erlöse & Finanz'!$C$17:$C$36,0)),0)","v":0},0,null,{"$f":"'INPUT | TSz > iHaSt'!Z107*'INPUT | TSz > iHaSt'!$Z$82","v":0},null,0,0,null,0,0,null,{"$f":"$BI$15*(1+$BI$17)^Ablage!D71*Ablage!E71","v":0},null,{"$f":"$BK$15*(1+$BK$17)^Ablage!D71*Ablage!E71","v":0},null,{"$f":"IF($DN$59=0,0,SUM('INPUT | KSz > Kosten'!E31:K31))","v":0},0,null,{"$f":"IF($DN$59=0,0,IFERROR(INDEX('INPUT | KSz > Technik'!$H$50:$H$69,MATCH(Nebenrechnungen!D40,'INPUT | KSz > Technik'!$C$50:$C$69,0)),0))","v":0},0,0,null,{"$f":"IFERROR(INDEX('INPUT | KSz > Technik'!$F$16:$F$35,MATCH(Nebenrechnungen!$D40,'INPUT | KSz > Technik'!$C$16:$C$35,0)),0)","v":1},0,{"$f":"IFERROR(INDEX('INPUT | KSz > Technik'!$G$16:$G$35,MATCH(Nebenrechnungen!$D40,'INPUT | KSz > Technik'!$C$16:$C$35,0)),0)","v":0},0,{"$f":"IFERROR(INDEX('INPUT | KSz > Technik'!$H$16:$H$35,MATCH(Nebenrechnungen!$D40,'INPUT | KSz > Technik'!$C$16:$C$35,0)),0)","v":0},0,null,0,0,0,null,0,null,{"$f":"$CH$16*(1+$CH$17)^(Ablage!$D71)","v":0},0,{"$f":"$CJ$16*(1+$CJ$17)^(Ablage!$D71)","v":0},0,{"$f":"$CL$16*(1+$CL$17)^(Ablage!$D71)","v":0},0,0,null,{"$f":"IF($DN$59=0,0,(IF(CO$12='INPUT | TSz > Kosten'!$P$64,'INPUT | KSz > Kosten'!$G$50,'INPUT | KSz > Kosten'!$G$50*Nebenrechnungen!BN40))*(1+CO$17)^Ablage!D71*Ablage!E71)","v":0},{"$f":"IF($D40>='INPUT | KSz > Kosten'!$G$52,Nebenrechnungen!CO40,0)","v":0},null,{"$f":"IF(SUM(CA40:CC40)=0,0,'INPUT | KSz > Kosten'!$G$54*(1+AK$17)^Ablage!D71)","v":0},null,0,{"$f":"IFERROR(INDEX('INPUT | KSz > Erlöse & Finanz'!$G$17:$G$36,MATCH(Nebenrechnungen!D40,'INPUT | KSz > Erlöse & Finanz'!$C$17:$C$36,0)),0)","v":0},0,null,0,0,0,{"$f":"IFERROR(INDEX('INPUT | KSz > Erlöse & Finanz'!$K$17:$K$36,MATCH(Nebenrechnungen!D40,'INPUT | KSz > Erlöse & Finanz'!$C$17:$C$36,0)),0)","v":0},0,null,{"$f":"IFERROR(INDEX('INPUT | KSz > Erlöse & Finanz'!$M$17:$M$36,MATCH(Nebenrechnungen!$D40,'INPUT | KSz > Erlöse & Finanz'!$C$17:$C$36,0)),0)","v":0},{"$f":"IFERROR(INDEX('INPUT | KSz > Erlöse & Finanz'!$O$17:$O$36,MATCH(Nebenrechnungen!$D40,'INPUT | KSz > Erlöse & Finanz'!$C$17:$C$36,0)),0)","v":0},0]
[null,"Jahr",19,{"$f":"'INPUT | TSz > Kosten'!C32","v":2044},null,{"$f":"SUM('INPUT | TSz > Kosten'!E32:K32)","v":0},0,null,{"$f":"IFERROR(INDEX('INPUT | TSz > Technik'!$H$51:$H$70,MATCH(Nebenrechnungen!D41,'INPUT | TSz > Technik'!$C$51:$C$70,0)),0)","v":0},0,0,null,{"$f":"IFERROR(INDEX('INPUT | TSz > Technik'!$F$16:$F$35,MATCH(Nebenrechnungen!$D41,'INPUT | TSz > Technik'!$C$16:$C$35,0)),0)","v":1},0,{"$f":"IFERROR(INDEX('INPUT | TSz > Technik'!$G$16:$G$35,MATCH(Nebenrechnungen!$D41,'INPUT | TSz > Technik'!$C$16:$C$35,0)),0)","v":0},0,{"$f":"IFERROR(INDEX('INPUT | TSz > Technik'!$H$16:$H$35,MATCH(Nebenrechnungen!$D41,'INPUT | TSz > Technik'!$C$16:$C$35,0)),0)","v":0},0,null,0,0,0,null,0,null,{"$f":"$AA$16*(1+$AA$17)^(Ablage!D72)","v":0},0,{"$f":"$AC$16*(1+$AC$17)^(Ablage!$D72)","v":0},0,{"$f":"$AE$16*(1+$AE$17)^(Ablage!$D72)","v":0},0,0,null,{"$f":"(IF(AH$12='INPUT | TSz > Kosten'!$P$64,'INPUT | TSz > Kosten'!$G$50,'INPUT | TSz > Kosten'!$G$50*G41))*(1+AH$17)^Ablage!D72*Ablage!E72","v":0},{"$f":"IF($D41>='INPUT | TSz > Kosten'!$G$52,Nebenrechnungen!AH41,0)","v":0},null,{"$f":"IF(SUM(T41:V41)=0,0,'INPUT | TSz > Kosten'!$G$54*(1+AK$17)^Ablage!D72)","v":0},null,0,{"$f":"IFERROR(INDEX('INPUT | TSz > Erlöse & Finanz'!$G$17:$G$36,MATCH(Nebenrechnungen!D41,'INPUT | TSz > Erlöse & Finanz'!$C$17:$C$36,0)),0)","v":0},0,null,0,0,0,{"$f":"IFERROR(INDEX('INPUT | TSz > Erlöse & Finanz'!$K$17:$K$36,MATCH(Nebenrechnungen!D41,'INPUT | TSz > Erlöse & Finanz'!$C$17:$C$36,0)),0)","v":0},0,null,{"$f":"IFERROR(INDEX('INPUT | TSz > Erlöse & Finanz'!$M$17:$M$36,MATCH(Nebenrechnungen!$D41,'INPUT | TSz > Erlöse & Finanz'!$C$17:$C$36,0)),0)","v":0},{"$f":"IFERROR(INDEX('INPUT | TSz > Erlöse & Finanz'!$O$17:$O$36,MATCH(Nebenrechnungen!$D41,'INPUT | TSz > Erlöse & Finanz'!$C$17:$C$36,0)),0)","v":0},0,null,{"$f":"'INPUT | TSz > iHaSt'!Z108*'INPUT | TSz > iHaSt'!$Z$82","v":0},null,0,0,null,0,0,null,{"$f":"$BI$15*(1+$BI$17)^Ablage!D72*Ablage!E72","v":0},null,{"$f":"$BK$15*(1+$BK$17)^Ablage!D72*Ablage!E72","v":0},null,{"$f":"IF($DN$59=0,0,SUM('INPUT | KSz > Kosten'!E32:K32))","v":0},0,null,{"$f":"IF($DN$59=0,0,IFERROR(INDEX('INPUT | KSz > Technik'!$H$50:$H$69,MATCH(Nebenrechnungen!D41,'INPUT | KSz > Technik'!$C$50:$C$69,0)),0))","v":0},0,0,null,{"$f":"IFERROR(INDEX('INPUT | KSz > Technik'!$F$16:$F$35,MATCH(Nebenrechnungen!$D41,'INPUT | KSz > Technik'!$C$16:$C$35,0)),0)","v":1},0,{"$f":"IFERROR(INDEX('INPUT | KSz > Technik'!$G$16:$G$35,MATCH(Nebenrechnungen!$D41,'INPUT | KSz > Technik'!$C$16:$C$35,0)),0)","v":0},0,{"$f":"IFERROR(INDEX('INPUT | KSz > Technik'!$H$16:$H$35,MATCH(Nebenrechnungen!$D41,'INPUT | KSz > Technik'!$C$16:$C$35,0)),0)","v":0},0,null,0,0,0,null,0,null,{"$f":"$CH$16*(1+$CH$17)^(Ablage!$D72)","v":0},0,{"$f":"$CJ$16*(1+$CJ$17)^(Ablage!$D72)","v":0},0,{"$f":"$CL$16*(1+$CL$17)^(Ablage!$D72)","v":0},0,0,null,{"$f":"IF($DN$59=0,0,(IF(CO$12='INPUT | TSz > Kosten'!$P$64,'INPUT | KSz > Kosten'!$G$50,'INPUT | KSz > Kosten'!$G$50*Nebenrechnungen!BN41))*(1+CO$17)^Ablage!D72*Ablage!E72)","v":0},{"$f":"IF($D41>='INPUT | KSz > Kosten'!$G$52,Nebenrechnungen!CO41,0)","v":0},null,{"$f":"IF(SUM(CA41:CC41)=0,0,'INPUT | KSz > Kosten'!$G$54*(1+AK$17)^Ablage!D72)","v":0},null,0,{"$f":"IFERROR(INDEX('INPUT | KSz > Erlöse & Finanz'!$G$17:$G$36,MATCH(Nebenrechnungen!D41,'INPUT | KSz > Erlöse & Finanz'!$C$17:$C$36,0)),0)","v":0},0,null,0,0,0,{"$f":"IFERROR(INDEX('INPUT | KSz > Erlöse & Finanz'!$K$17:$K$36,MATCH(Nebenrechnungen!D41,'INPUT | KSz > Erlöse & Finanz'!$C$17:$C$36,0)),0)","v":0},0,null,{"$f":"IFERROR(INDEX('INPUT | KSz > Erlöse & Finanz'!$M$17:$M$36,MATCH(Nebenrechnungen!$D41,'INPUT | KSz > Erlöse & Finanz'!$C$17:$C$36,0)),0)","v":0},{"$f":"IFERROR(INDEX('INPUT | KSz > Erlöse & Finanz'!$O$17:$O$36,MATCH(Nebenrechnungen!$D41,'INPUT | KSz > Erlöse & Finanz'!$C$17:$C$36,0)),0)","v":0},0]
[null,"Jahr",20,{"$f":"'INPUT | TSz > Kosten'!C33","v":2045},null,{"$f":"SUM('INPUT | TSz > Kosten'!E33:K33)","v":0},0,null,{"$f":"IFERROR(INDEX('INPUT | TSz > Technik'!$H$51:$H$70,MATCH(Nebenrechnungen!D42,'INPUT | TSz > Technik'!$C$51:$C$70,0)),0)","v":0},0,0,null,{"$f":"IFERROR(INDEX('INPUT | TSz > Technik'!$F$16:$F$35,MATCH(Nebenrechnungen!$D42,'INPUT | TSz > Technik'!$C$16:$C$35,0)),0)","v":1},0,{"$f":"IFERROR(INDEX('INPUT | TSz > Technik'!$G$16:$G$35,MATCH(Nebenrechnungen!$D42,'INPUT | TSz > Technik'!$C$16:$C$35,0)),0)","v":0},0,{"$f":"IFERROR(INDEX('INPUT | TSz > Technik'!$H$16:$H$35,MATCH(Nebenrechnungen!$D42,'INPUT | TSz > Technik'!$C$16:$C$35,0)),0)","v":0},0,null,0,0,0,null,0,null,{"$f":"$AA$16*(1+$AA$17)^(Ablage!D73)","v":0},0,{"$f":"$AC$16*(1+$AC$17)^(Ablage!$D73)","v":0},0,{"$f":"$AE$16*(1+$AE$17)^(Ablage!$D73)","v":0},0,0,null,{"$f":"(IF(AH$12='INPUT | TSz > Kosten'!$P$64,'INPUT | TSz > Kosten'!$G$50,'INPUT | TSz > Kosten'!$G$50*G42))*(1+AH$17)^Ablage!D73*Ablage!E73","v":0},{"$f":"IF($D42>='INPUT | TSz > Kosten'!$G$52,Nebenrechnungen!AH42,0)","v":0},null,{"$f":"IF(SUM(T42:V42)=0,0,'INPUT | TSz > Kosten'!$G$54*(1+AK$17)^Ablage!D73)","v":0},null,0,{"$f":"IFERROR(INDEX('INPUT | TSz > Erlöse & Finanz'!$G$17:$G$36,MATCH(Nebenrechnungen!D42,'INPUT | TSz > Erlöse & Finanz'!$C$17:$C$36,0)),0)","v":0},0,null,0,0,0,{"$f":"IFERROR(INDEX('INPUT | TSz > Erlöse & Finanz'!$K$17:$K$36,MATCH(Nebenrechnungen!D42,'INPUT | TSz > Erlöse & Finanz'!$C$17:$C$36,0)),0)","v":0},0,null,{"$f":"IFERROR(INDEX('INPUT | TSz > Erlöse & Finanz'!$M$17:$M$36,MATCH(Nebenrechnungen!$D42,'INPUT | TSz > Erlöse & Finanz'!$C$17:$C$36,0)),0)","v":0},{"$f":"IFERROR(INDEX('INPUT | TSz > Erlöse & Finanz'!$O$17:$O$36,MATCH(Nebenrechnungen!$D42,'INPUT | TSz > Erlöse & Finanz'!$C$17:$C$36,0)),0)","v":0},0,null,{"$f":"'INPUT | TSz > iHaSt'!Z109*'INPUT | TSz > iHaSt'!$Z$82","v":0},null,0,0,null,0,0,null,{"$f":"$BI$15*(1+$BI$17)^Ablage!D73*Ablage!E73","v":0},null,{"$f":"$BK$15*(1+$BK$17)^Ablage!D73*Ablage!E73","v":0},null,{"$f":"IF($DN$59=0,0,SUM('INPUT | KSz > Kosten'!E33:K33))","v":0},0,null,{"$f":"IF($DN$59=0,0,IFERROR(INDEX('INPUT | KSz > Technik'!$H$50:$H$69,MATCH(Nebenrechnungen!D42,'INPUT | KSz > Technik'!$C$50:$C$69,0)),0))","v":0},0,0,null,{"$f":"IFERROR(INDEX('INPUT | KSz > Technik'!$F$16:$F$35,MATCH(Nebenrechnungen!$D42,'INPUT | KSz > Technik'!$C$16:$C$35,0)),0)","v":1},0,{"$f":"IFERROR(INDEX('INPUT | KSz > Technik'!$G$16:$G$35,MATCH(Nebenrechnungen!$D42,'INPUT | KSz > Technik'!$C$16:$C$35,0)),0)","v":0},0,{"$f":"IFERROR(INDEX('INPUT | KSz > Technik'!$H$16:$H$35,MATCH(Nebenrechnungen!$D42,'INPUT | KSz > Technik'!$C$16:$C$35,0)),0)","v":0},0,null,0,0,0,null,0,null,{"$f":"$CH$16*(1+$CH$17)^(Ablage!$D73)","v":0},0,{"$f":"$CJ$16*(1+$CJ$17)^(Ablage!$D73)","v":0},0,{"$f":"$CL$16*(1+$CL$17)^(Ablage!$D73)","v":0},0,0,null,{"$f":"IF($DN$59=0,0,(IF(CO$12='INPUT | TSz > Kosten'!$P$64,'INPUT | KSz > Kosten'!$G$50,'INPUT | KSz > Kosten'!$G$50*Nebenrechnungen!BN42))*(1+CO$17)^Ablage!D73*Ablage!E73)","v":0},{"$f":"IF($D42>='INPUT | KSz > Kosten'!$G$52,Nebenrechnungen!CO42,0)","v":0},null,{"$f":"IF(SUM(CA42:CC42)=0,0,'INPUT | KSz > Kosten'!$G$54*(1+AK$17)^Ablage!D73)","v":0},null,0,{"$f":"IFERROR(INDEX('INPUT | KSz > Erlöse & Finanz'!$G$17:$G$36,MATCH(Nebenrechnungen!D42,'INPUT | KSz > Erlöse & Finanz'!$C$17:$C$36,0)),0)","v":0},0,null,0,0,0,{"$f":"IFERROR(INDEX('INPUT | KSz > Erlöse & Finanz'!$K$17:$K$36,MATCH(Nebenrechnungen!D42,'INPUT | KSz > Erlöse & Finanz'!$C$17:$C$36,0)),0)","v":0},0,null,{"$f":"IFERROR(INDEX('INPUT | KSz > Erlöse & Finanz'!$M$17:$M$36,MATCH(Nebenrechnungen!$D42,'INPUT | KSz > Erlöse & Finanz'!$C$17:$C$36,0)),0)","v":0},{"$f":"IFERROR(INDEX('INPUT | KSz > Erlöse & Finanz'!$O$17:$O$36,MATCH(Nebenrechnungen!$D42,'INPUT | KSz > Erlöse & Finanz'!$C$17:$C$36,0)),0)","v":0},0]
[null,"Jahr",21,{"$f":"'INPUT | TSz > Kosten'!C34","v":""},null,{"$f":"SUM('INPUT | TSz > Kosten'!E34:K34)","v":0},{"$f":"G42+F43","v":0},null,{"$f":"IFERROR(INDEX('INPUT | TSz > Technik'!$H$51:$H$70,MATCH(Nebenrechnungen!D43,'INPUT | TSz > Technik'!$C$51:$C$70,0)),0)","v":0},0,{"$f":"SUM(I43:J43)","v":0},null,{"$f":"IFERROR(INDEX('INPUT | TSz > Technik'!$F$16:$F$35,MATCH(Nebenrechnungen!$D43,'INPUT | TSz > Technik'!$C$16:$C$35,0)),0)","v":0},{"$f":"IFERROR(K43*M43/$N$16,0)","v":0},{"$f":"IFERROR(INDEX('INPUT | TSz > Technik'!$G$16:$G$35,MATCH(Nebenrechnungen!$D43,'INPUT | TSz > Technik'!$C$16:$C$35,0)),0)","v":0},{"$f":"IFERROR(K43*O43/$P$16,0)","v":0},{"$f":"IFERROR(INDEX('INPUT | TSz > Technik'!$H$16:$H$35,MATCH(Nebenrechnungen!$D43,'INPUT | TSz > Technik'!$C$16:$C$35,0)),0)","v":0},{"$f":"IFERROR(K43*Q43/$R$16,0)","v":0},null,{"$f":"N43*T$16","v":0},{"$f":"P43*U$16","v":0},{"$f":"R43*V$16","v":0},null,{"$f":"K43*$X$16","v":0},null,{"$f":"$AA$16*(1+$AA$17)^(Ablage!D74)","v":0},{"$f":"IF(X$16=1,X43,T43)*Z43","v":0},{"$f":"$AC$16*(1+$AC$17)^(Ablage!$D74)","v":0},{"$f":"AB43*U43","v":0},{"$f":"$AE$16*(1+$AE$17)^(Ablage!$D74)","v":0},{"$f":"AD43*V43","v":0},{"$f":"SUM(AA43,AC43,AE43)","v":0},null,{"$f":"(IF(AH$12='INPUT | TSz > Kosten'!$P$64,'INPUT | TSz > Kosten'!$G$50,'INPUT | TSz > Kosten'!$G$50*G43))*(1+AH$17)^Ablage!D74*Ablage!E74","v":0},{"$f":"IF($D43>='INPUT | TSz > Kosten'!$G$52,Nebenrechnungen!AH43,0)","v":0},null,{"$f":"IF(SUM(T43:V43)=0,0,'INPUT | TSz > Kosten'!$G$54*(1+AK$17)^Ablage!D74)","v":0},null,0,{"$f":"IFERROR(INDEX('INPUT | TSz > Erlöse & Finanz'!$G$17:$G$36,MATCH(Nebenrechnungen!D43,'INPUT | TSz > Erlöse & Finanz'!$C$17:$C$36,0)),0)","v":0},{"$f":"AM43*AN43","v":0},null,{"$f":"$AQ$16*N43","v":0},{"$f":"$AR$16*P43","v":0},{"$f":"$AS$16*R43","v":0},{"$f":"IFERROR(INDEX('INPUT | TSz > Erlöse & Finanz'!$K$17:$K$36,MATCH(Nebenrechnungen!D43,'INPUT | TSz > Erlöse & Finanz'!$C$17:$C$36,0)),0)","v":0},{"$f":"(AQ43+AR43+AS43)*AT43","v":0},null,{"$f":"IFERROR(INDEX('INPUT | TSz > Erlöse & Finanz'!$M$17:$M$36,MATCH(Nebenrechnungen!$D43,'INPUT | TSz > Erlöse & Finanz'!$C$17:$C$36,0)),0)","v":0},{"$f":"IFERROR(INDEX('INPUT | TSz > Erlöse & Finanz'!$O$17:$O$36,MATCH(Nebenrechnungen!$D43,'INPUT | TSz > Erlöse & Finanz'!$C$17:$C$36,0)),0)","v":0},0,null,{"$f":"'INPUT | TSz > iHaSt'!Z110*'INPUT | TSz > iHaSt'!$Z$82","v":0},null,0,0,null,0,0,null,{"$f":"$BI$15*(1+$BI$17)^Ablage!D74*Ablage!E74","v":0},null,{"$f":"$BK$15*(1+$BK$17)^Ablage!D74*Ablage!E74","v":0},null,{"$f":"IF($DN$59=0,0,SUM('INPUT | KSz > Kosten'!E34:K34))","v":0},{"$f":"BN42+BM43","v":0},null,{"$f":"IF($DN$59=0,0,IFERROR(INDEX('INPUT | KSz > Technik'!$H$50:$H$69,MATCH(Nebenrechnungen!D43,'INPUT | KSz > Technik'!$C$50:$C$69,0)),0))","v":0},0,{"$f":"SUM(BP43:BQ43)","v":0},null,{"$f":"IFERROR(INDEX('INPUT | KSz > Technik'!$F$16:$F$35,MATCH(Nebenrechnungen!$D43,'INPUT | KSz > Technik'!$C$16:$C$35,0)),0)","v":0},{"$f":"IFERROR(BR43*BT43/$BU$16,0)","v":0},{"$f":"IFERROR(INDEX('INPUT | KSz > Technik'!$G$16:$G$35,MATCH(Nebenrechnungen!$D43,'INPUT | KSz > Technik'!$C$16:$C$35,0)),0)","v":0},{"$f":"IFERROR(BR43*BV43/$BW$16,0)","v":0},{"$f":"IFERROR(INDEX('INPUT | KSz > Technik'!$H$16:$H$35,MATCH(Nebenrechnungen!$D43,'INPUT | KSz > Technik'!$C$16:$C$35,0)),0)","v":0},{"$f":"IFERROR(BR43*BX43/$BY$16,0)","v":0},null,{"$f":"BU43*CA$16","v":0},{"$f":"BW43*CB$16","v":0},{"$f":"BY43*CC$16","v":0},null,{"$f":"BR43*$CE$16","v":0},null,{"$f":"$CH$16*(1+$CH$17)^(Ablage!$D74)","v":0},{"$f":"IF(CE$16=1,CE43,CA43)*CG43","v":0},{"$f":"$CJ$16*(1+$CJ$17)^(Ablage!$D74)","v":0},{"$f":"CI43*CB43","v":0},{"$f":"$CL$16*(1+$CL$17)^(Ablage!$D74)","v":0},{"$f":"CK43*CC43","v":0},{"$f":"SUM(CH43,CJ43,CL43)","v":0},null,{"$f":"IF($DN$59=0,0,(IF(CO$12='INPUT | TSz > Kosten'!$P$64,'INPUT | KSz > Kosten'!$G$50,'INPUT | KSz > Kosten'!$G$50*Nebenrechnungen!BN43))*(1+CO$17)^Ablage!D74*Ablage!E74)","v":0},{"$f":"IF($D43>='INPUT | KSz > Kosten'!$G$52,Nebenrechnungen!CO43,0)","v":0},null,{"$f":"IF(SUM(CA43:CC43)=0,0,'INPUT | KSz > Kosten'!$G$54*(1+AK$17)^Ablage!D74)","v":0},null,0,{"$f":"IFERROR(INDEX('INPUT | KSz > Erlöse & Finanz'!$G$17:$G$36,MATCH(Nebenrechnungen!D43,'INPUT | KSz > Erlöse & Finanz'!$C$17:$C$36,0)),0)","v":0},{"$f":"CT43*CU43","v":0},null,{"$f":"$CX$16*BU43","v":0},{"$f":"$CY$16*BW43","v":0},{"$f":"$CZ$16*BY43","v":0},{"$f":"IFERROR(INDEX('INPUT | KSz > Erlöse & Finanz'!$K$17:$K$36,MATCH(Nebenrechnungen!D43,'INPUT | KSz > Erlöse & Finanz'!$C$17:$C$36,0)),0)","v":0},{"$f":"(CX43+CY43+CZ43)*DA43","v":0},null,{"$f":"IFERROR(INDEX('INPUT | KSz > Erlöse & Finanz'!$M$17:$M$36,MATCH(Nebenrechnungen!$D43,'INPUT | KSz > Erlöse & Finanz'!$C$17:$C$36,0)),0)","v":0},{"$f":"IFERROR(INDEX('INPUT | KSz > Erlöse & Finanz'!$O$17:$O$36,MATCH(Nebenrechnungen!$D43,'INPUT | KSz > Erlöse & Finanz'!$C$17:$C$36,0)),0)","v":0},0]
[null,"Jahr",22,{"$f":"'INPUT | TSz > Kosten'!C35","v":""},null,{"$f":"SUM('INPUT | TSz > Kosten'!E35:K35)","v":0},0,null,{"$f":"IFERROR(INDEX('INPUT | TSz > Technik'!$H$51:$H$70,MATCH(Nebenrechnungen!D44,'INPUT | TSz > Technik'!$C$51:$C$70,0)),0)","v":0},0,0,null,{"$f":"IFERROR(INDEX('INPUT | TSz > Technik'!$F$16:$F$35,MATCH(Nebenrechnungen!$D44,'INPUT | TSz > Technik'!$C$16:$C$35,0)),0)","v":0},0,{"$f":"IFERROR(INDEX('INPUT | TSz > Technik'!$G$16:$G$35,MATCH(Nebenrechnungen!$D44,'INPUT | TSz > Technik'!$C$16:$C$35,0)),0)","v":0},0,{"$f":"IFERROR(INDEX('INPUT | TSz > Technik'!$H$16:$H$35,MATCH(Nebenrechnungen!$D44,'INPUT | TSz > Technik'!$C$16:$C$35,0)),0)","v":0},0,null,0,0,0,null,0,null,{"$f":"$AA$16*(1+$AA$17)^(Ablage!D75)","v":0},0,{"$f":"$AC$16*(1+$AC$17)^(Ablage!$D75)","v":0},0,{"$f":"$AE$16*(1+$AE$17)^(Ablage!$D75)","v":0},0,0,null,{"$f":"(IF(AH$12='INPUT | TSz > Kosten'!$P$64,'INPUT | TSz > Kosten'!$G$50,'INPUT | TSz > Kosten'!$G$50*G44))*(1+AH$17)^Ablage!D75*Ablage!E75","v":0},{"$f":"IF($D44>='INPUT | TSz > Kosten'!$G$52,Nebenrechnungen!AH44,0)","v":0},null,{"$f":"IF(SUM(T44:V44)=0,0,'INPUT | TSz > Kosten'!$G$54*(1+AK$17)^Ablage!D75)","v":0},null,0,{"$f":"IFERROR(INDEX('INPUT | TSz > Erlöse & Finanz'!$G$17:$G$36,MATCH(Nebenrechnungen!D44,'INPUT | TSz > Erlöse & Finanz'!$C$17:$C$36,0)),0)","v":0},0,null,0,0,0,{"$f":"IFERROR(INDEX('INPUT | TSz > Erlöse & Finanz'!$K$17:$K$36,MATCH(Nebenrechnungen!D44,'INPUT | TSz > Erlöse & Finanz'!$C$17:$C$36,0)),0)","v":0},0,null,{"$f":"IFERROR(INDEX('INPUT | TSz > Erlöse & Finanz'!$M$17:$M$36,MATCH(Nebenrechnungen!$D44,'INPUT | TSz > Erlöse & Finanz'!$C$17:$C$36,0)),0)","v":0},{"$f":"IFERROR(INDEX('INPUT | TSz > Erlöse & Finanz'!$O$17:$O$36,MATCH(Nebenrechnungen!$D44,'INPUT | TSz > Erlöse & Finanz'!$C$17:$C$36,0)),0)","v":0},0,null,{"$f":"'INPUT | TSz > iHaSt'!Z111*'INPUT | TSz > iHaSt'!$Z$82","v":0},null,0,0,null,0,0,null,{"$f":"$BI$15*(1+$BI$17)^Ablage!D75*Ablage!E75","v":0},null,{"$f":"$BK$15*(1+$BK$17)^Ablage!D75*Ablage!E75","v":0},null,{"$f":"IF($DN$59=0,0,SUM('INPUT | KSz > Kosten'!E35:K35))","v":0},0,null,{"$f":"IF($DN$59=0,0,IFERROR(INDEX('INPUT | KSz > Technik'!$H$50:$H$69,MATCH(Nebenrechnungen!D44,'INPUT | KSz > Technik'!$C$50:$C$69,0)),0))","v":0},0,0,null,{"$f":"IFERROR(INDEX('INPUT | KSz > Technik'!$F$16:$F$35,MATCH(Nebenrechnungen!$D44,'INPUT | KSz > Technik'!$C$16:$C$35,0)),0)","v":0},0,{"$f":"IFERROR(INDEX('INPUT | KSz > Technik'!$G$16:$G$35,MATCH(Nebenrechnungen!$D44,'INPUT | KSz > Technik'!$C$16:$C$35,0)),0)","v":0},0,{"$f":"IFERROR(INDEX('INPUT | KSz > Technik'!$H$16:$H$35,MATCH(Nebenrechnungen!$D44,'INPUT | KSz > Technik'!$C$16:$C$35,0)),0)","v":0},0,null,0,0,0,null,0,null,{"$f":"$CH$16*(1+$CH$17)^(Ablage!$D75)","v":0},0,{"$f":"$CJ$16*(1+$CJ$17)^(Ablage!$D75)","v":0},0,{"$f":"$CL$16*(1+$CL$17)^(Ablage!$D75)","v":0},0,0,null,{"$f":"IF($DN$59=0,0,(IF(CO$12='INPUT | TSz > Kosten'!$P$64,'INPUT | KSz > Kosten'!$G$50,'INPUT | KSz > Kosten'!$G$50*Nebenrechnungen!BN44))*(1+CO$17)^Ablage!D75*Ablage!E75)","v":0},{"$f":"IF($D44>='INPUT | KSz > Kosten'!$G$52,Nebenrechnungen!CO44,0)","v":0},null,{"$f":"IF(SUM(CA44:CC44)=0,0,'INPUT | KSz > Kosten'!$G$54*(1+AK$17)^Ablage!D75)","v":0},null,0,{"$f":"IFERROR(INDEX('INPUT | KSz > Erlöse & Finanz'!$G$17:$G$36,MATCH(Nebenrechnungen!D44,'INPUT | KSz > Erlöse & Finanz'!$C$17:$C$36,0)),0)","v":0},0,null,0,0,0,{"$f":"IFERROR(INDEX('INPUT | KSz > Erlöse & Finanz'!$K$17:$K$36,MATCH(Nebenrechnungen!D44,'INPUT | KSz > Erlöse & Finanz'!$C$17:$C$36,0)),0)","v":0},0,null,{"$f":"IFERROR(INDEX('INPUT | KSz > Erlöse & Finanz'!$M$17:$M$36,MATCH(Nebenrechnungen!$D44,'INPUT | KSz > Erlöse & Finanz'!$C$17:$C$36,0)),0)","v":0},{"$f":"IFERROR(INDEX('INPUT | KSz > Erlöse & Finanz'!$O$17:$O$36,MATCH(Nebenrechnungen!$D44,'INPUT | KSz > Erlöse & Finanz'!$C$17:$C$36,0)),0)","v":0},0]
[null,"Jahr",23,{"$f":"'INPUT | TSz > Kosten'!C36","v":""},null,{"$f":"SUM('INPUT | TSz > Kosten'!E36:K36)","v":0},0,null,{"$f":"IFERROR(INDEX('INPUT | TSz > Technik'!$H$51:$H$70,MATCH(Nebenrechnungen!D45,'INPUT | TSz > Technik'!$C$51:$C$70,0)),0)","v":0},0,0,null,{"$f":"IFERROR(INDEX('INPUT | TSz > Technik'!$F$16:$F$35,MATCH(Nebenrechnungen!$D45,'INPUT | TSz > Technik'!$C$16:$C$35,0)),0)","v":0},0,{"$f":"IFERROR(INDEX('INPUT | TSz > Technik'!$G$16:$G$35,MATCH(Nebenrechnungen!$D45,'INPUT | TSz > Technik'!$C$16:$C$35,0)),0)","v":0},0,{"$f":"IFERROR(INDEX('INPUT | TSz > Technik'!$H$16:$H$35,MATCH(Nebenrechnungen!$D45,'INPUT | TSz > Technik'!$C$16:$C$35,0)),0)","v":0},0,null,0,0,0,null,0,null,{"$f":"$AA$16*(1+$AA$17)^(Ablage!D76)","v":0},0,{"$f":"$AC$16*(1+$AC$17)^(Ablage!$D76)","v":0},0,{"$f":"$AE$16*(1+$AE$17)^(Ablage!$D76)","v":0},0,0,null,{"$f":"(IF(AH$12='INPUT | TSz > Kosten'!$P$64,'INPUT | TSz > Kosten'!$G$50,'INPUT | TSz > Kosten'!$G$50*G45))*(1+AH$17)^Ablage!D76*Ablage!E76","v":0},{"$f":"IF($D45>='INPUT | TSz > Kosten'!$G$52,Nebenrechnungen!AH45,0)","v":0},null,{"$f":"'INPUT | TSz > Kosten'!$G$54*(1+AK$17)^($C45-1)","v":0},null,0,{"$f":"IFERROR(INDEX('INPUT | TSz > Erlöse & Finanz'!$G$17:$G$36,MATCH(Nebenrechnungen!D45,'INPUT | TSz > Erlöse & Finanz'!$C$17:$C$36,0)),0)","v":0},0,null,0,0,0,{"$f":"IFERROR(INDEX('INPUT | TSz > Erlöse & Finanz'!$K$17:$K$36,MATCH(Nebenrechnungen!D45,'INPUT | TSz > Erlöse & Finanz'!$C$17:$C$36,0)),0)","v":0},0,null,{"$f":"IFERROR(INDEX('INPUT | TSz > Erlöse & Finanz'!$M$17:$M$36,MATCH(Nebenrechnungen!$D45,'INPUT | TSz > Erlöse & Finanz'!$C$17:$C$36,0)),0)","v":0},{"$f":"IFERROR(INDEX('INPUT | TSz > Erlöse & Finanz'!$O$17:$O$36,MATCH(Nebenrechnungen!$D45,'INPUT | TSz > Erlöse & Finanz'!$C$17:$C$36,0)),0)","v":0},0,null,{"$f":"'INPUT | TSz > iHaSt'!Z112*'INPUT | TSz > iHaSt'!$Z$82","v":0},null,0,0,null,0,0,null,{"$f":"$BI$15*(1+$BI$17)^Ablage!D76*Ablage!E76","v":0},null,{"$f":"$BK$15*(1+$BK$17)^Ablage!D76*Ablage!E76","v":0},null,{"$f":"IF($DN$59=0,0,SUM('INPUT | KSz > Kosten'!E36:K36))","v":0},0,null,{"$f":"IF($DN$59=0,0,IFERROR(INDEX('INPUT | KSz > Technik'!$H$50:$H$69,MATCH(Nebenrechnungen!D45,'INPUT | KSz > Technik'!$C$50:$C$69,0)),0))","v":0},0,0,null,{"$f":"IFERROR(INDEX('INPUT | KSz > Technik'!$F$16:$F$35,MATCH(Nebenrechnungen!$D45,'INPUT | KSz > Technik'!$C$16:$C$35,0)),0)","v":0},0,{"$f":"IFERROR(INDEX('INPUT | KSz > Technik'!$G$16:$G$35,MATCH(Nebenrechnungen!$D45,'INPUT | KSz > Technik'!$C$16:$C$35,0)),0)","v":0},0,{"$f":"IFERROR(INDEX('INPUT | KSz > Technik'!$H$16:$H$35,MATCH(Nebenrechnungen!$D45,'INPUT | KSz > Technik'!$C$16:$C$35,0)),0)","v":0},0,null,0,0,0,null,0,null,{"$f":"$CH$16*(1+$CH$17)^(Ablage!$D76)","v":0},0,{"$f":"$CJ$16*(1+$CJ$17)^(Ablage!$D76)","v":0},0,{"$f":"$CL$16*(1+$CL$17)^(Ablage!$D76)","v":0},0,0,null,{"$f":"IF($DN$59=0,0,(IF(CO$12='INPUT | TSz > Kosten'!$P$64,'INPUT | KSz > Kosten'!$G$50,'INPUT | KSz > Kosten'!$G$50*Nebenrechnungen!BN45))*(1+CO$17)^Ablage!D76*Ablage!E76)","v":0},{"$f":"IF($D45>='INPUT | KSz > Kosten'!$G$52,Nebenrechnungen!CO45,0)","v":0},null,{"$f":"IF(SUM(CA45:CC45)=0,0,'INPUT | KSz > Kosten'!$G$54*(1+AK$17)^Ablage!D76)","v":0},null,0,{"$f":"IFERROR(INDEX('INPUT | KSz > Erlöse & Finanz'!$G$17:$G$36,MATCH(Nebenrechnungen!D45,'INPUT | KSz > Erlöse & Finanz'!$C$17:$C$36,0)),0)","v":0},0,null,0,0,0,{"$f":"IFERROR(INDEX('INPUT | KSz > Erlöse & Finanz'!$K$17:$K$36,MATCH(Nebenrechnungen!D45,'INPUT | KSz > Erlöse & Finanz'!$C$17:$C$36,0)),0)","v":0},0,null,{"$f":"IFERROR(INDEX('INPUT | KSz > Erlöse & Finanz'!$M$17:$M$36,MATCH(Nebenrechnungen!$D45,'INPUT | KSz > Erlöse & Finanz'!$C$17:$C$36,0)),0)","v":0},{"$f":"IFERROR(INDEX('INPUT | KSz > Erlöse & Finanz'!$O$17:$O$36,MATCH(Nebenrechnungen!$D45,'INPUT | KSz > Erlöse & Finanz'!$C$17:$C$36,0)),0)","v":0},0]
[null,"Jahr",24,{"$f":"'INPUT | TSz > Kosten'!C37","v":""},null,{"$f":"SUM('INPUT | TSz > Kosten'!E37:K37)","v":0},0,null,{"$f":"IFERROR(INDEX('INPUT | TSz > Technik'!$H$51:$H$70,MATCH(Nebenrechnungen!D46,'INPUT | TSz > Technik'!$C$51:$C$70,0)),0)","v":0},0,0,null,{"$f":"IFERROR(INDEX('INPUT | TSz > Technik'!$F$16:$F$35,MATCH(Nebenrechnungen!$D46,'INPUT | TSz > Technik'!$C$16:$C$35,0)),0)","v":0},0,{"$f":"IFERROR(INDEX('INPUT | TSz > Technik'!$G$16:$G$35,MATCH(Nebenrechnungen!$D46,'INPUT | TSz > Technik'!$C$16:$C$35,0)),0)","v":0},0,{"$f":"IFERROR(INDEX('INPUT | TSz > Technik'!$H$16:$H$35,MATCH(Nebenrechnungen!$D46,'INPUT | TSz > Technik'!$C$16:$C$35,0)),0)","v":0},0,null,0,0,0,null,0,null,{"$f":"$AA$16*(1+$AA$17)^(Ablage!D77)","v":0},0,{"$f":"$AC$16*(1+$AC$17)^(Ablage!$D77)","v":0},0,{"$f":"$AE$16*(1+$AE$17)^(Ablage!$D77)","v":0},0,0,null,{"$f":"(IF(AH$12='INPUT | TSz > Kosten'!$P$64,'INPUT | TSz > Kosten'!$G$50,'INPUT | TSz > Kosten'!$G$50*G46))*(1+AH$17)^Ablage!D77*Ablage!E77","v":0},{"$f":"IF($D46>='INPUT | TSz > Kosten'!$G$52,Nebenrechnungen!AH46,0)","v":0},null,{"$f":"'INPUT | TSz > Kosten'!$G$54*(1+AK$17)^($C46-1)","v":0},null,0,{"$f":"IFERROR(INDEX('INPUT | TSz > Erlöse & Finanz'!$G$17:$G$36,MATCH(Nebenrechnungen!D46,'INPUT | TSz > Erlöse & Finanz'!$C$17:$C$36,0)),0)","v":0},0,null,0,0,0,{"$f":"IFERROR(INDEX('INPUT | TSz > Erlöse & Finanz'!$K$17:$K$36,MATCH(Nebenrechnungen!D46,'INPUT | TSz > Erlöse & Finanz'!$C$17:$C$36,0)),0)","v":0},0,null,{"$f":"IFERROR(INDEX('INPUT | TSz > Erlöse & Finanz'!$M$17:$M$36,MATCH(Nebenrechnungen!$D46,'INPUT | TSz > Erlöse & Finanz'!$C$17:$C$36,0)),0)","v":0},{"$f":"IFERROR(INDEX('INPUT | TSz > Erlöse & Finanz'!$O$17:$O$36,MATCH(Nebenrechnungen!$D46,'INPUT | TSz > Erlöse & Finanz'!$C$17:$C$36,0)),0)","v":0},0,null,{"$f":"'INPUT | TSz > iHaSt'!Z113*'INPUT | TSz > iHaSt'!$Z$82","v":0},null,0,0,null,0,0,null,{"$f":"$BI$15*(1+$BI$17)^Ablage!D77*Ablage!E77","v":0},null,{"$f":"$BK$15*(1+$BK$17)^Ablage!D77*Ablage!E77","v":0},null,{"$f":"IF($DN$59=0,0,SUM('INPUT | KSz > Kosten'!E37:K37))","v":0},0,null,{"$f":"IF($DN$59=0,0,IFERROR(INDEX('INPUT | KSz > Technik'!$H$50:$H$69,MATCH(Nebenrechnungen!D46,'INPUT | KSz > Technik'!$C$50:$C$69,0)),0))","v":0},0,0,null,{"$f":"IFERROR(INDEX('INPUT | KSz > Technik'!$F$16:$F$35,MATCH(Nebenrechnungen!$D46,'INPUT | KSz > Technik'!$C$16:$C$35,0)),0)","v":0},0,{"$f":"IFERROR(INDEX('INPUT | KSz > Technik'!$G$16:$G$35,MATCH(Nebenrechnungen!$D46,'INPUT | KSz > Technik'!$C$16:$C$35,0)),0)","v":0},0,{"$f":"IFERROR(INDEX('INPUT | KSz > Technik'!$H$16:$H$35,MATCH(Nebenrechnungen!$D46,'INPUT | KSz > Technik'!$C$16:$C$35,0)),0)","v":0},0,null,0,0,0,null,0,null,{"$f":"$CH$16*(1+$CH$17)^(Ablage!$D77)","v":0},0,{"$f":"$CJ$16*(1+$CJ$17)^(Ablage!$D77)","v":0},0,{"$f":"$CL$16*(1+$CL$17)^(Ablage!$D77)","v":0},0,0,null,{"$f":"IF($DN$59=0,0,(IF(CO$12='INPUT | TSz > Kosten'!$P$64,'INPUT | KSz > Kosten'!$G$50,'INPUT | KSz > Kosten'!$G$50*Nebenrechnungen!BN46))*(1+CO$17)^Ablage!D77*Ablage!E77)","v":0},{"$f":"IF($D46>='INPUT | KSz > Kosten'!$G$52,Nebenrechnungen!CO46,0)","v":0},null,{"$f":"IF(SUM(CA46:CC46)=0,0,'INPUT | KSz > Kosten'!$G$54*(1+AK$17)^Ablage!D77)","v":0},null,0,{"$f":"IFERROR(INDEX('INPUT | KSz > Erlöse & Finanz'!$G$17:$G$36,MATCH(Nebenrechnungen!D46,'INPUT | KSz > Erlöse & Finanz'!$C$17:$C$36,0)),0)","v":0},0,null,0,0,0,{"$f":"IFERROR(INDEX('INPUT | KSz > Erlöse & Finanz'!$K$17:$K$36,MATCH(Nebenrechnungen!D46,'INPUT | KSz > Erlöse & Finanz'!$C$17:$C$36,0)),0)","v":0},0,null,{"$f":"IFERROR(INDEX('INPUT | KSz > Erlöse & Finanz'!$M$17:$M$36,MATCH(Nebenrechnungen!$D46,'INPUT | KSz > Erlöse & Finanz'!$C$17:$C$36,0)),0)","v":0},{"$f":"IFERROR(INDEX('INPUT | KSz > Erlöse & Finanz'!$O$17:$O$36,MATCH(Nebenrechnungen!$D46,'INPUT | KSz > Erlöse & Finanz'!$C$17:$C$36,0)),0)","v":0},0]
{"$rows_empty":9}
[{"$nulls":117},"Formatierungen und Begriffe in Abhängigkeit der notwendigen Eingaben"]
[]
[{"$nulls":117},"Soll es Eingaben für ein Kontrafaktisches Szenario geben?  0=Nein, 1=Ja"]
[{"$nulls":117},{"$f":"'INPUT | Allgemeines'!$O$76","v":0},null,{"$f":"'INPUT | Allgemeines'!$Q$76","v":"Es wurde noch keine alternative Lösung ausgewählt."}]
[]
[{"$nulls":117},"Dauer"]
[{"$nulls":117},{"$f":"'INPUT | Allgemeines'!R102","v":20}]

{"sheet":"Intern","index":10,"n_rows":6,"n_cols":8,"rows_kept":6,"cut":false,"hidden":true,"merged":[[5,7,5,9]]}
[]
[]
["Beiblatt zur Prüfung der Zulässigkeit der angetrebten Förderung"]
[]
[]
[null,"Höchstzulässiger Fördersatz laut Förderrichtlinie (in Prozent):",{"$nulls":5},0.8]

{"sheet":"Ergebnis ","index":11,"n_rows":78,"n_cols":22,"rows_kept":78,"cut":false,"hidden":false,"merged":[[6,19,6,21],[8,19,8,21],[8,12,8,13],[8,15,8,17],[9,12,9,13],[9,15,9,17],[6,15,6,17],[6,12,6,13],[7,12,7,13],[7,15,7,17]]}
[]
[null,{"$f":"CONCATENATE(Kurztitel,\" | \",'INPUT | Allgemeines'!G7)","v":" | "}]
[null,"Berechnung der Finanzierungslücke nach AGVO",{"$nulls":19},{"$f":"Nutzungshinweise!B4","v":"Version 250509 FW"}]
[]
[]
[]
[null,"Zusammenfassung",{"$nulls":10},"Tatsächliches Szenario",null,null,"Kontrafakt. Szenario",null,null,null,"Finanzierungslücke"]
[null,"Alle Angaben in Euro",{"$nulls":8},"Gesamtinvestition",null,{"$f":"Nebenrechnungen!F21","v":0},null,null,{"$f":"Nebenrechnungen!BM21","v":0}]
[{"$nulls":10},"Kapitalwert",null,{"$f":"V20","v":0},null,null,{"$f":"V51","v":0},null,null,null,{"$f":"-IF(M9>0,0,M9-IF(P9>0,0,P9))","v":0}]
[{"$nulls":10},"Verwendeter WACC-Wert",null,{"$f":"WACCTSz","v":0.08},null,null,{"$f":"WACCKSz","v":0}]
[]
[]
[]
[null,{"$f":"IF('INPUT | TSz > iHaSt'!X82='INPUT | TSz > iHaSt'!X78,\"Tabelle IHast ist aktiv\",\"\")","v":""},{"$nulls":19},"Alle Angaben in Euro"]
[]
[{"$nulls":4},"Investition",null,"Kosten im Betrieb",{"$nulls":5},"Erlöse & vermied. Kosten",{"$nulls":4},"\"+/-\"",null,"Ergebnis",null,"Barwert"]
[]
[null,null,"Jahr",null,null,null,"allgemein","Brennstoff","Instand-\nhaltung",null,"Summe ",null,"Wärme","Strom",null,"Summe",null,"Sonst. \nEinnahmen",null,"Summe",null,"Barwert der Summe"]
[]
[null,"Geplante Systemlösung | Tatsächliches Szenario",{"$nulls":19},{"$f":"SUM(OFFSET(V22,0,0,'INPUT | Allgemeines'!R102,1))+V47","v":0}]
[]
[null,1,{"$f":"'INPUT | TSz > Kosten'!C14","v":2026},null,{"$f":"-Nebenrechnungen!F23","v":0},null,{"$f":"IF('INPUT | TSz > iHaSt'!$Z$82=1,-Nebenrechnungen!BK23+(-Nebenrechnungen!AK23),-Nebenrechnungen!AK23)","v":0},{"$f":"IF('INPUT | TSz > iHaSt'!$Z$82=1,-Nebenrechnungen!AF23+Nebenrechnungen!BG23,-Nebenrechnungen!AF23)","v":0},{"$f":"IF('INPUT | TSz > iHaSt'!$Z$82=1,-Nebenrechnungen!BI23+(-Nebenrechnungen!AI23),-Nebenrechnungen!AI23)","v":0},null,{"$f":"SUM(G22:I22)","v":0},null,{"$f":"Nebenrechnungen!AO23","v":0},{"$f":"Nebenrechnungen!AU23","v":0},null,{"$f":"M22+N22","v":0},null,{"$f":"Nebenrechnungen!AY23","v":0},null,{"$f":"E22+K22+P22+R22","v":0},null,{"$f":"T22/(1+WACCTSz)^($B22-1)","v":0}]
[null,2,{"$f":"'INPUT | TSz > Kosten'!C15","v":2027},null,{"$f":"-Nebenrechnungen!F24","v":0},null,{"$f":"IF('INPUT | TSz > iHaSt'!$Z$82=1,-Nebenrechnungen!BK24+(-Nebenrechnungen!AK24),-Nebenrechnungen!AK24)","v":0},{"$f":"IF('INPUT | TSz > iHaSt'!$Z$82=1,-Nebenrechnungen!AF24+Nebenrechnungen!BG24,-Nebenrechnungen!AF24)","v":0},{"$f":"IF('INPUT | TSz > iHaSt'!$Z$82=1,-Nebenrechnungen!BI24+(-Nebenrechnungen!AI24),-Nebenrechnungen!AI24)","v":0},null,{"$f":"SUM(G23:I23)","v":0},null,{"$f":"Nebenrechnungen!AO24","v":0},{"$f":"Nebenrechnungen!AU24","v":0},null,0,null,{"$f":"Nebenrechnungen!AY24","v":0},null,{"$f":"E23+K23+P23+R23","v":0},null,0]
[null,3,{"$f":"'INPUT | TSz > Kosten'!C16","v":2028},null,{"$f":"-Nebenrechnungen!F25","v":0},null,{"$f":"IF('INPUT | TSz > iHaSt'!$Z$82=1,-Nebenrechnungen!BK25+(-Nebenrechnungen!AK25),-Nebenrechnungen!AK25)","v":0},{"$f":"IF('INPUT | TSz > iHaSt'!$Z$82=1,-Nebenrechnungen!AF25+Nebenrechnungen!BG25,-Nebenrechnungen!AF25)","v":0},{"$f":"IF('INPUT | TSz > iHaSt'!$Z$82=1,-Nebenrechnungen!BI25+(-Nebenrechnungen!AI25),-Nebenrechnungen!AI25)","v":0},null,0,null,{"$f":"Nebenrechnungen!AO25","v":0},{"$f":"Nebenrechnungen!AU25","v":0},null,0,null,{"$f":"Nebenrechnungen!AY25","v":0},null,0,null,0]
[null,4,{"$f":"'INPUT | TSz > Kosten'!C17","v":2029},null,{"$f":"-Nebenrechnungen!F26","v":0},null,{"$f":"IF('INPUT | TSz > iHaSt'!$Z$82=1,-Nebenrechnungen!BK26+(-Nebenrechnungen!AK26),-Nebenrechnungen!AK26)","v":0},{"$f":"IF('INPUT | TSz > iHaSt'!$Z$82=1,-Nebenrechnungen!AF26+Nebenrechnungen!BG26,-Nebenrechnungen!AF26)","v":0},{"$f":"IF('INPUT | TSz > iHaSt'!$Z$82=1,-Nebenrechnungen!BI26+(-Nebenrechnungen!AI26),-Nebenrechnungen!AI26)","v":0},null,0,null,{"$f":"Nebenrechnungen!AO26","v":0},{"$f":"Nebenrechnungen!AU26","v":0},null,0,null,{"$f":"Nebenrechnungen!AY26","v":0},null,0,null,0]
[null,5,{"$f":"'INPUT | TSz > Kosten'!C18","v":2030},null,{"$f":"-Nebenrechnungen!F27","v":0},null,{"$f":"IF('INPUT | TSz > iHaSt'!$Z$82=1,-Nebenrechnungen!BK27+(-Nebenrechnungen!AK27),-Nebenrechnungen!AK27)","v":0},{"$f":"IF('INPUT | TSz > iHaSt'!$Z$82=1,-Nebenrechnungen!AF27+Nebenrechnungen!BG27,-Nebenrechnungen!AF27)","v":0},{"$f":"IF('INPUT | TSz > iHaSt'!$Z$82=1,-Nebenrechnungen!BI27+(-Nebenrechnungen!AI27),-Nebenrechnungen!AI27)","v":0},null,0,null,{"$f":"Nebenrechnungen!AO27","v":0},{"$f":"Nebenrechnungen!AU27","v":0},null,0,null,{"$f":"Nebenrechnungen!AY27","v":0},null,{"$f":"E26+K26+P26+R26","v":0},null,0]
[null,6,{"$f":"'INPUT | TSz > Kosten'!C19","v":2031},null,{"$f":"-Nebenrechnungen!F28","v":0},null,{"$f":"IF('INPUT | TSz > iHaSt'!$Z$82=1,-Nebenrechnungen!BK28+(-Nebenrechnungen!AK28),-Nebenrechnungen!AK28)","v":0},{"$f":"IF('INPUT | TSz > iHaSt'!$Z$82=1,-Nebenrechnungen!AF28+Nebenrechnungen!BG28,-Nebenrechnungen!AF28)","v":0},{"$f":"IF('INPUT | TSz > iHaSt'!$Z$82=1,-Nebenrechnungen!BI28+(-Nebenrechnungen!AI28),-Nebenrechnungen!AI28)","v":0},null,0,null,{"$f":"Nebenrechnungen!AO28","v":0},{"$f":"Nebenrechnungen!AU28","v":0},null,0,null,{"$f":"Nebenrechnungen!AY28","v":0},null,0,null,0]
[null,7,{"$f":"'INPUT | TSz > Kosten'!C20","v":2032},null,{"$f":"-Nebenrechnungen!F29","v":0},null,{"$f":"IF('INPUT | TSz > iHaSt'!$Z$82=1,-Nebenrechnungen!BK29+(-Nebenrechnungen!AK29),-Nebenrechnungen!AK29)","v":0},{"$f":"IF('INPUT | TSz > iHaSt'!$Z$82=1,-Nebenrechnungen!AF29+Nebenrechnungen!BG29,-Nebenrechnungen!AF29)","v":0},{"$f":"IF('INPUT | TSz > iHaSt'!$Z$82=1,-Nebenrechnungen!BI29+(-Nebenrechnungen!AI29),-Nebenrechnungen!AI29)","v":0},null,0,null,{"$f":"Nebenrechnungen!AO29","v":0},{"$f":"Nebenrechnungen!AU29","v":0},null,0,null,{"$f":"Nebenrechnungen!AY29","v":0},null,0,null,0]
[null,8,{"$f":"'INPUT | TSz > Kosten'!C21","v":2033},null,{"$f":"-Nebenrechnungen!F30","v":0},null,{"$f":"IF('INPUT | TSz > iHaSt'!$Z$82=1,-Nebenrechnungen!BK30+(-Nebenrechnungen!AK30),-Nebenrechnungen!AK30)","v":0},{"$f":"IF('INPUT | TSz > iHaSt'!$Z$82=1,-Nebenrechnungen!AF30+Nebenrechnungen!BG30,-Nebenrechnungen!AF30)","v":0},{"$f":"IF('INPUT | TSz > iHaSt'!$Z$82=1,-Nebenrechnungen!BI30+(-Nebenrechnungen!AI30),-Nebenrechnungen!AI30)","v":0},null,0,null,{"$f":"Nebenrechnungen!AO30","v":0},{"$f":"Nebenrechnungen!AU30","v":0},null,0,null,{"$f":"Nebenrechnungen!AY30","v":0},null,0,null,0]
[null,9,{"$f":"'INPUT | TSz > Kosten'!C22","v":2034},null,{"$f":"-Nebenrechnungen!F31","v":0},null,{"$f":"IF('INPUT | TSz > iHaSt'!$Z$82=1,-Nebenrechnungen!BK31+(-Nebenrechnungen!AK31),-Nebenrechnungen!AK31)","v":0},{"$f":"IF('INPUT | TSz > iHaSt'!$Z$82=1,-Nebenrechnungen!AF31+Nebenrechnungen!BG31,-Nebenrechnungen!AF31)","v":0},{"$f":"IF('INPUT | TSz > iHaSt'!$Z$82=1,-Nebenrechnungen!BI31+(-Nebenrechnungen!AI31),-Nebenrechnungen!AI31)","v":0},null,0,null,{"$f":"Nebenrechnungen!AO31","v":0},{"$f":"Nebenrechnungen!AU31","v":0},null,0,null,{"$f":"Nebenrechnungen!AY31","v":0},null,0,null,0]
[null,10,{"$f":"'INPUT | TSz > Kosten'!C23","v":2035},null,{"$f":"-Nebenrechnungen!F32","v":0},null,{"$f":"IF('INPUT | TSz > iHaSt'!$Z$82=1,-Nebenrechnungen!BK32+(-Nebenrechnungen!AK32),-Nebenrechnungen!AK32)","v":0},{"$f":"IF('INPUT | TSz > iHaSt'!$Z$82=1,-Nebenrechnungen!AF32+Nebenrechnungen!BG32,-Nebenrechnungen!AF32)","v":0},{"$f":"IF('INPUT | TSz > iHaSt'!$Z$82=1,-Nebenrechnungen!BI32+(-Nebenrechnungen!AI32),-Nebenrechnungen!AI32)","v":0},null,0,null,{"$f":"Nebenrechnungen!AO32","v":0},{"$f":"Nebenrechnungen!AU32","v":0},null,0,null,{"$f":"Nebenrechnungen!AY32","v":0},null,0,null,0]
[null,11,{"$f":"'INPUT | TSz > Kosten'!C24","v":2036},null,{"$f":"-Nebenrechnungen!F33","v":0},null,{"$f":"IF('INPUT | TSz > iHaSt'!$Z$82=1,-Nebenrechnungen!BK33+(-Nebenrechnungen!AK33),-Nebenrechnungen!AK33)","v":0},{"$f":"IF('INPUT | TSz > iHaSt'!$Z$82=1,-Nebenrechnungen!AF33+Nebenrechnungen!BG33,-Nebenrechnungen!AF33)","v":0},{"$f":"IF('INPUT | TSz > iHaSt'!$Z$82=1,-Nebenrechnungen!BI33+(-Nebenrechnungen!AI33),-Nebenrechnungen!AI33)","v":0},null,0,null,{"$f":"Nebenrechnungen!AO33","v":0},{"$f":"Nebenrechnungen!AU33","v":0},null,0,null,{"$f":"Nebenrechnungen!AY33","v":0},null,0,null,0]
[null,12,{"$f":"'INPUT | TSz > Kosten'!C25","v":2037},null,{"$f":"-Nebenrechnungen!F34","v":0},null,{"$f":"IF('INPUT | TSz > iHaSt'!$Z$82=1,-Nebenrechnungen!BK34+(-Nebenrechnungen!AK34),-Nebenrechnungen!AK34)","v":0},{"$f":"IF('INPUT | TSz > iHaSt'!$Z$82=1,-Nebenrechnungen!AF34+Nebenrechnungen!BG34,-Nebenrechnungen!AF34)","v":0},{"$f":"IF('INPUT | TSz > iHaSt'!$Z$82=1,-Nebenrechnungen!BI34+(-Nebenrechnungen!AI34),-Nebenrechnungen!AI34)","v":0},null,0,null,{"$f":"Nebenrechnungen!AO34","v":0},{"$f":"Nebenrechnungen!AU34","v":0},null,0,null,{"$f":"Nebenrechnungen!AY34","v":0},null,0,null,0]
[null,13,{"$f":"'INPUT | TSz > Kosten'!C26","v":2038},null,{"$f":"-Nebenrechnungen!F35","v":0},null,{"$f":"IF('INPUT | TSz > iHaSt'!$Z$82=1,-Nebenrechnungen!BK35+(-Nebenrechnungen!AK35),-Nebenrechnungen!AK35)","v":0},{"$f":"IF('INPUT | TSz > iHaSt'!$Z$82=1,-Nebenrechnungen!AF35+Nebenrechnungen!BG35,-Nebenrechnungen!AF35)","v":0},{"$f":"IF('INPUT | TSz > iHaSt'!$Z$82=1,-Nebenrechnungen!BI35+(-Nebenrechnungen!AI35),-Nebenrechnungen!AI35)","v":0},null,0,null,{"$f":"Nebenrechnungen!AO35","v":0},{"$f":"Nebenrechnungen!AU35","v":0},null,0,null,{"$f":"Nebenrechnungen!AY35","v":0},null,0,null,0]
[null,14,{"$f":"'INPUT | TSz > Kosten'!C27","v":2039},null,{"$f":"-Nebenrechnungen!F36","v":0},null,{"$f":"IF('INPUT | TSz > iHaSt'!$Z$82=1,-Nebenrechnungen!BK36+(-Nebenrechnungen!AK36),-Nebenrechnungen!AK36)","v":0},{"$f":"IF('INPUT | TSz > iHaSt'!$Z$82=1,-Nebenrechnungen!AF36+Nebenrechnungen!BG36,-Nebenrechnungen!AF36)","v":0},{"$f":"IF('INPUT | TSz > iHaSt'!$Z$82=1,-Nebenrechnungen!BI36+(-Nebenrechnungen!AI36),-Nebenrechnungen!AI36)","v":0},null,0,null,{"$f":"Nebenrechnungen!AO36","v":0},{"$f":"Nebenrechnungen!AU36","v":0},null,0,null,{"$f":"Nebenrechnungen!AY36","v":0},null,0,null,0]
[null,15,{"$f":"'INPUT | TSz > Kosten'!C28","v":2040},null,{"$f":"-Nebenrechnungen!F37","v":0},null,{"$f":"IF('INPUT | TSz > iHaSt'!$Z$82=1,-Nebenrechnungen!BK37+(-Nebenrechnungen!AK37),-Nebenrechnungen!AK37)","v":0},{"$f":"IF('INPUT | TSz > iHaSt'!$Z$82=1,-Nebenrechnungen!AF37+Nebenrechnungen!BG37,-Nebenrechnungen!AF37)","v":0},{"$f":"IF('INPUT | TSz > iHaSt'!$Z$82=1,-Nebenrechnungen!BI37+(-Nebenrechnungen!AI37),-Nebenrechnungen!AI37)","v":0},null,0,null,{"$f":"Nebenrechnungen!AO37","v":0},{"$f":"Nebenrechnungen!AU37","v":0},null,0,null,{"$f":"Nebenrechnungen!AY37","v":0},null,0,null,0]
[null,16,{"$f":"'INPUT | TSz > Kosten'!C29","v":2041},null,{"$f":"-Nebenrechnungen!F38","v":0},null,{"$f":"IF('INPUT | TSz > iHaSt'!$Z$82=1,-Nebenrechnungen!BK38+(-Nebenrechnungen!AK38),-Nebenrechnungen!AK38)","v":0},{"$f":"IF('INPUT | TSz > iHaSt'!$Z$82=1,-Nebenrechnungen!AF38+Nebenrechnungen!BG38,-Nebenrechnungen!AF38)","v":0},{"$f":"IF('INPUT | TSz > iHaSt'!$Z$82=1,-Nebenrechnungen!BI38+(-Nebenrechnungen!AI38),-Nebenrechnungen!AI38)","v":0},null,0,null,{"$f":"Nebenrechnungen!AO38","v":0},{"$f":"Nebenrechnungen!AU38","v":0},null,0,null,{"$f":"Nebenrechnungen!AY38","v":0},null,0,null,0]
[null,17,{"$f":"'INPUT | TSz > Kosten'!C30","v":2042},null,{"$f":"-Nebenrechnungen!F39","v":0},null,{"$f":"IF('INPUT | TSz > iHaSt'!$Z$82=1,-Nebenrechnungen!BK39+(-Nebenrechnungen!AK39),-Nebenrechnungen!AK39)","v":0},{"$f":"IF('INPUT | TSz > iHaSt'!$Z$82=1,-Nebenrechnungen!AF39+Nebenrechnungen!BG39,-Nebenrechnungen!AF39)","v":0},{"$f":"IF('INPUT | TSz > iHaSt'!$Z$82=1,-Nebenrechnungen!BI39+(-Nebenrechnungen!AI39),-Nebenrechnungen!AI39)","v":0},null,0,null,{"$f":"Nebenrechnungen!AO39","v":0},{"$f":"Nebenrechnungen!AU39","v":0},null,0,null,{"$f":"Nebenrechnungen!AY39","v":0},null,0,null,0]
[null,18,{"$f":"'INPUT | TSz > Kosten'!C31","v":2043},null,{"$f":"-Nebenrechnungen!F40","v":0},null,{"$f":"IF('INPUT | TSz > iHaSt'!$Z$82=1,-Nebenrechnungen!BK40+(-Nebenrechnungen!AK40),-Nebenrechnungen!AK40)","v":0},{"$f":"IF('INPUT | TSz > iHaSt'!$Z$82=1,-Nebenrechnungen!AF40+Nebenrechnungen!BG40,-Nebenrechnungen!AF40)","v":0},{"$f":"IF('INPUT | TSz > iHaSt'!$Z$82=1,-Nebenrechnungen!BI40+(-Nebenrechnungen!AI40),-Nebenrechnungen!AI40)","v":0},null,0,null,{"$f":"Nebenrechnungen!AO40","v":0},{"$f":"Nebenrechnungen!AU40","v":0},null,0,null,{"$f":"Nebenrechnungen!AY40","v":0},null,0,null,0]
[null,19,{"$f":"'INPUT | TSz > Kosten'!C32","v":2044},null,{"$f":"-Nebenrechnungen!F41","v":0},null,{"$f":"IF('INPUT | TSz > iHaSt'!$Z$82=1,-Nebenrechnungen!BK41+(-Nebenrechnungen!AK41),-Nebenrechnungen!AK41)","v":0},{"$f":"IF('INPUT | TSz > iHaSt'!$Z$82=1,-Nebenrechnungen!AF41+Nebenrechnungen!BG41,-Nebenrechnungen!AF41)","v":0},{"$f":"IF('INPUT | TSz > iHaSt'!$Z$82=1,-Nebenrechnungen!BI41+(-Nebenrechnungen!AI41),-Nebenrechnungen!AI41)","v":0},null,0,null,{"$f":"Nebenrechnungen!AO41","v":0},{"$f":"Nebenrechnungen!AU41","v":0},null,0,null,{"$f":"Nebenrechnungen!AY41","v":0},null,0,null,0]
[null,20,{"$f":"'INPUT | TSz > Kosten'!C33","v":2045},null,{"$f":"-Nebenrechnungen!F42","v":0},null,{"$f":"IF('INPUT | TSz > iHaSt'!$Z$82=1,-Nebenrechnungen!BK42+(-Nebenrechnungen!AK42),-Nebenrechnungen!AK42)","v":0},{"$f":"IF('INPUT | TSz > iHaSt'!$Z$82=1,-Nebenrechnungen!AF42+Nebenrechnungen!BG42,-Nebenrechnungen!AF42)","v":0},{"$f":"IF('INPUT | TSz > iHaSt'!$Z$82=1,-Nebenrechnungen!BI42+(-Nebenrechnungen!AI42),-Nebenrechnungen!AI42)","v":0},null,0,null,{"$f":"Nebenrechnungen!AO42","v":0},{"$f":"Nebenrechnungen!AU42","v":0},null,0,null,{"$f":"Nebenrechnungen!AY42","v":0},null,0,null,0]
[null,21,{"$f":"'INPUT | TSz > Kosten'!C34","v":""},null,{"$f":"-Nebenrechnungen!F43","v":0},null,{"$f":"IF('INPUT | TSz > iHaSt'!$Z$82=1,-Nebenrechnungen!BK43+(-Nebenrechnungen!AK43),-Nebenrechnungen!AK43)","v":0},{"$f":"IF('INPUT | TSz > iHaSt'!$Z$82=1,-Nebenrechnungen!AF43+Nebenrechnungen!BG43,-Nebenrechnungen!AF43)","v":0},{"$f":"IF('INPUT | TSz > iHaSt'!$Z$82=1,-Nebenrechnungen!BI43+(-Nebenrechnungen!AI43),-Nebenrechnungen!AI43)","v":0},null,{"$f":"SUM(G42:I42)","v":0},null,{"$f":"Nebenrechnungen!AO43","v":0},{"$f":"Nebenrechnungen!AU43","v":0},null,{"$f":"M42+N42","v":0},null,{"$f":"Nebenrechnungen!AW43","v":0},null,{"$f":"E42+K42+P42+R42","v":0},null,{"$f":"T42/(1+WACCTSz)^($B42-1)","v":0}]
[null,22,{"$f":"'INPUT | TSz > Kosten'!C35","v":""},null,{"$f":"-Nebenrechnungen!F44","v":0},null,{"$f":"IF('INPUT | TSz > iHaSt'!$Z$82=1,-Nebenrechnungen!BK44+(-Nebenrechnungen!AK44),-Nebenrechnungen!AK44)","v":0},{"$f":"IF('INPUT | TSz > iHaSt'!$Z$82=1,-Nebenrechnungen!AF44+Nebenrechnungen!BG44,-Nebenrechnungen!AF44)","v":0},{"$f":"IF('INPUT | TSz > iHaSt'!$Z$82=1,-Nebenrechnungen!BI44+(-Nebenrechnungen!AI44),-Nebenrechnungen!AI44)","v":0},null,0,null,{"$f":"Nebenrechnungen!AO44","v":0},{"$f":"Nebenrechnungen!AU44","v":0},null,0,null,{"$f":"Nebenrechnungen!AW44","v":0},null,0,null,0]
[null,23,{"$f":"'INPUT | TSz > Kosten'!C36","v":""},null,{"$f":"-Nebenrechnungen!F45","v":0},null,{"$f":"IF('INPUT | TSz > iHaSt'!$Z$82=1,-Nebenrechnungen!BK45+(-Nebenrechnungen!AK45),-Nebenrechnungen!AK45)","v":0},{"$f":"IF('INPUT | TSz > iHaSt'!$Z$82=1,-Nebenrechnungen!AF45+Nebenrechnungen!BG45,-Nebenrechnungen!AF45)","v":0},{"$f":"IF('INPUT | TSz > iHaSt'!$Z$82=1,-Nebenrechnungen!BI45+(-Nebenrechnungen!AI45),-Nebenrechnungen!AI45)","v":0},null,0,null,{"$f":"Nebenrechnungen!AO45","v":0},{"$f":"Nebenrechnungen!AU45","v":0},null,0,null,{"$f":"Nebenrechnungen!AW45","v":0},null,0,null,0]
[null,24,{"$f":"'INPUT | TSz > Kosten'!C37","v":""},null,{"$f":"-Nebenrechnungen!F46","v":0},null,{"$f":"IF('INPUT | TSz > iHaSt'!$Z$82=1,-Nebenrechnungen!BK46+(-Nebenrechnungen!AK46),-Nebenrechnungen!AK46)","v":0},{"$f":"IF('INPUT | TSz > iHaSt'!$Z$82=1,-Nebenrechnungen!AF46+Nebenrechnungen!BG46,-Nebenrechnungen!AF46)","v":0},{"$f":"IF('INPUT | TSz > iHaSt'!$Z$82=1,-Nebenrechnungen!BI46+(-Nebenrechnungen!AI46),-Nebenrechnungen!AI46)","v":0},null,0,null,{"$f":"Nebenrechnungen!AO46","v":0},{"$f":"Nebenrechnungen!AU46","v":0},null,0,null,{"$f":"Nebenrechnungen!AW46","v":0},null,0,null,0]
[]
[null,null,"Restwert",null,{"$f":"'INPUT | TSz > Erlöse & Finanz'!I55","v":0},{"$nulls":16},{"$f":"E47/(1+WACCTSz)^(MAX(C22:C41)-C22+1)","v":0}]
[]
[]
[]
[null,"Kontrafaktisches  Szenario",{"$nulls":5},{"$f":"'INPUT | Allgemeines'!Q76","v":"Es wurde noch keine alternative Lösung ausgewählt."},{"$nulls":13},{"$f":"SUM(OFFSET(V53,0,0,'INPUT | Allgemeines'!R102,1))+V78","v":0}]
[]
[null,1,{"$f":"'INPUT | TSz > Kosten'!C14","v":2026},null,{"$f":"-Nebenrechnungen!BM23","v":0},null,{"$f":"-Nebenrechnungen!CR23","v":0},{"$f":"-Nebenrechnungen!CM23","v":0},{"$f":"-Nebenrechnungen!CP23","v":0},null,{"$f":"SUM(G53:I53)","v":0},null,{"$f":"Nebenrechnungen!CV23","v":0},{"$f":"Nebenrechnungen!DB23","v":0},null,{"$f":"M53+N53","v":0},null,{"$f":"Nebenrechnungen!DF23","v":0},null,{"$f":"E53+K53+P53+R53","v":0},null,{"$f":"T53/(1+WACCKSz)^($B53-1)","v":0}]
[null,2,{"$f":"'INPUT | TSz > Kosten'!C15","v":2027},null,{"$f":"-Nebenrechnungen!BM24","v":0},null,{"$f":"-Nebenrechnungen!CR24","v":0},{"$f":"-Nebenrechnungen!CM24","v":0},{"$f":"-Nebenrechnungen!CP24","v":0},null,0,null,{"$f":"Nebenrechnungen!CV24","v":0},{"$f":"Nebenrechnungen!DB24","v":0},null,0,null,{"$f":"Nebenrechnungen!DF24","v":0},null,{"$f":"E54+K54+P54+R54","v":0},null,0]
[null,3,{"$f":"'INPUT | TSz > Kosten'!C16","v":2028},null,{"$f":"-Nebenrechnungen!BM25","v":0},null,{"$f":"-Nebenrechnungen!CR25","v":0},{"$f":"-Nebenrechnungen!CM25","v":0},{"$f":"-Nebenrechnungen!CP25","v":0},null,0,null,{"$f":"Nebenrechnungen!CV25","v":0},{"$f":"Nebenrechnungen!DB25","v":0},null,0,null,{"$f":"Nebenrechnungen!DF25","v":0},null,0,null,0]
[null,4,{"$f":"'INPUT | TSz > Kosten'!C17","v":2029},null,{"$f":"-Nebenrechnungen!BM26","v":0},null,{"$f":"-Nebenrechnungen!CR26","v":0},{"$f":"-Nebenrechnungen!CM26","v":0},{"$f":"-Nebenrechnungen!CP26","v":0},null,0,null,{"$f":"Nebenrechnungen!CV26","v":0},{"$f":"Nebenrechnungen!DB26","v":0},null,0,null,{"$f":"Nebenrechnungen!DF26","v":0},null,0,null,0]
[null,5,{"$f":"'INPUT | TSz > Kosten'!C18","v":2030},null,{"$f":"-Nebenrechnungen!BM27","v":0},null,{"$f":"-Nebenrechnungen!CR27","v":0},{"$f":"-Nebenrechnungen!CM27","v":0},{"$f":"-Nebenrechnungen!CP27","v":0},null,0,null,{"$f":"Nebenrechnungen!CV27","v":0},{"$f":"Nebenrechnungen!DB27","v":0},null,0,null,{"$f":"Nebenrechnungen!DF27","v":0},null,0,null,0]
[null,6,{"$f":"'INPUT | TSz > Kosten'!C19","v":2031},null,{"$f":"-Nebenrechnungen!BM28","v":0},null,{"$f":"-Nebenrechnungen!CR28","v":0},{"$f":"-Nebenrechnungen!CM28","v":0},{"$f":"-Nebenrechnungen!CP28","v":0},null,0,null,{"$f":"Nebenrechnungen!CV28","v":0},{"$f":"Nebenrechnungen!DB28","v":0},null,0,null,{"$f":"Nebenrechnungen!DF28","v":0},null,0,null,0]
[null,7,{"$f":"'INPUT | TSz > Kosten'!C20","v":2032},null,{"$f":"-Nebenrechnungen!BM29","v":0},null,{"$f":"-Nebenrechnungen!CR29","v":0},{"$f":"-Nebenrechnungen!CM29","v":0},{"$f":"-Nebenrechnungen!CP29","v":0},null,0,null,{"$f":"Nebenrechnungen!CV29","v":0},{"$f":"Nebenrechnungen!DB29","v":0},null,0,null,{"$f":"Nebenrechnungen!DF29","v":0},null,0,null,0]
[null,8,{"$f":"'INPUT | TSz > Kosten'!C21","v":2033},null,{"$f":"-Nebenrechnungen!BM30","v":0},null,{"$f":"-Nebenrechnungen!CR30","v":0},{"$f":"-Nebenrechnungen!CM30","v":0},{"$f":"-Nebenrechnungen!CP30","v":0},null,0,null,{"$f":"Nebenrechnungen!CV30","v":0},{"$f":"Nebenrechnungen!DB30","v":0},null,0,null,{"$f":"Nebenrechnungen!DF30","v":0},null,0,null,0]
[null,9,{"$f":"'INPUT | TSz > Kosten'!C22","v":2034},null,{"$f":"-Nebenrechnungen!BM31","v":0},null,{"$f":"-Nebenrechnungen!CR31","v":0},{"$f":"-Nebenrechnungen!CM31","v":0},{"$f":"-Nebenrechnungen!CP31","v":0},null,0,null,{"$f":"Nebenrechnungen!CV31","v":0},{"$f":"Nebenrechnungen!DB31","v":0},null,0,null,{"$f":"Nebenrechnungen!DF31","v":0},null,0,null,0]
[null,10,{"$f":"'INPUT | TSz > Kosten'!C23","v":2035},null,{"$f":"-Nebenrechnungen!BM32","v":0},null,{"$f":"-Nebenrechnungen!CR32","v":0},{"$f":"-Nebenrechnungen!CM32","v":0},{"$f":"-Nebenrechnungen!CP32","v":0},null,0,null,{"$f":"Nebenrechnungen!CV32","v":0},{"$f":"Nebenrechnungen!DB32","v":0},null,0,null,{"$f":"Nebenrechnungen!DF32","v":0},null,0,null,0]
[null,11,{"$f":"'INPUT | TSz > Kosten'!C24","v":2036},null,{"$f":"-Nebenrechnungen!BM33","v":0},null,{"$f":"-Nebenrechnungen!CR33","v":0},{"$f":"-Nebenrechnungen!CM33","v":0},{"$f":"-Nebenrechnungen!CP33","v":0},null,0,null,{"$f":"Nebenrechnungen!CV33","v":0},{"$f":"Nebenrechnungen!DB33","v":0},null,0,null,{"$f":"Nebenrechnungen!DF33","v":0},null,0,null,0]
[null,12,{"$f":"'INPUT | TSz > Kosten'!C25","v":2037},null,{"$f":"-Nebenrechnungen!BM34","v":0},null,{"$f":"-Nebenrechnungen!CR34","v":0},{"$f":"-Nebenrechnungen!CM34","v":0},{"$f":"-Nebenrechnungen!CP34","v":0},null,0,null,{"$f":"Nebenrechnungen!CV34","v":0},{"$f":"Nebenrechnungen!DB34","v":0},null,0,null,{"$f":"Nebenrechnungen!DF34","v":0},null,0,null,0]
[null,13,{"$f":"'INPUT | TSz > Kosten'!C26","v":2038},null,{"$f":"-Nebenrechnungen!BM35","v":0},null,{"$f":"-Nebenrechnungen!CR35","v":0},{"$f":"-Nebenrechnungen!CM35","v":0},{"$f":"-Nebenrechnungen!CP35","v":0},null,0,null,{"$f":"Nebenrechnungen!CV35","v":0},{"$f":"Nebenrechnungen!DB35","v":0},null,0,null,{"$f":"Nebenrechnungen!DF35","v":0},null,0,null,0]
[null,14,{"$f":"'INPUT | TSz > Kosten'!C27","v":2039},null,{"$f":"-Nebenrechnungen!BM36","v":0},null,{"$f":"-Nebenrechnungen!CR36","v":0},{"$f":"-Nebenrechnungen!CM36","v":0},{"$f":"-Nebenrechnungen!CP36","v":0},null,0,null,{"$f":"Nebenrechnungen!CV36","v":0},{"$f":"Nebenrechnungen!DB36","v":0},null,0,null,{"$f":"Nebenrechnungen!DF36","v":0},null,0,null,0]
[null,15,{"$f":"'INPUT | TSz > Kosten'!C28","v":2040},null,{"$f":"-Nebenrechnungen!BM37","v":0},null,{"$f":"-Nebenrechnungen!CR37","v":0},{"$f":"-Nebenrechnungen!CM37","v":0},{"$f":"-Nebenrechnungen!CP37","v":0},null,0,null,{"$f":"Nebenrechnungen!CV37","v":0},{"$f":"Nebenrechnungen!DB37","v":0},null,0,null,{"$f":"Nebenrechnungen!DF37","v":0},null,0,null,0]
[null,16,{"$f":"'INPUT | TSz > Kosten'!C29","v":2041},null,{"$f":"-Nebenrechnungen!BM38","v":0},null,{"$f":"-Nebenrechnungen!CR38","v":0},{"$f":"-Nebenrechnungen!CM38","v":0},{"$f":"-Nebenrechnungen!CP38","v":0},null,0,null,{"$f":"Nebenrechnungen!CV38","v":0},{"$f":"Nebenrechnungen!DB38","v":0},null,0,null,{"$f":"Nebenrechnungen!DF38","v":0},null,0,null,0]
[null,17,{"$f":"'INPUT | TSz > Kosten'!C30","v":2042},null,{"$f":"-Nebenrechnungen!BM39","v":0},null,{"$f":"-Nebenrechnungen!CR39","v":0},{"$f":"-Nebenrechnungen!CM39","v":0},{"$f":"-Nebenrechnungen!CP39","v":0},null,0,null,{"$f":"Nebenrechnungen!CV39","v":0},{"$f":"Nebenrechnungen!DB39","v":0},null,0,null,{"$f":"Nebenrechnungen!DF39","v":0},null,0,null,0]
[null,18,{"$f":"'INPUT | TSz > Kosten'!C31","v":2043},null,{"$f":"-Nebenrechnungen!BM40","v":0},null,{"$f":"-Nebenrechnungen!CR40","v":0},{"$f":"-Nebenrechnungen!CM40","v":0},{"$f":"-Nebenrechnungen!CP40","v":0},null,0,null,{"$f":"Nebenrechnungen!CV40","v":0},{"$f":"Nebenrechnungen!DB40","v":0},null,0,null,{"$f":"Nebenrechnungen!DF40","v":0},null,0,null,0]
[null,19,{"$f":"'INPUT | TSz > Kosten'!C32","v":2044},null,{"$f":"-Nebenrechnungen!BM41","v":0},null,{"$f":"-Nebenrechnungen!CR41","v":0},{"$f":"-Nebenrechnungen!CM41","v":0},{"$f":"-Nebenrechnungen!CP41","v":0},null,0,null,{"$f":"Nebenrechnungen!CV41","v":0},{"$f":"Nebenrechnungen!DB41","v":0},null,0,null,{"$f":"Nebenrechnungen!DF41","v":0},null,0,null,0]
[null,20,{"$f":"'INPUT | TSz > Kosten'!C33","v":2045},null,{"$f":"-Nebenrechnungen!BM42","v":0},null,{"$f":"-Nebenrechnungen!CR42","v":0},{"$f":"-Nebenrechnungen!CM42","v":0},{"$f":"-Nebenrechnungen!CP42","v":0},null,0,null,{"$f":"Nebenrechnungen!CV42","v":0},{"$f":"Nebenrechnungen!DB42","v":0},null,0,null,{"$f":"Nebenrechnungen!DF42","v":0},null,0,null,0]
[null,21,{"$f":"'INPUT | TSz > Kosten'!C34","v":""},null,{"$f":"-Nebenrechnungen!BM43","v":0},null,{"$f":"-Nebenrechnungen!CR43","v":0},{"$f":"-Nebenrechnungen!CM43","v":0},{"$f":"-Nebenrechnungen!CP43","v":0},null,{"$f":"SUM(G73:I73)","v":0},null,{"$f":"Nebenrechnungen!CV43","v":0},{"$f":"Nebenrechnungen!DB43","v":0},null,{"$f":"M73+N73","v":0},null,{"$f":"Nebenrechnungen!DF43","v":0},null,{"$f":"E73+K73+P73+R73","v":0},null,{"$f":"T73/(1+WACCKSz)^($B73-1)","v":0}]
[null,22,{"$f":"'INPUT | TSz > Kosten'!C35","v":""},null,{"$f":"-Nebenrechnungen!BM44","v":0},null,{"$f":"-Nebenrechnungen!CR44","v":0},{"$f":"-Nebenrechnungen!CM44","v":0},{"$f":"-Nebenrechnungen!CP44","v":0},null,0,null,{"$f":"Nebenrechnungen!CV44","v":0},{"$f":"Nebenrechnungen!DB44","v":0},null,0,null,{"$f":"Nebenrechnungen!DF44","v":0},null,0,null,0]
[null,23,{"$f":"'INPUT | TSz > Kosten'!C36","v":""},null,{"$f":"-Nebenrechnungen!BM45","v":0},null,{"$f":"-Nebenrechnungen!CR45","v":0},{"$f":"-Nebenrechnungen!CM45","v":0},{"$f":"-Nebenrechnungen!CP45","v":0},null,0,null,{"$f":"Nebenrechnungen!CV45","v":0},{"$f":"Nebenrechnungen!DB45","v":0},null,0,null,{"$f":"Nebenrechnungen!DF45","v":0},null,0,null,0]
[null,24,{"$f":"'INPUT | TSz > Kosten'!C37","v":""},null,{"$f":"-Nebenrechnungen!BM46","v":0},null,{"$f":"-Nebenrechnungen!CR46","v":0},{"$f":"-Nebenrechnungen!CM46","v":0},{"$f":"-Nebenrechnungen!CP46","v":0},null,0,null,{"$f":"Nebenrechnungen!CV46","v":0},{"$f":"Nebenrechnungen!DB46","v":0},null,0,null,{"$f":"Nebenrechnungen!DF46","v":0},null,0,null,0]
[]
[null,null,"Restwert",null,{"$f":"'INPUT | KSz > Erlöse & Finanz'!T88","v":0},{"$nulls":16},{"$f":"E78/(1+WACCKSz)^(MAX(C53:C72)-C53+1)","v":0}]

{"sheet":"Begründungen","index":12,"n_rows":61,"n_cols":10,"rows_kept":61,"cut":false,"hidden":false,"merged":[[15,0,15,9],[17,1,17,9],[26,0,26,9],[28,1,28,9],[31,0,31,9],[56,0,56,9],[58,1,58,9],[7,1,7,9],[5,0,5,9],[0,0,0,9],[1,0,1,9],[3,0,3,2],[4,3,4,9],[3,3,3,9],[43,0,43,9],[45,1,45,9],[48,0,48,9],[50,1,50,9],[10,0,10,9],[12,1,12,9],[33,1,33,9]]}
["Anlage 1: Begründungen"]
["Bitte dem Antrag als PDF beifügen."]
[]
["Projekt: ",null,null,{"$f":"Kurztitel","v":0}]
["Antragsteller",null,null,{"$f":"'INPUT | Allgemeines'!G7","v":0}]
["1. Veränderung des Betrachtungszeitraumes | Input Allgemeines > Eingabe 2 "]
[]
[]
[{"$nulls":9},"zurück"]
[]
["2. Wahl des kontrafaktischen Szenarios | Input Allgemeines > Eingabe 3 "]
[]
[]
[{"$nulls":9},"zurück"]
[]
["3. Erläuterung von Kostenpositionen | INPUT | TSz > Kosten > Eingabe 1"]
[]
[]
[{"$nulls":9},"zurück"]
{"$rows_empty":7}
["4. Erläuterung von Kostenpositionen | INPUT | TSz > Erlöse & Finanz > Eingabe 1"]
[]
[null,"Bitte beschreiben Sie die Einnahmen mindestens anhand folgender Kriterien: Bezeichnung der Einnahme, Wert pro Jahr, ggf. Steigerung pro Jahr, Quelle"]
[{"$nulls":9},"zurück"]
[]
["5. Erläuterung von Kostenpositionen | INPUT | TSz > Erlöse & Finanz > Eingabe 3 Restwert"]
[]
[]
[{"$nulls":9},"zurück"]
{"$rows_empty":8}
["6. Erläuterung Technischer Parameter | INPUT | TSz > Technik > Eingabe 2 Wärmeverluste"]
[]
[]
[{"$nulls":9},"zurück"]
[]
["7. Erläuterung Kosten | INPUT | TSz > Kosten > Eingabe 2 Kosten Energieträger"]
[]
[]
[]
[{"$nulls":9},"zurück"]
[]
[]
[]
["8. Erläuterung Kosten | INPUT | TSz > iHast > Eingabe 3 Angaben zur ökonomischen Bewertung"]
[]
[]
[]
[{"$nulls":9},"zurück"]

{"sheet":"INTERN | Prüfung","index":13,"n_rows":70,"n_cols":41,"rows_kept":70,"cut":false,"hidden":false,"merged":[[8,31,41,31],[14,3,16,3],[45,24,51,27],[10,20,10,21],[10,5,10,6],[10,8,10,9],[10,11,10,12],[10,14,10,15],[10,17,10,18],[10,23,10,24],[10,26,10,27],[50,8,50,23]]}
["NUTZUNG AUSSCHLIEßLICH DURCH DIE FÖRDERMITTELBEWILLIGENDE STELLE!       KEINE EINGABEN DES ANTRAGSTELLENDEN ERFORDERLICH."]
[]
[{"$f":"CONCATENATE(\"Bewertung der Förderfähigkeit der angegebenen Kosten | \",Kurztitel,\" | \",'INPUT | Allgemeines'!G7)","v":"Bewertung der Förderfähigkeit der angegebenen Kosten |  | "},{"$nulls":26},{"$f":"Nutzungshinweise!B4","v":"Version 250509 FW"},{"$nulls":7},"Ausblenden","Ausblenden","Ausblenden","Ausblenden","Ausblenden","Ausblenden"]
[]
[]
[]
[{"$f":"'Ergebnis '!B14","v":""},{"$nulls":4},"Legende >>>",null,"Angaben des Antragstellers",null,null,null,"Eingabefeld, kann überschrieben werden, Formelverlust!",{"$nulls":6},"Eingabefeld",null,null,"Ergebnis nach Prüfung",{"$nulls":9},"Hinweise zum Gebrauch:"]
[]
[{"$nulls":5},"Investitionen",{"$nulls":25},"Vorcheck: Wenn in allen Eingabefeldern zum Anteil der Förderfähigkeit in Zeile 13  100% eingetragen ist, sind die Einträge in der grauen und der daneben liegenden sandfarbenen Spalte eines Kostentyps identisch. Andernfalls wurden Veränderungen an der Tabelle vorgenommen.  \n\nSpalte D: Es kann jahresweise ausgewählt werden, welche Investitionsbeträge in der Berechnung berücksichtigt werden sollen. Ja >> Angaben des Jahres werden berücksichtigt. Nein >> … werden nicht berücksichtigt.\n\nZeile 13: Angaben zur Förderfähigkeit: Hier kann für Jeden der 7 Kostentypen angegeben werden, mit welchem Anteil (0% - 100%) diese in die Berechnung einfließen. Als Standard ist der Wert 100% hinterlegt. Der Anteil bezieht sich auf den vom Antragstellenden hinterlegten Investitionsbetrag im Kostentyp. Er gilt für alle Jahre gleich.\n\nSandfarben hinterlegte Felder können durch die fördermittelprüfende Stelle händisch verändert werden. Die Felder enthalten Formeln. Diese gehen bei der Eingabe verloren. Die Formeln können durch Hoch- oder Runterziehen bislang unveränderter Zellen aus der gleichen Spalte wiederhergestellt werden. Es wird dem Anwendenden empfohlen, händisch veränderte Zellen farblich anders zu markieren.\n\nZelle S48 Förderfähiger Investitionsbetrag: Errechnet sich aus den Angaben der sandfarben hinterlegten Zellen. \n\nZelle V48 Förderbetrag: Minimum aus Finanzierungslücke (Angaben des Antragstellenden) und Zelle S48"]
[]
[{"$nulls":5},"Technische Anlagen",null,null,"Gebäude & bauliche Anlagen",null,null,"Grunderwerb & -nebenkosten",null,null,"immaterielle Vermögenswerte",null,null,"Personalkosten",null,null,"Sachverständigen-, Planungs-, Beratg.-leistungen",null,null,"Sonstige Kosten",null,null,"Summen"]
[]
[null,null,null,"Förderfähig >>",null,null,1,null,null,1,null,null,1,null,null,1,null,null,1,null,null,1,null,null,1,null,"Antrag","Förderfähig"]
[]
[null,null,null,"Jahr \neinbeziehen?",null,"[Euro/a] ","[Euro/a] ",null,"[Euro/a] ","[Euro/a] ",null,"[Euro/a] ","[Euro/a] ",null,"[Euro/a] ","[Euro/a] ",null,"[Euro/a] ","[Euro/a] ",null,"[Euro/a] ","[Euro/a] ",null,"[Euro/a] ","[Euro/a] ",null,"[Euro/a] ","[Euro/a] "]
[]
[{"$nulls":5},{"$f":"SUM(OFFSET(F19,0,0,$AJ$70,1))","v":0},{"$f":"SUM(OFFSET(G19,0,0,$AJ$70,1))","v":0},null,{"$f":"SUM(OFFSET(I19,0,0,$AJ$70,1))","v":0},{"$f":"SUM(OFFSET(J19,0,0,$AJ$70,1))","v":0},null,{"$f":"SUM(OFFSET(L19,0,0,$AJ$70,1))","v":0},{"$f":"SUM(OFFSET(M19,0,0,$AJ$70,1))","v":0},null,{"$f":"SUM(OFFSET(O19,0,0,$AJ$70,1))","v":0},{"$f":"SUM(OFFSET(P19,0,0,$AJ$70,1))","v":0},null,{"$f":"SUM(OFFSET(R19,0,0,$AJ$70,1))","v":0},{"$f":"SUM(OFFSET(S19,0,0,$AJ$70,1))","v":0},null,{"$f":"SUM(OFFSET(U19,0,0,$AJ$70,1))","v":0},{"$f":"SUM(OFFSET(V19,0,0,$AJ$70,1))","v":0},null,{"$f":"SUM(OFFSET(X19,0,0,$AJ$70,1))","v":0},{"$f":"SUM(OFFSET(Y19,0,0,$AJ$70,1))","v":0},null,{"$f":"SUM(OFFSET(AA19,0,0,$AJ$70,1))","v":0},{"$f":"SUM(OFFSET(AB19,0,0,$AJ$70,1))","v":0},null,{"$f":"SUM(OFFSET(AD19,0,0,$AJ$70,1))","v":0}]
[]
[{"$f":"'INPUT | TSz > Kosten'!B14","v":"Jahr 1"},{"$f":"'INPUT | TSz > Kosten'!C14","v":2026},null,"ja",null,{"$f":"'INPUT | TSz > Kosten'!E14","v":0},{"$f":"F19*G$13*VLOOKUP($D19,$AJ$58:$AK$59,2)","v":0},null,{"$f":"'INPUT | TSz > Kosten'!F14","v":0},{"$f":"I19*J$13*VLOOKUP($D19,$AJ$58:$AK$59,2)","v":0},null,{"$f":"'INPUT | TSz > Kosten'!G14","v":0},{"$f":"L19*M$13*VLOOKUP($D19,$AJ$58:$AK$59,2)","v":0},null,{"$f":"'INPUT | TSz > Kosten'!H14","v":0},{"$f":"O19*P$13*VLOOKUP($D19,$AJ$58:$AK$59,2)","v":0},null,{"$f":"'INPUT | TSz > Kosten'!I14","v":0},{"$f":"R19*S$13*VLOOKUP($D19,$AJ$58:$AK$59,2)","v":0},null,{"$f":"'INPUT | TSz > Kosten'!J14","v":0},{"$f":"U19*V$13*VLOOKUP($D19,$AJ$58:$AK$59,2)","v":0},null,{"$f":"'INPUT | TSz > Kosten'!K14","v":0},{"$f":"X19*Y$13*VLOOKUP($D19,$AJ$58:$AK$59,2)","v":0},null,{"$f":"F19+I19+L19+O19+R19+U19+X19","v":0},{"$f":"G19+J19+M19+P19+S19+V19+Y19","v":0}]
[{"$f":"'INPUT | TSz > Kosten'!B15","v":"Jahr 2"},{"$f":"'INPUT | TSz > Kosten'!C15","v":2027},null,"ja",null,{"$f":"'INPUT | TSz > Kosten'!E15","v":0},{"$f":"F20*G$13*VLOOKUP($D20,$AJ$58:$AK$59,2)","v":0},null,{"$f":"'INPUT | TSz > Kosten'!F15","v":0},{"$f":"I20*J$13*VLOOKUP($D20,$AJ$58:$AK$59,2)","v":0},null,{"$f":"'INPUT | TSz > Kosten'!G15","v":0},{"$f":"L20*M$13*VLOOKUP($D20,$AJ$58:$AK$59,2)","v":0},null,{"$f":"'INPUT | TSz > Kosten'!H15","v":0},{"$f":"O20*P$13*VLOOKUP($D20,$AJ$58:$AK$59,2)","v":0},null,{"$f":"'INPUT | TSz > Kosten'!I15","v":0},{"$f":"R20*S$13*VLOOKUP($D20,$AJ$58:$AK$59,2)","v":0},null,{"$f":"'INPUT | TSz > Kosten'!J15","v":0},{"$f":"U20*V$13*VLOOKUP($D20,$AJ$58:$AK$59,2)","v":0},null,{"$f":"'INPUT | TSz > Kosten'!K15","v":0},{"$f":"X20*Y$13*VLOOKUP($D20,$AJ$58:$AK$59,2)","v":0},null,{"$f":"F20+I20+L20+O20+R20+U20+X20","v":0},{"$f":"G20+J20+M20+P20+S20+V20+Y20","v":0}]
[{"$f":"'INPUT | TSz > Kosten'!B16","v":"Jahr 3"},{"$f":"'INPUT | TSz > Kosten'!C16","v":2028},null,"ja",null,{"$f":"'INPUT | TSz > Kosten'!E16","v":0},0,null,{"$f":"'INPUT | TSz > Kosten'!F16","v":0},0,null,{"$f":"'INPUT | TSz > Kosten'!G16","v":0},0,null,{"$f":"'INPUT | TSz > Kosten'!H16","v":0},0,null,{"$f":"'INPUT | TSz > Kosten'!I16","v":0},0,null,{"$f":"'INPUT | TSz > Kosten'!J16","v":0},0,null,{"$f":"'INPUT | TSz > Kosten'!K16","v":0},0,null,{"$f":"F21+I21+L21+O21+R21+U21+X21","v":0},{"$f":"G21+J21+M21+P21+S21+V21+Y21","v":0}]
[{"$f":"'INPUT | TSz > Kosten'!B17","v":"Jahr 4"},{"$f":"'INPUT | TSz > Kosten'!C17","v":2029},null,"ja",null,{"$f":"'INPUT | TSz > Kosten'!E17","v":0},0,null,{"$f":"'INPUT | TSz > Kosten'!F17","v":0},0,null,{"$f":"'INPUT | TSz > Kosten'!G17","v":0},0,null,{"$f":"'INPUT | TSz > Kosten'!H17","v":0},0,null,{"$f":"'INPUT | TSz > Kosten'!I17","v":0},0,null,{"$f":"'INPUT | TSz > Kosten'!J17","v":0},0,null,{"$f":"'INPUT | TSz > Kosten'!K17","v":0},0,null,0,0]
[{"$f":"'INPUT | TSz > Kosten'!B18","v":"Jahr 5"},{"$f":"'INPUT | TSz > Kosten'!C18","v":2030},null,"ja",null,{"$f":"'INPUT | TSz > Kosten'!E18","v":0},0,null,{"$f":"'INPUT | TSz > Kosten'!F18","v":0},0,null,{"$f":"'INPUT | TSz > Kosten'!G18","v":0},0,null,{"$f":"'INPUT | TSz > Kosten'!H18","v":0},0,null,{"$f":"'INPUT | TSz > Kosten'!I18","v":0},0,null,{"$f":"'INPUT | TSz > Kosten'!J18","v":0},0,null,{"$f":"'INPUT | TSz > Kosten'!K18","v":0},0,null,0,0]
[{"$f":"'INPUT | TSz > Kosten'!B19","v":"Jahr 6"},{"$f":"'INPUT | TSz > Kosten'!C19","v":2031},null,"ja",null,{"$f":"'INPUT | TSz > Kosten'!E19","v":0},0,null,{"$f":"'INPUT | TSz > Kosten'!F19","v":0},0,null,{"$f":"'INPUT | TSz > Kosten'!G19","v":0},0,null,{"$f":"'INPUT | TSz > Kosten'!H19","v":0},0,null,{"$f":"'INPUT | TSz > Kosten'!I19","v":0},0,null,{"$f":"'INPUT | TSz > Kosten'!J19","v":0},0,null,{"$f":"'INPUT | TSz > Kosten'!K19","v":0},0,null,0,0]
[{"$f":"'INPUT | TSz > Kosten'!B20","v":"Jahr 7"},{"$f":"'INPUT | TSz > Kosten'!C20","v":2032},null,"nein",null,{"$f":"'INPUT | TSz > Kosten'!E20","v":0},0,null,{"$f":"'INPUT | TSz > Kosten'!F20","v":0},0,null,{"$f":"'INPUT | TSz > Kosten'!G20","v":0},0,null,{"$f":"'INPUT | TSz > Kosten'!H20","v":0},0,null,{"$f":"'INPUT | TSz > Kosten'!I20","v":0},0,null,{"$f":"'INPUT | TSz > Kosten'!J20","v":0},0,null,{"$f":"'INPUT | TSz > Kosten'!K20","v":0},0,null,0,0]
[{"$f":"'INPUT | TSz > Kosten'!B21","v":"Jahr 8"},{"$f":"'INPUT | TSz > Kosten'!C21","v":2033},null,"nein",null,{"$f":"'INPUT | TSz > Kosten'!E21","v":0},0,null,{"$f":"'INPUT | TSz > Kosten'!F21","v":0},0,null,{"$f":"'INPUT | TSz > Kosten'!G21","v":0},0,null,{"$f":"'INPUT | TSz > Kosten'!H21","v":0},0,null,{"$f":"'INPUT | TSz > Kosten'!I21","v":0},0,null,{"$f":"'INPUT | TSz > Kosten'!J21","v":0},0,null,{"$f":"'INPUT | TSz > Kosten'!K21","v":0},0,null,0,0]
[{"$f":"'INPUT | TSz > Kosten'!B22","v":"Jahr 9"},{"$f":"'INPUT | TSz > Kosten'!C22","v":2034},null,"nein",null,{"$f":"'INPUT | TSz > Kosten'!E22","v":0},0,null,{"$f":"'INPUT | TSz > Kosten'!F22","v":0},0,null,{"$f":"'INPUT | TSz > Kosten'!G22","v":0},0,null,{"$f":"'INPUT | TSz > Kosten'!H22","v":0},0,null,{"$f":"'INPUT | TSz > Kosten'!I22","v":0},0,null,{"$f":"'INPUT | TSz > Kosten'!J22","v":0},0,null,{"$f":"'INPUT | TSz > Kosten'!K22","v":0},0,null,0,0]
[{"$f":"'INPUT | TSz > Kosten'!B23","v":"Jahr 10"},{"$f":"'INPUT | TSz > Kosten'!C23","v":2035},null,"nein",null,{"$f":"'INPUT | TSz > Kosten'!E23","v":0},0,null,{"$f":"'INPUT | TSz > Kosten'!F23","v":0},0,null,{"$f":"'INPUT | TSz > Kosten'!G23","v":0},0,null,{"$f":"'INPUT | TSz > Kosten'!H23","v":0},0,null,{"$f":"'INPUT | TSz > Kosten'!I23","v":0},0,null,{"$f":"'INPUT | TSz > Kosten'!J23","v":0},0,null,{"$f":"'INPUT | TSz > Kosten'!K23","v":0},0,null,0,0]
[{"$f":"'INPUT | TSz > Kosten'!B24","v":"Jahr 11"},{"$f":"'INPUT | TSz > Kosten'!C24","v":2036},null,"nein",null,{"$f":"'INPUT | TSz > Kosten'!E24","v":0},0,null,{"$f":"'INPUT | TSz > Kosten'!F24","v":0},0,null,{"$f":"'INPUT | TSz > Kosten'!G24","v":0},0,null,{"$f":"'INPUT | TSz > Kosten'!H24","v":0},0,null,{"$f":"'INPUT | TSz > Kosten'!I24","v":0},0,null,{"$f":"'INPUT | TSz > Kosten'!J24","v":0},0,null,{"$f":"'INPUT | TSz > Kosten'!K24","v":0},0,null,0,0]
[{"$f":"'INPUT | TSz > Kosten'!B25","v":"Jahr 12"},{"$f":"'INPUT | TSz > Kosten'!C25","v":2037},null,"nein",null,{"$f":"'INPUT | TSz > Kosten'!E25","v":0},0,null,{"$f":"'INPUT | TSz > Kosten'!F25","v":0},0,null,{"$f":"'INPUT | TSz > Kosten'!G25","v":0},0,null,{"$f":"'INPUT | TSz > Kosten'!H25","v":0},0,null,{"$f":"'INPUT | TSz > Kosten'!I25","v":0},0,null,{"$f":"'INPUT | TSz > Kosten'!J25","v":0},0,null,{"$f":"'INPUT | TSz > Kosten'!K25","v":0},0,null,0,0]
[{"$f":"'INPUT | TSz > Kosten'!B26","v":"Jahr 13"},{"$f":"'INPUT | TSz > Kosten'!C26","v":2038},null,"nein",null,{"$f":"'INPUT | TSz > Kosten'!E26","v":0},0,null,{"$f":"'INPUT | TSz > Kosten'!F26","v":0},0,null,{"$f":"'INPUT | TSz > Kosten'!G26","v":0},0,null,{"$f":"'INPUT | TSz > Kosten'!H26","v":0},0,null,{"$f":"'INPUT | TSz > Kosten'!I26","v":0},0,null,{"$f":"'INPUT | TSz > Kosten'!J26","v":0},0,null,{"$f":"'INPUT | TSz > Kosten'!K26","v":0},0,null,0,0]
[{"$f":"'INPUT | TSz > Kosten'!B27","v":"Jahr 14"},{"$f":"'INPUT | TSz > Kosten'!C27","v":2039},null,"nein",null,{"$f":"'INPUT | TSz > Kosten'!E27","v":0},0,null,{"$f":"'INPUT | TSz > Kosten'!F27","v":0},0,null,{"$f":"'INPUT | TSz > Kosten'!G27","v":0},0,null,{"$f":"'INPUT | TSz > Kosten'!H27","v":0},0,null,{"$f":"'INPUT | TSz > Kosten'!I27","v":0},0,null,{"$f":"'INPUT | TSz > Kosten'!J27","v":0},0,null,{"$f":"'INPUT | TSz > Kosten'!K27","v":0},0,null,0,0]
[{"$f":"'INPUT | TSz > Kosten'!B28","v":"Jahr 15"},{"$f":"'INPUT | TSz > Kosten'!C28","v":2040},null,"nein",null,{"$f":"'INPUT | TSz > Kosten'!E28","v":0},0,null,{"$f":"'INPUT | TSz > Kosten'!F28","v":0},0,null,{"$f":"'INPUT | TSz > Kosten'!G28","v":0},0,null,{"$f":"'INPUT | TSz > Kosten'!H28","v":0},0,null,{"$f":"'INPUT | TSz > Kosten'!I28","v":0},0,null,{"$f":"'INPUT | TSz > Kosten'!J28","v":0},0,null,{"$f":"'INPUT | TSz > Kosten'!K28","v":0},0,null,0,0]
[{"$f":"'INPUT | TSz > Kosten'!B29","v":"Jahr 16"},{"$f":"'INPUT | TSz > Kosten'!C29","v":2041},null,"nein",null,{"$f":"'INPUT | TSz > Kosten'!E29","v":0},0,null,{"$f":"'INPUT | TSz > Kosten'!F29","v":0},0,null,{"$f":"'INPUT | TSz > Kosten'!G29","v":0},0,null,{"$f":"'INPUT | TSz > Kosten'!H29","v":0},0,null,{"$f":"'INPUT | TSz > Kosten'!I29","v":0},0,null,{"$f":"'INPUT | TSz > Kosten'!J29","v":0},0,null,{"$f":"'INPUT | TSz > Kosten'!K29","v":0},0,null,0,0]
[{"$f":"'INPUT | TSz > Kosten'!B30","v":"Jahr 17"},{"$f":"'INPUT | TSz > Kosten'!C30","v":2042},null,"nein",null,{"$f":"'INPUT | TSz > Kosten'!E30","v":0},0,null,{"$f":"'INPUT | TSz > Kosten'!F30","v":0},0,null,{"$f":"'INPUT | TSz > Kosten'!G30","v":0},0,null,{"$f":"'INPUT | TSz > Kosten'!H30","v":0},0,null,{"$f":"'INPUT | TSz > Kosten'!I30","v":0},0,null,{"$f":"'INPUT | TSz > Kosten'!J30","v":0},0,null,{"$f":"'INPUT | TSz > Kosten'!K30","v":0},0,null,0,0]
[{"$f":"'INPUT | TSz > Kosten'!B31","v":"Jahr 18"},{"$f":"'INPUT | TSz > Kosten'!C31","v":2043},null,"nein",null,{"$f":"'INPUT | TSz > Kosten'!E31","v":0},0,null,{"$f":"'INPUT | TSz > Kosten'!F31","v":0},0,null,{"$f":"'INPUT | TSz > Kosten'!G31","v":0},0,null,{"$f":"'INPUT | TSz > Kosten'!H31","v":0},0,null,{"$f":"'INPUT | TSz > Kosten'!I31","v":0},0,null,{"$f":"'INPUT | TSz > Kosten'!J31","v":0},0,null,{"$f":"'INPUT | TSz > Kosten'!K31","v":0},0,null,0,0]
[{"$f":"'INPUT | TSz > Kosten'!B32","v":"Jahr 19"},{"$f":"'INPUT | TSz > Kosten'!C32","v":2044},null,"nein",null,{"$f":"'INPUT | TSz > Kosten'!E32","v":0},0,null,{"$f":"'INPUT | TSz > Kosten'!F32","v":0},0,null,{"$f":"'INPUT | TSz > Kosten'!G32","v":0},0,null,{"$f":"'INPUT | TSz > Kosten'!H32","v":0},0,null,{"$f":"'INPUT | TSz > Kosten'!I32","v":0},0,null,{"$f":"'INPUT | TSz > Kosten'!J32","v":0},0,null,{"$f":"'INPUT | TSz > Kosten'!K32","v":0},0,null,0,0]
[{"$f":"'INPUT | TSz > Kosten'!B33","v":"Jahr 20"},{"$f":"'INPUT | TSz > Kosten'!C33","v":2045},null,"nein",null,{"$f":"'INPUT | TSz > Kosten'!E33","v":0},0,null,{"$f":"'INPUT | TSz > Kosten'!F33","v":0},0,null,{"$f":"'INPUT | TSz > Kosten'!G33","v":0},0,null,{"$f":"'INPUT | TSz > Kosten'!H33","v":0},0,null,{"$f":"'INPUT | TSz > Kosten'!I33","v":0},0,null,{"$f":"'INPUT | TSz > Kosten'!J33","v":0},0,null,{"$f":"'INPUT | TSz > Kosten'!K33","v":0},0,null,0,0]
[{"$f":"'INPUT | TSz > Kosten'!B34","v":"Jahr 21"},{"$f":"'INPUT | TSz > Kosten'!C34","v":""},null,"nein",null,{"$f":"'INPUT | TSz > Kosten'!E34","v":0},0,null,{"$f":"'INPUT | TSz > Kosten'!F34","v":0},0,null,{"$f":"'INPUT | TSz > Kosten'!G34","v":0},0,null,{"$f":"'INPUT | TSz > Kosten'!H34","v":0},0,null,{"$f":"'INPUT | TSz > Kosten'!I34","v":0},0,null,{"$f":"'INPUT | TSz > Kosten'!J34","v":0},0,null,{"$f":"'INPUT | TSz > Kosten'!K34","v":0},0,null,{"$f":"F39+I39+L39+O39+R39+U39+X39","v":0},{"$f":"G39+J39+M39+P39+S39+V39+Y39","v":0}]
[{"$f":"'INPUT | TSz > Kosten'!B35","v":"Jahr 22"},{"$f":"'INPUT | TSz > Kosten'!C35","v":""},null,"nein",null,{"$f":"'INPUT | TSz > Kosten'!E35","v":0},0,null,{"$f":"'INPUT | TSz > Kosten'!F35","v":0},0,null,{"$f":"'INPUT | TSz > Kosten'!G35","v":0},0,null,{"$f":"'INPUT | TSz > Kosten'!H35","v":0},0,null,{"$f":"'INPUT | TSz > Kosten'!I35","v":0},0,null,{"$f":"'INPUT | TSz > Kosten'!J35","v":0},0,null,{"$f":"'INPUT | TSz > Kosten'!K35","v":0},0,null,0,0]
[{"$f":"'INPUT | TSz > Kosten'!B36","v":"Jahr 23"},{"$f":"'INPUT | TSz > Kosten'!C36","v":""},null,"nein",null,{"$f":"'INPUT | TSz > Kosten'!E36","v":0},0,null,{"$f":"'INPUT | TSz > Kosten'!F36","v":0},0,null,{"$f":"'INPUT | TSz > Kosten'!G36","v":0},0,null,{"$f":"'INPUT | TSz > Kosten'!H36","v":0},0,null,{"$f":"'INPUT | TSz > Kosten'!I36","v":0},0,null,{"$f":"'INPUT | TSz > Kosten'!J36","v":0},0,null,{"$f":"'INPUT | TSz > Kosten'!K36","v":0},0,null,0,0]
[{"$f":"'INPUT | TSz > Kosten'!B37","v":"Jahr 24"},{"$f":"'INPUT | TSz > Kosten'!C37","v":""},null,"nein",null,{"$f":"'INPUT | TSz > Kosten'!E37","v":0},0,null,{"$f":"'INPUT | TSz > Kosten'!F37","v":0},0,null,{"$f":"'INPUT | TSz > Kosten'!G37","v":0},0,null,{"$f":"'INPUT | TSz > Kosten'!H37","v":0},0,null,{"$f":"'INPUT | TSz > Kosten'!I37","v":0},0,null,{"$f":"'INPUT | TSz > Kosten'!J37","v":0},0,null,{"$f":"'INPUT | TSz > Kosten'!K37","v":0},0,null,0,0]
[]
[]
["Auswertung"]
["Alle Angaben Euro",{"$nulls":7},"Tats.Szenario",null,null,"Kontraf. Szenario",null,null,"Finanzierungslücke",null,null,"Förderfähiger Investitionsbetrag",null,null,null,"Förderbetrag",null,null,"Hinweis:  Ein positiver Kapitalwert eines kontrafaktischen Szenarios wird bei der Berechnung der Finanzierungslücke nicht berücksichtigt!"]
[{"$nulls":6},"Gesamtinvestition",null,{"$f":"'Ergebnis '!M8","v":0},null,null,{"$f":"Nebenrechnungen!BM21","v":0},{"$nulls":6},"nach Prüfung"]
[{"$nulls":6},"Kapitalwert",null,{"$f":"'Ergebnis '!V20","v":0},null,null,{"$f":"'Ergebnis '!V51","v":0},null,null,{"$f":"-IF(I48>0,0,I48-IF(L48>0,0,L48))","v":0},null,null,null,{"$f":"AB17","v":0},null,null,{"$f":"MIN(S48,O48)","v":0}]
[{"$nulls":6},"Verwendter WACC-Wert",null,{"$f":"WACCTSz","v":0.08},null,null,{"$f":"WACCKSz","v":0}]
[]
[{"$nulls":6}," Notizen"]
[]
[]
[]
[]
[]
[{"$nulls":35},"Dropdown"]
[{"$nulls":35},"ja",1]
[{"$nulls":35},"nein",0]
[]
[]
[]
[]
[{"$nulls":35},"Formatierungen und Begriffe in Abhängigkeit der notwendigen Eingaben"]
[]
[{"$nulls":35},"Soll es Eingaben für ein Kontrafaktisches Szenario geben?  0=Nein, 1=Ja"]
[{"$nulls":35},{"$f":"'INPUT | Allgemeines'!$O$76","v":0},null,{"$f":"'INPUT | Allgemeines'!$Q$76","v":"Es wurde noch keine alternative Lösung ausgewählt."}]
[]
[{"$nulls":35},"Dauer"]
[{"$nulls":35},{"$f":"'INPUT | Allgemeines'!R102","v":20}]

{"sheet":"Deckblatt","index":14,"n_rows":27,"n_cols":21,"rows_kept":27,"cut":false,"hidden":true,"merged":[[26,1,26,14],[23,1,23,14],[10,10,10,14],[11,10,11,14],[12,10,12,14],[13,10,13,14],[20,1,20,14],[21,1,21,14],[25,1,25,14],[19,1,19,14],[14,10,14,14],[15,10,15,14],[6,0,6,5],[7,0,7,5],[10,8,15,8],[22,1,22,14],[24,1,24,14],[3,9,3,14],[4,9,4,14],[5,9,5,14],[3,1,3,6],[4,1,4,6],[5,1,5,6],[3,8,5,8]]}
["Berechnung der Finanzierungslücke für den Bau und die Modernisierung von leitungsgebundenen Infrastrukturen ",{"$nulls":14},"Nebenrechnung (wird evtl. für den Antragsteller ausgeblendet)"]
["Version: 1/2023 SMEKUL"]
[{"$nulls":16},"Tatsächl. SZ","Kontraf. SZ","Kontraf. SZ Altanlagen"]
["Antragsteller:",{"$nulls":7},"LEGENDE","Zellen enthalten integrierte Formeln und Verknüpfungen - nicht ändern",{"$nulls":5},"WACC",{"$f":"Q5/(Q5+Q6)*Q7+Q6/(Q5+Q6)*Q8*(1-Q9)","v":{"$error":"#N/A"}},{"$f":"R5/(R5+R6)*R7+R6/(R5+R6)*R8*(1-Q9)","v":{"$error":"#DIV/0!"}},{"$f":"S5/(S5+S6)*S7+S6/(S5+S6)*S8*(1-Q9)","v":{"$error":"#DIV/0!"}}]
["Projekt:",{"$nulls":8},"Zellen enthalten integrierte Formeln, können aber geändert werden",{"$nulls":5},"Eigenkapital",{"$f":"'Tatsächliches Szenario'!B58","v":1000},{"$f":"'Kontrafaktisches Szenario'!B53","v":0},{"$f":"R5","v":0}]
["Datum: ",{"$nulls":8},"Zellen benötigen Eingabedaten",{"$nulls":5},"Fremdkapital",{"$f":"'Tatsächliches Szenario'!B55","v":0},{"$f":"'Kontrafaktisches Szenario'!B51","v":0},{"$f":"R6","v":0}]
["Kategorie (Nummer der Vorhabenskategorie siehe Tabelle rechts):",{"$nulls":14},"rEK",{"$f":"VLOOKUP(G7,P11:Q17,2,TRUE)","v":{"$error":"#N/A"}},{"$f":"VLOOKUP(G7,P11:R17,2,TRUE)","v":{"$error":"#N/A"}},{"$f":"VLOOKUP(G7,P11:R17,3,TRUE)","v":{"$error":"#N/A"}}]
["Höchstzulässiger Fördersatz laut Förderrichtlinie (in Prozent)",{"$nulls":14},"rFK",{"$f":"'Tatsächliches Szenario'!C57","v":0},{"$f":"'Kontrafaktisches Szenario'!C52","v":0},{"$f":"'Kontrafaktisches Szenario'!C52","v":0}]
[{"$nulls":15},"Steuersatz",{"$f":"'Tatsächliches Szenario'!B16","v":0}]
[{"$nulls":15},"Kategorie","Zinssatz rEK","rEK-Altanlagen","AfA ","AGVO-Art.","Fördersatz"]
[{"$nulls":8},"KATEGORIE VORHABEN",1,"Infrastruktur Wasserstoff (Art. 48 AGVO)",{"$nulls":4},1,0.09,7.7299999999999994E-2,25,48,0.8]
[{"$nulls":9},2,"Infrastruktur Strom (Art. 48 AGVO)",{"$nulls":4},2,5.0700000000000002E-2,3.5099999999999999E-2,25,48,0.8]
[{"$nulls":9},3,"Infrastruktur Gas, außer Wasserstoff (Art. 48 AGVO) ",{"$nulls":4},3,5.0700000000000002E-2,3.5099999999999999E-2,25,48,0.8]
[{"$nulls":9},4,"Erzeugungsanlagen und Speicher für Fernwärme/Fernkälte (Art. 46 AGVO)",{"$nulls":4},4,4.6399999999999997E-2,4.6399999999999997E-2,15,46,0.5]
[{"$nulls":9},5,"Verteilnetz für Fernwärme/Fernkälte (Art. 46 AGVO)",{"$nulls":4},5,4.6399999999999997E-2,4.6399999999999997E-2,20,46,0.5]
[{"$nulls":9},6,"Förderung erneuerbare Energien/Wasserstoff, kleine Vorhaben und Erneuerbare-Energie-Gemeinschaften (Art. 43 AGVO)",{"$nulls":4},6,4.6399999999999997E-2,4.6399999999999997E-2,25,43,1]
[]
["Hinweise zur Anwendung"]
[]
["Allgemein","Diese Vorlage ist für Projekte bestimmt, die nach der Allgemeinen Freistellungsverordnung (AGVO) gemäß den Art. 43, 46 und 48 gefördert werden.\n\nArt. 43 AGVO: Betriebsbeihilfen zur Förderung von erneuerbaren Energien und erneuerbarem Wasserstoff im Rahmen von kleinen Vorhaben und von Erneuerbare-Energie-Gemeinschaften\nArt. 46 AGVO: Investitionsbeihilfen für energieeffiziente Fernwärme und/oder Fernkälte\nArt. 48 AGVO: Investitionsbeihilfen für Energieinfrastrukturen"]
["Allgemein","Die Finanzierungslücke entspricht den Nettomehrkosten eines förderfähigen Vorhabens (tatsächliches Szenario) gegenüber einem alternativen Szenario (kontrafaktisches Szenario), das der Antragsteller aller Wahrscheinlichkeit nach ohne Beihilfe durchführen würde. Für beide Szenarien wird die Differenz zwischen den erwirtschafteten Einnahmen und den Kosten (einschließlich Investitionen und Betrieb) über die gesamte Lebensdauer des Vorhabens ermittelt. Durch Abzinsung dieser künftigen Zahlungsströme mit den geschätzten gewichteten durchschnittlichen Kapitalkosten (weighted average cost of capital –  WACC) wird der Kapitalwert (net present value - NPV) zum Zeitpunkt der Antragstellung errechnet. Die Finanzierungslücke ergibt sich aus der Differenz zwischen den Kapitalwerten des Kontrafaktischen und des tatsächlichen Szenarios.  "]
["Allgemein","Informationen/Eingaben sind in die die GRAU markierten Zellen einzutragen. ROT markierte Zellen enthalten integrierte Formeln, die vom Antragsteller geändert werden können. Eingebaute Formeln und Verknüpfungen sind GELB hervorgehoben. Gelbe Zellen sind gesperrt und können nicht geändert werden."]
["Allgemein","Zur Ermittlung der Finanzierungslücke werden förderfähige und nicht förderfähige Kostenpositionen einbezogen, wie z.B. Personalkosten und sämtliche für den Betrieb der Anlage erforderliche Kosten, die von der Förderung ausgenommen sind.  Somit ergibt sich eine Differenz zwischen den Gesamtkosten des Vorhabens und den förderfähigen Gesamtkosten. Für die Ermittlung des Förderbetrags werden beide Werte herangezogen und davon das Minimum gewählt.\nDie Kostenpositionen sind zusammengefasst. Die Auflistung einzelner Kosten erfolgt separat in der Vorhabensbeschreibung."]
["Allgemein","Für die Ermittlung der Gesamtkosten werden alle Kosten für das Vorhaben vor Abzug von Steuern und sonstigen Abgaben herangezogen. Auf die Kosten erhobene erstattungsfähige Mehrwertsteuer und die Abschreibungen werden nicht berücksichtigt. "]
["Allgemein","Der zu betrachtende Zeitraum für die Ermittlung der Finanzierungslücke orientiert sich an der wirtschaftlichen Lebensdauer. Die EU erkennt diesbezüglich die in Deutschland geltenden steuerlichen Abschreibungsfristen als Berechnungsgrundlage an. Positive oder negative Abweichungen von den vorgegebenen Abschreibungsfristen sind in der Vorhabensbeschreibung ausführlich zu begründen."]
["Allgemein","Der Kalkulationszinssatz basiert auf den geschätzten gewichteten durchschnittlichen Kapitalkosten (WACC) und berücksichtigt Wagnis und Gewinn für das eingesetzte Eigenkapital."]
["Kontrafaktisches Szenario","Für das kontrafaktische Szenario sind folgende Varianten möglich:\n1)   es gibt kein alternatives Szenario\n2)   die bestehenden Anlagen werden weiterbetrieben, die Investition wird zu einem späteren Zeitpunkt getätigt\n3)   es gibt eine alternative, weniger umweltfreundliche Neuinvestition ohne Förderung\nDie Wahl des kontrafaktischen Szenarios ist in der Vorhabensbeschreibung ausführlich zu begründen."]

{"sheet":"Tatsächliches Szenario","index":15,"n_rows":63,"n_cols":51,"rows_kept":63,"cut":false,"hidden":true,"merged":[[2,4,2,9],[3,4,3,9],[4,4,4,9],[2,3,4,3]]}
["Berechnung der Finanzierungslücke - Tatsächliches Szenario"]
[]
[{"$f":"Deckblatt!B4","v":0},null,null,"LEGENDE","Zellen enthalten integrierte Formeln und Verknüpfungen - nicht ändern"]
[{"$f":"Deckblatt!B5","v":0},null,null,null,"Zellen enthalten integrierte Formeln, können aber geändert werden"]
[{"$f":"Deckblatt!B6","v":"00:00:00"},null,null,null,"Zellen benötigen Eingabedaten"]
[{"$f":"VLOOKUP(Deckblatt!G7,Deckblatt!J11:O17,2,TRUE)","v":{"$error":"#N/A"}}]
[]
["Allgemeine Angaben"]
[]
["Nummer der Vorhabenskategorie (aus \"Deckblatt\")",{"$f":"Deckblatt!G7","v":0}]
["Betrachtungsjahr (Basisjahr, Jahr der Antragstellung)",2023]
["Jahr der Inbetriebnahme",2024]
["Letztes Betrachtungsjahr (entspricht letztem Jahr der Abschreibung)",{"$f":"B12+B14","v":2044}]
["Wirtschaftliche Lebensdauer (Abschreibungsfrist)",20]
["WACC (gewichteter durchschnittlicher Kapitalkostensatz)",{"$f":"Deckblatt!Q4","v":{"$error":"#N/A"}}]
["Steuersatz"]
[]
[]
["Berechnung Barwert des tatsächlichen Szenarios"]
[]
[null,"Gesamt",{"$f":"B11","v":2023},{"$f":"IF($C21+COLUMN(D21)-COLUMN($C21)<=$B$13,$C21+COLUMN(D21)-COLUMN($C21),\"\")","v":2024},{"$f":"IF($C21+COLUMN(E21)-COLUMN($C21)<=$B$13,$C21+COLUMN(E21)-COLUMN($C21),\"\")","v":2025},{"$f":"IF($C21+COLUMN(F21)-COLUMN($C21)<=$B$13,$C21+COLUMN(F21)-COLUMN($C21),\"\")","v":2026},2027,2028,2029,2030,2031,2032,2033,2034,2035,{"$f":"IF($C21+COLUMN(P21)-COLUMN($C21)<=$B$13,$C21+COLUMN(P21)-COLUMN($C21),\"\")","v":2036},{"$f":"IF($C21+COLUMN(Q21)-COLUMN($C21)<=$B$13,$C21+COLUMN(Q21)-COLUMN($C21),\"\")","v":2037},{"$f":"IF($C21+COLUMN(R21)-COLUMN($C21)<=$B$13,$C21+COLUMN(R21)-COLUMN($C21),\"\")","v":2038},2039,2040,2041,{"$f":"IF($C21+COLUMN(V21)-COLUMN($C21)<=$B$13,$C21+COLUMN(V21)-COLUMN($C21),\"\")","v":2042},{"$f":"IF($C21+COLUMN(W21)-COLUMN($C21)<=$B$13,$C21+COLUMN(W21)-COLUMN($C21),\"\")","v":2043},{"$f":"IF($C21+COLUMN(X21)-COLUMN($C21)<=$B$13,$C21+COLUMN(X21)-COLUMN($C21),\"\")","v":2044},"",{"$f":"IF($C21+COLUMN(Z21)-COLUMN($C21)<=$B$13,$C21+COLUMN(Z21)-COLUMN($C21),\"\")","v":""},{"$f":"IF($C21+COLUMN(AA21)-COLUMN($C21)<=$B$13,$C21+COLUMN(AA21)-COLUMN($C21),\"\")","v":""},{"$f":"IF($C21+COLUMN(AB21)-COLUMN($C21)<=$B$13,$C21+COLUMN(AB21)-COLUMN($C21),\"\")","v":""},"","","","","","","","","","","","","","","","","","","","","","",""]
[]
["Kosten (in Euro)"]
["Förderfähige Kosten:"]
["a) Investitionen in materielle Vermögenswerte",{"$f":"SUM(OFFSET(C25,0,0,1,B$13-B$11+1))","v":0}]
["b) Investitionen in immaterielle Vermögenswerte",0]
["c) Kosten für den Erwerb/Bau von Infrastruktur, Gebäuden und Grundstücken",0]
["d) Kosten Sachverständigen-, Planungs-, Beratungsleistungen",0]
["e) Indirekte Ausgaben pauschal 7% (Projektkoordinierung und-betreuung)",{"$f":"SUM(OFFSET(C29,0,0,1,B$13-B$11+1))","v":0},{"$f":"IF(C$21=\"\",\"\",IFERROR(0.07*SUM(C25:C28),\"\"))","v":0},{"$f":"IF(D$21=\"\",\"\",IFERROR(0.07*SUM(D25:D28),\"\"))","v":0},0,0,0,0,0,0,{"$f":"IF(K$21=\"\",\"\",IFERROR(0.07*SUM(K25:K28),\"\"))","v":0},{"$f":"IF(L$21=\"\",\"\",IFERROR(0.07*SUM(L25:L28),\"\"))","v":0},{"$f":"IF(M$21=\"\",\"\",IFERROR(0.07*SUM(M25:M28),\"\"))","v":0},{"$f":"IF(N$21=\"\",\"\",IFERROR(0.07*SUM(N25:N28),\"\"))","v":0},{"$f":"IF(O$21=\"\",\"\",IFERROR(0.07*SUM(O25:O28),\"\"))","v":0},{"$f":"IF(P$21=\"\",\"\",IFERROR(0.07*SUM(P25:P28),\"\"))","v":0},0,{"$f":"IF(R$21=\"\",\"\",IFERROR(0.07*SUM(R25:R28),\"\"))","v":0},{"$f":"IF(S$21=\"\",\"\",IFERROR(0.07*SUM(S25:S28),\"\"))","v":0},{"$f":"IF(T$21=\"\",\"\",IFERROR(0.07*SUM(T25:T28),\"\"))","v":0},{"$f":"IF(U$21=\"\",\"\",IFERROR(0.07*SUM(U25:U28),\"\"))","v":0},{"$f":"IF(V$21=\"\",\"\",IFERROR(0.07*SUM(V25:V28),\"\"))","v":0},{"$f":"IF(W$21=\"\",\"\",IFERROR(0.07*SUM(W25:W28),\"\"))","v":0},0,{"$f":"IF(Y$21=\"\",\"\",IFERROR(0.07*SUM(Y25:Y28),\"\"))","v":""},{"$f":"IF(Z$21=\"\",\"\",IFERROR(0.07*SUM(Z25:Z28),\"\"))","v":""},{"$f":"IF(AA$21=\"\",\"\",IFERROR(0.07*SUM(AA25:AA28),\"\"))","v":""},{"$f":"IF(AB$21=\"\",\"\",IFERROR(0.07*SUM(AB25:AB28),\"\"))","v":""},{"$f":"IF(AC$21=\"\",\"\",IFERROR(0.07*SUM(AC25:AC28),\"\"))","v":""},{"$f":"IF(AD$21=\"\",\"\",IFERROR(0.07*SUM(AD25:AD28),\"\"))","v":""},"",{"$f":"IF(AF$21=\"\",\"\",IFERROR(0.07*SUM(AF25:AF28),\"\"))","v":""},{"$f":"IF(AG$21=\"\",\"\",IFERROR(0.07*SUM(AG25:AG28),\"\"))","v":""},{"$f":"IF(AH$21=\"\",\"\",IFERROR(0.07*SUM(AH25:AH28),\"\"))","v":""},{"$f":"IF(AI$21=\"\",\"\",IFERROR(0.07*SUM(AI25:AI28),\"\"))","v":""},{"$f":"IF(AJ$21=\"\",\"\",IFERROR(0.07*SUM(AJ25:AJ28),\"\"))","v":""},{"$f":"IF(AK$21=\"\",\"\",IFERROR(0.07*SUM(AK25:AK28),\"\"))","v":""},"",{"$f":"IF(AM$21=\"\",\"\",IFERROR(0.07*SUM(AM25:AM28),\"\"))","v":""},{"$f":"IF(AN$21=\"\",\"\",IFERROR(0.07*SUM(AN25:AN28),\"\"))","v":""},{"$f":"IF(AO$21=\"\",\"\",IFERROR(0.07*SUM(AO25:AO28),\"\"))","v":""},{"$f":"IF(AP$21=\"\",\"\",IFERROR(0.07*SUM(AP25:AP28),\"\"))","v":""},{"$f":"IF(AQ$21=\"\",\"\",IFERROR(0.07*SUM(AQ25:AQ28),\"\"))","v":""},{"$f":"IF(AR$21=\"\",\"\",IFERROR(0.07*SUM(AR25:AR28),\"\"))","v":""},"",{"$f":"IF(AT$21=\"\",\"\",IFERROR(0.07*SUM(AT25:AT28),\"\"))","v":""},{"$f":"IF(AU$21=\"\",\"\",IFERROR(0.07*SUM(AU25:AU28),\"\"))","v":""},{"$f":"IF(AV$21=\"\",\"\",IFERROR(0.07*SUM(AV25:AV28),\"\"))","v":""},{"$f":"IF(AW$21=\"\",\"\",IFERROR(0.07*SUM(AW25:AW28),\"\"))","v":""},{"$f":"IF(AX$21=\"\",\"\",IFERROR(0.07*SUM(AX25:AX28),\"\"))","v":""},{"$f":"IF(AY$21=\"\",\"\",IFERROR(0.07*SUM(AY25:AY28),\"\"))","v":""}]
["Nichtförderfähige Kosten:"]
["f) Eigenleistungen",0]
["g) Kosten für den Erwerb/Bau von Infrastruktur, Gebäuden und Grundstücken",{"$f":"SUM(OFFSET(C32,0,0,1,B$13-B$11+1))","v":0}]
["h) Kosten für Betrieb und Instandsetzung",{"$f":"SUM(OFFSET(C33,0,0,1,B$13-B$11+1))","v":0}]
["i) Personal-/Verwaltungskosten ",0]
["j) Sonstige Kosten",0]
["Restwert des Anlagevermögens am Ende des Betrachtungszeitraums"]
[]
["Gesamtkosten",{"$f":"SUM(OFFSET(C38,0,0,1,B$13-B$11+1))","v":0},{"$f":"IF(C$21=\"\",\"\",IFERROR(SUM(C25:C35),\"\"))","v":0},0,0,0,0,0,0,0,0,0,0,0,0,0,0,0,0,0,0,0,0,0,"","","","","","","","","","",{"$f":"IF(AI$21=\"\",\"\",IFERROR(SUM(AI25:AI35),\"\"))","v":""},"","","","","","","","","","","","","","","",""]
["   davon förderfähige Kosten (ohne indirekte Ausgaben)",{"$f":"SUM(OFFSET(C39,0,0,1,B$13-B$11+1))","v":0},{"$f":"IF(C$21=\"\",\"\",IFERROR(SUM(C25:C29,),\"\"))","v":0},{"$f":"IF(D$21=\"\",\"\",IFERROR(SUM(D25:D29,),\"\"))","v":0},0,0,0,0,0,0,0,0,0,0,0,0,0,0,0,0,0,0,0,0,"","","","","","","","","","","","","","","","","","","","","","","","","","",""]
[]
["Verkäufe / Einnahmen (in Euro)"]
["a) Absatzmenge",{"$f":"IFERROR(AVERAGE(OFFSET(C42,0,0,1,B$13-B$11+1)),)","v":0}]
["     Preis pro Einheit",{"$f":"IFERROR(AVERAGE(OFFSET(C43,0,0,1,B$13-B$11+1)),)","v":0}]
["b) Einnahmen des Projektes",{"$f":"SUM(OFFSET(C44,0,0,1,B$13-B$11+1))","v":0}]
["c) Sonstige Einnahmen",{"$f":"SUM(OFFSET(C45,0,0,1,B$13-B$11+1))","v":0}]
["Gesamteinnahmen",{"$f":"SUM(OFFSET(C46,0,0,1,B$13-B$11+1))","v":0},{"$f":"IF(C$21=\"\",\"\",C42*C43+C44+C45)","v":0},{"$f":"IF(D$21=\"\",\"\",D42*D43+D44+D45)","v":0},0,0,0,{"$f":"IF(H$21=\"\",\"\",H42*H43+H44+H45)","v":0},{"$f":"IF(I$21=\"\",\"\",I42*I43+I44+I45)","v":0},{"$f":"IF(J$21=\"\",\"\",J42*J43+J44+J45)","v":0},0,{"$f":"IF(L$21=\"\",\"\",L42*L43+L44+L45)","v":0},{"$f":"IF(M$21=\"\",\"\",M42*M43+M44+M45)","v":0},{"$f":"IF(N$21=\"\",\"\",N42*N43+N44+N45)","v":0},0,{"$f":"IF(P$21=\"\",\"\",P42*P43+P44+P45)","v":0},{"$f":"IF(Q$21=\"\",\"\",Q42*Q43+Q44+Q45)","v":0},{"$f":"IF(R$21=\"\",\"\",R42*R43+R44+R45)","v":0},0,{"$f":"IF(T$21=\"\",\"\",T42*T43+T44+T45)","v":0},{"$f":"IF(U$21=\"\",\"\",U42*U43+U44+U45)","v":0},{"$f":"IF(V$21=\"\",\"\",V42*V43+V44+V45)","v":0},0,{"$f":"IF(X$21=\"\",\"\",X42*X43+X44+X45)","v":0},{"$f":"IF(Y$21=\"\",\"\",Y42*Y43+Y44+Y45)","v":""},{"$f":"IF(Z$21=\"\",\"\",Z42*Z43+Z44+Z45)","v":""},"",{"$f":"IF(AB$21=\"\",\"\",AB42*AB43+AB44+AB45)","v":""},{"$f":"IF(AC$21=\"\",\"\",AC42*AC43+AC44+AC45)","v":""},{"$f":"IF(AD$21=\"\",\"\",AD42*AD43+AD44+AD45)","v":""},"",{"$f":"IF(AF$21=\"\",\"\",AF42*AF43+AF44+AF45)","v":""},{"$f":"IF(AG$21=\"\",\"\",AG42*AG43+AG44+AG45)","v":""},{"$f":"IF(AH$21=\"\",\"\",AH42*AH43+AH44+AH45)","v":""},"",{"$f":"IF(AJ$21=\"\",\"\",AJ42*AJ43+AJ44+AJ45)","v":""},{"$f":"IF(AK$21=\"\",\"\",AK42*AK43+AK44+AK45)","v":""},{"$f":"IF(AL$21=\"\",\"\",AL42*AL43+AL44+AL45)","v":""},"",{"$f":"IF(AN$21=\"\",\"\",AN42*AN43+AN44+AN45)","v":""},{"$f":"IF(AO$21=\"\",\"\",AO42*AO43+AO44+AO45)","v":""},{"$f":"IF(AP$21=\"\",\"\",AP42*AP43+AP44+AP45)","v":""},"",{"$f":"IF(AR$21=\"\",\"\",AR42*AR43+AR44+AR45)","v":""},{"$f":"IF(AS$21=\"\",\"\",AS42*AS43+AS44+AS45)","v":""},{"$f":"IF(AT$21=\"\",\"\",AT42*AT43+AT44+AT45)","v":""},"",{"$f":"IF(AV$21=\"\",\"\",AV42*AV43+AV44+AV45)","v":""},{"$f":"IF(AW$21=\"\",\"\",AW42*AW43+AW44+AW45)","v":""},{"$f":"IF(AX$21=\"\",\"\",AX42*AX43+AX44+AX45)","v":""},""]
[]
["Zahlungsströme (Cash-Flows, in Euro)"]
["Cash-Flows",{"$f":"SUM(OFFSET(C49,0,0,1,B$13-B$11+1))","v":0},{"$f":"IF(C$21=\"\",\"\",IFERROR(C46-C38,))","v":0},{"$f":"IF(D$21=\"\",\"\",IFERROR(D46-D38,))","v":0},{"$f":"IF(E$21=\"\",\"\",IFERROR(E46-E38,))","v":0},0,0,0,0,0,0,0,0,0,0,0,0,0,0,0,0,0,0,0,"","","","","","","","","","","","","","","","","","","","","","","","","","",""]
["Diskontierte (abgezinste) Cash-Flows",{"$f":"SUM(OFFSET(C50,0,0,1,B$13-B$11+1))","v":{"$error":"#N/A"}},{"$f":"IF(C$21=\"\",\"\",C49/(1+IF($B$15=\"\",0,$B$15))^(C21-$B$11))","v":{"$error":"#N/A"}},{"$error":"#N/A"},{"$error":"#N/A"},{"$error":"#N/A"},{"$error":"#N/A"},{"$error":"#N/A"},{"$error":"#N/A"},{"$error":"#N/A"},{"$error":"#N/A"},{"$error":"#N/A"},{"$error":"#N/A"},{"$error":"#N/A"},{"$error":"#N/A"},{"$error":"#N/A"},{"$error":"#N/A"},{"$error":"#N/A"},{"$error":"#N/A"},{"$error":"#N/A"},{"$error":"#N/A"},{"$error":"#N/A"},{"$error":"#N/A"},{"$error":"#N/A"},"","","","","","","","","","",{"$f":"IF(AI$21=\"\",\"\",AI49/(1+IF($B$15=\"\",0,$B$15))^(AI21-$B$11))","v":""},"","","","","","","","","","","","","","","",""]
["Summe der diskontierten Cash-Flows",{"$f":"IFERROR(OFFSET(C51,0,B$13-B$11),)","v":0},{"$f":"IF(C$21=\"\",\"\",SUM($C$50:C50))","v":{"$error":"#N/A"}},{"$f":"IF(D$21=\"\",\"\",SUM($C$50:D50))","v":{"$error":"#N/A"}},{"$f":"IF(E$21=\"\",\"\",SUM($C$50:E50))","v":{"$error":"#N/A"}},{"$f":"IF(F$21=\"\",\"\",SUM($C$50:F50))","v":{"$error":"#N/A"}},{"$f":"IF(G$21=\"\",\"\",SUM($C$50:G50))","v":{"$error":"#N/A"}},{"$f":"IF(H$21=\"\",\"\",SUM($C$50:H50))","v":{"$error":"#N/A"}},{"$f":"IF(I$21=\"\",\"\",SUM($C$50:I50))","v":{"$error":"#N/A"}},{"$f":"IF(J$21=\"\",\"\",SUM($C$50:J50))","v":{"$error":"#N/A"}},{"$f":"IF(K$21=\"\",\"\",SUM($C$50:K50))","v":{"$error":"#N/A"}},{"$f":"IF(L$21=\"\",\"\",SUM($C$50:L50))","v":{"$error":"#N/A"}},{"$f":"IF(M$21=\"\",\"\",SUM($C$50:M50))","v":{"$error":"#N/A"}},{"$f":"IF(N$21=\"\",\"\",SUM($C$50:N50))","v":{"$error":"#N/A"}},{"$f":"IF(O$21=\"\",\"\",SUM($C$50:O50))","v":{"$error":"#N/A"}},{"$f":"IF(P$21=\"\",\"\",SUM($C$50:P50))","v":{"$error":"#N/A"}},{"$f":"IF(Q$21=\"\",\"\",SUM($C$50:Q50))","v":{"$error":"#N/A"}},{"$f":"IF(R$21=\"\",\"\",SUM($C$50:R50))","v":{"$error":"#N/A"}},{"$f":"IF(S$21=\"\",\"\",SUM($C$50:S50))","v":{"$error":"#N/A"}},{"$f":"IF(T$21=\"\",\"\",SUM($C$50:T50))","v":{"$error":"#N/A"}},{"$f":"IF(U$21=\"\",\"\",SUM($C$50:U50))","v":{"$error":"#N/A"}},{"$f":"IF(V$21=\"\",\"\",SUM($C$50:V50))","v":{"$error":"#N/A"}},{"$f":"IF(W$21=\"\",\"\",SUM($C$50:W50))","v":{"$error":"#N/A"}},{"$f":"IF(X$21=\"\",\"\",SUM($C$50:X50))","v":{"$error":"#N/A"}},{"$f":"IF(Y$21=\"\",\"\",SUM($C$50:Y50))","v":""},{"$f":"IF(Z$21=\"\",\"\",SUM($C$50:Z50))","v":""},{"$f":"IF(AA$21=\"\",\"\",SUM($C$50:AA50))","v":""},{"$f":"IF(AB$21=\"\",\"\",SUM($C$50:AB50))","v":""},{"$f":"IF(AC$21=\"\",\"\",SUM($C$50:AC50))","v":""},{"$f":"IF(AD$21=\"\",\"\",SUM($C$50:AD50))","v":""},{"$f":"IF(AE$21=\"\",\"\",SUM($C$50:AE50))","v":""},{"$f":"IF(AF$21=\"\",\"\",SUM($C$50:AF50))","v":""},{"$f":"IF(AG$21=\"\",\"\",SUM($C$50:AG50))","v":""},{"$f":"IF(AH$21=\"\",\"\",SUM($C$50:AH50))","v":""},{"$f":"IF(AI$21=\"\",\"\",SUM($C$50:AI50))","v":""},{"$f":"IF(AJ$21=\"\",\"\",SUM($C$50:AJ50))","v":""},{"$f":"IF(AK$21=\"\",\"\",SUM($C$50:AK50))","v":""},{"$f":"IF(AL$21=\"\",\"\",SUM($C$50:AL50))","v":""},{"$f":"IF(AM$21=\"\",\"\",SUM($C$50:AM50))","v":""},{"$f":"IF(AN$21=\"\",\"\",SUM($C$50:AN50))","v":""},{"$f":"IF(AO$21=\"\",\"\",SUM($C$50:AO50))","v":""},{"$f":"IF(AP$21=\"\",\"\",SUM($C$50:AP50))","v":""},{"$f":"IF(AQ$21=\"\",\"\",SUM($C$50:AQ50))","v":""},{"$f":"IF(AR$21=\"\",\"\",SUM($C$50:AR50))","v":""},{"$f":"IF(AS$21=\"\",\"\",SUM($C$50:AS50))","v":""},{"$f":"IF(AT$21=\"\",\"\",SUM($C$50:AT50))","v":""},{"$f":"IF(AU$21=\"\",\"\",SUM($C$50:AU50))","v":""},{"$f":"IF(AV$21=\"\",\"\",SUM($C$50:AV50))","v":""},{"$f":"IF(AW$21=\"\",\"\",SUM($C$50:AW50))","v":""},{"$f":"IF(AX$21=\"\",\"\",SUM($C$50:AX50))","v":""},{"$f":"IF(AY$21=\"\",\"\",SUM($C$50:AY50))","v":""}]
["Kapitalwert des tatsächlichen Szenarios",{"$f":"B51+C36*1/(1+B15)^(B13-B11)","v":{"$error":"#N/A"}}]
[]
["Finanzierung (in Euro)"]
["Darlehen / Kredite",{"$f":"SUM(OFFSET(C55,0,0,1,B$13-B$11+1))","v":0}]
["→ davon staatliche Beihilfe",{"$f":"SUM(OFFSET(C56,0,0,1,B$13-B$11+1))","v":0}]
["Effektive Verzinsung des Fremdkapitals (in Prozent)"]
["Eigenkapital",{"$f":"SUM(OFFSET(C58,0,0,1,B$13-B$11+1))","v":1000},1000]
["→ davon staatliche Beihilfe",{"$f":"SUM(OFFSET(C59,0,0,1,B$13-B$11+1))","v":0}]
["sonstige Zuschüsse ",{"$f":"SUM(OFFSET(C60,0,0,1,B$13-B$11+1))","v":0}]
["→ davon staatliche Beihilfe",{"$f":"SUM(OFFSET(C61,0,0,1,B$13-B$11+1))","v":0}]
["Kassenbestand",null,{"$f":"IF(C$21=\"\",\"\",SUM($C$49:C49)+SUM($C$55:C55)+SUM($C$58:C58)+SUM($C$60:C60))","v":1000},{"$f":"IF(D$21=\"\",\"\",SUM($C$49:D49)+SUM($C$55:D55)+SUM($C$58:D58)+SUM($C$60:D60))","v":1000},{"$f":"IF(E$21=\"\",\"\",SUM($C$49:E49)+SUM($C$55:E55)+SUM($C$58:E58)+SUM($C$60:E60))","v":1000},{"$f":"IF(F$21=\"\",\"\",SUM($C$49:F49)+SUM($C$55:F55)+SUM($C$58:F58)+SUM($C$60:F60))","v":1000},{"$f":"IF(G$21=\"\",\"\",SUM($C$49:G49)+SUM($C$55:G55)+SUM($C$58:G58)+SUM($C$60:G60))","v":1000},{"$f":"IF(H$21=\"\",\"\",SUM($C$49:H49)+SUM($C$55:H55)+SUM($C$58:H58)+SUM($C$60:H60))","v":1000},{"$f":"IF(I$21=\"\",\"\",SUM($C$49:I49)+SUM($C$55:I55)+SUM($C$58:I58)+SUM($C$60:I60))","v":1000},{"$f":"IF(J$21=\"\",\"\",SUM($C$49:J49)+SUM($C$55:J55)+SUM($C$58:J58)+SUM($C$60:J60))","v":1000},{"$f":"IF(K$21=\"\",\"\",SUM($C$49:K49)+SUM($C$55:K55)+SUM($C$58:K58)+SUM($C$60:K60))","v":1000},{"$f":"IF(L$21=\"\",\"\",SUM($C$49:L49)+SUM($C$55:L55)+SUM($C$58:L58)+SUM($C$60:L60))","v":1000},{"$f":"IF(M$21=\"\",\"\",SUM($C$49:M49)+SUM($C$55:M55)+SUM($C$58:M58)+SUM($C$60:M60))","v":1000},{"$f":"IF(N$21=\"\",\"\",SUM($C$49:N49)+SUM($C$55:N55)+SUM($C$58:N58)+SUM($C$60:N60))","v":1000},{"$f":"IF(O$21=\"\",\"\",SUM($C$49:O49)+SUM($C$55:O55)+SUM($C$58:O58)+SUM($C$60:O60))","v":1000},{"$f":"IF(P$21=\"\",\"\",SUM($C$49:P49)+SUM($C$55:P55)+SUM($C$58:P58)+SUM($C$60:P60))","v":1000},{"$f":"IF(Q$21=\"\",\"\",SUM($C$49:Q49)+SUM($C$55:Q55)+SUM($C$58:Q58)+SUM($C$60:Q60))","v":1000},{"$f":"IF(R$21=\"\",\"\",SUM($C$49:R49)+SUM($C$55:R55)+SUM($C$58:R58)+SUM($C$60:R60))","v":1000},{"$f":"IF(S$21=\"\",\"\",SUM($C$49:S49)+SUM($C$55:S55)+SUM($C$58:S58)+SUM($C$60:S60))","v":1000},{"$f":"IF(T$21=\"\",\"\",SUM($C$49:T49)+SUM($C$55:T55)+SUM($C$58:T58)+SUM($C$60:T60))","v":1000},{"$f":"IF(U$21=\"\",\"\",SUM($C$49:U49)+SUM($C$55:U55)+SUM($C$58:U58)+SUM($C$60:U60))","v":1000},{"$f":"IF(V$21=\"\",\"\",SUM($C$49:V49)+SUM($C$55:V55)+SUM($C$58:V58)+SUM($C$60:V60))","v":1000},{"$f":"IF(W$21=\"\",\"\",SUM($C$49:W49)+SUM($C$55:W55)+SUM($C$58:W58)+SUM($C$60:W60))","v":1000},{"$f":"IF(X$21=\"\",\"\",SUM($C$49:X49)+SUM($C$55:X55)+SUM($C$58:X58)+SUM($C$60:X60))","v":1000},{"$f":"IF(Y$21=\"\",\"\",SUM($C$49:Y49)+SUM($C$55:Y55)+SUM($C$58:Y58)+SUM($C$60:Y60))","v":""},{"$f":"IF(Z$21=\"\",\"\",SUM($C$49:Z49)+SUM($C$55:Z55)+SUM($C$58:Z58)+SUM($C$60:Z60))","v":""},{"$f":"IF(AA$21=\"\",\"\",SUM($C$49:AA49)+SUM($C$55:AA55)+SUM($C$58:AA58)+SUM($C$60:AA60))","v":""},{"$f":"IF(AB$21=\"\",\"\",SUM($C$49:AB49)+SUM($C$55:AB55)+SUM($C$58:AB58)+SUM($C$60:AB60))","v":""},{"$f":"IF(AC$21=\"\",\"\",SUM($C$49:AC49)+SUM($C$55:AC55)+SUM($C$58:AC58)+SUM($C$60:AC60))","v":""},{"$f":"IF(AD$21=\"\",\"\",SUM($C$49:AD49)+SUM($C$55:AD55)+SUM($C$58:AD58)+SUM($C$60:AD60))","v":""},{"$f":"IF(AE$21=\"\",\"\",SUM($C$49:AE49)+SUM($C$55:AE55)+SUM($C$58:AE58)+SUM($C$60:AE60))","v":""},{"$f":"IF(AF$21=\"\",\"\",SUM($C$49:AF49)+SUM($C$55:AF55)+SUM($C$58:AF58)+SUM($C$60:AF60))","v":""},{"$f":"IF(AG$21=\"\",\"\",SUM($C$49:AG49)+SUM($C$55:AG55)+SUM($C$58:AG58)+SUM($C$60:AG60))","v":""},{"$f":"IF(AH$21=\"\",\"\",SUM($C$49:AH49)+SUM($C$55:AH55)+SUM($C$58:AH58)+SUM($C$60:AH60))","v":""},{"$f":"IF(AI$21=\"\",\"\",SUM($C$49:AI49)+SUM($C$55:AI55)+SUM($C$58:AI58)+SUM($C$60:AI60))","v":""},{"$f":"IF(AJ$21=\"\",\"\",SUM($C$49:AJ49)+SUM($C$55:AJ55)+SUM($C$58:AJ58)+SUM($C$60:AJ60))","v":""},{"$f":"IF(AK$21=\"\",\"\",SUM($C$49:AK49)+SUM($C$55:AK55)+SUM($C$58:AK58)+SUM($C$60:AK60))","v":""},{"$f":"IF(AL$21=\"\",\"\",SUM($C$49:AL49)+SUM($C$55:AL55)+SUM($C$58:AL58)+SUM($C$60:AL60))","v":""},{"$f":"IF(AM$21=\"\",\"\",SUM($C$49:AM49)+SUM($C$55:AM55)+SUM($C$58:AM58)+SUM($C$60:AM60))","v":""},{"$f":"IF(AN$21=\"\",\"\",SUM($C$49:AN49)+SUM($C$55:AN55)+SUM($C$58:AN58)+SUM($C$60:AN60))","v":""},{"$f":"IF(AO$21=\"\",\"\",SUM($C$49:AO49)+SUM($C$55:AO55)+SUM($C$58:AO58)+SUM($C$60:AO60))","v":""},{"$f":"IF(AP$21=\"\",\"\",SUM($C$49:AP49)+SUM($C$55:AP55)+SUM($C$58:AP58)+SUM($C$60:AP60))","v":""},{"$f":"IF(AQ$21=\"\",\"\",SUM($C$49:AQ49)+SUM($C$55:AQ55)+SUM($C$58:AQ58)+SUM($C$60:AQ60))","v":""},{"$f":"IF(AR$21=\"\",\"\",SUM($C$49:AR49)+SUM($C$55:AR55)+SUM($C$58:AR58)+SUM($C$60:AR60))","v":""},{"$f":"IF(AS$21=\"\",\"\",SUM($C$49:AS49)+SUM($C$55:AS55)+SUM($C$58:AS58)+SUM($C$60:AS60))","v":""},{"$f":"IF(AT$21=\"\",\"\",SUM($C$49:AT49)+SUM($C$55:AT55)+SUM($C$58:AT58)+SUM($C$60:AT60))","v":""},{"$f":"IF(AU$21=\"\",\"\",SUM($C$49:AU49)+SUM($C$55:AU55)+SUM($C$58:AU58)+SUM($C$60:AU60))","v":""},{"$f":"IF(AV$21=\"\",\"\",SUM($C$49:AV49)+SUM($C$55:AV55)+SUM($C$58:AV58)+SUM($C$60:AV60))","v":""},{"$f":"IF(AW$21=\"\",\"\",SUM($C$49:AW49)+SUM($C$55:AW55)+SUM($C$58:AW58)+SUM($C$60:AW60))","v":""},{"$f":"IF(AX$21=\"\",\"\",SUM($C$49:AX49)+SUM($C$55:AX55)+SUM($C$58:AX58)+SUM($C$60:AX60))","v":""},{"$f":"IF(AY$21=\"\",\"\",SUM($C$49:AY49)+SUM($C$55:AY55)+SUM($C$58:AY58)+SUM($C$60:AY60))","v":""}]
["Summe sonstige staatliche Beihilfen",{"$f":"SUM(OFFSET(C63,0,0,1,B$13-B$11+1))","v":0},{"$f":"IF(C$21=\"\",\"\",IFERROR(C56+C59+C61,))","v":0},{"$f":"IF(D$21=\"\",\"\",IFERROR(D56+D59+D61,))","v":0},0,0,0,0,0,0,0,0,0,0,0,0,0,0,0,0,0,0,0,0,"","","","","","","","","","","","","","","","","","","","","","","","","","",""]

{"sheet":"Kontrafaktisches Szenario","index":16,"n_rows":55,"n_cols":51,"rows_kept":55,"cut":false,"hidden":true,"merged":[[2,3,4,3],[2,4,2,9],[3,4,3,9],[4,4,4,9]]}
["Berechnung der Finanzierungslücke - Tatsächliches Szenario"]
[]
[{"$f":"Deckblatt!B4","v":0},null,null,"LEGENDE","Zellen enthalten integrierte Formeln und Verknüpfungen - nicht ändern"]
[{"$f":"Deckblatt!B5","v":0},null,null,null,"Zellen enthalten integrierte Formeln, können aber geändert werden"]
[{"$f":"Deckblatt!B6","v":"00:00:00"},null,null,null,"Zellen benötigen Eingabedaten"]
[{"$f":"VLOOKUP(Deckblatt!G7,Deckblatt!J11:O17,2,TRUE)","v":{"$error":"#N/A"}}]
[]
["Allgemeine Angaben"]
[]
["Nummer der Vorhabenskategorie (aus \"Deckblatt\")",{"$f":"Deckblatt!G7","v":0}]
["Betrachtungsjahr (aus \"Tatsächliches Szenario\")",{"$f":"'Tatsächliches Szenario'!B11","v":2023}]
["Bei (befristetem) Weiterbetrieb Altanlage: Jahr der Neuinvestition"]
["Letztes Betrachtungsjahr (aus \"Tatsächliches Szenario\")",{"$f":"'Tatsächliches Szenario'!B13","v":2044}]
["WACC (gewichteter durchschnittlicher Kapitalkostensatz)",{"$f":"Deckblatt!R4","v":{"$error":"#DIV/0!"}}]
["WACC für Altanlagen",{"$f":"Deckblatt!S4","v":{"$error":"#DIV/0!"}}]
["Steuersatz",{"$f":"'Tatsächliches Szenario'!B16","v":0}]
[]
[]
["Berechnung Barwert des tatsächlichen Szenarios"]
[]
[null,"Gesamt",{"$f":"B11","v":2023},{"$f":"IF($C21+COLUMN(D21)-COLUMN($C21)<=$B$13,$C21+COLUMN(D21)-COLUMN($C21),\"\")","v":2024},{"$f":"IF($C21+COLUMN(E21)-COLUMN($C21)<=$B$13,$C21+COLUMN(E21)-COLUMN($C21),\"\")","v":2025},{"$f":"IF($C21+COLUMN(F21)-COLUMN($C21)<=$B$13,$C21+COLUMN(F21)-COLUMN($C21),\"\")","v":2026},2027,2028,2029,2030,2031,2032,2033,2034,2035,{"$f":"IF($C21+COLUMN(P21)-COLUMN($C21)<=$B$13,$C21+COLUMN(P21)-COLUMN($C21),\"\")","v":2036},{"$f":"IF($C21+COLUMN(Q21)-COLUMN($C21)<=$B$13,$C21+COLUMN(Q21)-COLUMN($C21),\"\")","v":2037},{"$f":"IF($C21+COLUMN(R21)-COLUMN($C21)<=$B$13,$C21+COLUMN(R21)-COLUMN($C21),\"\")","v":2038},2039,2040,2041,{"$f":"IF($C21+COLUMN(V21)-COLUMN($C21)<=$B$13,$C21+COLUMN(V21)-COLUMN($C21),\"\")","v":2042},{"$f":"IF($C21+COLUMN(W21)-COLUMN($C21)<=$B$13,$C21+COLUMN(W21)-COLUMN($C21),\"\")","v":2043},{"$f":"IF($C21+COLUMN(X21)-COLUMN($C21)<=$B$13,$C21+COLUMN(X21)-COLUMN($C21),\"\")","v":2044},"",{"$f":"IF($C21+COLUMN(Z21)-COLUMN($C21)<=$B$13,$C21+COLUMN(Z21)-COLUMN($C21),\"\")","v":""},{"$f":"IF($C21+COLUMN(AA21)-COLUMN($C21)<=$B$13,$C21+COLUMN(AA21)-COLUMN($C21),\"\")","v":""},{"$f":"IF($C21+COLUMN(AB21)-COLUMN($C21)<=$B$13,$C21+COLUMN(AB21)-COLUMN($C21),\"\")","v":""},"","","","","","","","","","","","","","","","","","","","","","",""]
["Neuinvestition",null,{"$f":"IF(C21=\"\",\"\",IF(C21<$B$12,\"Nein\",\"Ja\"))","v":"Ja"},{"$f":"IF(D21=\"\",\"\",IF(D21<$B$12,\"Nein\",\"Ja\"))","v":"Ja"},"Ja","Ja","Ja","Ja","Ja","Ja","Ja","Ja","Ja",{"$f":"IF(N21=\"\",\"\",IF(N21<$B$12,\"Nein\",\"Ja\"))","v":"Ja"},{"$f":"IF(O21=\"\",\"\",IF(O21<$B$12,\"Nein\",\"Ja\"))","v":"Ja"},{"$f":"IF(P21=\"\",\"\",IF(P21<$B$12,\"Nein\",\"Ja\"))","v":"Ja"},{"$f":"IF(Q21=\"\",\"\",IF(Q21<$B$12,\"Nein\",\"Ja\"))","v":"Ja"},{"$f":"IF(R21=\"\",\"\",IF(R21<$B$12,\"Nein\",\"Ja\"))","v":"Ja"},{"$f":"IF(S21=\"\",\"\",IF(S21<$B$12,\"Nein\",\"Ja\"))","v":"Ja"},{"$f":"IF(T21=\"\",\"\",IF(T21<$B$12,\"Nein\",\"Ja\"))","v":"Ja"},{"$f":"IF(U21=\"\",\"\",IF(U21<$B$12,\"Nein\",\"Ja\"))","v":"Ja"},{"$f":"IF(V21=\"\",\"\",IF(V21<$B$12,\"Nein\",\"Ja\"))","v":"Ja"},"Ja",{"$f":"IF(X21=\"\",\"\",IF(X21<$B$12,\"Nein\",\"Ja\"))","v":"Ja"},{"$f":"IF(Y21=\"\",\"\",IF(Y21<$B$12,\"Nein\",\"Ja\"))","v":""},{"$f":"IF(Z21=\"\",\"\",IF(Z21<$B$12,\"Nein\",\"Ja\"))","v":""},{"$f":"IF(AA21=\"\",\"\",IF(AA21<$B$12,\"Nein\",\"Ja\"))","v":""},{"$f":"IF(AB21=\"\",\"\",IF(AB21<$B$12,\"Nein\",\"Ja\"))","v":""},{"$f":"IF(AC21=\"\",\"\",IF(AC21<$B$12,\"Nein\",\"Ja\"))","v":""},{"$f":"IF(AD21=\"\",\"\",IF(AD21<$B$12,\"Nein\",\"Ja\"))","v":""},{"$f":"IF(AE21=\"\",\"\",IF(AE21<$B$12,\"Nein\",\"Ja\"))","v":""},{"$f":"IF(AF21=\"\",\"\",IF(AF21<$B$12,\"Nein\",\"Ja\"))","v":""},"",{"$f":"IF(AH21=\"\",\"\",IF(AH21<$B$12,\"Nein\",\"Ja\"))","v":""},{"$f":"IF(AI21=\"\",\"\",IF(AI21<$B$12,\"Nein\",\"Ja\"))","v":""},{"$f":"IF(AJ21=\"\",\"\",IF(AJ21<$B$12,\"Nein\",\"Ja\"))","v":""},{"$f":"IF(AK21=\"\",\"\",IF(AK21<$B$12,\"Nein\",\"Ja\"))","v":""},{"$f":"IF(AL21=\"\",\"\",IF(AL21<$B$12,\"Nein\",\"Ja\"))","v":""},{"$f":"IF(AM21=\"\",\"\",IF(AM21<$B$12,\"Nein\",\"Ja\"))","v":""},{"$f":"IF(AN21=\"\",\"\",IF(AN21<$B$12,\"Nein\",\"Ja\"))","v":""},{"$f":"IF(AO21=\"\",\"\",IF(AO21<$B$12,\"Nein\",\"Ja\"))","v":""},{"$f":"IF(AP21=\"\",\"\",IF(AP21<$B$12,\"Nein\",\"Ja\"))","v":""},"",{"$f":"IF(AR21=\"\",\"\",IF(AR21<$B$12,\"Nein\",\"Ja\"))","v":""},{"$f":"IF(AS21=\"\",\"\",IF(AS21<$B$12,\"Nein\",\"Ja\"))","v":""},{"$f":"IF(AT21=\"\",\"\",IF(AT21<$B$12,\"Nein\",\"Ja\"))","v":""},{"$f":"IF(AU21=\"\",\"\",IF(AU21<$B$12,\"Nein\",\"Ja\"))","v":""},{"$f":"IF(AV21=\"\",\"\",IF(AV21<$B$12,\"Nein\",\"Ja\"))","v":""},{"$f":"IF(AW21=\"\",\"\",IF(AW21<$B$12,\"Nein\",\"Ja\"))","v":""},{"$f":"IF(AX21=\"\",\"\",IF(AX21<$B$12,\"Nein\",\"Ja\"))","v":""},{"$f":"IF(AY21=\"\",\"\",IF(AY21<$B$12,\"Nein\",\"Ja\"))","v":""}]
["Kosten (in Euro)"]
["a) Investitionen in materielle Vermögenswerte",{"$f":"SUM(OFFSET(C24,0,0,1,B$13-B$11+1))","v":0}]
["b) Investitionen in immaterielle Vermögenswerte",0]
["c) Kosten für den Erwerb/Bau von Infrastruktur, Gebäuden und Grundstücken",0]
["d) Kosten Sachverständigen-, Planungs-, Beratungsleistungen",0]
["e) Eigenleistungen",{"$f":"SUM(OFFSET(C28,0,0,1,B$13-B$11+1))","v":0}]
["f) Kosten für Betrieb und Instandhaltung",0]
["g) Personal-/Verwaltungskosten ",0]
["h) Sonstige Kosten",0]
["Restwert des Anlagevermögens am Ende des Betrachtungszeitraums"]
[]
["Gesamtkosten",{"$f":"SUM(OFFSET(C34,0,0,1,B$13-B$11+1))","v":0},{"$f":"IF(C$21=\"\",\"\",IFERROR(SUM(C24:C31),\"\"))","v":0},{"$f":"IF(D$21=\"\",\"\",IFERROR(SUM(D24:D31),\"\"))","v":0},0,0,0,0,0,0,0,0,0,0,0,0,0,0,0,0,0,0,0,0,"","","","","","","","","","","","","","","","","","","","","","","","","","",""]
[]
["Verkäufe / Einnahmen (in Euro)"]
["a) Absatzmenge",{"$f":"IFERROR(AVERAGE(OFFSET(C37,0,0,1,B$13-B$11+1)),)","v":0}]
["     Preis pro Einheit",{"$f":"IFERROR(AVERAGE(OFFSET(C38,0,0,1,B$13-B$11+1)),)","v":0}]
["b) Einnahmen des Projektes",{"$f":"SUM(OFFSET(C39,0,0,1,B$13-B$11+1))","v":0}]
["c) Sonstige Einnahmen",{"$f":"SUM(OFFSET(C40,0,0,1,B$13-B$11+1))","v":0}]
["Gesamteinnahmen",{"$f":"SUM(OFFSET(C41,0,0,1,B$13-B$11+1))","v":0},{"$f":"IF(C$21=\"\",\"\",C37*C38+C39+C40)","v":0},{"$f":"IF(D$21=\"\",\"\",D37*D38+D39+D40)","v":0},{"$f":"IF(E$21=\"\",\"\",E37*E38+E39+E40)","v":0},0,0,0,0,0,0,0,0,0,0,0,0,0,0,0,0,0,0,0,"","","","","","","","","","","","","","","","","","","","","","","","","","",""]
[]
["Zahlungsströme (Cash-Flows, in Euro)"]
["Cash-Flows",{"$f":"SUM(OFFSET(C44,0,0,1,B$13-B$11+1))","v":0},{"$f":"IF(C$21=\"\",\"\",IFERROR(C41-C34,))","v":0},{"$f":"IF(D$21=\"\",\"\",IFERROR(D41-D34,))","v":0},0,0,0,0,0,0,0,0,0,0,0,0,0,0,0,0,0,0,0,0,"","","","","","","","","","","","","","","","","","","","","","","","","","",""]
["Diskontierte (abgezinste) Cash-Flows",{"$f":"SUM(OFFSET(C45,0,0,1,B$13-B$11+1))","v":{"$error":"#DIV/0!"}},{"$f":"IF(C$21=\"\",\"\",C44/(1+IF(C22=\"Nein\",$B$15,$B$14))^(C21-$B$11))","v":{"$error":"#DIV/0!"}},{"$error":"#DIV/0!"},{"$error":"#DIV/0!"},{"$error":"#DIV/0!"},{"$error":"#DIV/0!"},{"$error":"#DIV/0!"},{"$error":"#DIV/0!"},{"$error":"#DIV/0!"},{"$error":"#DIV/0!"},{"$error":"#DIV/0!"},{"$error":"#DIV/0!"},{"$error":"#DIV/0!"},{"$error":"#DIV/0!"},{"$error":"#DIV/0!"},{"$error":"#DIV/0!"},{"$error":"#DIV/0!"},{"$error":"#DIV/0!"},{"$error":"#DIV/0!"},{"$error":"#DIV/0!"},{"$error":"#DIV/0!"},{"$error":"#DIV/0!"},{"$error":"#DIV/0!"},"","","","","","","","","","",{"$f":"IF(AI$21=\"\",\"\",AI44/(1+IF(AI22=\"Nein\",$B$15,$B$14))^(AI21-$B$11))","v":""},"","","","","","","","","","","","","","","",""]
["Summe der diskontierten Cash-Flows",{"$f":"IFERROR(OFFSET(C46,0,B$13-B$11),)","v":0},{"$f":"IF(C$21=\"\",\"\",SUM($C$45:C45))","v":{"$error":"#DIV/0!"}},{"$f":"IF(D$21=\"\",\"\",SUM($C$45:D45))","v":{"$error":"#DIV/0!"}},{"$f":"IF(E$21=\"\",\"\",SUM($C$45:E45))","v":{"$error":"#DIV/0!"}},{"$f":"IF(F$21=\"\",\"\",SUM($C$45:F45))","v":{"$error":"#DIV/0!"}},{"$f":"IF(G$21=\"\",\"\",SUM($C$45:G45))","v":{"$error":"#DIV/0!"}},{"$f":"IF(H$21=\"\",\"\",SUM($C$45:H45))","v":{"$error":"#DIV/0!"}},{"$f":"IF(I$21=\"\",\"\",SUM($C$45:I45))","v":{"$error":"#DIV/0!"}},{"$f":"IF(J$21=\"\",\"\",SUM($C$45:J45))","v":{"$error":"#DIV/0!"}},{"$f":"IF(K$21=\"\",\"\",SUM($C$45:K45))","v":{"$error":"#DIV/0!"}},{"$f":"IF(L$21=\"\",\"\",SUM($C$45:L45))","v":{"$error":"#DIV/0!"}},{"$f":"IF(M$21=\"\",\"\",SUM($C$45:M45))","v":{"$error":"#DIV/0!"}},{"$f":"IF(N$21=\"\",\"\",SUM($C$45:N45))","v":{"$error":"#DIV/0!"}},{"$f":"IF(O$21=\"\",\"\",SUM($C$45:O45))","v":{"$error":"#DIV/0!"}},{"$f":"IF(P$21=\"\",\"\",SUM($C$45:P45))","v":{"$error":"#DIV/0!"}},{"$f":"IF(Q$21=\"\",\"\",SUM($C$45:Q45))","v":{"$error":"#DIV/0!"}},{"$f":"IF(R$21=\"\",\"\",SUM($C$45:R45))","v":{"$error":"#DIV/0!"}},{"$f":"IF(S$21=\"\",\"\",SUM($C$45:S45))","v":{"$error":"#DIV/0!"}},{"$f":"IF(T$21=\"\",\"\",SUM($C$45:T45))","v":{"$error":"#DIV/0!"}},{"$f":"IF(U$21=\"\",\"\",SUM($C$45:U45))","v":{"$error":"#DIV/0!"}},{"$f":"IF(V$21=\"\",\"\",SUM($C$45:V45))","v":{"$error":"#DIV/0!"}},{"$f":"IF(W$21=\"\",\"\",SUM($C$45:W45))","v":{"$error":"#DIV/0!"}},{"$f":"IF(X$21=\"\",\"\",SUM($C$45:X45))","v":{"$error":"#DIV/0!"}},{"$f":"IF(Y$21=\"\",\"\",SUM($C$45:Y45))","v":""},{"$f":"IF(Z$21=\"\",\"\",SUM($C$45:Z45))","v":""},{"$f":"IF(AA$21=\"\",\"\",SUM($C$45:AA45))","v":""},{"$f":"IF(AB$21=\"\",\"\",SUM($C$45:AB45))","v":""},{"$f":"IF(AC$21=\"\",\"\",SUM($C$45:AC45))","v":""},{"$f":"IF(AD$21=\"\",\"\",SUM($C$45:AD45))","v":""},{"$f":"IF(AE$21=\"\",\"\",SUM($C$45:AE45))","v":""},{"$f":"IF(AF$21=\"\",\"\",SUM($C$45:AF45))","v":""},{"$f":"IF(AG$21=\"\",\"\",SUM($C$45:AG45))","v":""},{"$f":"IF(AH$21=\"\",\"\",SUM($C$45:AH45))","v":""},{"$f":"IF(AI$21=\"\",\"\",SUM($C$45:AI45))","v":""},{"$f":"IF(AJ$21=\"\",\"\",SUM($C$45:AJ45))","v":""},{"$f":"IF(AK$21=\"\",\"\",SUM($C$45:AK45))","v":""},{"$f":"IF(AL$21=\"\",\"\",SUM($C$45:AL45))","v":""},{"$f":"IF(AM$21=\"\",\"\",SUM($C$45:AM45))","v":""},{"$f":"IF(AN$21=\"\",\"\",SUM($C$45:AN45))","v":""},{"$f":"IF(AO$21=\"\",\"\",SUM($C$45:AO45))","v":""},{"$f":"IF(AP$21=\"\",\"\",SUM($C$45:AP45))","v":""},{"$f":"IF(AQ$21=\"\",\"\",SUM($C$45:AQ45))","v":""},{"$f":"IF(AR$21=\"\",\"\",SUM($C$45:AR45))","v":""},{"$f":"IF(AS$21=\"\",\"\",SUM($C$45:AS45))","v":""},{"$f":"IF(AT$21=\"\",\"\",SUM($C$45:AT45))","v":""},{"$f":"IF(AU$21=\"\",\"\",SUM($C$45:AU45))","v":""},{"$f":"IF(AV$21=\"\",\"\",SUM($C$45:AV45))","v":""},{"$f":"IF(AW$21=\"\",\"\",SUM($C$45:AW45))","v":""},{"$f":"IF(AX$21=\"\",\"\",SUM($C$45:AX45))","v":""},{"$f":"IF(AY$21=\"\",\"\",SUM($C$45:AY45))","v":""}]
["Kapitalwert des kontrafaktischen Szenarios",{"$f":"B46+C32*1/(1+B14)^(B13-B11)","v":{"$error":"#DIV/0!"}}]
[]
[]
["Finanzierung (in Euro)"]
["Darlehen / Kredite",{"$f":"SUM(OFFSET(C51,0,0,1,B$13-B$11+1))","v":0}]
["Effektive Verzinsung des Fremdkapitals (in Prozent)"]
["Eigenkapital",{"$f":"SUM(OFFSET(C53,0,0,1,B$13-B$11+1))","v":0}]
["sonstige Zuschüsse ",{"$f":"SUM(OFFSET(C54,0,0,1,B$13-B$11+1))","v":0}]
["Kassenbestand",null,{"$f":"IF(C$21=\"\",\"\",SUM($C$44:C44)+SUM($C$51:C51)+SUM($C$53:C53)+SUM($C$54:C54))","v":0},{"$f":"IF(D$21=\"\",\"\",SUM($C$44:D44)+SUM($C$51:D51)+SUM($C$53:D53)+SUM($C$54:D54))","v":0},{"$f":"IF(E$21=\"\",\"\",SUM($C$44:E44)+SUM($C$51:E51)+SUM($C$53:E53)+SUM($C$54:E54))","v":0},{"$f":"IF(F$21=\"\",\"\",SUM($C$44:F44)+SUM($C$51:F51)+SUM($C$53:F53)+SUM($C$54:F54))","v":0},{"$f":"IF(G$21=\"\",\"\",SUM($C$44:G44)+SUM($C$51:G51)+SUM($C$53:G53)+SUM($C$54:G54))","v":0},{"$f":"IF(H$21=\"\",\"\",SUM($C$44:H44)+SUM($C$51:H51)+SUM($C$53:H53)+SUM($C$54:H54))","v":0},{"$f":"IF(I$21=\"\",\"\",SUM($C$44:I44)+SUM($C$51:I51)+SUM($C$53:I53)+SUM($C$54:I54))","v":0},{"$f":"IF(J$21=\"\",\"\",SUM($C$44:J44)+SUM($C$51:J51)+SUM($C$53:J53)+SUM($C$54:J54))","v":0},{"$f":"IF(K$21=\"\",\"\",SUM($C$44:K44)+SUM($C$51:K51)+SUM($C$53:K53)+SUM($C$54:K54))","v":0},{"$f":"IF(L$21=\"\",\"\",SUM($C$44:L44)+SUM($C$51:L51)+SUM($C$53:L53)+SUM($C$54:L54))","v":0},{"$f":"IF(M$21=\"\",\"\",SUM($C$44:M44)+SUM($C$51:M51)+SUM($C$53:M53)+SUM($C$54:M54))","v":0},{"$f":"IF(N$21=\"\",\"\",SUM($C$44:N44)+SUM($C$51:N51)+SUM($C$53:N53)+SUM($C$54:N54))","v":0},{"$f":"IF(O$21=\"\",\"\",SUM($C$44:O44)+SUM($C$51:O51)+SUM($C$53:O53)+SUM($C$54:O54))","v":0},{"$f":"IF(P$21=\"\",\"\",SUM($C$44:P44)+SUM($C$51:P51)+SUM($C$53:P53)+SUM($C$54:P54))","v":0},{"$f":"IF(Q$21=\"\",\"\",SUM($C$44:Q44)+SUM($C$51:Q51)+SUM($C$53:Q53)+SUM($C$54:Q54))","v":0},{"$f":"IF(R$21=\"\",\"\",SUM($C$44:R44)+SUM($C$51:R51)+SUM($C$53:R53)+SUM($C$54:R54))","v":0},{"$f":"IF(S$21=\"\",\"\",SUM($C$44:S44)+SUM($C$51:S51)+SUM($C$53:S53)+SUM($C$54:S54))","v":0},{"$f":"IF(T$21=\"\",\"\",SUM($C$44:T44)+SUM($C$51:T51)+SUM($C$53:T53)+SUM($C$54:T54))","v":0},{"$f":"IF(U$21=\"\",\"\",SUM($C$44:U44)+SUM($C$51:U51)+SUM($C$53:U53)+SUM($C$54:U54))","v":0},{"$f":"IF(V$21=\"\",\"\",SUM($C$44:V44)+SUM($C$51:V51)+SUM($C$53:V53)+SUM($C$54:V54))","v":0},{"$f":"IF(W$21=\"\",\"\",SUM($C$44:W44)+SUM($C$51:W51)+SUM($C$53:W53)+SUM($C$54:W54))","v":0},{"$f":"IF(X$21=\"\",\"\",SUM($C$44:X44)+SUM($C$51:X51)+SUM($C$53:X53)+SUM($C$54:X54))","v":0},{"$f":"IF(Y$21=\"\",\"\",SUM($C$44:Y44)+SUM($C$51:Y51)+SUM($C$53:Y53)+SUM($C$54:Y54))","v":""},{"$f":"IF(Z$21=\"\",\"\",SUM($C$44:Z44)+SUM($C$51:Z51)+SUM($C$53:Z53)+SUM($C$54:Z54))","v":""},{"$f":"IF(AA$21=\"\",\"\",SUM($C$44:AA44)+SUM($C$51:AA51)+SUM($C$53:AA53)+SUM($C$54:AA54))","v":""},{"$f":"IF(AB$21=\"\",\"\",SUM($C$44:AB44)+SUM($C$51:AB51)+SUM($C$53:AB53)+SUM($C$54:AB54))","v":""},{"$f":"IF(AC$21=\"\",\"\",SUM($C$44:AC44)+SUM($C$51:AC51)+SUM($C$53:AC53)+SUM($C$54:AC54))","v":""},{"$f":"IF(AD$21=\"\",\"\",SUM($C$44:AD44)+SUM($C$51:AD51)+SUM($C$53:AD53)+SUM($C$54:AD54))","v":""},{"$f":"IF(AE$21=\"\",\"\",SUM($C$44:AE44)+SUM($C$51:AE51)+SUM($C$53:AE53)+SUM($C$54:AE54))","v":""},{"$f":"IF(AF$21=\"\",\"\",SUM($C$44:AF44)+SUM($C$51:AF51)+SUM($C$53:AF53)+SUM($C$54:AF54))","v":""},{"$f":"IF(AG$21=\"\",\"\",SUM($C$44:AG44)+SUM($C$51:AG51)+SUM($C$53:AG53)+SUM($C$54:AG54))","v":""},{"$f":"IF(AH$21=\"\",\"\",SUM($C$44:AH44)+SUM($C$51:AH51)+SUM($C$53:AH53)+SUM($C$54:AH54))","v":""},{"$f":"IF(AI$21=\"\",\"\",SUM($C$44:AI44)+SUM($C$51:AI51)+SUM($C$53:AI53)+SUM($C$54:AI54))","v":""},{"$f":"IF(AJ$21=\"\",\"\",SUM($C$44:AJ44)+SUM($C$51:AJ51)+SUM($C$53:AJ53)+SUM($C$54:AJ54))","v":""},{"$f":"IF(AK$21=\"\",\"\",SUM($C$44:AK44)+SUM($C$51:AK51)+SUM($C$53:AK53)+SUM($C$54:AK54))","v":""},{"$f":"IF(AL$21=\"\",\"\",SUM($C$44:AL44)+SUM($C$51:AL51)+SUM($C$53:AL53)+SUM($C$54:AL54))","v":""},{"$f":"IF(AM$21=\"\",\"\",SUM($C$44:AM44)+SUM($C$51:AM51)+SUM($C$53:AM53)+SUM($C$54:AM54))","v":""},{"$f":"IF(AN$21=\"\",\"\",SUM($C$44:AN44)+SUM($C$51:AN51)+SUM($C$53:AN53)+SUM($C$54:AN54))","v":""},{"$f":"IF(AO$21=\"\",\"\",SUM($C$44:AO44)+SUM($C$51:AO51)+SUM($C$53:AO53)+SUM($C$54:AO54))","v":""},{"$f":"IF(AP$21=\"\",\"\",SUM($C$44:AP44)+SUM($C$51:AP51)+SUM($C$53:AP53)+SUM($C$54:AP54))","v":""},{"$f":"IF(AQ$21=\"\",\"\",SUM($C$44:AQ44)+SUM($C$51:AQ51)+SUM($C$53:AQ53)+SUM($C$54:AQ54))","v":""},{"$f":"IF(AR$21=\"\",\"\",SUM($C$44:AR44)+SUM($C$51:AR51)+SUM($C$53:AR53)+SUM($C$54:AR54))","v":""},{"$f":"IF(AS$21=\"\",\"\",SUM($C$44:AS44)+SUM($C$51:AS51)+SUM($C$53:AS53)+SUM($C$54:AS54))","v":""},{"$f":"IF(AT$21=\"\",\"\",SUM($C$44:AT44)+SUM($C$51:AT51)+SUM($C$53:AT53)+SUM($C$54:AT54))","v":""},{"$f":"IF(AU$21=\"\",\"\",SUM($C$44:AU44)+SUM($C$51:AU51)+SUM($C$53:AU53)+SUM($C$54:AU54))","v":""},{"$f":"IF(AV$21=\"\",\"\",SUM($C$44:AV44)+SUM($C$51:AV51)+SUM($C$53:AV53)+SUM($C$54:AV54))","v":""},{"$f":"IF(AW$21=\"\",\"\",SUM($C$44:AW44)+SUM($C$51:AW51)+SUM($C$53:AW53)+SUM($C$54:AW54))","v":""},{"$f":"IF(AX$21=\"\",\"\",SUM($C$44:AX44)+SUM($C$51:AX51)+SUM($C$53:AX53)+SUM($C$54:AX54))","v":""},{"$f":"IF(AY$21=\"\",\"\",SUM($C$44:AY44)+SUM($C$51:AY51)+SUM($C$53:AY53)+SUM($C$54:AY54))","v":""}]

{"sheet":"Zusammenfassung","index":17,"n_rows":29,"n_cols":5,"rows_kept":29,"cut":false,"hidden":true,"merged":[[2,4,2,9],[3,4,3,9],[4,4,4,9],[2,3,4,3]]}
["Zusammenfassung Berechnung der Finanzierungslücke "]
[]
[{"$f":"Deckblatt!B4","v":0},null,null,"LEGENDE","Zellen enthalten integrierte Formeln und Verknüpfungen - nicht ändern"]
[{"$f":"Deckblatt!B5","v":0},null,null,null,"Zellen enthalten integrierte Formeln, können aber geändert werden"]
[{"$f":"Deckblatt!B6","v":"00:00:00"},null,null,null,"Zellen benötigen Eingabedaten"]
[{"$f":"VLOOKUP(Deckblatt!G7,Deckblatt!J11:O17,2,TRUE)","v":{"$error":"#N/A"}}]
[]
["Finanzierungslücke"]
[]
[null,"Betrag in EUR"]
["Kapitalwert des tatsächlichen Szenarios (Deckungslücke)",{"$f":"'Tatsächliches Szenario'!B52","v":{"$error":"#N/A"}},null,"Abschließend prüfen: Welche dieser Informationen ist wirklich wichtig und Gegenstand der Bewertung??"]
["Kapitalwert des kontrafaktischen Szenarios",{"$f":"IF('Kontrafaktisches Szenario'!B47<0,0,'Kontrafaktisches Szenario'!B47)","v":{"$error":"#DIV/0!"}}]
["Finanzierungslücke ",{"$f":"B12-B11","v":{"$error":"#DIV/0!"}}]
["Sonstige staatliche Beihilfen",{"$f":"'Tatsächliches Szenario'!B63","v":0}]
["Höchstzulässiger Fördersatz (Beihilfeintensität)",{"$f":"Deckblatt!G8","v":0}]
["Betrag der Förderung",{"$f":"MIN((B13),(B15*B28-B14))","v":{"$error":"#DIV/0!"}}]
[]
[]
["Wichtigste Parameter"]
[]
[null,"Tatsächliches Szenario","Kontrafaktisches Szenario"]
["Summe Kosten",{"$f":"'Tatsächliches Szenario'!B38","v":0},{"$f":"'Kontrafaktisches Szenario'!B34","v":0}]
["Summe Einnahmen",{"$f":"'Tatsächliches Szenario'!B46","v":0},{"$f":"'Kontrafaktisches Szenario'!B41","v":0}]
["Summe Cash-flows",{"$f":"'Tatsächliches Szenario'!B49","v":0},{"$f":"'Kontrafaktisches Szenario'!B44","v":0}]
["Minimum Kassenbestand",{"$f":"MIN('Tatsächliches Szenario'!C62:AY62)","v":1000}]
["Förderbetrag deckt Minimum Kassenbestand",{"$f":"IF(B16>(-B25),\"Ja\",\"Nein\")","v":{"$error":"#DIV/0!"}},null,"Abschließend prüfen: Welche dieser Informationen ist wirklich wichtig und Gegenstand der Bewertung??"]
["WACC",{"$f":"'Tatsächliches Szenario'!B15","v":{"$error":"#N/A"}}]
["Summe max. förderfähige Kosten",{"$f":"'Tatsächliches Szenario'!B39","v":0}]
["Anteil Finanzierungslücke an max. förderfähigen Kosten",{"$f":"B13/B28","v":{"$error":"#DIV/0!"}}]

{"sheet":"Ablage","index":18,"n_rows":77,"n_cols":12,"rows_kept":77,"cut":false,"hidden":true,"merged":[]}
["ABLAGE",null,"Tabelle Ausblenden"]
["Dropdownfelder"]
[]
["Kopiervorlagen: Diese Daten müssen händisch in die jeweiligen Tabellen übertragen werden, wenn sie für Dropdown genutzt werden sollen. Excel erlaubt in früheren Versionen keinen Dropdowndaten über mehrere Tabellen hinweg."]
[]
[{"$nulls":9},"Instandhaltungskosten",null,"Betriebskosten"]
["Auswahl","zugeordneter Brennstoff","KWK-Schalter",{"$nulls":6},"% der Investition",null,"% der Erlöse"]
["KESSEL_Erdgas","Erdgas",{"$nulls":7},"Euro pauschal ",null,"Euro pauschal "]
["KESSEL_Biogas","Biogas"]
["KESSEL_Biomethan","Biomethan"]
["KESSEL_Holz/Pellet/Stroh","Holz"]
["BHKW_Erdgas","Erdgas",1]
["BHKW_Biogas","Biogas",1]
["BHKW_Biomethan","Biomethan",1]
["WÄRMEPUMPE_Sole","Strom"]
["WÄRMEPUMPE_Luft","Strom"]
["WÄRMEPUMPE_Erdgas","Erdgas"]
["WÄRMEPUMPE_Biogas","Biogas"]
["WÄRMEPUMPE_Biomethan","Biomethan"]
["SOLAR_Kollektor","Sonnenenergie"]
["P2H_Strom","Strom"]
["EXTERNer Wärmebezug","Wärme"]
["KÄLTE_aus_Kompression","Wärme"]
["KÄLTE_aus_Ad-/Absorbtion","Wärme"]
["Therm. Abfallverwertung","Erstzbr.stoff/Hs.müll"]
[]
[]
["Datenzusammenstellungen und Ergänzende Eingaben"]
[]
["Umrechnungsfaktor in Heizwert (Hi) DIN 18599-1 AH B"]
[]
[null,"HS/Hi",{"$nulls":5},"Zusätzliche Eingaben"]
["Erdgas",1.1095238095238]
["Biogas",1.1100000000000001,{"$nulls":4},"WACC Basissatz",0.08,"Fernwärme!"]
["Biomethan",1.1100000000000001]
["Heizöl",1.06]
["Holz",1.08]
["Strom",1]
["Sonnenenergie",1]
["Wärme",1]
["Erstzbr.stoff/Hs.müll",1]
[]
["Ideen"]
["Checkliste integrieren"]
[]
[]
["Ende der Förderperiode"]
[2029]
[]
[]
[]
["Indizes beim Jahr der Inbetriebnahme"]
[null,"Start der Betrachtung","Jahr der Inbetriebnahme","Aufzinsungsfaktor für Preise","Schalter"]
[{"$f":"Nebenrechnungen!C23","v":1},{"$f":"Nebenrechnungen!D23","v":2026},{"$f":"IF(B54>=Inbetriebnahme,B54,\"\")","v":2026},{"$f":"IF(C54=\"\",0,COUNT($C$54:C54)-1)","v":0},{"$f":"IF(B54>=Inbetriebnahme,1,0)","v":1}]
[{"$f":"Nebenrechnungen!C24","v":2},{"$f":"Nebenrechnungen!D24","v":2027},2027,{"$f":"IF(C55=\"\",0,COUNT($C$54:C55)-1)","v":1},1]
[{"$f":"Nebenrechnungen!C25","v":3},{"$f":"Nebenrechnungen!D25","v":2028},2028,{"$f":"IF(C56=\"\",0,COUNT($C$54:C56)-1)","v":2},1]
[{"$f":"Nebenrechnungen!C26","v":4},{"$f":"Nebenrechnungen!D26","v":2029},2029,{"$f":"IF(C57=\"\",0,COUNT($C$54:C57)-1)","v":3},1]
[{"$f":"Nebenrechnungen!C27","v":5},{"$f":"Nebenrechnungen!D27","v":2030},2030,{"$f":"IF(C58=\"\",0,COUNT($C$54:C58)-1)","v":4},1]
[{"$f":"Nebenrechnungen!C28","v":6},{"$f":"Nebenrechnungen!D28","v":2031},2031,{"$f":"IF(C59=\"\",0,COUNT($C$54:C59)-1)","v":5},1]
[{"$f":"Nebenrechnungen!C29","v":7},{"$f":"Nebenrechnungen!D29","v":2032},2032,{"$f":"IF(C60=\"\",0,COUNT($C$54:C60)-1)","v":6},1]
[{"$f":"Nebenrechnungen!C30","v":8},{"$f":"Nebenrechnungen!D30","v":2033},2033,{"$f":"IF(C61=\"\",0,COUNT($C$54:C61)-1)","v":7},1]
[{"$f":"Nebenrechnungen!C31","v":9},{"$f":"Nebenrechnungen!D31","v":2034},2034,{"$f":"IF(C62=\"\",0,COUNT($C$54:C62)-1)","v":8},1]
[{"$f":"Nebenrechnungen!C32","v":10},{"$f":"Nebenrechnungen!D32","v":2035},2035,{"$f":"IF(C63=\"\",0,COUNT($C$54:C63)-1)","v":9},1]
[{"$f":"Nebenrechnungen!C33","v":11},{"$f":"Nebenrechnungen!D33","v":2036},2036,{"$f":"IF(C64=\"\",0,COUNT($C$54:C64)-1)","v":10},1]
[{"$f":"Nebenrechnungen!C34","v":12},{"$f":"Nebenrechnungen!D34","v":2037},2037,{"$f":"IF(C65=\"\",0,COUNT($C$54:C65)-1)","v":11},1]
[{"$f":"Nebenrechnungen!C35","v":13},{"$f":"Nebenrechnungen!D35","v":2038},2038,{"$f":"IF(C66=\"\",0,COUNT($C$54:C66)-1)","v":12},1]
[{"$f":"Nebenrechnungen!C36","v":14},{"$f":"Nebenrechnungen!D36","v":2039},2039,{"$f":"IF(C67=\"\",0,COUNT($C$54:C67)-1)","v":13},1]
[{"$f":"Nebenrechnungen!C37","v":15},{"$f":"Nebenrechnungen!D37","v":2040},2040,{"$f":"IF(C68=\"\",0,COUNT($C$54:C68)-1)","v":14},1]
[{"$f":"Nebenrechnungen!C38","v":16},{"$f":"Nebenrechnungen!D38","v":2041},2041,{"$f":"IF(C69=\"\",0,COUNT($C$54:C69)-1)","v":15},1]
[{"$f":"Nebenrechnungen!C39","v":17},{"$f":"Nebenrechnungen!D39","v":2042},2042,{"$f":"IF(C70=\"\",0,COUNT($C$54:C70)-1)","v":16},1]
[{"$f":"Nebenrechnungen!C40","v":18},{"$f":"Nebenrechnungen!D40","v":2043},2043,{"$f":"IF(C71=\"\",0,COUNT($C$54:C71)-1)","v":17},1]
[{"$f":"Nebenrechnungen!C41","v":19},{"$f":"Nebenrechnungen!D41","v":2044},2044,{"$f":"IF(C72=\"\",0,COUNT($C$54:C72)-1)","v":18},1]
[{"$f":"Nebenrechnungen!C42","v":20},{"$f":"Nebenrechnungen!D42","v":2045},2045,{"$f":"IF(C73=\"\",0,COUNT($C$54:C73)-1)","v":19},1]
[{"$f":"Nebenrechnungen!C43","v":21},{"$f":"Nebenrechnungen!D43","v":""},"",{"$f":"IF(C74=\"\",0,COUNT($C$54:C74)-1)","v":0},1]
[{"$f":"Nebenrechnungen!C44","v":22},{"$f":"Nebenrechnungen!D44","v":""},"",{"$f":"IF(C75=\"\",0,COUNT($C$54:C75)-1)","v":0},1]
[{"$f":"Nebenrechnungen!C45","v":23},{"$f":"Nebenrechnungen!D45","v":""},"",{"$f":"IF(C76=\"\",0,COUNT($C$54:C76)-1)","v":0},1]
[{"$f":"Nebenrechnungen!C46","v":24},{"$f":"Nebenrechnungen!D46","v":""},"",{"$f":"IF(C77=\"\",0,COUNT($C$54:C77)-1)","v":0},1]